Workbook

Sheet AER only (hidden)
B1: Data in these columns used for data validation and database purposes.
B2: Date last modified: | C2: 2017-01-16 | D2: added (Albury and Victora) for AGN
C3: 2016-10-17 | D3: updated TransGrid's correct legal name, corrected TasNetworks (T) to June financial year
C4: 2017-02-01 | D4: inserted Power and Water, added NRs (dms_FeederCat_1 and dms_FeederCat_2)
C5: 2017-03-03 | D5: inserted AEMO as a business | AC5: FOR ELECTRICITY BUSINESSES ONLY
AC6: Feeder Types | AG6: TasNetworks (D) | AH6: MAIFI flag | AI6: Feeder Names
AC7: CBD | AD7: Urban | AE7: Short rural | AF7: long rural | AG7: EXTRA
B8: dms_TradingName_List | C8: dms_TradingNameFull_List | D8: dms_ABN_List | E8: dms_JurisdictionList | F8: dms_Sector_List | G8: dms_Segment_List | H8: dms_FormControl_List | I8: dms_RPT_List | J8: dms_RPTMonth_List | K8: dms_CRCPlength_List | L8: dms_FRCPlength_List | M8: dms_663_List | N8: dms_DeterminationRef_List | O8: dms_Addr1_List | P8: dms_Addr2_List | Q8: dms_Suburb_List | R8: dms_State_List | S8: dms_PostCode_List | T8: dms_PAddr1_List | U8: dms_PAddr2_List | V8: dms_PSuburb_List | W8: dms_PState_List | X8: dms_PPostCode_List | Y8: dms_ContactName1_List | Z8: dms_ContactPh1_List | AA8: dms_ContactEmail_List | AB8: Column1 | AC8: dms_CBD_flag | AD8: dms_Urban_flag | AE8: dms_ShortRural_flag | AF8: dms_LongRural_flag | AG8: dms_FeederType_5_flag | AH8: dms_MAIFI_flag_List | AI8: dms_FeederName_1 | AJ8: dms_FeederName_2 | AK8: dms_FeederName_3 | AL8: dms_FeederName_4 | AM8: dms_FeederName_5
B9: ActewAGL Distribution | C9: ActewAGL Distribution | D9: 76670568688 | E9: ACT | F9: Electricity | G9: Distribution | H9: Revenue cap | I9: Financial | J9: June | K9: 5 | L9: 5 | M9: 5 | N9: 2014-19 Distribution Determination | O9: 40 Bunda Street | Q9: CANBERRA | R9: ACT | S9: 2600 | T9: GPO BOX 366 | V9: CANBERRA | W9: ACT | X9: 2601 | Y9: Robert Walker | Z9: 02 6248 3847 | AA9: robert.walker@actewagle.com.au | AC9: NO | AD9: YES | AE9: YES | AF9: NO | AG9: NO | AI9: CBD | AJ9: Urban | AK9: Short rural | AL9: Long rural | AN9: ActewAGL Distribution
B10: ActewAGL Distribution (Tx Assets) | C10: ActewAGL Distribution (Tx Assets) | D10: 76670568688 | E10: ACT | F10: Electricity | G10: Distribution | H10: Revenue cap | I10: Financial | J10: June | K10: 5 | L10: 5 | M10: 5 | N10: distribution determination | O10: 40 Bunda Street | Q10: CANBERRA | R10: ACT | S10: 2600 | T10: GPO BOX 366 | V10: CANBERRA | W10: ACT | X10: 2601 | Y10: Robert Walker | Z10: 02 6248 3847 | AA10: robert.walker@actewagle.com.au | AI10: CBD | AJ10: Urban | AK10: Short rural | AL10: Long rural | AN10: ActewAGL Distribution (Tx Assets)
B11: ActewAGL Gas | C11: ActewAGL Gas | D11: 76670568688 | E11: ACT | F11: Gas | G11: Distribution | H11: Weighted average price cap | I11: Financial | J11: June | K11: 5 | L11: 5 | M11: x | O11: 40 Bunda Street | Q11: CANBERRA | R11: ACT | S11: 2600 | T11: GPO BOX 366 | V11: CANBERRA | W11: ACT | X11: 2601 | Y11: Philip Deamer | Z11: 02 6248 3438 | AA11: GasAAReview@actewagl.com.au | AN11: ActewAGL Gas
B12: AEMO | C12: Australian Energy Market Operator Ltd | D12: 94072010327 | E12: Vic | F12: Electricity | G12: Transmission | H12: - | I12: Financial | J12: March | K12: 5 | L12: 5 | M12: x | N12: - | O12: Level 22 | P12: 530 Collins Street | Q12: MELBOURNE | R12: VIC | S12: 3000 | T12: GPO Box 2008 | V12: MELBOURNE | W12: VIC | X12: 3001 | AN12: AEMO
B13: AGN (Albury and Victoria) | C13: Australian Gas Networks Limited (reporting data for Albury and Victoria) | D13: 19078551685 | E13: Vic | F13: Gas | G13: Distribution | H13: Weighted average price cap | I13: Calendar | J13: December | K13: 5 | L13: 5 | M13: x | O13: Level 6 | P13: 400 King William Street | Q13: ADELAIDE | R13: SA | S13: 5000 | T13: PO Box 6468 | U13: Halifax Street | V13: ADELAIDE | W13: SA | X13: 5000 | Y13: Craig de Laine | Z13: 08 8418 1129 | AA13: craig.delaine@agn.com.au | AI13: CBD | AJ13: Urban | AK13: Short rural | AL13: Long rural | AN13: AGN (Albury)
B14: AGN (Albury) | C14: Australian Gas Networks Limited (reporting data for Albury) | D14: 19078551685 | E14: Vic | F14: Gas | G14: Distribution | H14: Weighted average price cap | I14: Calendar | J14: December | K14: 5 | L14: 5 | M14: x | O14: Level 6 | P14: 400 King William Street | Q14: ADELAIDE | R14: SA | S14: 5000 | T14: PO Box 6468 | U14: Halifax Street | V14: ADELAIDE | W14: SA | X14: 5000 | Y14: Craig de Laine | Z14: 08 8418 1129 | AA14: craig.delaine@agn.com.au | AI14: CBD | AJ14: Urban | AK14: Short rural | AL14: Long rural
B15: AGN (SA) | C15: Australian Gas Networks Limited (reporting data for SA) | D15: 19078551685 | E15: SA | F15: Gas | G15: Distribution | H15: Weighted average price cap | I15: Financial | J15: June | K15: 5 | L15: 5 | M15: 5 | N15: distribution determination | O15: Level 6 | P15: 400 King William Street | Q15: ADELAIDE | R15: SA | S15: 5000 | T15: PO Box 6468 | U15: Halifax Street | V15: ADELAIDE | W15: SA | X15: 5000 | Y15: Craig de Laine | Z15: 08 8418 1129 | AA15: craig.delaine@agn.com.au | AN15: AGN (SA)
B16: AGN (Victoria) | C16: Australian Gas Networks Limited (reporting data for Victoria) | D16: 19078551685 | E16: Vic | F16: Gas | G16: Distribution | H16: Weighted average price cap | I16: Calendar | J16: December | K16: 5 | L16: 5 | M16: x | AN16: AGN (Victoria)
B17: Amadeus | C17: APT Pipelines (NT) Pty Ltd | D17: 39009737393 | E17: NT | F17: Gas | G17: Transmission | H17: Weighted average price cap | I17: Financial | J17: June | K17: 5 | L17: 5 | M17: x | N17: n/a | O17: Level 19, HSBC Building | P17: 580 George Street | Q17: SYDNEY | R17: NSW | S17: 2000 | T17: Level 19, HSBC Building | U17: 580 George Street | V17: SYDNEY | W17: NSW | X17: 2000 | Y17: Alexandra Curran | Z17: 02 9275 0020 | AA17: alexandra.curran@apa.com.au | AN17: Amadeus
B18: APA GasNet | C18: APA GasNet Australia (Operations) Pty Ltd | D18: 065083009 | E18: Vic | F18: Gas | G18: Transmission | H18: Weighted average price cap | I18: Calendar | J18: December | K18: 5 | L18: 5 | M18: x | O18: Level 19, HSBC Building | P18: 580 George Street | Q18: SYDNEY | R18: NSW | S18: 2000 | T18: PO Box R41 | V18: ROYAL EXCHANGE | W18: NSW | X18: 1225 | Z18: 02 9693 0000 | AN18: APA GasNet
B19: Ausgrid | C19: Ausgrid | D19: 78508211731 | E19: NSW | F19: Electricity | G19: Distribution | H19: Revenue cap | I19: Financial | J19: June | K19: 5 | L19: 5 | M19: 5 | N19: 2014-19 Distribution Determination | O19: 570 George St | Q19: SYDNEY | R19: NSW | S19: 2000 | T19: GPO Box 4009 | V19: SYDNEY | W19: NSW | X19: 2001 | Y19: John Thomson | Z19: (02) 9269 2312 | AA19: john.thomson@ausgrid.com.au | AC19: YES | AD19: YES | AE19: YES | AF19: YES | AG19: NO | AI19: CBD | AJ19: Urban | AK19: Short rural | AL19: Long rural | AN19: Ausgrid
B20: Ausgrid (Tx Assets) | C20: Ausgrid (Tx Assets) | D20: 67505337385 | E20: NSW | F20: Electricity | G20: Distribution | H20: Revenue cap | I20: Financial | J20: June | K20: 5 | L20: 5 | M20: 5 | N20: distribution determination | R20: NSW | AI20: CBD | AJ20: Urban | AK20: Short rural | AL20: Long rural | AN20: Ausgrid (Tx Assets)
B21: AusNet (D) | C21: AusNet Electricity Services Pty Ltd | D21: 91064651118 | E21: Vic | F21: Electricity | G21: Distribution | H21: Revenue cap | I21: Calendar | J21: December | K21: 5 | L21: 5 | M21: 2 | N21: 2016-20 Distribution Determination | O21: Level 32 | P21: 2 Southbank Boulevard | Q21: SOUTHBANK | R21: Vic | S21: 3006 | T21: Locked Bag 14051 | V21: MELBOURNE CITY MAIL CENTRE | W21: VIC | X21: 8001 | AD21: YES | AE21: YES | AF21: YES | AG21: NO | AI21: CBD | AJ21: Urban | AK21: Short rural | AL21: Long rural | AN21: AusNet (D)
B22: AusNet (Gas) | C22: AusNet Gas Services | D22: 086015036 | E22: Vic | F22: Gas | G22: Distribution | H22: Weighted average price cap | I22: Calendar | J22: December | K22: 5 | L22: 5 | M22: X | O22: Level 19, HSBC Building | P22: 580 George Street | Q22: SYDNEY | R22: NSW | S22: 2000 | T22: PO Box R41 | V22: ROYAL EXCHANGE | W22: NSW | X22: 1225 | Y22: Alexandra Curran | Z22: 02 9275 0020 | AA22: alexandra.curran@apa.com.au | AN22: AusNet (Gas)
B23: AusNet (T) | C23: Ausnet Services (Transmission) Ltd | D23: 48116124362 | E23: Vic | F23: Electricity | G23: Transmission | H23: Revenue cap | I23: Financial | J23: March | K23: 5 | L23: 5 | M23: 2 | N23: transmission determination | O23: Level 32 | P23: 2 Southbank Boulevard | Q23: SOUTHBANK | R23: Vic | S23: 3006 | T23: Locked Bag 14051 | V23: MELBOURNE CITY MAIL CENTRE | W23: Vic | X23: 8001 | Y23: Clare Thompson | Z23: 03 9695 6670 | AA23: clare.e.thompson@ausnetservices.com.au | AI23: CBD | AJ23: Urban | AK23: Short rural | AL23: Long rural | AN23: AusNet (T)
B24: Australian Distribution Co. | C24: Australian Distribution Co. | D24: 11222333444 | E24: - | F24: Electricity | G24: Distribution | H24: Revenue cap | I24: Financial | J24: June | K24: 5 | L24: 5 | M24: 2 | N24: distribution determination | O24: 123 Straight Street | Q24: SYDNEY | R24: NSW | S24: 2000 | T24: PO Box 123 | V24: SYDNEY | W24: NSW | X24: 2000 | Y24: Bob Smith | Z24: 02 1234 5678 | AA24: bob@auselec.net.au | AI24: CBD | AJ24: Urban | AK24: Short rural | AL24: Long rural | AN24: Australian Distribution Co.
B25: Australian Distribution Co. (Vic) | C25: Australian Distribution Co. (Victoria) | D25: 11222333444 | E25: Vic | F25: Electricity | G25: Distribution | H25: Revenue cap | I25: Calendar | J25: December | K25: 5 | L25: 5 | M25: 2 | N25: distribution determination | O25: 123 Straight Street | Q25: MELBOURNE | R25: Vic | S25: 3000 | T25: PO Box 123 | V25: MELBOURNE | W25: VIC | X25: 3000 | Y25: Bob Smith | Z25: 02 1234 5678 | AA25: bob@auselec.net.au | AI25: CBD | AJ25: Urban | AK25: Short rural | AL25: Long rural | AN25: Australian Distribution Co. (Vic)
B26: Australian Transmission Co. | C26: Australian Transmission Co. | D26: 11222333444 | E26: - | F26: Electricity | G26: Transmission | H26: Revenue cap | I26: Financial | J26: June | K26: 5 | L26: 5 | M26: 5 | N26: transmission determination | O26: 123 Straight Street | Q26: SYDNEY | R26: NSW | S26: 2000 | T26: PO Box 123 | V26: SYDNEY | W26: NSW | X26: 2000 | Y26: Bob Smith | Z26: 02 1234 5678 | AA26: bob@auselec.net.au | AI26: CBD | AJ26: Urban | AK26: Short rural | AL26: Long rural | AN26: Australian Transmission Co.
B27: CitiPower | C27: CitiPower | D27: 76064651056 | E27: Vic | F27: Electricity | G27: Distribution | H27: Revenue cap | I27: Calendar | J27: December | K27: 5 | L27: 5 | M27: 2 | N27: 2016-20 Distribution Determination | O27: 40 Market Street | Q27: MELBOURNE | R27: Vic | S27: 3000 | T27: Locked Bag 14090 | V27: MELBOURNE | W27: VIC | X27: 8001 | Y27: Hannah Williams | Z27: 03 9683 4088 | AA27: hwilliams@powercor.com.au | AC27: YES | AD27: YES | AE27: NO | AF27: NO | AG27: NO | AI27: CBD | AJ27: Urban | AK27: Short rural | AL27: Long rural | AN27: CitiPower
B28: Directlink | C28: Directlink | D28: 16779340889 | E28: Qld | F28: Electricity | G28: Transmission | H28: Revenue cap | I28: Financial | J28: June | K28: 9 | L28: 5 | M28: 5 | N28: transmission determination | O28: Level 19, HSBC Building | P28: 580 George Street | Q28: SYDNEY | R28: NSW | S28: 2000 | T28: PO Box R41 | V28: ROYAL EXCHANGE | W28: NSW | X28: 1225 | Y28: Scott Young | Z28: 02 9275 0031 | AA28: scott.young@apa.com.au | AI28: CBD | AJ28: Urban | AK28: Short rural | AL28: Long rural | AN28: Directlink
B29: ElectraNet | C29: ElectraNet | D29: 41094482416 | E29: SA | F29: Electricity | G29: Transmission | H29: Revenue cap | I29: Financial | J29: June | K29: 5 | L29: 5 | M29: 5 | N29: transmission determination | O29: 52-55 East Terrace | P29: Rymill Park | Q29: ADELAIDE | R29: SA | S29: 5000 | T29: PO Box 7096 | U29: Hutt Street Post Office | V29: ADELAIDE | W29: SA | X29: 5000 | Y29: Bill Jackson | Z29: 08 8404 7969 | AA29: jackson.bill@electranet.com.au | AI29: CBD | AJ29: Urban | AK29: Short rural | AL29: Long rural | AN29: ElectraNet
B30: Endeavour Energy | C30: Endeavour Energy | D30: 11247365823 | E30: NSW | F30: Electricity | G30: Distribution | H30: Revenue cap | I30: Financial | J30: June | K30: 5 | L30: 5 | M30: 5 | N30: 2014-19 Distribution Determination | O30: 51 Huntingwood Drive | Q30: HUNTINGWOOD | R30: NSW | S30: 2148 | T30: PO Box 811 | V30: SEVEN HILLS | W30: NSW | X30: 1730 | Y30: Jon Hocking | Z30: 02 9853 4386 / 0407 348 156 | AA30: Jon.Hocking@Endeavourenergy.com.au | AC30: NO | AD30: YES | AE30: YES | AF30: YES | AG30: NO | AI30: CBD | AJ30: Urban | AK30: Short rural | AL30: Long rural | AN30: Endeavour Energy
B31: Energex | C31: Energex | D31: 40078849055 | E31: Qld | F31: Electricity | G31: Distribution | H31: Revenue cap | I31: Financial | J31: June | K31: 5 | L31: 5 | M31: 5 | N31: 2015-20 Distribution Determination | O31: 26 Reddacliff Street | Q31: NEWSTEAD | R31: Qld | S31: 4006 | T31: 26 Reddacliff Street | V31: NEWSTEAD | W31: QLD | X31: 4006 | Y31: Nicola Roscoe | Z31: 07 3664 5891 | AA31: nicolaroscoe@energex.com.au | AC31: YES | AD31: YES | AE31: YES | AF31: NO | AG31: NO | AI31: CBD | AJ31: Urban | AK31: Short rural | AL31: Long rural | AN31: Energex
B32: Ergon Energy | C32: Ergon Energy | D32: 50087646062 | E32: Qld | F32: Electricity | G32: Distribution | H32: Revenue cap | I32: Financial | J32: June | K32: 5 | L32: 5 | M32: 5 | N32: 2015-20 Distribution Determination | O32: 22 Walker Street | Q32: TOWNSVILLE | R32: Qld | S32: 4810 | T32: Po Box 264 | V32: FORTITUDE VALLEY | W32: QLD | X32: 4006 | Y32: Jenny Doyle, Group Manager Regulatory Affairs | Z32: (07) 3851 6416 | AA32: jenny.doyle@ergon.com.au | AC32: NO | AD32: YES | AE32: YES | AF32: YES | AG32: NO | AI32: CBD | AJ32: Urban | AK32: Short rural | AL32: Long rural | AN32: Ergon Energy
B33: Essential Energy | C33: Essential Energy | D33: 37428185226 | E33: NSW | F33: Electricity | G33: Distribution | H33: Revenue cap | I33: Financial | J33: June | K33: 5 | L33: 5 | M33: 5 | N33: 2014-19 Distribution Determination | O33: 8 Buller Street | Q33: PORT MACQUARIE | R33: NSW | S33: 2444 | T33: PO Box 5730 | V33: PORT MACQUARIE | W33: NSW | X33: 2444 | Y33: Catherine Waddell | Z33: 02 6338 3553 | AA33: catherine.waddell@essentialenergy.com.au | AE33: YES | AF33: YES | AG33: NO | AI33: CBD | AJ33: Urban | AK33: Short rural | AL33: Long rural | AN33: Essential Energy
B34: Jemena Electricity | C34: Jemena Electricity | D34: 82064651083 | E34: Vic | F34: Electricity | G34: Distribution | H34: Revenue cap | I34: Calendar | J34: December | K34: 5 | L34: 5 | M34: 2 | N34: 2016-20 Distribution Determination | O34: Level 16 | P34: 567 Collins Street | Q34: MELBOURNE | R34: VIC | S34: 3000 | T34: PO Box 16182 | V34: MELBOURNE | W34: VIC | X34: 8001 | Y34: Matthew Serpell | Z34: 03 9173 8231 | AA34: matthew.serpell@jemena.com.au | AE34: YES | AF34: NO | AG34: NO | AI34: CBD | AJ34: Urban | AK34: Short rural | AL34: Long rural | AN34: Jemena Electricity
B35: JGN | C35: Jemena Gas Networks (NSW) Ltd | D35: 003 004 322 | E35: NSW | F35: Gas | G35: Distribution | H35: Weighted average price cap | I35: Financial | J35: June | K35: 5 | L35: 5 | AN35: JGN
B36: Multinet Gas | C36: Multinet Gas (DB No.1) Pty Ltd (ACN 086 026 986), Multinet Gas (DB No.2) Pty Ltd (ACN 086 230 122) | D36: 086026986 | E36: Vic | F36: Gas | G36: Distribution | H36: Weighted average price cap | I36: Calendar | J36: December | K36: 5 | L36: 5 | M36: x | O36: 6 Nexus Court | Q36: MULGRAVE | R36: Vic | S36: 3149 | Y36: Stephanie McDougall | Z36: 03 8846 9538 | AA36: Stephanie.McDougall@ue.com.au | AN36: Multinet Gas
B37: Murraylink | C37: Murraylink | D37: 79181207909 | E37: SA | F37: Electricity | G37: Transmission | H37: Revenue cap | I37: Financial | J37: June | K37: 5 | L37: 5 | M37: 5 | N37: transmission determination | O37: Level 19 | P37: 580 George Street | Q37: SYDNEY | R37: NSW | S37: 2000 | Y37: Scott Young | Z37: 02 9275 0031 | AA37: scott.young@apa.com.au | AI37: CBD | AJ37: Urban | AK37: Short rural | AL37: Long rural | AN37: Murraylink
B38: Power and Water | C38: Power and Water Corporation | D38: 15947352360 | E38: NT | F38: Electricity | G38: Distribution | H38: Revenue cap | I38: Financial | J38: June | K38: 5 | L38: 5 | M38: x | N38: distribution determination | O38: GPO Box 1921 | Q38: DARWIN | R38: NT | S38: 0801 | T38: GPO Box 1921 | V38: DARWIN | W38: NT | X38: 0801 | Y38: Lucy Moon | Z38: 08 8924 5822 | AA38: Lucy.Moon@powerwater.com.au | AC38: YES | AD38: YES | AE38: YES | AF38: YES | AG38: NO
B39: Powercor Australia | C39: Powercor Australia | D39: 89064651109 | E39: Vic | F39: Electricity | G39: Distribution | H39: Revenue cap | I39: Calendar | J39: December | K39: 5 | L39: 5 | M39: 2 | N39: 2016-20 Distribution Determination | O39: 40 Market Street | Q39: MELBOURNE | R39: Vic | S39: 3000 | T39: Locked bag 14090 | V39: MELBOURNE | W39: VIC | X39: 8001 | Y39: Hannah Williams | Z39: 03 9683 4088 | AA39: hwilliams@powercor.com.au | AE39: YES | AF39: YES | AG39: NO | AI39: CBD | AJ39: Urban | AK39: Short rural | AL39: Long rural | AN39: Powercor Australia
B40: Powerlink | C40: Queensland Electricity Transmission Corporation Limited trading as Powerlink Queensland | D40: 82078849233 | E40: Qld | F40: Electricity | G40: Transmission | H40: Revenue cap | I40: Financial | J40: June | K40: 5 | L40: 5 | M40: 5 | N40: transmission determination | O40: 33 Harold St | Q40: VIRGINIA | R40: Qld | S40: 4014 | T40: PO Box 1193 | V40: VIRGINIA | W40: QLD | X40: 4014 | Y40: Jennifer Harris | Z40: 07 3860 2667 | AA40: jharris@powerlink.com.au | AI40: CBD | AJ40: Urban | AK40: Short rural | AL40: Long rural | AN40: Powerlink
B41: Roma to Brisbane Pipeline | C41: APT Petroleum Pipelines Limited t/a Roma to Brisbane Pipeline | D41: 009 737 393 | E41: Qld | F41: Gas | G41: Transmission | H41: Weighted average price cap | I41: Financial | J41: June | K41: 5 | L41: 5 | M41: x | N41: n/a | O41: 580 George Street | Q41: SYDNEY | R41: NSW | S41: 2000 | T41: PO Box R41 | V41: ROYAL EXCHANGE | W41: NSW | X41: 1225 | Y41: Mark Allen | Z41: 02 9275 0010 | AA41: mark.allen@apa.com.au | AI41: CBD | AJ41: Urban | AK41: Short rural | AL41: Long rural | AN41: Roma to Brisbane Pipeline
B42: SA Power Networks | C42: SA Power Networks | D42: 13332330749 | E42: SA | F42: Electricity | G42: Distribution | H42: Revenue cap | I42: Financial | J42: June | K42: 5 | L42: 5 | M42: 5 | N42: 2015-20 Distribution Determination | O42: 1 Anzac Highway | Q42: KESWICK | R42: SA | S42: 5035 | T42: GPO Box 77 | V42: ADELAIDE | W42: SA | X42: 5000 | Y42: Richard Sibly | Z42: 08 8404 5613 | AA42: richard.sibly@sapowernetworks.com.au | AE42: YES | AF42: YES | AG42: NO | AI42: CBD | AJ42: Urban | AK42: Short rural | AL42: Long rural | AN42: SA Power Networks
B43: TasNetworks (D) | C43: TasNetworks (D) | D43: 24167357299 | E43: Tas | F43: Electricity | G43: Distribution | H43: Revenue cap | I43: Financial | J43: June | K43: 5 | L43: 5 | M43: 5 | N43: distribution determination | O43: 1-7 Maria Street | Q43: LENAH VALLEY | R43: Tas | S43: 7008 | T43: PO Box 606 | V43: MOONAH | W43: Tas | X43: 7009 | Y43: John Sayers | Z43: 03 6271 6469 | AA43: john.sayers@tasnetworks.com.au | AE43: YES | AF43: YES | AG43: YES | AI43: Critical Infrastructure | AJ43: High density commercial | AK43: Urban | AL43: High density rural | AM43: Low density rural | AN43: TasNetworks (D)
B44: TasNetworks (T) | C44: TasNetworks (T) | D44: 24167357299 | E44: Tas | F44: Electricity | G44: Transmission | H44: Revenue cap | I44: Financial | J44: June | K44: 5 | L44: 5 | M44: 5 | N44: transmission determination | O44: 1-7 Maria Street | Q44: LENAH VALLEY | R44: Tas | S44: 7008 | T44: PO Box 606 | V44: MOONAH | W44: Tas | X44: 7009 | Y44: John Sayers | Z44: 03 6271 6469 | AA44: john.sayers@tasnetworks.com.au | AI44: CBD | AJ44: Urban | AK44: Short rural | AL44: Long rural | AN44: TasNetworks (T)
B45: TransGrid | C45: NSW Electricity Networks Operations Pty Ltd trading as TransGrid | D45: 609169959 | E45: NSW | F45: Electricity | G45: Transmission | H45: Revenue cap | I45: Financial | J45: June | K45: 5 | L45: 4 | M45: 5 | N45: transmission determination | O45: 180 Thomas Street | Q45: SYDNEY | R45: NSW | S45: 2000 | T45: PO Box A1000 | V45: SYDNEY SOUTH | W45: NSW | X45: 1235 | Y45: Garrie Chubb | Z45: 0408 210 221 | AA45: garrie.chubb@transgrid.com.au | AI45: CBD | AJ45: Urban | AK45: Short rural | AL45: Long rural | AN45: TransGrid
B46: United Energy | C46: United Energy | D46: 70064651029 | E46: Vic | F46: Electricity | G46: Distribution | H46: Revenue cap | I46: Calendar | J46: December | K46: 5 | L46: 5 | M46: 2 | N46: 2016-20 Distribution Determination | O46: Level 3 | P46: 6 Nexus Court | Q46: MULGRAVE | R46: Vic | S46: 3149 | T46: PO Box 449 | V46: MOUNT WAVERLEY | W46: VIC | X46: 3170 | Y46: Mathew Abraham | Z46: 03 8846 9758 | AA46: mathew.abraham@ue.com.au | AE46: YES | AF46: NO | AG46: NO | AI46: CBD | AJ46: Urban | AK46: Short rural | AL46: Long rural | AN46: United Energy
B47: Western Power (D) | C47: Western Power (D) | D47: 18540492861 | E47: WA | F47: Electricity | G47: Distribution | H47: Revenue cap | I47: Financial | J47: June | K47: 12 | L47: 4 | M47: x | N47: distribution determination | O47: 363 Wellington Street | Q47: PERTH | R47: WA | S47: 6000 | T47: GPO Box L921 | V47: PERTH | W47: WA | X47: 6842 | Y47: Judy Hunter | Z47: 08 9326 6239 | AA47: judy.hunter@westernpower.com.au | AE47: YES | AF47: YES | AG47: NO | AH47: NO | AI47: CBD | AJ47: Urban | AK47: Short rural | AL47: Long rural | AN47: Western Power (D)
B48: Western Power (T) | C48: Western Power (T) | D48: 18540492861 | E48: WA | F48: Electricity | G48: Transmission | H48: Revenue cap | I48: Financial | J48: June | K48: 12 | L48: 4 | M48: x | N48: transmission determination | O48: 363 Wellington Street | Q48: PERTH | R48: WA | S48: 6000 | T48: GPO Box L921 | V48: PERTH | W48: WA | X48: 6842 | Y48: Judy Hunter | Z48: 08 9326 6239 | AA48: judy.hunter@westernpower.com.au | AE48: YES | AF48: YES | AG48: NO | AI48: CBD | AJ48: Urban | AK48: Short rural | AL48: Long rural | AN48: Western Power (T)
W51: For EB & Reset RINs only | AC51: For AARs only
B52: The Reg Year Ending (dms_RYE) must be set to the last year of the regulatory period. For forecast data is is usually (FRCP_y5) for actual it is a single year (CRY). For historical actual data the RYE will need to be set manually in the business details sheet by setting the dms_Multiyear_flag to 1 and putting the correct value in 'dms_Specified_FinalYear. See cells C67:C68 | G52: =IF(dms_RPT="financial",VALUE(LEFT(CRCP_y1,4)-1)&"-"&TEXT(VALUE(RIGHT(CRCP_y1,2)-1),"00"),VALUE(LEFT(CRCP_y1,4)-1)) -> 2013-14 | N52: Drop down selector box for CA & Reset RINs. | O52: For CA & Reset RINs only | W52: for DNSP only | AC52: For DNSPs only | AI52: Reason for interruption | AJ52: dms_Reason_Interruption_Detailed | AK52: dms_Reason_Interruption
B53: dms_Model_List | C53: DELETE NR 'CRY' IF NOT AN ANNUAL RIN (EB, CA , ARR) | E53: dms_RYE_Formula_Result | N53: dms_0203_ProjectType | O53: dms_020303_01_UOM | P53: dms_020501_01_UOM | Q53: dms_020501_02_UOM | R53: dms_020501_03_UOM | S53: dms_020501_04_UOM | T53: dms_020603_01_UOM | U53: dms_040102_01_UOM | V53: dms_040102_04_UOM | W53: dms_030601_01_UOM | X53: dms_030601_02_UOM | Y53: dms_030701_01_UOM | Z53: dms_030702_01_UOM | AA53: dms_030703_01_UOM | AC53: dms_030605_UOM | AD53: dms_03060703_UOM | AI53: Animal | AJ53: Animal impact | AK53: Animal
B54: ARR | C54: ANNUAL REPORTING STATEMENT | E54: =LEFT(dms_SingleYear_FinalYear_Result,2)&RIGHT(dms_SingleYear_FinalYear_Result,2) ->  | F54: =LEFT(dms_SingleYear_FinalYear_Result,2)&RIGHT(dms_SingleYear_FinalYear_Result,2) | H54: Formula errors are OK | N54: New line on new route - single circuit | O54: Circuit line length in km | P54: 0's | Q54: 0's | R54: 0's | S54: 0's | T54: 0's | U54: 0's | V54: days | W54: minutes/customer | X54: minutes/customer | Y54: Customer / km | Z54: % | AA54: km | AC54: number | AD54: number | AJ54: Animal nesting/burrowing, etc and other | AK54: Asset failure
B55: CA | C55: CATEGORY ANALYSIS | E55: =LEFT(dms_SingleYear_FinalYear_Result,2)&RIGHT(dms_SingleYear_FinalYear_Result,2) ->  | F55: =LEFT(dms_SingleYear_FinalYear_Result,2)&RIGHT(dms_SingleYear_FinalYear_Result,2) | H55: Formula errors are OK | N55: New line on new route - dual circuit | O55: Circuit line length in km | P55: 0's | Q55: 0's | R55: 0's | S55: 0's | T55: 0's | U55: 0's | V55: 0's | W55: minutes/customer | X55: minutes/customer | Y55: MWh/customer | Z55: Number of spans | AC55: number | AD55: number | AJ55: Other | AK55: Other
B56: CPI | C56: CPI | N56: New line on new route - other | O56: Circuit line length in km | P56: MVA added | Q56: MVA added | R56: MVA added | S56: MVA added | T56: 0's | U56: 0's | V56: $0s | W56: interruptions/customer | X56: interruptions/customer | Y56: kVA / customer | Z56: Number of spans | AC56: number | AD56: number | AI56: Asset failure | AJ56: LV | AK56: Overloads
B57: EB | C57: ECONOMIC BENCHMARKING | E57: =LEFT(dms_SingleYear_FinalYear_Result,2)&RIGHT(dms_SingleYear_FinalYear_Result,2) ->  | F57: =LEFT(dms_SingleYear_FinalYear_Result,2)&RIGHT(dms_SingleYear_FinalYear_Result,2) | H57: Formula errors are OK | N57: Line rebuild over existing route - single circuit | O57: Circuit line length in km | P57: 0's | Q57: 0's | R57: 0's | S57: 0's | T57: 0's | U57: $0s | V57: 0's | W57: interruptions/customer | X57: interruptions/customer | Z57: Number of spans | AC57: number | AD57: number | AJ57: Distribution substation | AK57: Planned
B58: PTRM | C58: POST TAX REVENUE MODEL | E58: =LEFT(dms_MultiYear_FinalYear_Result,2)&RIGHT(dms_MultiYear_FinalYear_Result,2) -> 2024 | F58: =LEFT(dms_MultiYear_FinalYear_Result,2)&RIGHT(dms_MultiYear_FinalYear_Result,2) | N58: Line rebuild over existing route - dual circuit | O58: Number | P58: total spend $0s | Q58: total spend $0s | R58: total spend $0s | S58: total spend $0s | T58: (per cent) | Z58: Number of spans | AC58: number | AD58: (per cent) | AJ58: HV | AK58: Network business
B59: Reset | C59: REGULATORY REPORTING STATEMENT | E59: =LEFT(dms_MultiYear_FinalYear_Result,2)&RIGHT(dms_MultiYear_FinalYear_Result,2) -> 2024 | F59: =LEFT(dms_MultiYear_FinalYear_Result,2)&RIGHT(dms_MultiYear_FinalYear_Result,2) | H59: Formula errors are OK | N59: Reconductor - Single circuit | O59: Number | P59: net circuit km added | Q59: net circuit km added | R59: net circuit km added | S59: net circuit km added | Z59: Years | AC59: number | AJ59: Zone substation | AK59: Third party
B60: RFM | C60: ROLL FORWARD MODEL | E60: =LEFT(dms_CRCP_FinalYear_Result,2)&RIGHT(dms_CRCP_FinalYear_Result,2) -> 2019 | F60: =LEFT(dms_CRCP_FinalYear_Result,2)&RIGHT(dms_CRCP_FinalYear_Result,2) | N60: Reconductor - Dual circuit | O60: Number | P60: total spend $0s | Q60: total spend $0s | R60: total spend $0s | S60: total spend $0s | Z60: Years | AC60: number | AJ60: Subtransmission | AK60: Unknown
B61: WACC | C61: WEIGHTED AVERAGE COST OF CAPITAL | E61: =LEFT(dms_MultiYear_FinalYear_Result,2)&RIGHT(dms_MultiYear_FinalYear_Result,2) -> 2024 | F61: =LEFT(dms_MultiYear_FinalYear_Result,2)&RIGHT(dms_MultiYear_FinalYear_Result,2) | N61: Other | P61: net circuit km added | Q61: net circuit km added | R61: net circuit km added | S61: net circuit km added | Z61: Trees | AC61: number | AI61: Other | AJ61: insert description of 'other' | AK61: Vegetation
P62: total spend $0s | Q62: total spend $0s | R62: total spend $0s | S62: total spend $0s | Z62: Trees | AC62: number | AI62: Overloads | AJ62: - | AK62: Weather
B63: dms_DataQuality_List | P63: 0's | R63: $0s | Z63: Defects | AC63: number | AI63: Planned | AJ63: - | AK63: 2 - STPIS Exclusion (3.3)(a)
B64: Actual | P64: 0's | Z64: Defects | AC64: number | AI64: Network business | AJ64: Network error | AK64: 3 - STPIS Exclusion (3.3)(a)
B65: Estimate | P65: 0's | Z65: Spans | AC65: number | AJ65: Switching and protection error | AK65: 4 - STPIS Exclusion (3.3)(a)
B66: Consolidated | P66: $0s | Z66: km | AC66: (per cent) | AI66: Third party | AJ66: Fire | AK66: 5 - STPIS Exclusion (3.3)(a)
B67: Recast | Z67: Spans | AC67: (per cent) | AJ67: Other | AK67: 6 - STPIS Exclusion (3.3)(a)
B68: Public | AJ68: Dig-in | AK68: 7 - STPIS Exclusion (3.3)(a)
AJ69: Unauthorised access
B70: For all files either AER or business needs to be able to specify the type of submission | C70: For PTRM & RFM templates we must provide a choice in case they change their form of control - otherwise it is drawn from the business specific lookup table above. | O70: For PTRM files - this field set the text for the named range "DMS_Xfactor" which in all cases is simply the text "x factors" - this saves putting in each old gas PTRM file | W70: for TNSP only | AJ70: Vehicle impact
B71: dms_SourceList | C71: dms_FormControl_Choices | O71: DMS_Xfactor | W71: dms_030601_01_UOM | Y71: dms_030701_01_UOM | Z71: dms_030702_01_UOM | AI71: Unknown | AJ71: Unknown
B72: After appeal | C72: Revenue cap | O72: x factors | W72: % | Y72: Number of spans | Z72: km | AI72: Vegetation | AJ72: Blow-in/Fall-in - NSP responsibility
B73: Draft decision | C73: Revenue yield | W73: number | Y73: Years | Z73: % | AJ73: Grow-in - NSP responsibility
B74: Final decision | C74: Weighted average price cap | W74: number | Y74: Trees | Z74: km | AJ74: Blow-in/Fall-in - Other responsible party
B75: PTRM update 1 | W75: % | Y75: Defects | Z75: number | AJ75: Grow-in - Other responsible party
B76: PTRM update 2 | W76: number | Y76: Number of spans | AI76: Weather
B77: PTRM update 3 | W77: number | Y77: km | AI77: 2 - STPIS Exclusion (3.3)(a)
B78: PTRM update 4 | W78: % | Y78: km | AI78: 3 - STPIS Exclusion (3.3)(a)
B79: PTRM update 5 | W79: number | Y79: Number of spans | AI79: 4 - STPIS Exclusion (3.3)(a)
B80: PTRM update 6 | W80: number | AI80: 5 - STPIS Exclusion (3.3)(a)
B81: PTRM update 7 | W81: % | AI81: 6 - STPIS Exclusion (3.3)(a)
B82: Regulatory proposal | W82: number | AI82: 7 - STPIS Exclusion (3.3)(a)
B83: Reporting | W83: %
B84: Revised regulatory proposal | W84: number
W85: %
W86: number
B90: These are indeces and lookup values for various dates. All step from the value placed in FRCP_y1 on the business and other details worksheet | L90: These date tables are currently used in the Recast templates to provide column headings and conditional formatting
B91: dms_FRCPlength_Num_List | C91: dms_FinalYear_List | D91: dms_CRCPlength_Num_List | E91: dms_CFinalYear_List | F91: dms_FRCP_years | H91: dms_CRCP_years | J91: dms_CRCP_index | L91: CRY from input cell on business sheet | M91: CRY - financial | N91: dms_FinYears | O91: CRY calendar | P91: dms_CalYears
B92: 1 | C92: dms_FRCP_y1 | D92: 1 | E92: CRCP_y1 | F92: =FRCP_y1 -> 2019-20 | G92: dms_FRCP_y1 | H92: =IF(dms_RPT="financial",VALUE(LEFT(dms_FRCP_y1,4)-1)&"-"&TEXT(VALUE(MID(dms_FRCP_y1,3,2)),"00"),VALUE(LEFT(dms_FRCP_y1,4)-1)) -> 2018-19 | I92: dms_CRCP_yZ | J92: 1 | L92: =CRY ->  | M92: =VALUE(LEFT(CRY,4))&"-"&TEXT(MID(CRY,3,2)+1,"00") ->  | N92: dms_CRYf_y1 | O92: =VALUE(LEFT(CRY,4)+1) ->  | P92: dms_CRYc_y1
B93: 2 | C93: dms_FRCP_y2 | D93: 2 | E93: CRCP_y2 | F93: =IF(dms_RPT="financial",VALUE(LEFT(dms_FRCP_y1,4)+1)&"-"&TEXT(VALUE(RIGHT(dms_FRCP_y1,2)+1),"00"),VALUE(LEFT(dms_FRCP_y1,4)+1)) -> 2020-21 | G93: dms_FRCP_y2 | H93: =IF(dms_RPT="financial",VALUE(LEFT(dms_CRCP_yZ,4)-1)&"-"&TEXT(VALUE(MID(dms_CRCP_yZ,3,2)),"00"),VALUE(LEFT(dms_CRCP_yZ,4)-1)) -> 2017-18 | I93: dms_CRCP_yY | J93: 2 | M93: =VALUE(LEFT(dms_CRYf_y1,4)+1)&"-"&TEXT(MID(dms_CRYf_y1,3,2)+2,"00") ->  | N93: dms_CRYf_y2 | O93: =VALUE(LEFT(dms_CRYc_y1,4)+1) ->  | P93: dms_CRYc_y2
B94: 3 | C94: dms_FRCP_y3 | D94: 3 | E94: CRCP_y3 | F94: =IF(dms_RPT="financial",VALUE(LEFT(dms_FRCP_y2,4)+1)&"-"&TEXT(VALUE(RIGHT(dms_FRCP_y2,2)+1),"00"),VALUE(LEFT(dms_FRCP_y2,4)+1)) -> 2021-22 | G94: dms_FRCP_y3 | H94: =IF(dms_RPT="financial",VALUE(LEFT(dms_CRCP_yY,4)-1)&"-"&TEXT(VALUE(MID(dms_CRCP_yY,3,2)),"00"),VALUE(LEFT(dms_CRCP_yY,4)-1)) -> 2016-17 | I94: dms_CRCP_yX | J94: 3 | M94: =VALUE(LEFT(dms_CRYf_y2,4)+1)&"-"&TEXT(MID(dms_CRYf_y2,3,2)+2,"00") ->  | N94: dms_CRYf_y3 | O94: =VALUE(LEFT(dms_CRYc_y2,4)+1) ->  | P94: dms_CRYc_y3
B95: 4 | C95: dms_FRCP_y4 | D95: 4 | E95: CRCP_y4 | F95: =IF(dms_RPT="financial",VALUE(LEFT(dms_FRCP_y3,4)+1)&"-"&TEXT(VALUE(RIGHT(dms_FRCP_y3,2)+1),"00"),VALUE(LEFT(dms_FRCP_y3,4)+1)) -> 2022-23 | G95: dms_FRCP_y4 | H95: =IF(dms_RPT="financial",VALUE(LEFT(dms_CRCP_yX,4)-1)&"-"&TEXT(VALUE(MID(dms_CRCP_yX,3,2)),"00"),VALUE(LEFT(dms_CRCP_yX,4)-1)) -> 2015-16 | I95: dms_CRCP_yW | J95: 4 | M95: =VALUE(LEFT(dms_CRYf_y3,4)+1)&"-"&TEXT(MID(dms_CRYf_y3,3,2)+2,"00") ->  | N95: dms_CRYf_y4 | O95: =VALUE(LEFT(dms_CRYc_y3,4)+1) ->  | P95: dms_CRYc_y4
B96: 5 | C96: dms_FRCP_y5 | D96: 5 | E96: CRCP_y5 | F96: =IF(dms_RPT="financial",VALUE(LEFT(dms_FRCP_y4,4)+1)&"-"&TEXT(VALUE(RIGHT(dms_FRCP_y4,2)+1),"00"),VALUE(LEFT(dms_FRCP_y4,4)+1)) -> 2023-24 | G96: dms_FRCP_y5 | H96: =IF(dms_RPT="financial",VALUE(LEFT(dms_CRCP_yW,4)-1)&"-"&TEXT(VALUE(MID(dms_CRCP_yW,3,2)),"00"),VALUE(LEFT(dms_CRCP_yW,4)-1)) -> 2014-15 | I96: dms_CRCP_yV | J96: 5 | M96: =VALUE(LEFT(dms_CRYf_y4,4)+1)&"-"&TEXT(MID(dms_CRYf_y4,3,2)+2,"00") ->  | N96: dms_CRYf_y5 | O96: =VALUE(LEFT(dms_CRYc_y4,4)+1) ->  | P96: dms_CRYc_y5
B97: 6 | C97: dms_FRCP_y6 | D97: 6 | E97: CRCP_y6 | F97: =IF(dms_RPT="financial",VALUE(LEFT(dms_FRCP_y5,4)+1)&"-"&TEXT(VALUE(RIGHT(dms_FRCP_y5,2)+1),"00"),VALUE(LEFT(dms_FRCP_y5,4)+1)) -> 2024-25 | G97: dms_FRCP_y6 | H97: =IF(dms_RPT="financial",VALUE(LEFT(dms_CRCP_yV,4)-1)&"-"&TEXT(VALUE(MID(dms_CRCP_yV,3,2)),"00"),VALUE(LEFT(dms_CRCP_yV,4)-1)) -> 2013-14 | I97: dms_CRCP_yU | J97: 6 | M97: =VALUE(LEFT(dms_CRYf_y5,4)+1)&"-"&TEXT(MID(dms_CRYf_y5,3,2)+2,"00") ->  | N97: dms_CRYf_y6 | O97: =VALUE(LEFT(dms_CRYc_y5,4)+1) ->  | P97: dms_CRYc_y6
B98: 7 | C98: dms_FRCP_y7 | D98: 7 | E98: CRCP_y7 | F98: =IF(dms_RPT="financial",VALUE(LEFT(dms_FRCP_y6,4)+1)&"-"&TEXT(VALUE(RIGHT(dms_FRCP_y6,2)+1),"00"),VALUE(LEFT(dms_FRCP_y6,4)+1)) -> 2025-26 | G98: dms_FRCP_y7 | H98: =IF(dms_RPT="financial",VALUE(LEFT(dms_CRCP_yU,4)-1)&"-"&TEXT(VALUE(MID(dms_CRCP_yU,3,2)),"00"),VALUE(LEFT(dms_CRCP_yU,4)-1)) -> 2012-13 | I98: dms_CRCP_yT | J98: 7 | M98: =VALUE(LEFT(dms_CRYf_y6,4)+1)&"-"&TEXT(MID(dms_CRYf_y6,3,2)+2,"00") ->  | N98: dms_CRYf_y7 | O98: =VALUE(LEFT(dms_CRYc_y6,4)+1) ->  | P98: dms_CRYc_y7
B99: 8 | C99: dms_FRCP_y8 | D99: 8 | E99: CRCP_y8 | F99: =IF(dms_RPT="financial",VALUE(LEFT(dms_FRCP_y7,4)+1)&"-"&TEXT(VALUE(RIGHT(dms_FRCP_y7,2)+1),"00"),VALUE(LEFT(dms_FRCP_y7,4)+1)) -> 2026-27 | G99: dms_FRCP_y8 | H99: =IF(dms_RPT="financial",VALUE(LEFT(dms_CRCP_yT,4)-1)&"-"&TEXT(VALUE(MID(dms_CRCP_yT,3,2)),"00"),VALUE(LEFT(dms_CRCP_yT,4)-1)) -> 2011-12 | I99: dms_CRCP_yS | J99: 8 | M99: =VALUE(LEFT(dms_CRYf_y7,4)+1)&"-"&TEXT(MID(dms_CRYf_y7,3,2)+2,"00") ->  | N99: dms_CRYf_y8 | O99: =VALUE(LEFT(dms_CRYc_y7,4)+1) ->  | P99: dms_CRYc_y8
B100: 9 | C100: dms_FRCP_y9 | D100: 9 | E100: CRCP_y9 | F100: =IF(dms_RPT="financial",VALUE(LEFT(dms_FRCP_y8,4)+1)&"-"&TEXT(VALUE(RIGHT(dms_FRCP_y8,2)+1),"00"),VALUE(LEFT(dms_FRCP_y8,4)+1)) -> 2027-28 | G100: dms_FRCP_y9 | H100: =IF(dms_RPT="financial",VALUE(LEFT(dms_CRCP_yS,4)-1)&"-"&TEXT(VALUE(MID(dms_CRCP_yS,3,2)),"00"),VALUE(LEFT(dms_CRCP_yS,4)-1)) -> 2010-11 | I100: dms_CRCP_yR | J100: 9 | M100: =VALUE(LEFT(dms_CRYf_y8,4)+1)&"-"&TEXT(MID(dms_CRYf_y8,3,2)+2,"00") ->  | N100: dms_CRYf_y9 | O100: =VALUE(LEFT(dms_CRYc_y8,4)+1) ->  | P100: dms_CRYc_y9
B101: 10 | C101: dms_FRCP_y10 | D101: 10 | E101: CRCP_y10 | F101: =IF(dms_RPT="financial",VALUE(LEFT(dms_FRCP_y9,4)+1)&"-"&TEXT(VALUE(RIGHT(dms_FRCP_y9,2)+1),"00"),VALUE(LEFT(dms_FRCP_y9,4)+1)) -> 2028-29 | G101: dms_FRCP_y10 | H101: =IF(dms_RPT="financial",VALUE(LEFT(dms_CRCP_yR,4)-1)&"-"&TEXT(VALUE(MID(dms_CRCP_yR,3,2)),"00"),VALUE(LEFT(dms_CRCP_yR,4)-1)) -> 2009-10 | I101: dms_CRCP_yQ | J101: 10 | M101: =VALUE(LEFT(dms_CRYf_y9,4)+1)&"-"&TEXT(MID(dms_CRYf_y9,3,2)+2,"00") ->  | N101: dms_CRYf_y10 | O101: =VALUE(LEFT(dms_CRYc_y9,4)+1) ->  | P101: dms_CRYc_y10
B102: 11 | C102: dms_FRCP_y11 | D102: 11 | E102: CRCP_y11 | F102: =IF(dms_RPT="financial",VALUE(LEFT(dms_FRCP_y10,4)+1)&"-"&TEXT(VALUE(RIGHT(dms_FRCP_y10,2)+1),"00"),VALUE(LEFT(dms_FRCP_y10,4)+1)) -> 2029-30 | G102: dms_FRCP_y11 | H102: =IF(dms_RPT="financial",VALUE(LEFT(dms_CRCP_yQ,4)-1)&"-"&TEXT(VALUE(MID(dms_CRCP_yQ,3,2)),"00"),VALUE(LEFT(dms_CRCP_yQ,4)-1)) -> 2008-09 | I102: dms_CRCP_yP | J102: 11 | M102: =VALUE(LEFT(dms_CRYf_y10,4)+1)&"-"&TEXT(MID(dms_CRYf_y10,3,2)+2,"00") ->  | N102: dms_CRYf_y11 | O102: =VALUE(LEFT(dms_CRYc_y10,4)+1) ->  | P102: dms_CRYc_y11
B103: 12 | C103: dms_FRCP_y12 | D103: 12 | E103: CRCP_y12 | F103: =IF(dms_RPT="financial",VALUE(LEFT(dms_FRCP_y11,4)+1)&"-"&TEXT(VALUE(RIGHT(dms_FRCP_y11,2)+1),"00"),VALUE(LEFT(dms_FRCP_y11,4)+1)) -> 2030-31 | G103: dms_FRCP_y12 | H103: =IF(dms_RPT="financial",VALUE(LEFT(dms_CRCP_yP,4)-1)&"-"&TEXT(VALUE(MID(dms_CRCP_yP,3,2)),"00"),VALUE(LEFT(dms_CRCP_yP,4)-1)) -> 2007-08 | I103: dms_CRCP_yO | J103: 12 | M103: =VALUE(LEFT(dms_CRYf_y11,4)+1)&"-"&TEXT(MID(dms_CRYf_y11,3,2)+2,"00") ->  | N103: dms_CRYf_y12 | O103: =VALUE(LEFT(dms_CRYc_y11,4)+1) ->  | P103: dms_CRYc_y12
B104: 13 | C104: dms_FRCP_y13 | D104: 13 | E104: CRCP_y13 | F104: =IF(dms_RPT="financial",VALUE(LEFT(dms_FRCP_y12,4)+1)&"-"&TEXT(VALUE(RIGHT(dms_FRCP_y12,2)+1),"00"),VALUE(LEFT(dms_FRCP_y12,4)+1)) -> 2031-32 | G104: dms_FRCP_y13 | H104: =IF(dms_RPT="financial",VALUE(LEFT(dms_CRCP_yO,4)-1)&"-"&TEXT(VALUE(MID(dms_CRCP_yO,3,2)),"00"),VALUE(LEFT(dms_CRCP_yO,4)-1)) -> 2006-07 | I104: dms_CRCP_yN | J104: 13 | M104: =VALUE(LEFT(dms_CRYf_y12,4)+1)&"-"&TEXT(MID(dms_CRYf_y12,3,2)+2,"00") ->  | N104: dms_CRYf_y13 | O104: =VALUE(LEFT(dms_CRYc_y12,4)+1) ->  | P104: dms_CRYc_y13
B105: 14 | C105: dms_FRCP_y14 | D105: 14 | E105: CRCP_y14 | F105: =IF(dms_RPT="financial",VALUE(LEFT(dms_FRCP_y13,4)+1)&"-"&TEXT(VALUE(RIGHT(dms_FRCP_y13,2)+1),"00"),VALUE(LEFT(dms_FRCP_y13,4)+1)) -> 2032-33 | G105: dms_FRCP_y14 | H105: =IF(dms_RPT="financial",VALUE(LEFT(dms_CRCP_yN,4)-1)&"-"&TEXT(VALUE(MID(dms_CRCP_yN,3,2)),"00"),VALUE(LEFT(dms_CRCP_yN,4)-1)) -> 2005-06 | I105: dms_CRCP_yM | J105: 14 | M105: =VALUE(LEFT(dms_CRYf_y13,4)+1)&"-"&TEXT(MID(dms_CRYf_y13,3,2)+2,"00") ->  | N105: dms_CRYf_y14 | O105: =VALUE(LEFT(dms_CRYc_y13,4)+1) ->  | P105: dms_CRYc_y14
B106: 15 | C106: dms_FRCP_y15 | D106: 15 | E106: CRCP_y15 | F106: =IF(dms_RPT="financial",VALUE(LEFT(dms_FRCP_y14,4)+1)&"-"&TEXT(VALUE(RIGHT(dms_FRCP_y14,2)+1),"00"),VALUE(LEFT(dms_FRCP_y14,4)+1)) -> 2033-34 | G106: dms_FRCP_y15 | H106: =IF(dms_RPT="financial",VALUE(LEFT(dms_CRCP_yM,4)-1)&"-"&TEXT(VALUE(MID(dms_CRCP_yM,3,2)),"00"),VALUE(LEFT(dms_CRCP_yM,4)-1)) -> 2004-05 | I106: dms_CRCP_yL | J106: 15 | M106: =VALUE(LEFT(dms_CRYf_y14,4)+1)&"-"&TEXT(MID(dms_CRYf_y14,3,2)+2,"00") ->  | N106: dms_CRYf_y15 | O106: =VALUE(LEFT(dms_CRYc_y14,4)+1) ->  | P106: dms_CRYc_y15
M107: =VALUE(LEFT(dms_CRYf_y15,4)+1)&"-"&TEXT(MID(dms_CRYf_y15,3,2)+2,"00") ->  | N107: dms_CRYf_y16 | O107: =VALUE(LEFT(dms_CRYc_y15,4)+1) ->  | P107: dms_CRYc_y16
B108: These are drop down lists for businesses to select the correct FRCP_y1 on the business and other details worksheet. This also populates the column headings in the worksheets | M108: =VALUE(LEFT(dms_CRYf_y16,4)+1)&"-"&TEXT(MID(dms_CRYf_y16,3,2)+2,"00") ->  | N108: dms_CRYf_y17 | O108: =VALUE(LEFT(dms_CRYc_y16,4)+1) ->  | P108: dms_CRYc_y17
B109: dms_RCP_fyear_list | C109: dms_CRY_ListF | D109: dms_CRY_ListC | E109: dms_RCP_cyear_list | F109: dms_FRCP_fyear_list | G109: dms_FRCP_ListF | H109: dms_FRCP_ListC | I109: dms_FRCP_cyear_list | M109: =VALUE(LEFT(dms_CRYf_y17,4)+1)&"-"&TEXT(MID(dms_CRYf_y17,3,2)+2,"00") ->  | N109: dms_CRYf_y18 | O109: =VALUE(LEFT(dms_CRYc_y17,4)+1) ->  | P109: dms_CRYc_y18
B110: dms_fy1 | C110: 2006-07 | D110: 2007 | E110: dms_cy1 | F110: dms_frcp_fy1 | G110: 2015-16 | H110: 2016 | I110: dms_crcp_cy1 | M110: =VALUE(LEFT(dms_CRYf_y18,4)+1)&"-"&TEXT(MID(dms_CRYf_y18,3,2)+2,"00") ->  | N110: dms_CRYf_y19 | O110: =VALUE(LEFT(dms_CRYc_y18,4)+1) ->  | P110: dms_CRYc_y19
B111: dms_fy2 | C111: 2007-08 | D111: 2008 | E111: dms_cy2 | F111: dms_frcp_fy2 | G111: 2016-17 | H111: 2017 | I111: dms_crcp_cy2 | M111: =VALUE(LEFT(dms_CRYf_y19,4)+1)&"-"&TEXT(MID(dms_CRYf_y19,3,2)+2,"00") ->  | N111: dms_CRYf_y20 | O111: =VALUE(LEFT(dms_CRYc_y19,4)+1) ->  | P111: dms_CRYc_y20
B112: dms_fy3 | C112: 2008-09 | D112: 2009 | E112: dms_cy3 | F112: dms_frcp_fy3 | G112: 2017-18 | H112: 2018 | I112: dms_crcp_cy3
B113: dms_fy4 | C113: 2009-10 | D113: 2010 | E113: dms_cy4 | F113: dms_frcp_fy4 | G113: 2018-19 | H113: 2019 | I113: dms_crcp_cy4
B114: dms_fy5 | C114: 2010-11 | D114: 2011 | E114: dms_cy5 | F114: dms_frcp_fy5 | G114: 2019-20 | H114: 2020 | I114: dms_crcp_cy5
B115: dms_fy6 | C115: 2011-12 | D115: 2012 | E115: dms_cy6 | F115: dms_frcp_fy6 | G115: 2020-21 | H115: 2021 | I115: dms_crcp_cy6
B116: dms_fy7 | C116: 2012-13 | D116: 2013 | E116: dms_cy7 | F116: dms_frcp_fy7 | G116: 2021-22 | H116: 2022 | I116: dms_crcp_cy7
B117: dms_fy8 | C117: 2013-14 | D117: 2014 | E117: dms_cy8 | F117: dms_frcp_fy8 | G117: 2022-23 | H117: 2023 | I117: dms_crcp_cy8 | L117: 2005-06 | M117: 2006
B118: dms_fy9 | C118: 2014-15 | D118: 2015 | E118: dms_cy9 | F118: dms_frcp_fy9 | G118: 2023-24 | H118: 2024 | I118: dms_crcp_cy9 | L118: 2006-07 | M118: 2007
B119: dms_fy10 | C119: 2015-16 | D119: 2016 | E119: dms_cy10 | F119: dms_frcp_fy10 | G119: 2024-25 | H119: 2025 | I119: dms_crcp_cy10 | L119: 2007-08 | M119: 2008
B120: dms_fy11 | C120: 2016-17 | D120: 2017 | E120: dms_cy11 | F120: dms_frcp_fy11 | G120: 2025-26 | H120: 2026 | I120: dms_crcp_cy11 | L120: 2008-09 | M120: 2009
B121: dms_fy12 | C121: 2017-18 | D121: 2018 | E121: dms_cy12 | F121: dms_frcp_fy12 | G121: 2026-27 | H121: 2027 | I121: dms_crcp_cy12 | L121: 2009-10 | M121: 2010
B122: dms_fy13 | C122: 2018-19 | D122: 2019 | E122: dms_cy13 | F122: dms_frcp_fy13 | G122: 2027-28 | H122: 2028 | I122: dms_crcp_cy13 | L122: 2010-11 | M122: 2011
B123: dms_fy14 | C123: 2019-20 | D123: 2020 | E123: dms_cy14 | F123: dms_frcp_fy14 | G123: 2028-29 | H123: 2029 | I123: dms_crcp_cy14 | L123: 2011-12 | M123: 2012
B124: dms_fy15 | C124: 2019-20 | D124: 2020 | E124: dms_cy15 | F124: dms_frcp_fy15 | G124: 2029-30 | H124: 2030 | I124: dms_crcp_cy15 | L124: 2012-13 | M124: 2013
B125: dms_fy16 | C125: 2020-21 | D125: 2021 | E125: dms_cy16 | L125: 2013-14 | M125: 2014
B126: dms_fy17 | C126: 2021-22 | D126: 2022 | E126: dms_cy17 | L126: 2014-15 | M126: 2015
B127: dms_fy18 | C127: 2022-23 | D127: 2023 | E127: dms_cy18 | L127: 2015-16 | M127: 2016
B128: dms_fy19 | C128: 2023-24 | D128: 2024 | E128: dms_cy19 | L128: 2016-17 | M128: 2017
B129: dms_fy20 | C129: 2024-25 | D129: 2025 | E129: dms_cy20 | L129: 2017-18 | M129: 2018
L130: 2018-19 | M130: 2019
L131: 2019-20 | M131: 2020
L132: 2020-21 | M132: 2021
L133: 2021-22 | M133: 2022
L134: 2022-23 | M134: 2023
L135: 2023-24 | M135: 2024
L136: 2024-25 | M136: 2025
L137: 2025-26 | M137: 2026
L138: 2026-27 | M138: 2027
L139: 2027-28 | M139: 2028
L140: 2028-29 | M140: 2029
L141: 2029-30 | M141: 2030
L142: 2030-31 | M142: 2031
L143: 2031-32 | M143: 2032
L144: 2032-33 | M144: 2033
L145: 2033-34 | M145: 2034
L146: 2034-35 | M146: 2035
L147: 2035-36 | M147: 2036

Sheet Contents
B1: =SheetHeader -> REGULATORY REPORTING STATEMENT
B2: =dms_TradingName -> Endeavour Energy
B3: =CONCATENATE(FRCP_y1," to ",FRCP_y5) -> 2019-20 to 2023-24
B4: CONTENTS
E7: 1. Business and other details | L7: 2. Expenditure | S7: 3. Economic benchmarking
E27: 4. Alternative control services | L27: 5. Network information | S27: 6. Service & quality
E34: 7. Other templates

Sheet Instructions
B2: =CONCATENATE(dms_Segment," Network Service Provider") -> Distribution Network Service Provider
B3: =IF(dms_Model="Reset","Regulatory Proposal RIN Template","Annual Reporting RIN") -> Regulatory Proposal RIN Template
C4: =CONCATENATE("This template is to be used by ",dms_TradingName," to fulfil its reporting obligations to the AER.") -> This template is to be used by Endeavour Energy to fulfil its reporting obligations to the AER.
C5: INSTRUCTIONS
C6: Complete the Business & other details worksheet before entering data or values in any other worksheets. The Business & other details worksheet is linked to other worksheets within the workbook and automatically generates certain column headings and conditional formatting.
C8: Identifying CONFIDENTIAL INFORMATION: Please use the macro at the top of each worksheet to identify confidential information. See Returning completed responses below, for how to deal with confidential and public information.
C9: -Do this by selecting the cell or cells that contain confidential information and then run the Mark selected cells as CONFIDENTIAL macro. This will format the cells a specific colour that is identified by the AER's database which in turn marks that information as confidential. -To reverse this, select the cell or cells and run the Return cells to NON-CONFIDENTIAL macro.
C11: UNITS OF MEASURE All amounts are to be unrounded and reported on a one for one basis: that is 1000 is to be entered as '1000'. Applicable units of measure may be identified in the table column headings or row descriptors.
C13: COLOUR CODING OF INPUT / NON-INPUT CELLS:
D14: Yellow = Input cell (mandatory)
D15: Darker yellow = input cell (mandatory)
D16: Orange = input cell (if data available)
D17: Grey = Not applicable/No inputs required
D18: PLEASE DO NOT ENTER TEXT into cells that are to contain numeric data.
C21: WORKSHEET NAVIGATION Many tables in the worksheets have been "grouped" to allow for easy navigation. To ungroup or group data use the outline symbols in the left margin (for Row groupings) or above the columns (for column groupings).
C23: RETURNING COMPLETED RESPONSES Please return two (2) files to the AER: 1. A confidential version which must contain a complete set of all responses with confidential information marked using the Mark selection CONFIDENTIAL macro and which has been completed using the locked template file provided by the AER. 2. A public version with confidential information either removed completely or aggregated in some form together with writtten consent to disclose the public version of the response. Use the drop down box on the Business and other details worksheet to identify the file as either confidential ('consolidated') or public.
C25: SUBMITTING AMENDED DATA TO THE AER If an NSP wishes to correct data previously submitted to the AER it should resubmit that data using the original completed submission as the starting point. Please make any necessary changes to the data. Data that is not being amended should be left unchanged. NSPs must identify the reason for the amendments in the Amendment Reason box on the Business and other details worksheet. NSPs may provide further details regarding any amendments in the Amendments worksheet. .
C26: NSP may use Amended Data macro to highlight cells that contain amended data. NB: if data is also CONFIDENTIAL, re-apply the Confidentiality macro after applying the Amended macro
C27: Please resubmit two (2) files - a confidential version and a public version of the amended submission to the AER

Sheet Business & other details
B1: =IF(dms_DataQuality="backcast",INDEX(dms_Worksheet_List,MATCH(dms_Model,dms_Model_List))&" BACKCAST",INDEX(dms_Worksheet_List,MATCH(dms_Model,dms_Model_List))) -> REGULATORY REPORTING STATEMENT
B2: =INDEX(dms_TradingNameFull_List,MATCH(dms_TradingName,dms_TradingName_List)) -> Endeavour Energy
B3: =IF(SUM(dms_SingleYear_Model)>0,CONCATENATE(CRY," to ",FRY),CONCATENATE(FRCP_y1," to ",dms_MultiYear_FinalYear_Result)) -> 2019-20 to 2023-24
B4: BUSINESS & OTHER DETAILS
B7: Instructions
B8: Complete the following business details regulatory template before entering data or values in any other regulatory template. This regulatory template is linked to other cells within the spreadsheet and automatically generates column headings and conditional formatting to distinguish business specific input and non-input cells.
B10: SUBMISSION PARTICULARS INPUT SHEETS
B12: ENTITY DETAILS
B14: Short name | C14: Endeavour Energy | F14: Select business name from drop down list first
B15: ACN / ABN | C15: =INDEX(dms_ABN_List,MATCH(dms_TradingName,dms_TradingName_List)) -> 11247365823
B18: Business address | C18: Address 1 | E18: =INDEX(dms_Addr1_List,MATCH(dms_TradingName,dms_TradingName_List)) -> 51 Huntingwood Drive
D19: Address 2 | E19: =IF(ISBLANK(INDEX(dms_Addr2_List,MATCH(dms_TradingName,dms_TradingName_List))),"",INDEX(dms_Addr2_List,MATCH(dms_TradingName,dms_TradingName_List))) -> 
C20: Suburb | E20: =INDEX(dms_Suburb_List,MATCH(dms_TradingName,dms_TradingName_List)) -> HUNTINGWOOD
D21: State | E21: =INDEX(dms_State_List,MATCH(dms_TradingName,dms_TradingName_List)) -> NSW | F21: p/code | G21: =INDEX(dms_PostCode_List,MATCH(dms_TradingName,dms_TradingName_List)) -> 2148
B23: Postal address | C23: Address 1 | E23: =INDEX(dms_PAddr1_List,MATCH(dms_TradingName,dms_TradingName_List)) -> PO Box 811
D24: Address 2 | E24: =IF(ISBLANK(INDEX(dms_PAddr2_List,MATCH(dms_TradingName,dms_TradingName_List))),"",INDEX(dms_PAddr2_List,MATCH(dms_TradingName,dms_TradingName_List))) -> 
C25: Suburb | E25: =INDEX(dms_PSuburb_List,MATCH(dms_TradingName,dms_TradingName_List)) -> SEVEN HILLS
D26: State | E26: =INDEX(dms_PState_List,MATCH(dms_TradingName,dms_TradingName_List)) -> NSW | F26: p/code | G26: =INDEX(dms_PPostCode_List,MATCH(dms_TradingName,dms_TradingName_List)) -> 1730
B29: Contact name/s | C29: Jon Hocking
B30: Contact phone/s | C30: =INDEX(dms_ContactPh1_List,MATCH(dms_TradingName,dms_TradingName_List)) -> 02 9853 4386 / 0407 348 156
B31: Contact email address/s | C31: =INDEX(dms_ContactEmail_List,MATCH(dms_TradingName,dms_TradingName_List)) -> Jon.Hocking@Endeavourenergy.com.au
B33: REGULATORY CONTROL PERIODS
B35: Forthcoming regulatory control period | C35: 2019-20 | D35: =dms_FRCP_y2 -> 2020-21 | E35: =dms_FRCP_y3 -> 2021-22 | F35: =dms_FRCP_y4 -> 2022-23 | G35: =dms_FRCP_y5 -> 2023-24 | H35: =dms_FRCP_y6 -> 2024-25 | I35: =dms_FRCP_y7 -> 2025-26 | J35: =dms_FRCP_y8 -> 2026-27 | K35: =dms_FRCP_y9 -> 2027-28 | L35: =dms_FRCP_y10 -> 2028-29
B38: Current regulatory control period | C38: =dms_CRCP_FirstYear_Result -> 2014-15 | D38: =IF(dms_RPT="financial",VALUE(LEFT(CRCP_y1,4)+1)&"-"&TEXT(MID(CRCP_y1,3,2)+2,"00"),VALUE(LEFT(CRCP_y1,4)+1)) -> 2015-16 | E38: =IF(dms_RPT="financial",VALUE(LEFT(CRCP_y2,4)+1)&"-"&TEXT(VALUE(MID(CRCP_y2,3,2)+2),"00"),VALUE(LEFT(CRCP_y2,4)+1)) -> 2016-17 | F38: =IF(dms_RPT="financial",VALUE(LEFT(CRCP_y3,4)+1)&"-"&TEXT(VALUE(MID(CRCP_y3,3,2)+2),"00"),VALUE(LEFT(CRCP_y3,4)+1)) -> 2017-18 | G38: =IF(dms_RPT="financial",VALUE(LEFT(CRCP_y4,4)+1)&"-"&TEXT(VALUE(MID(CRCP_y4,3,2)+2),"00"),VALUE(LEFT(CRCP_y4,4)+1)) -> 2018-19 | H38: =IF(dms_RPT="financial",VALUE(LEFT(CRCP_y5,4)+1)&"-"&TEXT(VALUE(MID(CRCP_y5,3,2)+2),"00"),VALUE(LEFT(CRCP_y5,4)+1)) -> 2019-20 | I38: =IF(dms_RPT="financial",VALUE(LEFT(CRCP_y6,4)+1)&"-"&TEXT(VALUE(MID(CRCP_y6,3,2)+2),"00"),VALUE(LEFT(CRCP_y6,4)+1)) -> 2020-21 | J38: =IF(dms_RPT="financial",VALUE(LEFT(CRCP_y7,4)+1)&"-"&TEXT(VALUE(MID(CRCP_y7,3,2)+2),"00"),VALUE(LEFT(CRCP_y7,4)+1)) -> 2021-22 | K38: =IF(dms_RPT="financial",VALUE(LEFT(CRCP_y8,4)+1)&"-"&TEXT(VALUE(MID(CRCP_y8,3,2)+2),"00"),VALUE(LEFT(CRCP_y8,4)+1)) -> 2022-23 | L38: =IF(dms_RPT="financial",VALUE(LEFT(CRCP_y9,4)+1)&"-"&TEXT(VALUE(MID(CRCP_y9,3,2)+2),"00"),VALUE(LEFT(CRCP_y9,4)+1)) -> 2023-24
B41: Previous regulatory control period | C41: =IF(dms_RPT="financial",VALUE(LEFT(PRCP_y2,4)-1)&"-"&TEXT(VALUE(MID(PRCP_y2,3,2)),"00"),VALUE(LEFT(PRCP_y2,4)-1)) -> 2009-10 | D41: =IF(dms_RPT="financial",VALUE(LEFT(PRCP_y3,4)-1)&"-"&TEXT(VALUE(MID(PRCP_y3,3,2)),"00"),VALUE(LEFT(PRCP_y3,4)-1)) -> 2010-11 | E41: =IF(dms_RPT="financial",VALUE(LEFT(PRCP_y4,4)-1)&"-"&TEXT(VALUE(MID(PRCP_y4,3,2)),"00"),VALUE(LEFT(PRCP_y4,4)-1)) -> 2011-12 | F41: =IF(dms_RPT="financial",VALUE(LEFT(PRCP_y5,4)-1)&"-"&TEXT(VALUE(RIGHT(PRCP_y5,2)-1),"00"),VALUE(LEFT(PRCP_y5,4)-1)) -> 2012-13 | G41: =IF(dms_RPT="financial",VALUE(LEFT(CRCP_y1,4)-1)&"-"&TEXT(VALUE(RIGHT(CRCP_y1,2)-1),"00"),VALUE(LEFT(CRCP_y1,4)-1)) -> 2013-14
B44: Commencing regulatory year | C44: 2019-20 | D44: CRY
B46: Last completed regulatory year | C46: 2023-24 | D46: dms_FinalYear
B52: Source | C52: Reporting | E52: Please select the correct submission type from the dropdown list.
B53: Data quality (actual, estimate, public, consolidated) | C53: Consolidated
B54: Amended RIN submission - amendment reason
B55: Submission Date | C55: 2018-04-30 | D55: dms_SubmissionDate | E55: Please enter date this file submitted to AER (dd/mm/yyyy)
B56: EBSS - First application of scheme in forthcoming period? | C56: No
B57: Sector | C57: =INDEX(dms_Sector_List,MATCH(dms_TradingName,dms_TradingName_List)) -> Electricity | D57: dms_Sector | E57: =INDEX(dms_Sector_List,MATCH(dms_TradingName,dms_TradingName_List))
B58: Segment | C58: =INDEX(dms_Segment_List,MATCH(dms_TradingName,dms_TradingName_List)) -> Distribution | D58: dms_Segment | E58: =INDEX(dms_Segment_List,MATCH(dms_TradingName,dms_TradingName_List))
B59: Regulatory Year Ending | C59: =IF(dms_MultiYear_Flag=1,LEFT(dms_Specified_FinalYear,2)&RIGHT(dms_Specified_FinalYear,2),INDEX(dms_RYE_Formula_Result,MATCH(dms_Model,dms_Model_List))) -> 2024 | D59: dms_RYE | E59: =IF(dms_MultiYear_Flag=1,LEFT(dms_Specified_FinalYear,2)&RIGHT(dms_Specified_FinalYear,2),INDEX(dms_RYE_Formula_Result,MATCH(dms_Model,dms_Model_List)))
B60: Reporting Period Type | C60: =INDEX(dms_RPT_List,MATCH(dms_TradingName,dms_TradingName_List)) -> Financial | D60: dms_RPT | E60: =INDEX(dms_RPT_List,MATCH(dms_TradingName,dms_TradingName_List))
B61: Model or RIN Type | C61: Reset | D61: dms_Model | E61: Drop down selection
B62: Security Classification | C62: Public | D62: dms_Classification | E62: Always Public
B63: Template - version no. | C63: 5 | D63: dms_TemplateNumber
B64: Dollar $ real month | C64: =INDEX(dms_RPTMonth_List,MATCH(dms_TradingName,dms_TradingName_List)) -> June | D64: dms_RPTMonth | E64: =INDEX(dms_RPTMonth_List,MATCH(dms_TradingName,dms_TradingName_List))
B65: Dollar $ real (the last month before the FRCP_y1) | C65: =CONCATENATE(dms_RPTMonth)&" "&VALUE((LEFT(dms_CRCP_FinalYear_Result,2)&RIGHT(dms_CRCP_FinalYear_Result,2))) -> June 2019 | D65: dms_DollarReal | E65: =IF(SUM(dms_SingleYear_Model)>0,CONCATENATE(dms_RPTMonth)&" "&VALUE((LEFT(CRY,2))&RIGHT(CRY,2)),CONCATENATE(dms_RPTMonth)&" "&VALUE((LEFT(dms_CRCP_FinalYear_Result,2)&RIGHT(dms_CRCP_FinalYear_Result,2))))
B66: Form of control | C66: =INDEX(dms_FormControl_List,MATCH(dms_TradingName,dms_TradingName_List)) -> Revenue cap | D66: dms_FormControl | E66: =INDEX(dms_FormControl_List,MATCH(dms_TradingName,dms_TradingName_List))
B67: RIN response - version no. | C67: 1 | D67: dms_RINversion
B68: Jurisdiction | C68: =INDEX(dms_JurisdictionList,MATCH(dms_TradingName,dms_TradingName_List)) -> NSW | D68: dms_Jurisdiction | E68: =INDEX(dms_JurisdictionList,MATCH(dms_TradingName,dms_TradingName_List))
B69: Backcast Multiyear EB, CA or ARR? | C69: 0 | D69: dms_MultiYear_Flag | E69: 1=y, 0-n
C70: 2013 | D70: dms_Specified_FinalYear | E70: The result here is returned to dms_CRCP_FinalYear_Result if dms_MultiYear_Flag is set to 1
B71: Single Year Model T/F | C71: =IF(dms_Model="EB",1,0) -> 0 | D71: dms_EB
C72: =IF(dms_Model="CA",1,0) -> 0 | D72: dms_CA | E72: =dms_SingleYear_Model
C73: =IF(dms_Model="ARR",1,0) -> 0 | D73: dms_ARR
B74: Single Year Final Year Reference | C74: CRY | D74: dms_SingleYear_FinalYear_Ref | E74: This is the reference for EB, CA & ARR RINs
B75: Single Year Final Year Result | C75: =INDIRECT(dms_SingleYear_FinalYear_Ref) ->  | D75: dms_SingleYear_FinalYear_Result | E75: =INDIRECT(dms_SingleYear_FinalYear_Ref) | I75: Formula errors OK
B76: FRCP length in years | C76: =INDEX(dms_FRCPlength_List,MATCH(dms_TradingName,dms_TradingName_List)) -> 5 | D76: dms_FRCPlength_Num | E76: =INDEX(dms_FRCPlength_List,MATCH(dms_TradingName,dms_TradingName_List))
B77: Multi Year Final Year Reference | C77: =INDEX(dms_FinalYear_List,MATCH(dms_FRCPlength_Num,dms_FRCPlength_Num_List)) -> dms_FRCP_y5 | D77: dms_MultiYear_FinalYear_Ref | E77: =INDEX(dms_FinalYear_List,MATCH(dms_FRCPlength_Num,dms_FRCPlength_Num_List))
B78: Multi Year Final Year Result | C78: =IF(dms_MultiYear_Flag=0,INDIRECT(dms_MultiYear_FinalYear_Ref),dms_Specified_FinalYear) -> 2023-24 | D78: dms_MultiYear_FinalYear_Result | E78: =IF(dms_MultiYear_Flag=0,INDIRECT(dms_MultiYear_FinalYear_Ref),dms_Specified_FinalYear) | I78: Formula errors OK
B79: CRCP length in years | C79: =INDEX(dms_CRCPlength_List,MATCH(dms_TradingName,dms_TradingName_List)) -> 5 | D79: dms_CRCPlength_Num | E79: =INDEX(dms_CRCPlength_List,MATCH(dms_TradingName,dms_TradingName_List))
B80: CRCP Final Year Reference | C80: =INDEX(dms_CFinalYear_List,MATCH(dms_CRCPlength_Num,dms_CRCPlength_Num_List)) -> CRCP_y5 | D80: dms_CRCP_FinalYear_Ref | E80: =INDEX(dms_CFinalYear_List,MATCH(dms_CRCPlength_Num,dms_CRCPlength_Num_List))
B81: CRCP First Year Result | C81: =INDEX(dms_CRCP_years,MATCH(dms_CRCPlength_Num,dms_CRCP_index)) -> 2014-15 | D81: dms_CRCP_FirstYear_Result | E81: =INDEX(dms_CRCP_years,MATCH(dms_CRCPlength_Num,dms_CRCP_index))
B82: CRCP Final Year Result | C82: =IF(dms_MultiYear_Flag=0,(IF(SUM(dms_SingleYear_Model)>0,CRY,dms_CRCP_yZ)),dms_Specified_FinalYear) -> 2018-19 | D82: dms_CRCP_FinalYear_Result | E82: =IF(dms_MultiYear_Flag=0,(IF(SUM(dms_SingleYear_Model)>0,CRY,dms_CRCP_yZ)),dms_Specified_FinalYear)
B83: Table 6.6.3 - Public lighting repair - no. business days | C83: =INDEX(dms_663_List,MATCH(dms_TradingName,dms_TradingName_List)) -> 5 | D83: dms_663
B84: Distribution Determination Reference | C84: =INDEX(dms_DeterminationRef_List,MATCH(dms_TradingName,dms_TradingName_List)) -> 2014-19 Distribution Determination | D84: dms_DeterminationRef
B85: Backcast templates only - unit of measure | C85: $0s | D85: dms_Backcast_UOM | E85: If the cover sheet is for Backcast data ensure to apply dms_Backcast_UOM named range to this field. Otherwise, do not apply this named range.
B86: EB/CA Unit of Measure for Monetary Values | C86: $0s | D86: dms_dollar_nom_UOM | E86: If the cover sheet is attached to an EB files make sure this field is set
B88: discard this record? | C88: NO | D88: dms_DISCARD | E88: If record is to be discarded from DB set this flag to YES
B89: CBD Feeder for this business | C89: =INDEX(dms_CBD_flag,MATCH(dms_TradingName,dms_TradingName_List)) -> NO | D89: dms_CBD_flag_NSP
B90: Urban Feeder for this business | C90: =INDEX(dms_Urban_flag,MATCH(dms_TradingName,dms_TradingName_List)) -> YES | D90: dms_Urban_flag_NSP
B91: Short rural Feeder for this business | C91: =INDEX(dms_ShortRural_flag,MATCH(dms_TradingName,dms_TradingName_List)) -> YES | D91: dms_ShortRural_flag_NSP
B92: Long rural Feeder for this business | C92: =INDEX(dms_LongRural_flag,MATCH(dms_TradingName,dms_TradingName_List)) -> YES | D92: dms_LongRural_flag_NSP
B95: USES NAMED RANGES FLAG | C95: yes | D95: dms_Defined_Names_Used

Sheet CPI series
B1: =SheetHeader -> REGULATORY REPORTING STATEMENT
B2: =dms_TradingName -> Australian Distribution Co.
B3: =dms_Reg_Year_Span -> 2019-20 to 2023-24
B4: CPI SERIES
B8: NOMINATED CPI SERIES
B10: Name of CPI series | C10: Dec to Dec CPI, sum of 4 quarters method as per Pricing & RFM
C12: =CRCP_y1 -> 2014-15 | D12: =CRCP_y2 -> 2015-16 | E12: =CRCP_y3 -> 2016-17 | F12: =CRCP_y4 -> 2017-18 | G12: =CRCP_y5 -> 2018-19 | H12: =FRCP_y1 -> 2019-20 | I12: =FRCP_y2 -> 2020-21 | J12: =FRCP_y3 -> 2021-22 | K12: =FRCP_y4 -> 2022-23 | L12: =FRCP_y5 -> 2023-24
B13: Series data | C13: 0.02487922705 | D13: 0.01508366722 | E13: 0.01276990945 | F13: 0.01948647409 | G13: 0.01963852233 | H13: 0.01931669846 | I13: 0.02456486791 | J13: 0.025 | K13: 0.025 | L13: 0.025

Sheet 2.1 Expenditure summary
B1: =SheetHeader -> REGULATORY REPORTING STATEMENT
B2: =dms_TradingName -> Endeavour Energy
B3: =dms_Reg_Year_Span -> 2019-20 to 2023-24
B4: 2.1 EXPENDITURE SUMMARY & RECONCILIATION
B8: 2.1.1 - STANDARD CONTROL SERVICES CAPEX
C9: =CONCATENATE("Forecast ($0's, real ", dms_DollarReal, ")") -> Forecast ($0's, real June 2019)
C10: =CRCP_y4 -> 2017-18 | D10: =CRCP_y5 -> 2018-19 | E10: =FRCP_y1 -> 2019-20 | F10: =FRCP_y2 -> 2020-21 | G10: =FRCP_y3 -> 2021-22 | H10: =FRCP_y4 -> 2022-23 | I10: =FRCP_y5 -> 2023-24
B11: Replacement expenditure | C11: 138483334.9 | D11: 167821915.2 | E11: 168681349.8 | F11: 165252209.3 | G11: 170148945.9 | H11: 174319987 | I11: 183451026
B12: Connections | C12: 180803581.2 | D12: 166218878.2 | E12: 175324129.7 | F12: 166430703 | G12: 165879259.6 | H12: 166440806.3 | I12: 170032700.8
B13: Augmentation Expenditure | C13: 37132067.06 | D13: 57522026.69 | E13: 93528360.83 | F13: 94667551.2 | G13: 85421968.04 | H13: 70921646.65 | I13: 72224097.44
B14: Non-network | C14: 58561757.65 | D14: 53120118.97 | E14: 49686736.14 | F14: 35108941.32 | G14: 31713950.89 | H14: 30022402.04 | I14: 23558369.63
B15: Capitalised network overheads | C15: 53583718.97 | D15: 49547589.86 | E15: 51674764.62 | F15: 51157883.73 | G15: 50970987.7 | H15: 49464412.86 | I15: 49082130.08
B16: Capitalised corporate overheads | C16: 26470837.09 | D16: 26985195.14 | E16: 27715275.34 | F16: 28497401.91 | G16: 29490684.61 | H16: 30492785.25 | I16: 31453673.88
B17: capcons (included in the above) | C17: 141380525.9 | D17: 117799301.4 | E17: 111816063.4 | F17: 105337818.9 | G17: 104841009.4 | H17: 105139038.6 | I17: 107609966.8
B20: 2.1.2 - STANDARD CONTROL SERVICES OPEX BY CATEGORY
C21: =CONCATENATE("Forecast ($0's, real ", dms_DollarReal, ")") -> Forecast ($0's, real June 2019)
C22: =CRCP_y4 -> 2017-18 | D22: =CRCP_y5 -> 2018-19
B23: Vegetation management | C23: 38915588 | D23: 39672443.9
B24: Maintenance | C24: 56264298.66 | D24: 57358563.67
B25: Emergency response | C25: 22850183.09 | D25: 23294588.45
B26: Non-network | C26: 0 | D26: 0
B27: Metering | C27: 0 | D27: 0
B28: Network overheads | C28: 54562490.94 | D28: 55623658.07
B29: Corporate overheads | C29: 93723892.99 | D29: 95546696.78
B30: Total Opex | C30: =SUM(C23:C29) -> 266316453.7 | D30: =SUM(D23:D29) -> 271495950.9
B33: 2.1.3 - ALTERNATIVE CONTROL SERVICES CAPEX
C34: =CONCATENATE("Forecast ($0's, real ", dms_DollarReal, ")") -> Forecast ($0's, real June 2019)
C35: =CRCP_y4 -> 2017-18 | D35: =CRCP_y5 -> 2018-19 | E35: =FRCP_y1 -> 2019-20 | F35: =FRCP_y2 -> 2020-21 | G35: =FRCP_y3 -> 2021-22 | H35: =FRCP_y4 -> 2022-23 | I35: =FRCP_y5 -> 2023-24
B36: Connections | C36: 0 | D36: 0 | E36: 0 | F36: 0 | G36: 0 | H36: 0 | I36: 0
B37: Metering | C37: 1534850 | D37: 136310 | E37: 129633 | F37: 99255 | G37: 99621 | H37: 99912 | I37: 105510
B38: Public lighting | C38: 17942969.59 | D38: 16367210.42 | E38: 14882259.14 | F38: 11415390.58 | G38: 11027353.72 | H38: 10668916.31 | I38: 9878709.253
B39: Fee and quoted | C39: 0 | D39: 0 | E39: 0 | F39: 0 | G39: 0 | H39: 0 | I39: 0
B40: Total Capex | C40: =SUM(C36:C39) -> 19477819.59 | D40: 16503520.42 | E40: 15011892.14 | F40: 11514645.58 | G40: 11126974.72 | H40: 10768828.31 | I40: 9984219.253
B43: 2.1.4 - ALTERNATIVE CONTROL SERVICES OPEX
C44: =CONCATENATE("Forecast ($0's, real ", dms_DollarReal, ")") -> Forecast ($0's, real June 2019)
C45: =CRCP_y4 -> 2017-18 | D45: =CRCP_y5 -> 2018-19 | E45: =FRCP_y1 -> 2019-20 | F45: =FRCP_y2 -> 2020-21 | G45: =FRCP_y3 -> 2021-22 | H45: =FRCP_y4 -> 2022-23 | I45: =FRCP_y5 -> 2023-24
B46: Connections | C46: 0 | D46: 0 | E46: 0 | F46: 0 | G46: 0 | H46: 0 | I46: 0
B47: Metering | C47: 20208248 | D47: 19629673.04 | E47: 19253482.71 | F47: 19151865.26 | G47: 19063617.67 | H47: 18937793.05 | I47: 18811308.54
B48: Public lighting | C48: 14106496 | D48: 14733882.41 | E48: 15389171.83 | F48: 16073605.25 | G48: 16788478.84 | H48: 17535146.44 | I48: 18315022.07
B49: Fee and quoted | C49: 27316606.06 | D49: 27207497.62 | E49: 29595283.04 | F49: 29976276.82 | G49: 30555594.83 | H49: 31161767.15 | I49: 31666098.61
B50: Total Opex | C50: =SUM(C46:C49) -> 61631350.06 | D50: 61571053.07 | E50: 64237937.59 | F50: 65201747.32 | G50: 66407691.35 | H50: 67634706.64 | I50: 68792429.23
B53: 2.1.5 - DUAL FUNCTION ASSETS CAPEX
C54: =CONCATENATE("Forecast ($0's, real ", dms_DollarReal, ")") -> Forecast ($0's, real June 2019)
C55: =CRCP_y4 -> 2017-18 | D55: =CRCP_y5 -> 2018-19 | E55: =FRCP_y1 -> 2019-20 | F55: =FRCP_y2 -> 2020-21 | G55: =FRCP_y3 -> 2021-22 | H55: =FRCP_y4 -> 2022-23 | I55: =FRCP_y5 -> 2023-24
B56: Replacement expenditure | C56: 0 | D56: 0 | E56: 0 | F56: 0 | G56: 0 | H56: 0 | I56: 0
B57: Connections | C57: 0 | D57: 0 | E57: 0 | F57: 0 | G57: 0 | H57: 0 | I57: 0
B58: Augmentation Expenditure | C58: 0 | D58: 0 | E58: 0 | F58: 0 | G58: 0 | H58: 0 | I58: 0
B59: Non-network | C59: 0 | D59: 0 | E59: 0 | F59: 0 | G59: 0 | H59: 0 | I59: 0
B60: Capitalised network overheads | C60: 0 | D60: 0 | E60: 0 | F60: 0 | G60: 0 | H60: 0 | I60: 0
B61: Capitalised corporate overheads | C61: 0 | D61: 0 | E61: 0 | F61: 0 | G61: 0 | H61: 0 | I61: 0
B62: capcons (included in the above) | C62: 0 | D62: 0 | E62: 0 | F62: 0 | G62: 0 | H62: 0 | I62: 0
B65: 2.1.6 - DUAL FUNCTION ASSETS OPEX BY CATEGORY
C66: =CONCATENATE("Forecast ($0's, real ", dms_DollarReal, ")") -> Forecast ($0's, real June 2019)
C67: =CRCP_y4 -> 2017-18 | D67: =CRCP_y5 -> 2018-19
B68: Vegetation management | C68: 0 | D68: 0
B69: Maintenance | C69: 0 | D69: 0
B70: Emergency response | C70: 0 | D70: 0
B71: Non-network | C71: 0 | D71: 0
B72: Metering | C72: 0 | D72: 0
B73: Network overheads | C73: 0 | D73: 0
B74: Corporate overheads | C74: 0 | D74: 0
B89: Total Opex | C89: =SUM(C68:C88) -> 0 | D89: =SUM(D68:D88) -> 0
B92: 2.1.7 - STANDARD CONTROL SERVICES CAPCONS
C93: =CONCATENATE("Forecast ($0's, real ", dms_DollarReal, ")") -> Forecast ($0's, real June 2019)
C94: =CRCP_y4 -> 2017-18 | D94: =CRCP_y5 -> 2018-19 | E94: =FRCP_y1 -> 2019-20 | F94: =FRCP_y2 -> 2020-21 | G94: =FRCP_y3 -> 2021-22 | H94: =FRCP_y4 -> 2022-23 | I94: =FRCP_y5 -> 2023-24
B95: Replacement expenditure | C95: 0 | D95: 0 | E95: 0 | F95: 0 | G95: 0 | H95: 0 | I95: 0
B96: Connections | C96: 141380525.9 | D96: 117799301.4 | E96: 111816063.4 | F96: 105337818.9 | G96: 104841009.4 | H96: 105139038.6 | I96: 107609966.8
B97: Augmentation Expenditure | C97: 0 | D97: 0 | E97: 0 | F97: 0 | G97: 0 | H97: 0 | I97: 0
B98: Non-network | C98: 0 | D98: 0 | E98: 0 | F98: 0 | G98: 0 | H98: 0 | I98: 0
B99: Capitalised network overheads | C99: 0 | D99: 0 | E99: 0 | F99: 0 | G99: 0 | H99: 0 | I99: 0
B100: Capitalised corporate overheads | C100: 0 | D100: 0 | E100: 0 | F100: 0 | G100: 0 | H100: 0 | I100: 0
B101: Total Capcons | C101: =SUM(C95:C100) -> 141380525.9 | D101: =SUM(D95:D100) -> 117799301.4 | E101: 111816063.4 | F101: 105337818.9 | G101: 104841009.4 | H101: 105139038.6 | I101: 107609966.8
B104: 2.1.8 - STANDARD CONTROL SERVICES CAPITALISED OVERHEADS
C105: =CONCATENATE("Forecast ($0's, real ", dms_DollarReal, ")") -> Forecast ($0's, real June 2019)
C106: =CRCP_y4 -> 2017-18 | D106: =CRCP_y5 -> 2018-19 | E106: =FRCP_y1 -> 2019-20 | F106: =FRCP_y2 -> 2020-21 | G106: =FRCP_y3 -> 2021-22 | H106: =FRCP_y4 -> 2022-23 | I106: =FRCP_y5 -> 2023-24
B107: Replacement expenditure | C107: 31104465.32 | D107: 32801578.43 | E107: 30607047.65 | F107: 30874158.85 | G107: 32484192.89 | H107: 33856527.22 | I107: 34705436.51
B108: Connections | C108: 40609931.32 | D108: 32488257.36 | E108: 31812372.85 | F108: 31094337.46 | G108: 31669040.53 | H108: 32326228.26 | I108: 32166945.21
B109: Augmentation Expenditure | C109: 8340159.433 | D109: 11242949.22 | E109: 16970619.46 | F109: 17686789.34 | G109: 16308438.89 | H109: 13774442.63 | I109: 13663422.24
B110: Non-network | C110: 0 | D110: 0 | E110: 0 | F110: 0 | G110: 0 | H110: 0 | I110: 0
B111: capcons (included in the above) | C111: 0 | D111: 0 | E111: 0 | F111: 0 | G111: 0 | H111: 0 | I111: 0
B112: Total Capitalised Overheads | C112: =SUM(C107:C110) -> 80054556.07 | D112: =SUM(D107:D110) -> 76532785 | E112: 79390039.97 | F112: 79655285.65 | G112: 80461672.31 | H112: 79957198.11 | I112: 80535803.96

Sheet 2.2 Repex
B1: =SheetHeader -> REGULATORY REPORTING STATEMENT
B2: =dms_TradingName -> Australian Distribution Co.
B3: =dms_Reg_Year_Span -> 2019-20 to 2023-24
B4: 2.2 REPEX
B6: There is ONE table on this worksheet. The table has been sub-grouped for easy navigation. See the Instructions sheet on how to group or ungroup tables.
B8: 2.2.1 - REPLACEMENT EXPENDITURE, VOLUMES AND ASSET FAILURES BY ASSET CATEGORY
B9: EXPENDITURE
E10: =CONCATENATE("EXPENDITURE ($0's, real ", dms_DollarReal,")") -> EXPENDITURE ($0's, real June 2019)
B11: ASSET GROUP | C11: ASSET CATEGORY | E11: =CRCP_y4 -> 2017-18 | F11: =CRCP_y5 -> 2018-19 | G11: =FRCP_y1 -> 2019-20 | H11: =FRCP_y2 -> 2020-21 | I11: =FRCP_y3 -> 2021-22 | J11: =FRCP_y4 -> 2022-23 | K11: =FRCP_y5 -> 2023-24
B12: POLES BY: HIGHEST OPERATING VOLTAGE ; MATERIAL TYPE | C12: ˂ = 1 kV; Wood - replacement of staked pole | E12: 710803.3564 | F12: 498318.4293 | G12: 516764.7249 | H12: 553676.491 | I12: 590588.257 | J12: 627500.0231 | K12: 664411.7892
C13: ˂ = 1 kV; Wood - replacement of unstaked pole | E13: 5876670.84 | F13: 6321749.098 | G13: 8676085.057 | H13: 8540892.787 | I13: 8846066.218 | J13: 8710873.948 | K13: 9016047.379
C14: > 1 kV & < = 11 kV; Wood - replacement of staked pole | E14: 750286.0336 | F14: 525998.301 | G14: 545469.2247 | H14: 584431.3122 | I14: 623393.3997 | J14: 662355.4872 | K14: 701317.5747
C15: > 1 kV & < = 11 kV; Wood - replacement of unstaked pole | E15: 6203099.656 | F15: 6672900.477 | G15: 9158011.686 | H15: 9015309.951 | I15: 9337434.715 | J15: 9194732.98 | K15: 9516857.744
C16: ˃ 11 kV & < = 22 kV; Wood - replacement of staked pole | E16: 21686.00328 | F16: 15203.26965 | G16: 15766.05037 | H16: 16892.19682 | I16: 18018.34328 | J16: 19144.48973 | K16: 20270.63619
C17: ˃ 11 kV & < = 22 kV; Wood - replacement of unstaked pole | E17: 179292.2078 | F17: 192871.1653 | G17: 264699.9445 | H17: 260575.3438 | I17: 269885.9245 | J17: 265761.3238 | K17: 275071.9046
C18: > 22 kV & < = 66 kV; Wood - replacement of staked pole | E18: 247905.5269 | F18: 199757.6597 | G18: 299636.4895 | H18: 299636.4895 | I18: 299636.4895 | J18: 299636.4895 | K18: 399515.3194
C19: > 22 kV & < = 66 kV; Wood - replacement of unstaked pole | E19: 1696553.357 | F19: 1367051.12 | G19: 2050576.679 | H19: 2430313.102 | I19: 2430313.102 | J19: 2430313.102 | K19: 3113838.661
C20: > 66 kV & < = 132 kV; Wood - replacement of staked pole | E20: 49942.00771 | F20: 40242.34032 | G20: 60363.51047 | H20: 60363.51047 | I20: 60363.51047 | J20: 60363.51047 | K20: 80484.68063
C21: > 66 kV & < = 132 kV; Wood - replacement of unstaked pole | E21: 341780.5238 | F21: 275400.385 | G21: 413100.5775 | H21: 489600.6844 | I21: 489600.6844 | J21: 489600.6844 | K21: 627300.8769
C22: > 132 kV; Wood - replacement of staked pole | E22: 0 | F22: 0 | G22: 0 | H22: 0 | I22: 0 | J22: 0 | K22: 0
C23: > 132 kV; Wood - replacement of unstaked pole | E23: 0 | F23: 0 | G23: 0 | H23: 0 | I23: 0 | J23: 0 | K23: 0
C24: ˂ = 1 kV; Concrete | E24: 211989.2318 | F24: 228044.5462 | G24: 312972.5411 | H24: 308095.7484 | I24: 319104.274 | J24: 314227.4813 | K24: 325236.0068
C25: > 1 kV & < = 11 kV; Concrete | E25: 694329.456 | F25: 746915.5125 | G25: 1025080.625 | H25: 1009107.64 | I25: 1045163.922 | J25: 1029190.937 | K25: 1065247.219
C26: ˃ 11 kV & < = 22 kV; Concrete | E26: 79085.22656 | F26: 85074.86182 | G26: 116758.3094 | H26: 114938.9611 | I26: 119045.8288 | J26: 117226.4805 | K26: 121333.3483
C27: > 22 kV & < = 66 kV; Concrete | E27: 315523.6408 | F27: 254243.0774 | G27: 381364.6161 | H27: 451987.6931 | I27: 451987.6931 | J27: 451987.6931 | K27: 579109.2318
C28: > 66 kV & < = 132 kV; Concrete | E28: 264627.0401 | F28: 213231.5438 | G28: 319847.3157 | H28: 379078.3001 | I28: 379078.3001 | J28: 379078.3001 | K28: 485694.072
C29: > 132 kV; Concrete | E29: 0 | F29: 0 | G29: 0 | H29: 0 | I29: 0 | J29: 0 | K29: 0
C30: ˂ = 1 kV; Steel | E30: 59332.58971 | F30: 63826.23014 | G30: 87596.29542 | H30: 86231.35466 | I30: 89312.47499 | J30: 87947.53424 | K30: 91028.65457
C31: > 1 kV & < = 11 kV; Steel | E31: 21395.57829 | F31: 23016.00369 | G31: 31587.58796 | H31: 31095.38466 | I31: 32206.44945 | J31: 31714.24614 | K31: 32825.31093
C32: ˃ 11 kV & < = 22 kV; Steel | E32: 19783.75317 | F32: 21282.10464 | G32: 29207.95292 | H32: 28752.8295 | I32: 29780.19278 | J32: 29325.06937 | K32: 30352.43265
C33: > 22 kV & < = 66 kV; Steel | E33: 42296.22191 | F33: 34081.50842 | G33: 51122.26262 | H33: 60589.34829 | I33: 60589.34829 | J33: 60589.34829 | K33: 77630.1025
C34: > 66 kV & < = 132 kV; Steel | E34: 19847.02801 | F34: 15992.36578 | G34: 23988.54868 | H34: 28430.87251 | I34: 28430.87251 | J34: 28430.87251 | K34: 36427.0554
C35: > 132 kV; Steel | E35: 0 | F35: 0 | G35: 0 | H35: 0 | I35: 0 | J35: 0 | K35: 0
C36: Other | E36: 730977.9095 | F36: 7212999.92 | G36: 3700000 | H36: 3700000 | I36: 6100000 | J36: 7700000 | K36: 7700000
B37: POLE TOP STRUCTURES BY: HIGHEST OPERATING VOLTAGE | C37: ˂ = 1 kV | E37: 0 | F37: 0 | G37: 0 | H37: 0 | I37: 0 | J37: 0 | K37: 0
C38: > 1 kV & < = 11 kV | E38: 0 | F38: 0 | G38: 0 | H38: 0 | I38: 0 | J38: 0 | K38: 0
C39: ˃ 11 kV & < = 22 kV | E39: 0 | F39: 0 | G39: 0 | H39: 0 | I39: 0 | J39: 0 | K39: 0
C40: > 22 kV & < = 66 kV | E40: 0 | F40: 0 | G40: 0 | H40: 0 | I40: 0 | J40: 0 | K40: 0
C41: > 66 kV & < = 132 kV | E41: 0 | F41: 0 | G41: 0 | H41: 0 | I41: 0 | J41: 0 | K41: 0
C42: > 132 kV | E42: 0 | F42: 0 | G42: 0 | H42: 0 | I42: 0 | J42: 0 | K42: 0
C43: Other | E43: 0 | F43: 0 | G43: 0 | H43: 0 | I43: 0 | J43: 0 | K43: 0
B44: STAKING WOODEN POLES BY: HIGHEST OPERATING VOLTAGE | C44: ˂ = 1 Kv | D44: for year wooden pole staked | E44: 311471.1021 | F44: 194050.4273 | G44: 263655.4719 | H44: 263655.4719 | I44: 263655.4719 | J44: 263655.4719 | K44: 263655.4719
C45: > 1 kV & < = 11 kV | D45: for year wooden pole staked | E45: 328772.2485 | F45: 204829.2599 | G45: 278300.6249 | H45: 278300.6249 | I45: 278300.6249 | J45: 278300.6249 | K45: 278300.6249
C46: ˃ 11 kV & < = 22 kV | D46: for year wooden pole staked | E46: 9502.717284 | F46: 5920.312791 | G46: 8043.903249 | H46: 8043.903249 | I46: 8043.903249 | J46: 8043.903249 | K46: 8043.903249
C47: > 22 kV & < = 66 kV | D47: for year wooden pole staked | E47: 80339.75409 | F47: 83232.3582 | G47: 99878.82984 | H47: 99878.82984 | I47: 99878.82984 | J47: 99878.82984 | K47: 99878.82984
C48: > 66 kV & < = 132 kV | D48: for year wooden pole staked | E48: 16184.90991 | F48: 16767.6418 | G48: 20121.17016 | H48: 20121.17016 | I48: 20121.17016 | J48: 20121.17016 | K48: 20121.17016
C49: > 132 kV | D49: for year wooden pole staked | E49: 0 | F49: 0 | G49: 0 | H49: 0 | I49: 0 | J49: 0 | K49: 0
B50: OVERHEAD CONDUCTORS BY: Highest operating voltage; Number of phases (at HV) | C50: ˂ = 1 kV | D50: per km | E50: 3411400.254 | F50: 4975718.126 | G50: 2477185.886 | H50: 3481460.414 | I50: 3739323.935 | J50: 3743641.603 | K50: 2775574.349
C51: > 1 kV & < = 11 kV | D51: per km | E51: 7807949.891 | F51: 9395934.213 | G51: 6959037.988 | H51: 7896301.127 | I51: 8130549.166 | J51: 8915950.241 | K51: 8000253.363
C52: ˃ 11 kV & < = 22 kV ; SWER | D52: per km | E52: 187275.396 | F52: 225401.1569 | G52: 166941.911 | H52: 189426.125 | I52: 195045.5534 | J52: 213886.7146 | K52: 191919.8584
C53: ˃ 11 kV & < = 22 kV ; Single-Phase | D53: per km | E53: 0 | F53: 0 | G53: 0 | H53: 0 | I53: 0 | J53: 0 | K53: 0
C54: ˃ 11 kV & < = 22 kV ; Multiple-Phase | D54: per km | E54: 0 | F54: 0 | G54: 0 | H54: 0 | I54: 0 | J54: 0 | K54: 0
C55: > 22 kV & < = 66 kV | D55: per km | E55: 1786141.652 | F55: 2738413.535 | G55: 5181283.836 | H55: 5520413.535 | I55: 5578392.858 | J55: 5578392.858 | K55: 5578392.858
C56: > 66 kV & < = 132 kV | D56: per km | E56: 1459984.855 | F56: 937975.3551 | G56: 1168716.164 | H56: 1039586.465 | I56: 1001607.142 | J56: 1001607.142 | K56: 741607.1419
C57: > 132 kV | D57: per km | E57: 0 | F57: 0 | G57: 0 | H57: 0 | I57: 0 | J57: 0 | K57: 0
C58: Other | D58: per km
B59: UNDERGROUND CABLES BY: Highest operating voltage | C59: ˂ = 1 kV | D59: per km | E59: 11801159.78 | F59: 6935417.497 | G59: 9036125.004 | H59: 12308934.52 | I59: 13845203.53 | J59: 14675475.03 | K59: 13539206.02
C60: > 1 kV & < = 11 kV | D60: per km | E60: 2517426.372 | F60: 153501.6081 | G60: 225135.6918 | H60: 235369.1324 | I60: 235369.1324 | J60: 245602.5729 | K60: 245602.5729
C61: > 11 kV & < = 22 kV | D61: per km | E61: 230049.3427 | F61: 14027.39895 | G61: 20573.51845 | H61: 21508.67838 | I61: 21508.67838 | J61: 22443.83831 | K61: 22443.83831
C62: > 22 kV & < = 33 kV | D62: per km | E62: 13318.88273 | F62: 0 | G62: 0 | H62: 0 | I62: 0 | J62: 0 | K62: 613452.1145
C63: > 33 kV & < = 66 kV | D63: per km | E63: 2313.300024 | F63: 0 | G63: 0 | H63: 0 | I63: 0 | J63: 0 | K63: 106547.8855
C64: > 66 kV & < = 132 kV | D64: per km | E64: 499744.9 | F64: 465136 | G64: 0 | H64: 162000 | I64: 0 | J64: 0 | K64: 0
C65: > 132 kV | D65: per km | E65: 0 | F65: 0 | G65: 0 | H65: 0 | I65: 0 | J65: 0 | K65: 0
C66: Other | D66: per km | E66: 0 | F66: 0 | G66: 0 | H66: 0 | I66: 0 | J66: 0 | K66: 0
B67: SERVICE LINES BY: Connection voltage; Customer type; Connection complexity | C67: ˂ = 11 kV ; Residential ; Simple Type | D67: per number of spans | E67: 15375000 | F67: 9167401 | G67: 9200000 | H67: 9300000 | I67: 9300000 | J67: 9450000 | K67: 9800000
C68: ˂ = 11 kV ; Commercial & Industrial ; Simple Type | D68: per number of spans | E68: 0 | F68: 0 | G68: 0 | H68: 0 | I68: 0 | J68: 0 | K68: 0
C69: ˂ = 11 kV ; Residential ; Complex Type | D69: per number of spans | E69: 0 | F69: 0 | G69: 0 | H69: 0 | I69: 0 | J69: 0 | K69: 0
C70: ˂ = 11 kV ; Commercial & Industrial ; Complex Type | D70: per number of spans | E70: 0 | F70: 0 | G70: 0 | H70: 0 | I70: 0 | J70: 0 | K70: 0
C71: ˂ = 11 kV ; Subdivision ; Complex Type | D71: per number of spans | E71: 0 | F71: 0 | G71: 0 | H71: 0 | I71: 0 | J71: 0 | K71: 0
C72: > 11 kV & < = 22 kV ; Commercial & Industrial | D72: per number of spans | E72: 0 | F72: 0 | G72: 0 | H72: 0 | I72: 0 | J72: 0 | K72: 0
C73: > 11 kV & < = 22 kV ; Subdivision | D73: per number of spans | E73: 0 | F73: 0 | G73: 0 | H73: 0 | I73: 0 | J73: 0 | K73: 0
C74: > 22 kV & < = 33 kV ; Commercial & Industrial | D74: per number of spans | E74: 0 | F74: 0 | G74: 0 | H74: 0 | I74: 0 | J74: 0 | K74: 0
C75: > 22 kV & < = 33 kV ; Subdivision | D75: per number of spans | E75: 0 | F75: 0 | G75: 0 | H75: 0 | I75: 0 | J75: 0 | K75: 0
C76: > 33 kV & < = 66 kV ; Commercial & Industrial | D76: per number of spans | E76: 0 | F76: 0 | G76: 0 | H76: 0 | I76: 0 | J76: 0 | K76: 0
C77: > 33 kV & < = 66 kV ; Subdivision | D77: per number of spans | E77: 0 | F77: 0 | G77: 0 | H77: 0 | I77: 0 | J77: 0 | K77: 0
C78: > 66 kV & < = 132 kV ; Commercial & Industrial | D78: per number of spans | E78: 0 | F78: 0 | G78: 0 | H78: 0 | I78: 0 | J78: 0 | K78: 0
C79: > 66 kV & < = 132 kV ; Subdivision | D79: per number of spans | E79: 0 | F79: 0 | G79: 0 | H79: 0 | I79: 0 | J79: 0 | K79: 0
C80: > 132 kV ; Commercial & Industrial | D80: per number of spans | E80: 0 | F80: 0 | G80: 0 | H80: 0 | I80: 0 | J80: 0 | K80: 0
C81: > 132 kV ; Subdivision | D81: per number of spans | E81: 0 | F81: 0 | G81: 0 | H81: 0 | I81: 0 | J81: 0 | K81: 0
C82: Other | D82: per number of spans | E82: 0 | F82: 0 | G82: 0 | H82: 0 | I82: 0 | J82: 0 | K82: 0
B83: TRANSFORMERS BY: Mounting type; Highest operating voltage; Ampere rating; Number of phases (at LV) | C83: Pole Mounted ; < = 22kV ; < = 60 kVA ; Single Phase | E83: 103187 | F83: 122280 | G83: 196902 | H83: 196902 | I83: 207726 | J83: 218709 | K83: 225792
C84: Pole Mounted ; < = 22kV ; > 60 kVA and < = 600 kVA ; Single Phase | E84: 960 | F84: 1137 | G84: 1831 | H84: 1831 | I84: 1932 | J84: 2034 | K84: 2100
C85: Pole Mounted ; < = 22kV ; > 600 kVA ; Single Phase | E85: 0 | F85: 0 | G85: 0 | H85: 0 | I85: 0 | J85: 0 | K85: 0
C86: Pole Mounted ; < = 22kV ; < = 60 kVA ; Multiple Phase | E86: 155230 | F86: 183952 | G86: 296211 | H86: 296211 | I86: 312494 | J86: 329017 | K86: 339673
C87: Pole Mounted ; < = 22kV ; > 60 kVA and < = 600 kVA ; Multiple Phase | E87: 1504208 | F87: 1782530 | G87: 2870332 | H87: 2870332 | I87: 3028119 | J87: 3188227 | K87: 3291485
C88: Pole Mounted ; < = 22kV ; > 600 kVA ; Multiple Phase | E88: 1499 | F88: 1777 | G88: 2861 | H88: 2861 | I88: 3018 | J88: 3178 | K88: 3281
C89: Kiosk Mounted ; < = 22kV ; < = 60 kVA ; Single Phase | E89: 0 | F89: 0 | G89: 0 | H89: 0 | I89: 0 | J89: 0 | K89: 0
C90: Kiosk Mounted ; < = 22kV ; > 60 kVA and < = 600 kVA ; Single Phase | E90: 0 | F90: 0 | G90: 0 | H90: 0 | I90: 0 | J90: 0 | K90: 0
C91: Kiosk Mounted ; < = 22kV ; > 600 kVA ; Single Phase | E91: 0 | F91: 0 | G91: 0 | H91: 0 | I91: 0 | J91: 0 | K91: 0
C92: Kiosk Mounted ; < = 22kV ; < = 60 kVA ; Multiple Phase | E92: 600 | F92: 711 | G92: 1144 | H92: 1144 | I92: 1207 | J92: 1271 | K92: 1312
C93: Kiosk Mounted ; < = 22kV ; > 60 kVA and < = 600 kVA ; Multiple Phase | E93: 1004633 | F93: 1190518 | G93: 1917041 | H93: 1917041 | I93: 2022424 | J93: 2129357 | K93: 2198321
C94: Kiosk Mounted ; < = 22kV ; > 600 kVA ; Multiple Phase | E94: 346678 | F94: 410823 | G94: 661531 | H94: 661531 | I94: 697896 | J94: 734797 | K94: 758595
C95: Ground Outdoor / Indoor Chamber Mounted; ˂ 22 kV ; < = 60 kVA ; Single Phase | E95: 0 | F95: 0 | G95: 0 | H95: 0 | I95: 0 | J95: 0 | K95: 0
C96: Ground Outdoor / Indoor Chamber Mounted; ˂ 22 kV ; > 60 kVA and < = 600 kVA ; Single Phase | E96: 0 | F96: 0 | G96: 0 | H96: 0 | I96: 0 | J96: 0 | K96: 0
C97: Ground Outdoor / Indoor Chamber Mounted; ˂ 22 kV ; > 600 kVA ; Single Phase | E97: 0 | F97: 0 | G97: 0 | H97: 0 | I97: 0 | J97: 0 | K97: 0
C98: Ground Outdoor / Indoor Chamber Mounted; ˂ 22 kV ; < = 60 kVA ; Multiple Phase | E98: 68269 | F98: 80901 | G98: 130272 | H98: 130272 | I98: 137433 | J98: 144700 | K98: 149386
C99: Ground Outdoor / Indoor Chamber Mounted; ˂ 22 kV ; > 60 kVA and < = 600 kVA ; Multiple Phase | E99: 46479 | F99: 55079 | G99: 88692 | H99: 88692 | I99: 93567 | J99: 98514 | K99: 101705
C100: Ground Outdoor / Indoor Chamber Mounted; ˂ 22 kV ; > 600 kVA ; Multiple Phase | E100: 9529 | F100: 11292 | G100: 18183 | H100: 18183 | I100: 19183 | J100: 20197 | K100: 20851
C101: Ground Outdoor / Indoor Chamber Mounted; > = 22 kV & < = 33 kV ; < = 15 MVA | E101: 423673 | F101: 1290408 | G101: 1530358 | H101: 1591204 | I101: 1591204 | J101: 1821813 | K101: 1979356
C102: Ground Outdoor / Indoor Chamber Mounted; > = 22 kV & < = 33 kV ; > 15 MVA and < = 40 MVA | E102: 1257857 | F102: 3831136 | G102: 4543531 | H102: 4724179 | I102: 4724179 | J102: 5408842 | K102: 5876578
C103: Ground Outdoor / Indoor Chamber Mounted; > = 22 kV & < = 33 kV ; > 40 MVA | E103: 0 | F103: 0 | G103: 0 | H103: 0 | I103: 0 | J103: 0 | K103: 0
C104: Ground Outdoor / Indoor Chamber Mounted; > 33 kV & < = 66 kV ; < = 15 MVA | E104: 92262 | F104: 281007 | G104: 333260 | H104: 346510 | I104: 346510 | J104: 396729 | K104: 431037
C105: Ground Outdoor / Indoor Chamber Mounted; > 33 kV & < = 66 kV ; > 15 MVA and < = 40 MVA | E105: 368576 | F105: 1122595 | G105: 1331340 | H105: 1384273 | I105: 1384273 | J105: 1584892 | K105: 1721947
C106: Ground Outdoor / Indoor Chamber Mounted; > 33 kV & < = 66 kV ; > 40 MVA | E106: 0 | F106: 0 | G106: 0 | H106: 0 | I106: 0 | J106: 0 | K106: 0
C107: Ground Outdoor / Indoor Chamber Mounted; > 66 kV & < = 132 kV ; < = 100 MVA | E107: 1051636 | F107: 3203035 | G107: 3798635 | H107: 3949666 | I107: 3949666 | J107: 4522082 | K107: 4913134
C108: Ground Outdoor / Indoor Chamber Mounted; > 66 kV & < = 132 kV ; > 100 MVA | E108: 480377 | F108: 1463115 | G108: 1735179 | H108: 1804169 | I108: 1804169 | J108: 2065642 | K108: 2244271
C109: Ground Outdoor / Indoor Chamber Mounted; > 132 kV ; < = 100 MVA | E109: 0 | F109: 0 | G109: 0 | H109: 0 | I109: 0 | J109: 0 | K109: 0
C110: Ground Outdoor / Indoor Chamber Mounted; > 132 kV ; > 100 MVA | E110: 0 | F110: 0 | G110: 0 | H110: 0 | I110: 0 | J110: 0 | K110: 0
C111: Other
B112: SWITCHGEAR BY: Highest operating voltage; Switch function | C112: ˂ = 11 kV ; Fuse | E112: 723326.3152 | F112: 261000 | G112: 261000 | H112: 0 | I112: 0 | J112: 0 | K112: 0
C113: ˂ = 11 kV ; Switch | E113: 3429817 | F113: 6051293 | G113: 3632902 | H113: 3632902 | I113: 3632902 | J113: 3632902 | K113: 3632902
C114: ˂ = 11 kV ; Circuit Breaker | E114: 3335034.98 | F114: 12495493.22 | G114: 7038618.708 | H114: 7847279.827 | I114: 8042228.531 | J114: 8571608.316 | K114: 9561655.572
C115: > 11 kV & < = 22 kV ; Switch | E115: 53906 | F115: 95107 | G115: 57098 | H115: 57098 | I115: 57098 | J115: 57098 | K115: 57098
C116: > 11 kV & < = 22 kV ; Circuit Breaker | E116: 0 | F116: 0 | G116: 0 | H116: 0 | I116: 0 | J116: 0 | K116: 0
C117: > 22 kV & < = 33 kV ; Switch | E117: 0 | F117: 0 | G117: 0 | H117: 0 | I117: 0 | J117: 0 | K117: 0
C118: > 22 kV & < = 33 kV ; Circuit Breaker | E118: 1665242.131 | F118: 4451373.068 | G118: 1631649.537 | H118: 1491379.584 | I118: 1525430.267 | J118: 2337037.607 | K118: 1798588.007
C119: > 33 kV & < = 66 kV ; Switch | E119: 0 | F119: 0 | G119: 0 | H119: 0 | I119: 0 | J119: 0 | K119: 0
C120: > 33 kV & < = 66 kV ; Circuit Breaker | E120: 0 | F120: 258000 | G120: 258000 | H120: 258000 | I120: 258000 | J120: 258000 | K120: 258000
C121: > 66 kV & < = 132 kV ; Switch | E121: 0 | F121: 0 | G121: 0 | H121: 0 | I121: 0 | J121: 0 | K121: 0
C122: > 66 kV & < = 132 kV ; Circuit Breaker | E122: 0 | F122: 903000 | G122: 362000 | H122: 362000 | I122: 362000 | J122: 362000 | K122: 362000
C123: > 132 kV ; Switch | E123: 0 | F123: 0 | G123: 0 | H123: 0 | I123: 0 | J123: 0 | K123: 0
C124: > 132 kV ; Circuit Breaker | E124: 0 | F124: 0 | G124: 0 | H124: 0 | I124: 0 | J124: 0 | K124: 0
C125: Other | E125: 7806426.65 | F125: 5495624.669 | G125: 7158000 | H125: 7508000 | I125: 9083000 | J125: 9083000 | K125: 9083000
B126: PUBLIC LIGHTING BY: Asset type ; Lighting obligation | C126: Luminaires | E126: 0 | F126: 0 | G126: 0 | H126: 0 | I126: 0 | J126: 0 | K126: 0
C127: Brackets | E127: 0 | F127: 0 | G127: 0 | H127: 0 | I127: 0 | J127: 0 | K127: 0
C128: Lamps | E128: 0 | F128: 0 | G128: 0 | H128: 0 | I128: 0 | J128: 0 | K128: 0
C129: Poles / Columns | E129: 0 | F129: 0 | G129: 0 | H129: 0 | I129: 0 | J129: 0 | K129: 0
C130: Other | E130: 2767500 | F130: 3000000 | G130: 3000000 | H130: 3000000 | I130: 3000000 | J130: 3000000 | K130: 3000000
B131: SCADA, NETWORK CONTROL AND PROTECTION SYSTEMS BY: Function | C131: Field Devices | E131: 838356.2863 | F131: 599632.248 | G131: 780605.1508 | H131: 780605.1508 | I131: 638314.7478 | J131: 638314.7478 | K131: 780605.1508
C132: Local Network Wiring Assets | E132: 0 | F132: 0 | G132: 0 | H132: 0 | I132: 0 | J132: 0 | K132: 0
C133: Communications Network Assets | E133: 1972100.875 | F133: 1410540.245 | G133: 1836250.442 | H133: 1836250.442 | I133: 1501534.722 | J133: 1501534.722 | K133: 1836250.442
C134: Master Station Assets | E134: 0 | F134: 0 | G134: 0 | H134: 0 | I134: 0 | J134: 0 | K134: 0
C135: Communications Site Infrastructure | E135: 3081410.938 | F135: 2203971.507 | G135: 2869144.407 | H135: 2869144.407 | I135: 2346150.531 | J135: 2346150.531 | K135: 2869144.407
C136: Communications Linear Assets | E136: 474309.525 | F136: 5000 | G136: 4495000 | H136: 4495000 | I136: 4495000 | J136: 4495000 | K136: 4495000
C137: AFLC | E137: 0 | F137: 0 | G137: 0 | H137: 0 | I137: 0 | J137: 0 | K137: 0
C138: Other | E138: 0 | F138: 0 | G138: 0 | H138: 0 | I138: 0 | J138: 0 | K138: 0
B139: OTHER BY: enter DNSP defined asset group here | C139: Substation Establishment: Major Indoor | E139: 6031449.621 | F139: 6399531.387 | G139: 7142056.093 | H139: 6125755.486 | I139: 6221469.95 | J139: 5730101.143 | K139: 6854484.6
C140: Substation Establishment: Major Outdoor | E140: 9047174.432 | F140: 9599297.08 | G140: 10713084.14 | H140: 9188633.229 | I140: 9332204.926 | J140: 8595151.715 | K140: 10281726.9
C141: Substation Establishment: Medium Indoor | E141: 3058501.049 | F141: 3245152.441 | G141: 3621680.926 | H141: 3106322.817 | I141: 3154858.876 | J141: 2905689.587 | K141: 3475855.666
C142: Substation Establishment: Medium Outdoor | E142: 5838956.548 | F142: 6195291.023 | G142: 6914118.132 | H142: 5930252.651 | I142: 6022912.399 | J142: 5547225.575 | K142: 6635724.453
C143: Substation Establishment: Small Indoor | E143: 327951.1614 | F143: 347965.0636 | G143: 388338.7473 | H143: 333078.9035 | I143: 338283.2361 | J143: 311565.7832 | K143: 372702.4723
C144: Substation Establishment: Small Outdoor | E144: 1475780.226 | F144: 1565842.786 | G144: 1747524.363 | H144: 1498855.066 | I144: 1522274.562 | J144: 1402046.024 | K144: 1677161.125
C145: Substation Establishment: Type A | E145: 1711049.538 | F145: 1815469.897 | G145: 2026115.204 | H145: 1737802.975 | I145: 1764956.014 | J145: 1625560.608 | K145: 1944534.638
C146: Substation Establishment: Type B | E146: 4619833.752 | F146: 4901768.722 | G146: 5470511.05 | H146: 4692068.032 | I146: 4765381.239 | J146: 4389013.642 | K146: 5250243.523
C147: Capacitor Banks | E147: 2843381.631 | F147: 2157526 | G147: 0 | H147: 0 | I147: 0 | J147: 0 | K147: 0
C149: LV Planning | E149: 1913611 | F149: 1750000 | G149: 1750000 | H149: 1750000 | I149: 1750000 | J149: 1750000 | K149: 1750000
C150: Metering & Relays | E150: 450645 | F150: 300000 | G150: 957584 | H150: 907185 | I150: 856786 | J150: 806386 | K150: 755987
C151: Power Quality | E151: 639797 | F151: 1015000 | G151: 442400 | H151: 717700 | I151: 973300 | J151: 1047600 | K151: 1464538
C152: Reliability | E152: 1442161 | F152: 4000000 | G152: 4000000 | H152: 4000000 | I152: 4000000 | J152: 4000000 | K152: 4000000
C153: Technology | E153: 4412216 | F153: 14744814 | G153: 10485366 | H153: 4866895 | I153: 2842860 | J153: 2750000 | K153: 2750000
B183: ASSET REPLACEMENTS
E184: ASSET REPLACEMENTS (0's)
B185: ASSET GROUP | C185: ASSET CATEGORY | E185: =CRCP_y4 -> 2017-18 | F185: =CRCP_y5 -> 2018-19 | G185: =FRCP_y1 -> 2019-20 | H185: =FRCP_y2 -> 2020-21 | I185: =FRCP_y3 -> 2021-22 | J185: =FRCP_y4 -> 2022-23 | K185: =FRCP_y5 -> 2023-24
B186: POLES BY: HIGHEST OPERATING VOLTAGE ; MATERIAL TYPE | C186: ˂ = 1 kV; Wood - replacement of staked pole | E186: 102 | F186: 71 | G186: 74 | H186: 79 | I186: 84 | J186: 90 | K186: 95
C187: ˂ = 1 kV; Wood - replacement of unstaked pole | E187: 840 | F187: 903 | G187: 1239 | H187: 1220 | I187: 1264 | J187: 1244 | K187: 1288
C188: > 1 kV & < = 11 kV; Wood - replacement of staked pole | E188: 94 | F188: 66 | G188: 68 | H188: 73 | I188: 78 | J188: 83 | K188: 88
C189: > 1 kV & < = 11 kV; Wood - replacement of unstaked pole | E189: 775 | F189: 834 | G189: 1145 | H189: 1127 | I189: 1167 | J189: 1149 | K189: 1190
C190: ˃ 11 kV & < = 22 kV; Wood - replacement of staked pole | E190: 2 | F190: 2 | G190: 2 | H190: 2 | I190: 2 | J190: 2 | K190: 2
C191: ˃ 11 kV & < = 22 kV; Wood - replacement of unstaked pole | E191: 18 | F191: 19 | G191: 26 | H191: 26 | I191: 27 | J191: 27 | K191: 28
C192: > 22 kV & < = 66 kV; Wood - replacement of staked pole | E192: 12 | F192: 10 | G192: 15 | H192: 15 | I192: 15 | J192: 15 | K192: 20
C193: > 22 kV & < = 66 kV; Wood - replacement of unstaked pole | E193: 85 | F193: 68 | G193: 103 | H193: 122 | I193: 122 | J193: 122 | K193: 156
C194: > 66 kV & < = 132 kV; Wood - replacement of staked pole | E194: 2 | F194: 2 | G194: 3 | H194: 3 | I194: 3 | J194: 3 | K194: 3
C195: > 66 kV & < = 132 kV; Wood - replacement of unstaked pole | E195: 14 | F195: 11 | G195: 17 | H195: 20 | I195: 20 | J195: 20 | K195: 26
C196: > 132 kV; Wood - replacement of staked pole | E196: 0 | F196: 0 | G196: 0 | H196: 0 | I196: 0 | J196: 0 | K196: 0
C197: > 132 kV; Wood - replacement of unstaked pole | E197: 0 | F197: 0 | G197: 0 | H197: 0 | I197: 0 | J197: 0 | K197: 0
C198: ˂ = 1 kV; Concrete | E198: 26 | F198: 29 | G198: 39 | H198: 39 | I198: 40 | J198: 39 | K198: 41
C199: > 1 kV & < = 11 kV; Concrete | E199: 69 | F199: 75 | G199: 103 | H199: 101 | I199: 105 | J199: 103 | K199: 107
C200: ˃ 11 kV & < = 22 kV; Concrete | E200: 7 | F200: 7 | G200: 10 | H200: 10 | I200: 10 | J200: 10 | K200: 10
C201: > 22 kV & < = 66 kV; Concrete | E201: 15 | F201: 12 | G201: 18 | H201: 22 | I201: 22 | J201: 22 | K201: 28
C202: > 66 kV & < = 132 kV; Concrete | E202: 11 | F202: 9 | G202: 13 | H202: 15 | I202: 15 | J202: 15 | K202: 19
C203: > 132 kV; Concrete | E203: 0 | F203: 0 | G203: 0 | H203: 0 | I203: 0 | J203: 0 | K203: 0
C204: ˂ = 1 kV; Steel | E204: 8 | F204: 9 | G204: 13 | H204: 12 | I204: 13 | J204: 13 | K204: 13
C205: > 1 kV & < = 11 kV; Steel | E205: 2 | F205: 3 | G205: 4 | H205: 3 | I205: 4 | J205: 4 | K205: 4
C206: ˃ 11 kV & < = 22 kV; Steel | E206: 2 | F206: 2 | G206: 3 | H206: 3 | I206: 3 | J206: 3 | K206: 3
C207: > 22 kV & < = 66 kV; Steel | E207: 2 | F207: 2 | G207: 2 | H207: 3 | I207: 3 | J207: 3 | K207: 4
C208: > 66 kV & < = 132 kV; Steel | E208: 1 | F208: 1 | G208: 1 | H208: 1 | I208: 1 | J208: 1 | K208: 1
C209: > 132 kV; Steel | E209: 0 | F209: 0 | G209: 0 | H209: 0 | I209: 0 | J209: 0 | K209: 0
C210: Other | E210: 2 | F210: 24 | G210: 12 | H210: 12 | I210: 20 | J210: 26 | K210: 26
B211: POLE TOP STRUCTURES BY: HIGHEST OPERATING VOLTAGE | C211: ˂ = 1 kV | E211: 0 | F211: 0 | G211: 0 | H211: 0 | I211: 0 | J211: 0 | K211: 0
C212: > 1 kV & < = 11 kV | E212: 0 | F212: 0 | G212: 0 | H212: 0 | I212: 0 | J212: 0 | K212: 0
C213: ˃ 11 kV & < = 22 kV | E213: 0 | F213: 0 | G213: 0 | H213: 0 | I213: 0 | J213: 0 | K213: 0
C214: > 22 kV & < = 66 kV | E214: 0 | F214: 0 | G214: 0 | H214: 0 | I214: 0 | J214: 0 | K214: 0
C215: > 66 kV & < = 132 kV | E215: 0 | F215: 0 | G215: 0 | H215: 0 | I215: 0 | J215: 0 | K215: 0
C216: > 132 kV | E216: 0 | F216: 0 | G216: 0 | H216: 0 | I216: 0 | J216: 0 | K216: 0
C217: Other | E217: 0 | F217: 0 | G217: 0 | H217: 0 | I217: 0 | J217: 0 | K217: 0
B218: STAKING WOODEN POLES BY: HIGHEST OPERATING VOLTAGE | C218: ˂ = 1 Kv | D218: for year wooden pole staked | E218: 283 | F218: 176 | G218: 240 | H218: 240 | I218: 240 | J218: 240 | K218: 240
C219: > 1 kV & < = 11 kV | D219: for year wooden pole staked | E219: 299 | F219: 186 | G219: 253 | H219: 253 | I219: 253 | J219: 253 | K219: 253
C220: ˃ 11 kV & < = 22 kV | D220: for year wooden pole staked | E220: 9 | F220: 5 | G220: 7 | H220: 7 | I220: 7 | J220: 7 | K220: 7
C221: > 22 kV & < = 66 kV | D221: for year wooden pole staked | E221: 40 | F221: 42 | G221: 50 | H221: 50 | I221: 50 | J221: 50 | K221: 50
C222: > 66 kV & < = 132 kV | D222: for year wooden pole staked | E222: 8 | F222: 8 | G222: 10 | H222: 10 | I222: 10 | J222: 10 | K222: 10
C223: > 132 kV | D223: for year wooden pole staked | E223: 0 | F223: 0 | G223: 0 | H223: 0 | I223: 0 | J223: 0 | K223: 0
B224: OVERHEAD CONDUCTORS BY: Highest operating voltage; Number of phases (at HV) | C224: ˂ = 1 kV | D224: per km | E224: 56.85667089 | F224: 82.92863544 | G224: 41.28643144 | H224: 58.02434023 | I224: 62.32206559 | J224: 62.39402671 | K224: 46.25957248
C225: > 1 kV & < = 11 kV | D225: per km | E225: 104.1059986 | F225: 125.2791228 | G225: 92.78717318 | H225: 105.284015 | I225: 108.4073222 | J225: 118.8793365 | K225: 106.6700448
C226: ˃ 11 kV & < = 22 kV ; SWER | D226: per km | E226: 4.6818849 | F226: 5.635028922 | G226: 4.173547776 | H226: 4.735653126 | I226: 4.876138834 | J226: 5.347167864 | K226: 4.797996459
C227: ˃ 11 kV & < = 22 kV ; Single-Phase | D227: per km | E227: 0 | F227: 0 | G227: 0 | H227: 0 | I227: 0 | J227: 0 | K227: 0
C228: ˃ 11 kV & < = 22 kV ; Multiple-Phase | D228: per km | E228: 0 | F228: 0 | G228: 0 | H228: 0 | I228: 0 | J228: 0 | K228: 0
C229: > 22 kV & < = 66 kV | D229: per km | E229: 7.144566608 | F229: 10.95365414 | G229: 20.72513534 | H229: 22.08165414 | I229: 22.31357143 | J229: 22.31357143 | K229: 22.31357143
C230: > 66 kV & < = 132 kV | D230: per km | E230: 5.839939421 | F230: 3.751901421 | G230: 4.674864657 | H230: 4.158345861 | I230: 4.006428568 | J230: 4.006428568 | K230: 2.966428568
C231: > 132 kV | D231: per km | E231: 0 | F231: 0 | G231: 0 | H231: 0 | I231: 0 | J231: 0 | K231: 0
C232: Other | D232: per km
... 242 more rows

Sheet 2.3 Augex (a)
B1: =SheetHeader -> REGULATORY REPORTING STATEMENT
B2: =dms_TradingName -> Endeavour Energy
B3: =dms_Reg_Year_Span -> 2019-20 to 2023-24
B4: 2.3 AUGEX PROJECT DATA
B6: There are TWO tables on this worksheet - each has been 'grouped' (and sub-grouped) for easy navigation. Both ROWS and COLUMNS have been grouped. See the Instructions sheet on how to group or ungroup tables.
B8: NOTE: DNSP must provide expenditure information on an 'as incurred' basis.
B9: 2.3.1 - AUGEX ASSET DATA - SUBTRANSMISSION SUBSTATIONS, SWITCHING STATIONS AND ZONE SUBSTATIONS
B10: PROJECT DESCRIPTION AND CHANGES | L10: PLANT AND EQUIPMENT EXPENDITURE AND VOLUME | X10: OTHER EXPENDITURE | Z10: TOTAL DIRECT EXPENDITURE ($0's) | AA10: YEARS INCURRED | AB10: ALL RELATED PARTY CONTRACTS | AD10: ALL NON-RELATED PARTY CONTRACTS | AE10: LAND AND EASEMENTS
B11: SUBSTATION ID | C11: SUBSTATION TYPE | D11: PROJECT ID | E11: PROJECT TYPE | F11: PROJECT TRIGGER | G11: VOLTAGE (KV) | H11: SUBSTATION RATING NORMAL CYCLIC (MVA) | J11: SUBSTATION RATING N-1 EMERGENCY (MVA) | L11: TRANSFORMERS | O11: SWITCHGEAR | R11: CAPACITORS | U11: OTHER PLANT ITEM | V11: INSTALLATION (LABOUR) | X11: CIVIL WORKS | Y11: OTHER DIRECT | AB11: RELATED PARTY MARGINS | AC11: TOTAL | AE11: LAND PURCHASE | AF11: EASEMENTS
H12: PRE | I12: POST | J12: PRE | K12: POST | L12: UNITS ADDED | M12: MVA ADDED | N12: =CONCATENATE("EXPENDITURE ($0's, real ", dms_DollarReal,")") -> EXPENDITURE ($0's, real June 2019) | O12: UNITS ADDED | Q12: =CONCATENATE("EXPENDITURE ($0's, real ", dms_DollarReal,")") -> EXPENDITURE ($0's, real June 2019) | R12: MVAR ADDED | T12: =CONCATENATE("EXPENDITURE ($0's, real ", dms_DollarReal,")") -> EXPENDITURE ($0's, real June 2019) | U12: =CONCATENATE("EXPENDITURE ($0's, real ", dms_DollarReal,")") -> EXPENDITURE ($0's, real June 2019) | V12: VOLUME | W12: =CONCATENATE("EXPENDITURE ($0's, real ", dms_DollarReal,")") -> EXPENDITURE ($0's, real June 2019) | X12: =CONCATENATE("EXPENDITURE ($0's, real ", dms_DollarReal,")") -> EXPENDITURE ($0's, real June 2019) | AB12: =CONCATENATE("EXPENDITURE ($0's, real ", dms_DollarReal,")") -> EXPENDITURE ($0's, real June 2019) | AE12: =CONCATENATE("EXPENDITURE ($0's, real ", dms_DollarReal,")") -> EXPENDITURE ($0's, real June 2019)
B13: Edmondson Park ZS | C13: Zone substation | D13: PR110 | E13: New substation establishment | F13: Demand growth | G13: 33/11 | H13: 0 | I13: 70 | J13: 0 | K13: 35 | L13: 2 | M13: 70 | N13: 1496758.513 | O13: 15 | P13: 0 | Q13: 1420000.964 | R13: 0 | S13: 0 | T13: 0 | U13: 1867816.52 | V13: 12056.42676 | W13: 1272958.51 | X13: 4883783.639 | Y13: 474252.6996 | Z13: =SUM(N13,Q13,T13,U13,W13,X13,Y13) -> 11415570.85 | AA13: 2011/12, 2012/13, 2013/14, 2014/15, 2015/16, 2016/17, 2017/18,2018/19,2019/20,2020/21, | AB13: 0 | AC13: 3251325.512 | AD13: 0 | AE13: 0 | AF13: 0
B14: Menangle Park ZS | C14: Zone substation | D14: PR258 | E14: New substation establishment | F14: Demand growth | G14: 66/11 | H14: 0 | I14: 15 | J14: 0 | K14: 0 | L14: 1 | M14: 15 | N14: 300000 | O14: 3 | P14: 0 | Q14: 350000 | R14: 0 | S14: 0 | T14: 0 | U14: 455848.558 | V14: 11199.43259 | W14: 1040022.43 | X14: 1189987.765 | Y14: 187053.8548 | Z14: 3522912.608 | AA14: 2017/18,2018/19,2019/20, | AB14: 0 | AC14: 0 | AD14: 0 | AE14: 1062263.875 | AF14: 0
B15: South Marsden Park ZS | C15: Zone substation | D15: PR292 | E15: New substation establishment | F15: Demand growth | G15: 132/11 | H15: 15 | I15: 90 | J15: 0 | K15: 45 | L15: 2 | M15: 90 | N15: 3652598.246 | O15: 12 | P15: 0 | Q15: 1136000.771 | R15: 0 | S15: 0 | T15: 0 | U15: 2172057.407 | V15: 16126.36839 | W15: 1497556.659 | X15: 5670132.536 | Y15: 895464.2746 | Z15: 15023809.89 | AA15: 2008/09, 2009/10, 2010/11, 2011/12, 2012/13, 2013/14, 2015/16, 2016/17, 2017/18,2018/19,2019/20, | AB15: 0 | AC15: 28895.68487 | AD15: 0 | AE15: 0 | AF15: 0
B16: Marylands ZS | C16: Zone substation | D16: PR423 | E16: New substation establishment | F16: Demand growth | G16: 132/11 | H16: 0 | I16: 45 | J16: 0 | K16: 0 | L16: 1 | M16: 45 | N16: 1437451.122 | O16: 14 | P16: 0 | Q16: 1325334.233 | R16: 0 | S16: 0 | T16: 0 | U16: 3820469.151 | V16: 6199.963312 | W16: 575752.4644 | X16: 9973293.693 | Y16: 1567699.337 | Z16: 18700000 | AA16: 2020/21,2021/22,2022/23, | AB16: 0 | AC16: 0 | AD16: 0 | AE16: 0 | AF16: 0
B17: North Leppington ZS | C17: Zone substation | D17: PR427 | E17: New substation establishment | F17: Demand growth | G17: 132/11 | H17: 0 | I17: 90 | J17: 0 | K17: 45 | L17: 2 | M17: 90 | N17: 1826299.123 | O17: 25 | P17: 0 | Q17: 2366668.273 | R17: 0 | S17: 0 | T17: 0 | U17: 3316497.463 | V17: 16126.36839 | W17: 1497556.659 | X17: 8756249 | Y17: 1360987.403 | Z17: 19124257.92 | AA17: 2014/15, 2015/16, 2016/17, 2017/18,2018/19,2019/20,2020/21, | AB17: 0 | AC17: 203326.304 | AD17: 0 | AE17: -9247.603605 | AF17: 0
B18: South Pipe ZS | C18: Zone substation | D18: PR499 | E18: New substation establishment | F18: Demand growth | G18: 132/11 | H18: 0 | I18: 90 | J18: 0 | K18: 45 | L18: 2 | M18: 90 | N18: 3652598.246 | O18: 12 | P18: 0 | Q18: 1136000.771 | R18: 0 | S18: 0 | T18: 0 | U18: 3087382.486 | V18: 16126.36839 | W18: 1497556.659 | X18: 8059578.824 | Y18: 1266883.014 | Z18: 18700000 | AA18: 2019/20,2020/21,2021/22, | AB18: 0 | AC18: 0 | AD18: 0 | AE18: 300000 | AF18: 0
B19: West Dapto ZS | C19: Zone substation | D19: PR620 | E19: New substation establishment | F19: Demand growth | G19: 132/11 | H19: 0 | I19: 45 | J19: 0 | K19: 0 | L19: 2 | M19: 90 | N19: 2874902.244 | O19: 29 | P19: 0 | Q19: 2745335.197 | R19: 0 | S19: 0 | T19: 0 | U19: 1008523.995 | V19: 16126.36839 | W19: 1497556.659 | X19: 2632741.058 | Y19: 413839.8545 | Z19: 11172899.01 | AA19: 2021/22,2022/23,2023/24, | AB19: 0 | AC19: 0 | AD19: 0 | AE19: 2000000 | AF19: 0
B20: South Leppington ZS | C20: Zone substation | D20: PR656 | E20: New substation establishment | F20: Demand growth | G20: 132/11 | H20: 45 | I20: 90 | J20: 0 | K20: 45 | L20: 1 | M20: 45 | N20: 3652598.246 | O20: 12 | P20: 0 | Q20: 1136000.771 | R20: 0 | S20: 0 | T20: 0 | U20: 4444285.477 | V20: 6199.963312 | W20: 575752.4644 | X20: 11601759.51 | Y20: 1823677.438 | Z20: 23234073.91 | AA20: 2017/18,2018/19,2019/20,2020/21, | AB20: 0 | AC20: 0 | AD20: 0 | AE20: 0 | AF20: 0
B21: Calderwood ZS | C21: Zone substation | D21: PR657 | E21: New substation establishment | F21: Demand growth | G21: 33/11 | H21: 0 | I21: 50 | J21: 0 | K21: 25 | L21: 2 | M21: 50 | N21: 1671503.967 | O21: 18 | P21: 0 | Q21: 1704001.157 | R21: 0 | S21: 0 | T21: 0 | U21: 2488502.927 | V21: 11199.43259 | W21: 1040022.43 | X21: 6496210.168 | Y21: 1021137.518 | Z21: 14421378.17 | AA21: 2017/18,2018/19,2019/20,2020/21, | AB21: 0 | AC21: 0 | AD21: 0 | AE21: 0 | AF21: 0
B22: South Penrith ZS | C22: Zone substation | D22: PR677 | E22: New substation establishment | F22: Demand growth | G22: 33/11 | H22: 0 | I22: 50 | J22: 0 | K22: 25 | L22: 2 | M22: 50 | N22: 1671503.967 | O22: 18 | P22: 0 | Q22: 1704001.157 | R22: 0 | S22: 0 | T22: 0 | U22: 3328782.344 | V22: 11199.43259 | W22: 1040022.43 | X22: 8689750.562 | Y22: 1365939.539 | Z22: 17800000 | AA22: 2019/20,2020/21,2021/22, | AB22: 0 | AC22: 0 | AD22: 0 | AE22: 0 | AF22: 0
B23: Marsden Park ZS | C23: Zone substation | D23: PR698 | E23: New substation establishment | F23: Demand growth | G23: 132/11 | H23: 45 | I23: 90 | J23: 0 | K23: 45 | L23: 1 | M23: 45 | N23: 1437451.122 | O23: 14 | P23: 0 | Q23: 1325334.233 | R23: 0 | S23: 0 | T23: 0 | U23: 1030001.462 | V23: 6199.963312 | W23: 575752.4644 | X23: 2688807.755 | Y23: 422652.9634 | Z23: 7480000 | AA23: 2019/20,2020/21, | AB23: 0 | AC23: 0 | AD23: 0 | AE23: 0 | AF23: 0
B24: Riverstone East ZS | C24: Zone substation | D24: PR700 | E24: New substation establishment | F24: Demand growth | G24: 132/11 | H24: 0 | I24: 90 | J24: 0 | K24: 45 | L24: 2 | M24: 90 | N24: 2874902.244 | O24: 29 | P24: 0 | Q24: 2745335.197 | R24: 0 | S24: 0 | T24: 0 | U24: 2880550.03 | V24: 16126.36839 | W24: 1497556.659 | X24: 7519644.92 | Y24: 1182010.95 | Z24: 18700000 | AA24: 2021/22,2022/23,2023/24, | AB24: 0 | AC24: 0 | AD24: 0 | AE24: 6000000 | AF24: 0
B25: Box Hill ZS | C25: Zone substation | D25: PR713 | E25: New substation establishment | F25: Demand growth | G25: 132/11 | H25: 0 | I25: 90 | J25: 0 | K25: 45 | L25: 2 | M25: 90 | N25: 2874902.244 | O25: 29 | P25: 0 | Q25: 2745335.197 | R25: 0 | S25: 0 | T25: 0 | U25: 2880550.03 | V25: 16126.36839 | W25: 1497556.659 | X25: 7519644.92 | Y25: 1182010.95 | Z25: 18700000 | AA25: 2019/20,2020/21,2021/22, | AB25: 0 | AC25: 0 | AD25: 0 | AE25: 348777.775 | AF25: 0
B26: Science Park ZS | C26: Zone substation | D26: PR723 | E26: New substation establishment | F26: Demand growth | G26: 132/11 | H26: 0 | I26: 90 | J26: 0 | K26: 45 | L26: 2 | M26: 90 | N26: 2874902.244 | O26: 29 | P26: 0 | Q26: 2745335.197 | R26: 0 | S26: 0 | T26: 0 | U26: 2880550.03 | V26: 16126.36839 | W26: 1497556.659 | X26: 7519644.92 | Y26: 1182010.95 | Z26: 18700000 | AA26: 2019/20,2020/21,2021/22, | AB26: 0 | AC26: 0 | AD26: 0 | AE26: 0 | AF26: 0
B27: Mount Gilead ZS | C27: Zone substation | D27: PR724 | E27: New substation establishment | F27: Demand growth | G27: 66/11 | H27: 0 | I27: 50 | J27: 0 | K27: 25 | L27: 2 | M27: 50 | N27: 1671503.967 | O27: 18 | P27: 0 | Q27: 1704001.157 | R27: 0 | S27: 0 | T27: 0 | U27: 3005466.123 | V27: 11199.43259 | W27: 1040022.43 | X27: 7845737.04 | Y27: 1233269.282 | Z27: 16500000 | AA27: 2021/22,2022/23,2023/24, | AB27: 0 | AC27: 0 | AD27: 0 | AE27: 0 | AF27: 0
B28: Western Sydney Employment Lands ZS | C28: Zone substation | D28: PR728 | E28: New substation establishment | F28: Demand growth | G28: 132/11 | H28: 0 | I28: 90 | J28: 0 | K28: 45 | L28: 2 | M28: 90 | N28: 2874902.244 | O28: 29 | P28: 0 | Q28: 2745335.197 | R28: 0 | S28: 0 | T28: 0 | U28: 2880550.03 | V28: 16126.36839 | W28: 1497556.659 | X28: 7519644.92 | Y28: 1182010.95 | Z28: 18700000 | AA28: 2021/22,2022/23,2023/24, | AB28: 0 | AC28: 0 | AD28: 0 | AE28: 0 | AF28: 0
B29: North Bomaderry ZS | C29: Zone substation | D29: PR742 | E29: New substation establishment | F29: Demand growth | G29: 33/11 | H29: 0 | I29: 30 | J29: 0 | K29: 15 | L29: 2 | M29: 30 | N29: 1205327.292 | O29: 14 | P29: 0 | Q29: 1325334.233 | R29: 0 | S29: 0 | T29: 0 | U29: 2210815.437 | V29: 11199.43259 | W29: 1040022.43 | X29: 5771309.958 | Y29: 907190.6504 | Z29: 12460000 | AA29: 2021/22,2022/23,2023/24, | AB29: 0 | AC29: 0 | AD29: 0 | AE29: 0 | AF29: 0
B30: Termeil ZS | C30: Zone substation | D30: PR744 | E30: New substation establishment | F30: Demand growth | G30: 132/11 | H30: 0 | I30: 15 | J30: 0 | K30: 0 | L30: 1 | M30: 15 | N30: 848556.1597 | O30: 7 | P30: 0 | Q30: 662667.1165 | R30: 0 | S30: 0 | T30: 0 | U30: 724483.0726 | V30: 6199.963312 | W30: 575752.4644 | X30: 1891255.281 | Y30: 297285.9058 | Z30: 5000000 | AA30: 2022/23,2023/24, | AB30: 0 | AC30: 0 | AD30: 0 | AE30: 0 | AF30: 0
B31: Catherine Park ZS | C31: Zone substation | D31: PR748 | E31: New substation establishment | F31: Demand growth | G31: 132/11 | H31: 0 | I31: 45 | J31: 0 | K31: 0 | L31: 1 | M31: 45 | N31: 1437451.122 | O31: 10 | P31: 0 | Q31: 2745335.197 | R31: 0 | S31: 0 | T31: 0 | U31: 514076.1323 | V31: 16126.36839 | W31: 1497556.659 | X31: 1341990.223 | Y31: 210947.08 | Z31: 7747356.413 | AA31: 2021/22,2022/23,2023/24, | AB31: 0 | AC31: 0 | AD31: 0 | AE31: 0 | AF31: 0
Z32: 0
Z33: 0
Z34: 0
Z35: 0
Z36: 0
Z37: 0
Z38: 0
Z39: 0
Z40: 0
Z41: 0
Z42: 0
Z43: 0
Z44: 0
Z45: 0
Z46: 0
Z47: 0
Z48: 0
Z49: 0
Z50: 0
Z51: 0
Z52: 0
Z53: 0
Z54: 0
Z55: 0
Z56: 0
Z57: 0
Z58: 0
Z59: 0
Z60: 0
Z61: 0
Z62: 0
Z63: 0
Z64: 0
D65: Non material projects - [forecast]
B67: NOTE: DNSP must provide expenditure information on an 'as incurred' basis.
B68: 2.3.2 - AUGEX ASSET DATA - SUBTRANSMISSION LINES
B69: PROJECT DESCRIPTION AND CHANGES | L69: PLANT AND EQUIPMENT EXPENDITURE AND VOLUME | X69: OTHER EXPENDITURE | Z69: TOTAL DIRECT EXPENDITURE ($0's) | AA69: YEARS INCURRED | AB69: ALL RELATED PARTY CONTRACTS | AD69: ALL NON RELATED PARTY CONTRACTS | AE69: LAND AND EASEMENTS
B70: LINE ID | D70: PROJECT ID | E70: PROJECT TYPE | F70: PROJECT TRIGGER | G70: VOLTAGE (KV) | H70: ROUTE LINE LENGTH ADDED | L70: POLES/TOWERS (INCLUDING STRUCTURES, AND CIVIL WORKS) | O70: OVERHEAD LINES | R70: UNDERGROUND CABLES | U70: OTHER PLANT ITEM | V70: INSTALLATION (LABOUR) | X70: CIVIL WORKS | Y70: OTHER DIRECT | AB70: RELATED PARTY MARGINS | AC70: TOTAL | AE70: LAND PURCHASE | AF70: EASEMENTS
H71: KM ADDED | L71: POLES/TOWERS ADDED | M71: POLES/TOWERS UPGRADED | N71: =CONCATENATE("EXPENDITURE ($0's, real ", dms_DollarReal,")") -> EXPENDITURE ($0's, real June 2019) | O71: CIRCUIT KM ADDED | P71: CIRCUIT KM UPGRADED | Q71: =CONCATENATE("EXPENDITURE ($0's, real ", dms_DollarReal,")") -> EXPENDITURE ($0's, real June 2019) | R71: CIRCUIT KM ADDED | S71: CIRCUIT KM UPGRADED | T71: =CONCATENATE("EXPENDITURE ($0's, real ", dms_DollarReal,")") -> EXPENDITURE ($0's, real June 2019) | U71: =CONCATENATE("EXPENDITURE ($0's, real ", dms_DollarReal,")") -> EXPENDITURE ($0's, real June 2019) | V71: VOLUME | W71: =CONCATENATE("EXPENDITURE ($0's, real ", dms_DollarReal,")") -> EXPENDITURE ($0's, real June 2019) | X71: =CONCATENATE("EXPENDITURE ($0's, real ", dms_DollarReal,")") -> EXPENDITURE ($0's, real June 2019) | AB71: =CONCATENATE("EXPENDITURE ($0's, real ", dms_DollarReal,")") -> EXPENDITURE ($0's, real June 2019) | AE71: =CONCATENATE("EXPENDITURE ($0's, real ", dms_DollarReal,")") -> EXPENDITURE ($0's, real June 2019)
B72: 625, 626, | D72: PR110 | E72: New line on new route - single circuit | F72: Demand growth | G72: 33 | H72: 6.035 | I72: 0 | J72: 0 | K72: 0 | L72: 0 | M72: 0 | N72: 0 | O72: 0 | P72: 0 | Q72: 0 | R72: 6.035 | S72: 0 | T72: 2279776.76 | U72: 402813.5122 | V72: 6099.496778 | W72: 557224.4813 | X72: 1713452.444 | Y72: 33349.66764 | Z72: =SUM(N72,Q72,T72,U72,W72,X72,Y72) -> 4986616.865 | AA72: 2011/12, 2012/13, 2013/14, 2014/15, 2015/16, 2016/17, 2017/18,2018/19,2019/20,2020/21, | AB72: 0 | AC72: 113450.6528 | AD72: 0 | AE72: 0 | AF72: 0
D73: PR258 | E73: New line on new route - single circuit | F73: Demand growth | G73: 66 | H73: 2 | I73: 0 | J73: 0 | K73: 0 | L73: 0 | M73: 0 | N73: 0 | O73: 0 | P73: 0 | Q73: 0 | R73: 2 | S73: 0 | T73: 668962.815 | U73: 267588.4714 | V73: 953.7652529 | W73: 89846.29543 | X73: 228863.5509 | Y73: 85308.48981 | Z73: 1340569.623 | AA73: 2017/18,2018/19,2019/20, | AB73: 0 | AC73: 0 | AD73: 0 | AE73: 0 | AF73: 0
B74: New Feeder | D74: PR292 | E74: New line on new route - single circuit | F74: Demand growth | G74: 132 | H74: 5 | I74: 0 | J74: 0 | K74: 0 | L74: 0 | M74: 0 | N74: 0 | O74: 0 | P74: 0 | Q74: 0 | R74: 5 | S74: 0 | T74: 2550578.972 | U74: 3175748.21 | V74: 7454.097267 | W74: 708892.9942 | X74: 2716159.663 | Y74: 1012443.781 | Z74: 10163823.62 | AA74: 2008/09, 2009/10, 2010/11, 2011/12, 2012/13, 2013/14, 2015/16, 2016/17, 2017/18,2018/19,2019/20, | AB74: 0 | AC74: 0 | AD74: 0 | AE74: 0 | AF74: 0
D75: PR423 | E75: New line on new route - single circuit | F75: Demand growth | G75: 132 | H75: 0.6 | I75: 0 | J75: 0 | K75: 0 | L75: 0 | M75: 0 | N75: 0 | O75: 0 | P75: 0 | Q75: 0 | R75: 0.6 | S75: 0 | T75: 216362.9418 | U75: 382951.5787 | V75: 894.491672 | W75: 85067.15931 | X75: 327531.5177 | Y75: 122086.8025 | Z75: 1134000 | AA75: 2020/21,2021/22,2022/23, | AB75: 0 | AC75: 0 | AD75: 0 | AE75: 0 | AF75: 0
B76: New Feeder (2 fdrs) | D76: PR427 | E76: New line on new route - single circuit | F76: Demand growth | G76: 132 | H76: 3 | I76: 0 | J76: 0 | K76: 0 | L76: 0 | M76: 0 | N76: 0 | O76: 0 | P76: 0 | Q76: 0 | R76: 3 | S76: 0 | T76: 510115.7943 | U76: 1107516.612 | V76: 4472.45836 | W76: 425335.7965 | X76: 950167.136 | Y76: 353104.3116 | Z76: 3346239.651 | AA76: 2014/15, 2015/16, 2016/17, 2017/18,2018/19,2019/20,2020/21, | AB76: 0 | AC76: 4106.424282 | AD76: 0 | AE76: 0 | AF76: 0
B77: New Feeder (2) | D77: PR499 | E77: New line on new route - single circuit | F77: Demand growth | G77: 132 | H77: 4 | I77: 0 | J77: 0 | K77: 0 | L77: 0 | M77: 0 | N77: 0 | O77: 0 | P77: 0 | Q77: 0 | R77: 4 | S77: 0 | T77: 1442419.612 | U77: 2553010.525 | V77: 5963.277813 | W77: 567114.3954 | X77: 2183543.451 | Y77: 813912.0165 | Z77: 7560000 | AA77: 2019/20,2020/21,2021/22, | AB77: 0 | AC77: 0 | AD77: 0 | AE77: 0 | AF77: 0
D78: PR620 | E78: New line on new route - single circuit | F78: Demand growth | G78: 132 | H78: 0.5 | I78: 0 | J78: 0 | K78: 0 | L78: 0 | M78: 0 | N78: 0 | O78: 0 | P78: 0 | Q78: 0 | R78: 0.5 | S78: 0 | T78: 180302.4515 | U78: 144165.3753 | V78: 745.4097267 | W78: 70889.29942 | X78: 123302.0224 | Y78: 45960.61401 | Z78: 564619.7627 | AA78: 2021/22,2022/23,2023/24, | AB78: 0 | AC78: 0 | AD78: 0 | AE78: 0 | AF78: 0
B79: New Feeder | D79: PR656 | E79: New line on new route - single circuit | F79: Demand growth | G79: 132 | H79: 3.6 | I79: 0 | J79: 0 | K79: 0 | L79: 43 | M79: 0 | N79: 297040.8173 | O79: 3.3 | P79: 0 | Q79: 79558.5836 | R79: 0.3 | S79: 0 | T79: 153034.7383 | U79: 327731.0325 | V79: 5366.950032 | W79: 510402.9558 | X79: 280302.3892 | Y79: 104482.2271 | Z79: 1752552.744 | AA79: 2017/18,2018/19,2019/20,2020/21, | AB79: 0 | AC79: 0 | AD79: 0 | AE79: 0 | AF79: 0
D80: PR657 | E80: New line on new route - single circuit | F80: Demand growth | G80: 33 | H80: 0.5 | I80: 0 | J80: 0 | K80: 0 | L80: 0 | M80: 0 | N80: 0 | O80: 0 | P80: 0 | Q80: 0 | R80: 0.5 | S80: 0 | T80: 208437.7824 | U80: 191265.6982 | V80: 505.3435607 | W80: 46166.07136 | X80: 163586.0717 | Y80: 60976.42317 | Z80: 670432.0469 | AA80: 2017/18,2018/19,2019/20,2020/21, | AB80: 0 | AC80: 0 | AD80: 0 | AE80: 0 | AF80: 0
D81: PR677 | E81: New line on new route - single circuit | F81: Demand growth | G81: 33 | H81: 5 | I81: 0 | J81: 0 | K81: 0 | L81: 0 | M81: 0 | N81: 0 | O81: 0 | P81: 0 | Q81: 0 | R81: 5 | S81: 0 | T81: 2084377.824 | U81: 2635111.886 | V81: 5053.435607 | W81: 461660.7136 | X81: 2253763.252 | Y81: 840086.3247 | Z81: 8275000 | AA81: 2019/20,2020/21,2021/22, | AB81: 0 | AC81: 0 | AD81: 0 | AE81: 0 | AF81: 0
D82: PR698 | E82: New line on new route - single circuit | F82: Demand growth | G82: 132 | H82: 0.5 | I82: 0 | J82: 0 | K82: 0 | L82: 0 | M82: 0 | N82: 0 | O82: 0 | P82: 0 | Q82: 0 | R82: 0.5 | S82: 0 | T82: 180302.4515 | U82: 319126.3156 | V82: 745.4097267 | W82: 70889.29942 | X82: 272942.9314 | Y82: 101739.0021 | Z82: 945000 | AA82: 2019/20,2020/21, | AB82: 0 | AC82: 0 | AD82: 0 | AE82: 0 | AF82: 0
D83: PR700 | E83: New line on new route - single circuit | F83: Demand growth | G83: 132 | H83: 0.5 | I83: 0 | J83: 0 | K83: 0 | L83: 0 | M83: 0 | N83: 0 | O83: 0 | P83: 0 | Q83: 0 | R83: 0.5 | S83: 0 | T83: 180302.4515 | U83: 319126.3156 | V83: 745.4097267 | W83: 70889.29942 | X83: 272942.9314 | Y83: 101739.0021 | Z83: 945000 | AA83: 2021/22,2022/23,2023/24, | AB83: 0 | AC83: 0 | AD83: 0 | AE83: 0 | AF83: 0
D84: PR713 | E84: New line on new route - single circuit | F84: Demand growth | G84: 132 | H84: 8 | I84: 0 | J84: 0 | K84: 0 | L84: 0 | M84: 0 | N84: 0 | O84: 0 | P84: 0 | Q84: 0 | R84: 8 | S84: 0 | T84: 2884839.224 | U84: 5106021.049 | V84: 11926.55563 | W84: 1134228.791 | X84: 4367086.902 | Y84: 1627824.033 | Z84: 15120000 | AA84: 2019/20,2020/21,2021/22, | AB84: 0 | AC84: 0 | AD84: 0 | AE84: 0 | AF84: 0
D85: PR723 | E85: New line on new route - single circuit | F85: Demand growth | G85: 132 | H85: 15 | I85: 0 | J85: 0 | K85: 0 | L85: 65 | M85: 0 | N85: 427681.8882 | O85: 6 | P85: 0 | Q85: 215088.2241 | R85: 9 | S85: 0 | T85: 3245444.127 | U85: 6809805.424 | V85: 22362.2918 | W85: 2126678.983 | X85: 5824302.679 | Y85: 2170998.674 | Z85: 20820000 | AA85: 2019/20,2020/21,2021/22, | AB85: 0 | AC85: 0 | AD85: 0 | AE85: 0 | AF85: 0
D86: PR724 | E86: New line on new route - single circuit | F86: Demand growth | G86: 66 | H86: 1 | I86: 0 | J86: 0 | K86: 0 | L86: 0 | M86: 0 | N86: 0 | O86: 0 | P86: 0 | Q86: 0 | R86: 1 | S86: 0 | T86: 334481.4075 | U86: 639622.8372 | V86: 476.8826264 | W86: 44923.14772 | X86: 547057.7751 | Y86: 203914.8324 | Z86: 1770000 | AA86: 2021/22,2022/23,2023/24, | AB86: 0 | AC86: 0 | AD86: 0 | AE86: 0 | AF86: 0
D87: PR728 | E87: New line on new route - single circuit | F87: Demand growth | G87: 132 | H87: 2 | I87: 0 | J87: 0 | K87: 0 | L87: 0 | M87: 0 | N87: 0 | O87: 0 | P87: 0 | Q87: 0 | R87: 2 | S87: 0 | T87: 721209.8061 | U87: 1276505.262 | V87: 2981.638907 | W87: 283557.1977 | X87: 1091771.726 | Y87: 406956.0082 | Z87: 3780000 | AA87: 2021/22,2022/23,2023/24, | AB87: 0 | AC87: 0 | AD87: 0 | AE87: 0 | AF87: 0
D88: PR742 | E88: New line on new route - single circuit | F88: Demand growth | G88: 33 | H88: 8 | I88: 0 | J88: 0 | K88: 0 | L88: 58 | M88: 0 | N88: 400659.7071 | O88: 8 | P88: 0 | Q88: 103799.8031 | R88: 0 | S88: 0 | T88: 0 | U88: 1728028.375 | V88: 8085.496971 | W88: 738657.1417 | X88: 1477951.228 | Y88: 550903.745 | Z88: 5000000 | AA88: 2021/22,2022/23,2023/24, | AB88: 0 | AC88: 0 | AD88: 0 | AE88: 0 | AF88: 0
D89: PR744 | E89: New line on new route - single circuit | F89: Demand growth | G89: 132 | H89: 0.5 | I89: 0 | J89: 0 | K89: 0 | L89: 0 | M89: 0 | N89: 0 | O89: 0 | P89: 0 | Q89: 0 | R89: 0.5 | S89: 0 | T89: 180302.4515 | U89: 319126.3156 | V89: 745.4097267 | W89: 70889.29942 | X89: 272942.9314 | Y89: 101739.0021 | Z89: 945000 | AA89: 2022/23,2023/24, | AB89: 0 | AC89: 0 | AD89: 0 | AE89: 0 | AF89: 0
D90: PR748 | E90: New line on new route - single circuit | F90: Demand growth | G90: 132 | H90: 0.2 | I90: 0 | J90: 0 | K90: 0 | L90: 0 | M90: 0 | N90: 0 | O90: 0 | P90: 0 | Q90: 0 | R90: 0.2 | S90: 0 | T90: 72120.98061 | U90: 29468.14397 | V90: 298.1638907 | W90: 28355.71977 | X90: 25203.56738 | Y90: 9394.585821 | Z90: 164542.9975 | AA90: 2021/22,2022/23,2023/24, | AB90: 0 | AC90: 0 | AD90: 0 | AE90: 0 | AF90: 0
B91: 308 | D91: PR113 | E91: New line on new route - single circuit | F91: Demand growth | G91: 66 | H91: 8 | I91: 0 | J91: 0 | K91: 0 | L91: 43 | M91: 130 | N91: 967109.6378 | O91: 6 | P91: 10 | Q91: 241086.6169 | R91: 2 | S91: 0 | T91: 668962.815 | U91: 1677462.099 | V91: 8583.887276 | W91: 808616.6589 | X91: 1434702.813 | Y91: 534782.9735 | Z91: 6332723.614 | AA91: 2014/15, 2018/19,2019/20, | AB91: 0 | AC91: 0 | AD91: 0 | AE91: 0 | AF91: 0
B92: 214, 215 | D92: PR732 | E92: New line on new route - single circuit | F92: Demand growth | G92: 132 | H92: 5 | I92: 0 | J92: 0 | K92: 0 | L92: 0 | M92: 0 | N92: 0 | O92: 0 | P92: 0 | Q92: 0 | R92: 5 | S92: 0 | T92: 1803024.515 | U92: 3191263.156 | V92: 7454.097267 | W92: 708892.9942 | X92: 2729429.314 | Y92: 1017390.021 | Z92: 9450000 | AA92: 2019/20,2020/21, | AB92: 0 | AC92: 0 | AD92: 0 | AE92: 0 | AF92: 0
Z93: 0
Z94: 0
Z95: 0
Z96: 0
Z97: 0
Z98: 0
Z99: 0
Z100: 0
Z101: 0
Z102: 0
Z103: 0
Z104: 0
Z105: 0
Z106: 0
Z107: 0
Z108: 0
Z109: 0
Z110: 0
Z111: 0
Z112: 0
Z113: 0
Z114: 0
Z115: 0
Z116: 0
Z117: 0
Z118: 0
Z119: 0
Z120: 0
Z121: 0
Z122: 0
Z123: 0
Z124: 0
Z125: 0
D126: Non material projects - [forecast]

Sheet 2.3 Augex (b)
B1: =SheetHeader -> REGULATORY REPORTING STATEMENT
B2: =dms_TradingName -> Endeavour Energy
B3: =dms_Reg_Year_Span -> 2019-20 to 2023-24
B4: 2.3 AUGEX PROJECT DATA
B6: There are FOUR tables on this worksheet. These tables have been 'grouped' (and sub-grouped) for easy navigation. See the Instructions sheet on how to group or ungroup tables.
B8: NOTE: DNSP must provide expenditure information on an 'as incurred' basis.
B9: 2.3.3 - AUGEX DATA - HV/LV FEEDERS AND DISTRIBUTION SUBSTATIONS
B10: PROJECT TYPE | C10: Units | D10: VOLUMES (0's)
D11: =CRCP_y4 -> 2017-18 | E11: =CRCP_y5 -> 2018-19 | F11: =FRCP_y1 -> 2019-20 | G11: =FRCP_y2 -> 2020-21 | H11: =FRCP_y3 -> 2021-22 | I11: =FRCP_y4 -> 2022-23 | J11: =FRCP_y5 -> 2023-24
B12: DESCRIPTOR METRICS - UNITS ADDED
B13: HV Feeder Augmentations - Overhead Lines | C13: Circuit Line Length in KM | D13: 11.65971105 | E13: 7.455576687 | F13: 12.73809188 | G13: 7.151842795 | H13: 6.345316049 | I13: 7.269482194 | J13: 7.126617802
B14: HV Feeder Augmentations - Underground Cables | C14: Circuit Line Length in KM | D14: 8.797781975 | E14: 5.6255715 | F14: 9.611469328 | G14: 5.396390472 | H14: 4.787829382 | I14: 5.485154747 | J14: 5.377357069
B15: LV Feeder Augmentations - Overhead Lines | C15: Circuit Line Length in KM | D15: 1.516540422 | E15: 2.492307692 | F15: 2.492307692 | G15: 2.492307692 | H15: 2.492307692 | I15: 2.492307692 | J15: 2.492307692
B16: LV Feeder Augmentations - Underground Cables | C16: Circuit Line Length in KM | D16: 8.383974359 | E16: 8.461538462 | F16: 8.461538462 | G16: 8.461538462 | H16: 8.461538462 | I16: 8.461538462 | J16: 8.461538462
B17: Distribution Substation Augmentations - Pole Mounted | C17: Number | D17: 1.982864889 | E17: 2.138760916 | F17: 2.138760916 | G17: 2.138760916 | H17: 2.138760916 | I17: 2.138760916 | J17: 2.138760916
B18: Distribution Substation Augmentations - Ground Mounted | C18: Number | D18: 0.7387517216 | E18: 0.7968335703 | F18: 0.7968335703 | G18: 0.7968335703 | H18: 0.7968335703 | I18: 0.7968335703 | J18: 0.7968335703
B19: Distribution Substation Augmentations - Indoor | C19: Number | D19: 0 | E19: 0 | F19: 0 | G19: 0 | H19: 0 | I19: 0 | J19: 0
B20: DESCRIPTOR METRICS - UNITS UPGRADED
B21: HV Feeder Augmentations - Overhead Lines | C21: Circuit Line Length in KM | D21: 0.3201111035 | E21: 2.160749948 | F21: 1.944674953 | G21: 2.040553731 | H21: 1.882874579 | I21: 1.720005928 | J21: 1.616487053
B22: HV Feeder Augmentations - Underground Cables | C22: Circuit Line Length in KM | D22: 0 | E22: 0 | F22: 0 | G22: 0 | H22: 0 | I22: 0 | J22: 0
B23: LV Feeder Augmentations - Overhead Lines | C23: Circuit Line Length in KM | D23: 1.011026948 | E23: 1.661538462 | F23: 1.661538462 | G23: 1.661538462 | H23: 1.661538462 | I23: 1.661538462 | J23: 1.661538462
B24: LV Feeder Augmentations - Underground Cables | C24: Circuit Line Length in KM | D24: 0.7621794872 | E24: 0.7692307692 | F24: 0.7692307692 | G24: 0.7692307692 | H24: 0.7692307692 | I24: 0.7692307692 | J24: 0.7692307692
B25: Distribution Substation Augmentations - Pole Mounted | C25: Number | D25: 16.48864274 | E25: 17.78500635 | F25: 17.78500635 | G25: 17.78500635 | H25: 17.78500635 | I25: 17.78500635 | J25: 17.78500635
B26: Distribution Substation Augmentations - Ground Mounted | C26: Number | D26: 8.647926004 | E26: 9.327839858 | F26: 9.327839858 | G26: 9.327839858 | H26: 9.327839858 | I26: 9.327839858 | J26: 9.327839858
B27: Distribution Substation Augmentations - Indoor | C27: Number | D27: 0.4459869727 | E27: 0.4810511859 | F27: 0.4810511859 | G27: 0.4810511859 | H27: 0.4810511859 | I27: 0.4810511859 | J27: 0.4810511859
B29: COST METRICS
B30: PROJECT TYPE | D30: =CONCATENATE("TOTAL DIRECT EXPENDITURE ($0's, real ", dms_DollarReal,")") -> TOTAL DIRECT EXPENDITURE ($0's, real June 2019)
D31: =CRCP_y4 -> 2017-18 | E31: =CRCP_y5 -> 2018-19 | F31: =FRCP_y1 -> 2019-20 | G31: =FRCP_y2 -> 2020-21 | H31: =FRCP_y3 -> 2021-22 | I31: =FRCP_y4 -> 2022-23 | J31: =FRCP_y5 -> 2023-24
B32: HV Feeder Augmentations - Overhead Lines | D32: 4065426.334 | E32: 2905086.695 | F32: 4600834.188 | G32: 2781711.243 | H32: 2404751.175 | I32: 2623017.102 | J32: 2557647.578
B33: HV Feeder Augmentations - Underground Cables | D33: 3360227.095 | E33: 2148632.216 | F33: 3595926.688 | G33: 2061098.755 | H33: 1766257.58 | I33: 1970197.376 | J33: 1929025.103
B34: HV Feeder Non-Material Projects | D34: 0 | E34: 0 | F34: 0 | G34: 0 | H34: 0 | I34: 0 | J34: 0
B35: LV Feeder Augmentations - Overhead Lines | D35: 164291.879 | E35: 270000 | F35: 270000 | G35: 270000 | H35: 270000 | I35: 270000 | J35: 270000
B36: LV Feeder Augmentations - Underground Cables | D36: 594500 | E36: 600000 | F36: 600000 | G36: 600000 | H36: 600000 | I36: 600000 | J36: 600000
B37: LV Feeder Non-Material Projects | D37: 398608.2484 | E37: 102000 | F37: 102000 | G37: 102000 | H37: 102000 | I37: 102000 | J37: 102000
B38: Distribution Substation Augmentations - Pole Mounted | D38: 324414.0459 | E38: 349920 | F38: 349920 | G38: 349920 | H38: 349920 | I38: 349920 | J38: 349920
B39: Distribution Substation Augmentations - Ground Mounted | D39: 264337.3707 | E39: 285120 | F39: 285120 | G39: 285120 | H39: 285120 | I39: 285120 | J39: 285120
B40: Distribution Substation Augmentations - Indoor | D40: 12015.33503 | E40: 12960 | F40: 12960 | G40: 12960 | H40: 12960 | I40: 12960 | J40: 12960
B45: 2.3.4 - AUGEX - TOTAL EXPENDITURE
D46: =CONCATENATE("TOTAL DIRECT EXPENDITURE ($0's, real ", dms_DollarReal,")") -> TOTAL DIRECT EXPENDITURE ($0's, real June 2019)
D47: =CRCP_y4 -> 2017-18 | E47: =CRCP_y5 -> 2018-19 | F47: =FRCP_y1 -> 2019-20 | G47: =FRCP_y2 -> 2020-21 | H47: =FRCP_y3 -> 2021-22 | I47: =FRCP_y4 -> 2022-23 | J47: =FRCP_y5 -> 2023-24
B48: Subtransmission Substations, Switching Stations, Zone Substations | D48: 15443619 | E48: 32895891 | F48: 45109555.55 | G48: 52578384.68 | H48: 52377167.67 | I48: 47931274.63 | J48: 44110126.95
B49: Subtransmission Lines | D49: 5823334 | E49: 8777023 | F49: 24681990.4 | G49: 30700519.52 | H49: 22759020.62 | I49: 8629268.544 | J49: 11671188.8
B50: HV Feeders | D50: 7425653 | E50: 5053719 | F50: 8196760.875 | G50: 4842809.998 | H50: 4171008.755 | I50: 4593214.478 | J50: 4486672.681
B51: HV Feeders - Land Purchases and Easements | D51: 0 | E51: 0 | F51: 0 | G51: 0 | H51: 0 | I51: 0 | J51: 0
B52: Distribution Substations | D52: 600767 | E52: 648000 | F52: 648000 | G52: 648000 | H52: 648000 | I52: 648000 | J52: 648000
B53: Distribution Substations - Land Purchases and Easements | D53: 12000 | E53: 12000 | F53: 12000 | G53: 12000 | H53: 12000 | I53: 12000 | J53: 12000
B54: LV Feeders | D54: 1157400 | E54: 972000 | F54: 972000 | G54: 972000 | H54: 972000 | I54: 972000 | J54: 972000
B55: LV Feeders - Land Purchases and Easements | D55: 0 | E55: 0 | F55: 0 | G55: 0 | H55: 0 | I55: 0 | J55: 0
B56: Other Assets | D56: 6669294 | E56: 9163394 | F56: 13908054 | G56: 4913837 | H56: 4482771 | I56: 8135889 | J56: 10324109
B60: 2.3.5 - AUGEX - BY DRIVER
D61: =CONCATENATE("TOTAL DIRECT EXPENDITURE ($0's, real ", dms_DollarReal,")") -> TOTAL DIRECT EXPENDITURE ($0's, real June 2019)
D62: =CRCP_y4 -> 2017-18 | E62: =CRCP_y5 -> 2018-19 | F62: =FRCP_y1 -> 2019-20 | G62: =FRCP_y2 -> 2020-21 | H62: =FRCP_y3 -> 2021-22 | I62: =FRCP_y4 -> 2022-23 | J62: =FRCP_y5 -> 2023-24
B63: "Greenfield" driven augex (network expansion capex) | D63: 26506532 | E63: 44361357 | F63: 66960316.59 | G63: 69254288.34 | H63: 64060400 | I63: 49615900 | J63: 51246300
B64: Reinforcement driven augex (augmentation of the existing network) | D64: 10625535 | E64: 13160670 | F64: 26568044 | G64: 25413263 | H64: 21361568 | I64: 21305747 | J64: 20977797
B68: 2.3.6 - AUGEX - GREENFIELDS DRIVEN
D69: =CONCATENATE("TOTAL DIRECT EXPENDITURE ($0's, real ", dms_DollarReal,")") -> TOTAL DIRECT EXPENDITURE ($0's, real June 2019)
D70: =CRCP_y4 -> 2017-18 | E70: =CRCP_y5 -> 2018-19 | F70: =FRCP_y1 -> 2019-20 | G70: =FRCP_y2 -> 2020-21 | H70: =FRCP_y3 -> 2021-22 | I70: =FRCP_y4 -> 2022-23 | J70: =FRCP_y5 -> 2023-24
B71: Subtransmission Substations, Switching Stations, Zone Substations | D71: 13279157 | E71: 32434162 | F71: 42183571.58 | G71: 44190352.63 | H71: 42151183.7 | I71: 37187274.63 | J71: 33366126.95
B72: Subtransmission Lines | D72: 3333297 | E72: 7970295.31 | F72: 12764736.62 | G72: 22076027.09 | H72: 19554766.83 | I72: 5437768.544 | J72: 8479688.805
B73: HV Feeders | D73: 5487807 | E73: 3592100.13 | F73: 2971598.631 | G73: 2923108.627 | H73: 2289649.468 | I73: 2926056.829 | J73: 2835684.243
B74: HV Feeders - Land Purchases and Easements | D74: 0 | E74: 0 | F74: 0 | G74: 0 | H74: 0 | I74: 0 | J74: 0
B75: Distribution Substations | D75: 60077 | E75: 64800 | F75: 64800 | G75: 64800 | H75: 64800 | I75: 64800 | J75: 64800
B76: Distribution Substations - Land Purchases and Easements | D76: 1200 | E76: 1200 | F76: 1200 | G76: 1200 | H76: 1200 | I76: 1200 | J76: 1200
B77: LV Feeders | D77: 115740.0127 | E77: 97200 | F77: 97200 | G77: 97200 | H77: 97200 | I77: 97200 | J77: 97200
B78: LV Feeders - Land Purchases and Easements | D78: 0 | E78: 0 | F78: 0 | G78: 0 | H78: 0 | I78: 0 | J78: 0
B79: Other Assets | D79: 4346193.991 | E79: 300000 | F79: 8975609.756 | G79: 0 | H79: 0 | I79: 4000000 | J79: 6500000

Sheet 2.4 Augex model
B1: =SheetHeader -> REGULATORY REPORTING STATEMENT
B2: =dms_TradingName -> Endeavour Energy
B3: =dms_Reg_Year_Span -> 2019-20 to 2023-24
B4: 2.4 AUGEX MODEL
B6: There are SIX tables on this worksheet. These tables have been 'grouped' (and sub-grouped) for easy navigation. See the Instructions sheet on how to group or ungroup tables.
B8: 2.4.1 - AUGEX MODEL INPUTS - ASSET STATUS - SUBTRANSMISSION LINES
B9: Line ID | C9: Primary type of area supplied by line | D9: Line voltage | E9: Originating substation | F9: Terminating substation | G9: =CRCP_y4 -> 2017-18 | L9: =PRCP_y5 -> 2013-14 | Q9: =CONCATENATE("Average per annum growth rate in annual line maximum demand (50% PoE) from ", CRCP_y4, " to ", dms_CRCP_FinalYear_Result) -> Average per annum growth rate in annual line maximum demand (50% PoE) from 2017-18 to 2018-19 | R9: Network Segment ID
G10: =CONCATENATE(IF(dms_RPT="Financial","Route line length as at 30 June ","Route line length as at 31 December ")) -> Route line length as at 30 June | H10: Maximum demand (weather corrected at 50% PoE) | J10: Line rating | L10: =CONCATENATE(IF(dms_RPT="Financial","Route line length as at 30 June ","Route line length as at 31 December ")) -> Route line length as at 30 June | M10: Maximum demand (weather corrected at 50% PoE) | O10: Line rating
J11: Thermal | K11: N-1 emergency | O11: Thermal | P11: N-1 emergency
C12: CBD, urban, long rural, or short rural | D12: kV | E12: name | F12: name | G12: km | H12: MVA | I12: MW | J12: MVA | K12: MVA | L12: km | M12: MVA | N12: MW | O12: MVA | P12: MVA | Q12: %
B13: 212 | C13: Urban | D13: 132 | E13: Baulkham Hills TS | F13: Bella Vista ZS | G13: 5.17 | H13: 4.486945803 | I13: 4.7721253e-05 | J13: 172 | K13: 231.8315365 | L13: 5.17 | M13: 4.758683121 | N13: 5.0611324e-05 | O13: 172 | P13: 231.8315365 | Q13: -0.01427586749
B14: 213 | C14: Urban | D14: 132 | E14: Bella Vista ZS | F14: Parklea ZS | G14: 3.337 | H14: 72.24453128 | I14: 68.65627167 | J14: 172 | K14: 171.9302914 | L14: 3.337 | M14: 64.9721838 | N14: 63.32227894 | O14: 172 | P14: 171.9302914 | Q14: 0.02798254211
B15: 214 | C15: Urban | D15: 132 | E15: Rouse Hill SS | F15: Parklea ZS | G15: 4.83 | H15: 107.9970418 | I15: 100.7101542 | J15: 172 | K15: 189.0775944 | L15: 4.83 | M15: 94.42166084 | N15: 91.12621712 | O15: 172 | P15: 189.0775944 | Q15: 0.0359435028
B16: 215 | C16: Urban | D16: 132 | E16: Rouse Hill SS | F16: Parklea ZS | G16: 4.83 | H16: 107.9970416 | I16: 100.7101541 | J16: 172 | K16: 189.0775944 | L16: 4.83 | M16: 94.421661 | N16: 91.12621729 | O16: 172 | P16: 189.0775944 | Q16: 0.035943502
B17: 216 | C17: Urban | D17: 132 | E17: Bella Vista ZS | F17: Cheriton Avenue ZS | G17: 6.6 | H17: 23.06532955 | I17: 21.03745197 | J17: 172 | K17: 172 | L17: 6.6 | M17: 25.37607112 | N17: 22.10645994 | O17: 172 | P17: 172 | Q17: -0.02276496583
B18: 217 | C18: Urban | D18: 132 | E18: Sydney West BSP | F18: North Eastern Creek ZS | G18: 3.618 | H18: 11.99450386 | I18: 11.04862354 | J18: 144.951868 | K18: 172 | L18: 3.618 | M18: 9.738297288 | N18: 9.03772291 | O18: 144.951868 | P18: 172 | Q18: 0.05792097178
B19: 218 | C19: Urban | D19: 132 | E19: Sydney West BSP | F19: Eastern Creek ZS | G19: 1.11 | H19: 37.91367861 | I19: 35.91333737 | J19: 172 | K19: 171.9302914 | L19: 1.11 | M19: 15.62403408 | N19: 15.34340076 | O19: 172 | P19: 171.9302914 | Q19: 0.3566563605
B20: 219 | C20: Urban | D20: 132 | E20: Mount Druitt TS | F20: Mamre ZS | G20: 9.365 | H20: 32.6038054 | I20: 32.28995063 | J20: 144.951868 | K20: 229.7738601 | L20: 9.365 | M20: 43.46153832 | N20: 42.29258754 | O20: 144.951868 | P20: 229.7738601 | Q20: -0.06245598605
B21: 21C | C21: Urban | D21: 132 | E21: Cheriton Avenue ZS | F21: West Castle Hill ZS | G21: 2.75 | H21: 9.21830218 | I21: 9.004266205 | J21: 172 | K21: 172 | L21: 2.75 | M21: 10.36734319 | N21: 1.996633423 | O21: 172 | P21: 172 | Q21: -0.02770818405
B22: 21F | C22: Urban | D22: 132 | E22: Rouse Hill SS | F22: Schofields ZS | G22: 3.14 | H22: 20.21360985 | I22: 19.41568635 | J22: 172 | K22: 172 | L22: 3.14 | M22: 8.684936329 | N22: 7.558054615 | O22: 172 | P22: 172 | Q22: 0.3318583199
B23: 21G | C23: Urban | D23: 132 | E23: Rouse Hill SS | F23: Schofields ZS | G23: 3.14 | H23: 20.21360982 | I23: 19.41568619 | J23: 172 | K23: 172 | L23: 3.14 | M23: 8.684936384 | N23: 7.558054537 | O23: 172 | P23: 172 | Q23: 0.3318583154
B24: 21J | C24: Urban | D24: 132 | E24: Schofields ZS | F24: South Marsden Park ZS | G24: 7.176 | H24: 14.51263796 | I24: 12.6363727 | J24: 198.9087147 | K24: 198.9087147 | L24: 0 | M24: 0 | N24: 0 | O24: 0 | P24: 0 | Q24: 0
B25: 21M | C25: Urban | D25: 132 | E25: Rouse Hill SS | F25: Mungerie Park ZS | G25: 2 | H25: 34.75965316 | I25: 30.71518721 | J25: 172 | K25: 172 | L25: 2 | M25: 22.14222458 | N25: 20.15165992 | O25: 172 | P25: 172 | Q25: 0.1424589086
B26: 21P | C26: Urban | D26: 132 | E26: Rouse Hill SS | F26: Mungerie Park ZS | G26: 2 | H26: 34.75965282 | I26: 30.71518766 | J26: 172 | K26: 172 | L26: 2 | M26: 22.14222435 | N26: 20.15166015 | O26: 172 | P26: 172 | Q26: 0.1424589086
B27: 21R | D27: 132 | E27: Vineyard BSP | F27: Marsden Park ZS | G27: 5.474 | H27: 8.387160551 | I27: 7.301865731 | J27: 144.951868 | K27: 230.0024908 | L27: 0 | M27: 0 | N27: 0 | O27: 0 | P27: 0 | Q27: 0
B28: 220 | C28: Urban | D28: 132 | E28: Blacktown TS | F28: TEE | G28: 3.868 | H28: 50.87933008 | I28: 49.01310866 | J28: 130 | K28: 130 | L28: 3.868 | M28: 36.31201216 | N28: 35.65420151 | O28: 130 | P28: 130 | Q28: 0.1002926928
B29: 220_1 | C29: Urban | D29: 132 | E29: Arndell Park ZS | F29: TEE | G29: 0.768 | H29: 16.36811971 | I29: 15.98245388 | J29: 80 | K29: 80 | L29: 0.768 | M29: 20.0894 | N29: 19.52607645 | O29: 80 | P29: 80 | Q29: -0.04630900242
B30: 220_2 | C30: Urban | D30: 132 | E30: Doonside ZS | F30: TEE | G30: 3.67 | H30: 34.79143386 | I30: 32.9724384 | J30: 120.031121 | K30: 120.031121 | L30: 5.13 | M30: 19.50220578 | N30: 19.27611074 | O30: 115.0012454 | P30: 115.0012454 | Q30: 0.1959935744
B31: 220_3 | C31: Urban | D31: 132 | E31: tee2 | F31: OneSteel HVC | G31: 0 | H31: 0 | I31: 0 | J31: 0 | K31: 0 | L31: 0.98 | M31: 0 | N31: 0 | O31: 130.3195028 | P31: 130.3195028 | Q31: 0
B32: 220_4 | C32: Urban | D32: 132 | E32: tee2 | F32: Quakers Hill ZS | G32: 0 | H32: 0 | I32: 0 | J32: 0 | K32: 0 | L32: 5.52 | M32: 0 | N32: 0 | O32: 130.3195028 | P32: 130.3195028 | Q32: 0
B33: 221 | C33: Urban | D33: 132 | E33: Sydney North BSP | F33: Kenthurst ZS | G33: 4.11 | H33: 38.8994381 | I33: 35.67426226 | J33: 128 | K33: 128 | L33: 4.11 | M33: 44.55358628 | N33: 41.87278031 | O33: 128 | P33: 128 | Q33: -0.03172667263
B34: 222 | C34: Urban | D34: 132 | E34: Regentville BSP | F34: Penrith TS | G34: 6.356 | H34: 112.20262 | I34: 103.7620134 | J34: 447.8875542 | K34: 447.8875542 | L34: 6.356 | M34: 98.70868195 | N34: 96.30673522 | O34: 447.8875542 | P34: 447.8875542 | Q34: 0.03417616806
B35: 223 | C35: Urban | D35: 132 | E35: Sydney West BSP | F35: Rooty Hill ZS | G35: 10.83 | H35: 19.00197066 | I35: 17.57188652 | J35: 120.031121 | K35: 130.0908721 | L35: 10.83 | M35: 19.56186333 | N35: 18.8878574 | O35: 75.90539459 | P35: 75.90539459 | Q35: -0.007155410691
B36: 224 | C36: Urban | D36: 132 | E36: East Parramatta SS | F36: North Parramatta ZS | G36: 1.45 | H36: 31.60693015 | I36: 30.5812064 | J36: 65 | K36: 65 | L36: 1.3 | M36: 33.90999204 | N36: 32.38723997 | O36: 65 | P36: 65 | Q36: -0.01697922759
B37: 225 | C37: Urban | D37: 132 | E37: East Parramatta SS | F37: West Parramatta ZS | G37: 1.3 | H37: 17.85739433 | I37: 14.41090791 | J37: 144.951868 | K37: 180.6182582 | L37: 0 | M37: 0 | N37: 0 | O37: 0 | P37: 0 | Q37: 0
B38: 226 | C38: Urban | D38: 132 | E38: Camellia TS | F38: Granville ZS | G38: 3.90715 | H38: 11.10037484 | I38: 6.518274893 | J38: 117.0589218 | K38: 117.0589218 | L38: 3.907145996 | M38: 24.16797933 | N38: 23.28592942 | O38: 117.0589218 | P38: 117.0589218 | Q38: -0.1351747731
B39: 227 | C39: Urban | D39: 132 | E39: Vineyard BSP | F39: Hawkesbury TS | G39: 4.295 | H39: 81.21084379 | I39: 77.70319415 | J39: 144.951868 | K39: 229.7738601 | L39: 4.295 | M39: 75.73157468 | N39: 74.52133535 | O39: 181.7614117 | P39: 181.7614117 | Q39: 0.01808779605
B40: 228 | C40: Urban | D40: 132 | E40: Guildford TS | F40: East Parramatta SS | G40: 9.16 | H40: 34.08834704 | I40: 32.35813288 | J40: 65 | K40: 65 | L40: 8.96 | M40: 32.80946117 | N40: 29.66433493 | O40: 110.8858927 | P40: 110.8858927 | Q40: 0.00974479485
B41: 228_1 | C41: Urban | D41: 132 | E41: Union St SS | F41: North Parramatta ZS | G41: 0 | H41: 0 | I41: 0 | J41: 0 | K41: 0 | L41: 1.37 | M41: 0 | N41: 0 | O41: 97.1680503 | P41: 97.1680503 | Q41: 0
B42: 229 | C42: Urban | D42: 132 | E42: Carlingford TS | F42: OPEN BOND | G42: 10.418 | H42: 0.960264258 | I42: 4.2855826e-05 | J42: 99.68298808 | K42: 99.68298808 | L42: 10.418 | M42: 0.9830029677 | N42: 4.3870571e-05 | O42: 99.68298808 | P42: 99.68298808 | Q42: -0.005782970768
B43: 22C | C43: Urban | D43: 132 | E43: Eastern Creek ZS | F43: North Eastern Creek ZS | G43: 2.352 | H43: 4.292635261 | I43: 3.833778225 | J43: 144.951868 | K43: 171.9302914 | L43: 2.352 | M43: 1.071309353 | N43: 3.968508e-06 | O43: 172 | P43: 171.9302914 | Q43: 0.7517263568
B44: 22G | C44: Urban | D44: 132 | E44: Guildford TS | F44: West Parramatta ZS | G44: 6.589 | H44: 41.01801851 | I44: 37.95686591 | J44: 198.9087147 | K44: 198.9087147 | L44: 0 | M44: 0 | N44: 0 | O44: 0 | P44: 0 | Q44: 0
B45: 22U | C45: Urban | D45: 132 | E45: Guildford TS | F45: Granville ZS | G45: 8.419 | H45: 32.07169037 | I45: 32.06609318 | J45: 65 | K45: 65 | L45: 0 | M45: 0 | N45: 0 | O45: 0 | P45: 0 | Q45: 0
B46: 22W | D46: 132 | E46: Camellia TS | F46: Guildford TS | G46: 10.055 | H46: 29.80118275 | I46: 26.19575919 | J46: 65 | K46: 65 | L46: 0 | M46: 0 | N46: 0 | O46: 0 | P46: 0 | Q46: 0
B47: 230 | C47: Urban | D47: 132 | E47: Parklea ZS | F47: West Castle Hill ZS | G47: 5.241 | H47: 52.92878061 | I47: 48.58714718 | J47: 65 | K47: 65 | L47: 4.57 | M47: 41.15227559 | N47: 39.93331921 | O47: 84 | P47: 84 | Q47: 0.07154224675
B48: 231 | C48: Urban | D48: 132 | E48: Regentville BSP | F48: Glenmore Park ZS | G48: 2.02 | H48: 24.98119378 | I48: 23.17153008 | J48: 171.4730299 | K48: 171.4730299 | L48: 1.7975 | M48: 25.84275748 | N48: 23.62042025 | O48: 171.4730299 | P48: 171.4730299 | Q48: -0.008334672681
B49: 232 | C49: Urban | D49: 132 | E49: Regentville BSP | F49: Glenmore Park ZS | G49: 1.94 | H49: 23.89969766 | I49: 22.18456582 | J49: 171.4730299 | K49: 171.4730299 | L49: 1.539 | M49: 24.72473543 | N49: 22.61166705 | O49: 171.4730299 | P49: 171.4730299 | Q49: -0.008342230589
B50: 233 | C50: Urban | D50: 132 | E50: Camellia TS | F50: East Parramatta SS | G50: 3.595 | H50: 14.46252657 | I50: 12.68062322 | J50: 65 | K50: 65 | L50: 3.445 | M50: 31.56743066 | N50: 28.42493868 | O50: 110.8858927 | P50: 110.8858927 | Q50: -0.1354632269
B51: 234 | C51: Urban | D51: 132 | E51: Vineyard BSP | F51: Hawkesbury TS | G51: 4.345 | H51: 80.2619468 | I51: 76.79390807 | J51: 144.951868 | K51: 229.7738601 | L51: 4.345 | M51: 74.84695184 | N51: 73.65013335 | O51: 181.7614117 | P51: 181.7614117 | Q51: 0.01808689206
B52: 235 | C52: Urban | D52: 132 | E52: East Parramatta SS | F52: North Parramatta ZS | G52: 1.52 | H52: 1.373723229 | I52: 0.01266980969 | J52: 65 | K52: 65 | L52: 0 | M52: 0 | N52: 0 | O52: 0 | P52: 0 | Q52: 0
B53: 237 | C53: Urban | D53: 132 | E53: Sydney West BSP | F53: Onesteel Mini Mill HVC | G53: 12.728 | H53: 81.19607671 | I53: 74.91456089 | J53: 120 | K53: 120 | L53: 12.728 | M53: 82.15199612 | N53: 76.77398715 | O53: 120 | P53: 120 | Q53: -0.002908996282
B54: 238 | C54: Urban | D54: 132 | E54: Regentville BSP | F54: Penrith TS | G54: 6.356 | H54: 112.20262 | I54: 103.7620132 | J54: 447.8875542 | K54: 447.8875542 | L54: 6.356 | M54: 98.70868223 | N54: 96.30673515 | O54: 447.8875542 | P54: 447.8875542 | Q54: 0.03417616742
B55: 239 | C55: Urban | D55: 132 | E55: Blacktown TS | F55: TEE | G55: 3.868 | H55: 50.92094083 | I55: 49.05571112 | J55: 130 | K55: 130 | L55: 3.868 | M55: 36.33023417 | N55: 35.674777 | O55: 130 | P55: 130 | Q55: 0.1004033348
B56: 239_1 | C56: Urban | D56: 132 | E56: Arndell Park ZS | F56: TEE | G56: 0.78 | H56: 16.3649834 | I56: 15.98218894 | J56: 80 | K56: 80 | L56: 0.78 | M56: 20.08430186 | N56: 19.52567806 | O56: 80 | P56: 80 | Q56: -0.04629633739
B57: 239_2 | C57: Urban | D57: 132 | E57: Doonside ZS | F57: TEE | G57: 3.65 | H57: 34.83403653 | I57: 33.01518346 | J57: 120.031121 | K57: 120.031121 | L57: 5.13 | M57: 19.52630601 | N57: 19.30099034 | O57: 115.0012454 | P57: 115.0012454 | Q57: 0.1959885617
B58: 239_3 | C58: Urban | D58: 132 | E58: Tee2 | F58: Quakers Hill ZS | G58: 0 | H58: 0 | I58: 0 | J58: 0 | K58: 0 | L58: 5.52 | M58: 0 | N58: 0 | O58: 130.3195028 | P58: 130.3195028 | Q58: 0
B59: 239_4 | C59: Urban | D59: 132 | E59: tee2 | F59: Rooty Hill ZS | G59: 0 | H59: 0 | I59: 0 | J59: 0 | K59: 0 | L59: 1.548 | M59: 0 | N59: 0 | O59: 76 | P59: 76 | Q59: 0
B60: 23C | C60: Urban | D60: 132 | E60: Doonside ZS | F60: TEE | G60: 1.776 | H60: 37.08631463 | I60: 34.81161323 | J60: 130 | K60: 130 | L60: 0 | M60: 0 | N60: 0 | O60: 0 | P60: 0 | Q60: 0
B61: 23C_1 | C61: Urban | D61: 132 | E61: Quakers Hill ZS | F61: TEE | G61: 5.481 | H61: 18.45616966 | I61: 17.23768006 | J61: 130.3195028 | K61: 130.3195028 | L61: 0 | M61: 0 | N61: 0 | O61: 0 | P61: 0 | Q61: 0
B62: 23C_2 | C62: Urban | D62: 132 | E62: Rooty Hill ZS | F62: TEE | G62: 1.548 | H62: 18.99791744 | I62: 17.56309086 | J62: 76 | K62: 76 | L62: 0 | M62: 0 | N62: 0 | O62: 0 | P62: 0 | Q62: 0
B63: 23F | C63: Urban | D63: 132 | E63: Doonside ZS | F63: TEE | G63: 1.79 | H63: 22.9578742 | I63: 21.72653516 | J63: 130 | K63: 130 | L63: 0 | M63: 0 | N63: 0 | O63: 0 | P63: 0 | Q63: 0
B64: 23F_1 | C64: Urban | D64: 132 | E64: Onesteel Mini Mill HVC | F64: TEE | G64: 0.98 | H64: 0.05759230651 | I64: 1.3976e-08 | J64: 130.3195028 | K64: 130.3195028 | L64: 0 | M64: 0 | N64: 0 | O64: 0 | P64: 0 | Q64: 0
B65: 23F_2 | C65: Urban | D65: 132 | E65: Quakers Hill ZS | F65: TEE | G65: 5.521 | H65: 23.34543186 | I65: 21.72264308 | J65: 130.3195028 | K65: 130.3195028 | L65: 0 | M65: 0 | N65: 0 | O65: 0 | P65: 0 | Q65: 0
B66: 23G | C66: Urban | D66: 132 | E66: Blacktown TS | F66: Huntingwood ZS | G66: 5.889 | H66: 67.70862463 | I66: 62.84523599 | J66: 144.951868 | K66: 175.8170134 | L66: 0 | M66: 0 | N66: 0 | O66: 0 | P66: 0 | Q66: 0
B67: 23J | C67: Urban | D67: 132 | E67: Doonside ZS | F67: Huntingwood ZS | G67: 3.33 | H67: 32.63819364 | I67: 29.56078112 | J67: 144.951868 | K67: 162.3278017 | L67: 0 | M67: 0 | N67: 0 | O67: 0 | P67: 0 | Q67: 0
B68: 23L | C68: Urban | D68: 132 | E68: Liverpool TS | F68: West Liverpool TS | G68: 5.384 | H68: 50.39957522 | I68: 48.48738533 | J68: 144.951868 | K68: 229.7738601 | L68: 5.384 | M68: 33.97194006 | N68: 31.43610659 | O68: 172 | P68: 172 | Q68: 0.1208912056
B69: 28C | C69: Urban | D69: 132 | E69: Evans Lane SS | F69: Ulladulla ZS | G69: 7.627 | H69: 15.08361978 | I69: 13.84968571 | J69: 96.02489677 | K69: 96.02489677 | L69: 7.627 | M69: 13.38146629 | N69: 12.95148412 | O69: 96.02489677 | P69: 96.02489677 | Q69: 0.03180057884
B70: 28F | C70: Urban | D70: 132 | E70: Evans Lane SS | F70: Ulladulla ZS | G70: 7.075 | H70: 15.24750684 | I70: 13.99836677 | J70: 96.02489677 | K70: 96.02489677 | L70: 7.075 | M70: 13.52326715 | N70: 13.08792686 | O70: 96.02489677 | P70: 96.02489677 | Q70: 0.03187542758
B71: 28P | D71: 132 | E71: West Tomerong TS | F71: Evans Lane SS | G71: 39.4497 | H71: 36.24171605 | I71: 36.02947849 | J71: 213.9983414 | K71: 213.9983414 | L71: 0 | M71: 0 | N71: 0 | O71: 0 | P71: 0 | Q71: 0
B72: 302 | C72: Urban | D72: 33 | E72: Nepean TS | F72: Camden ZS | G72: 0 | H72: 0 | I72: 0 | J72: 0 | K72: 0 | L72: 0.37 | M72: 0 | N72: 0 | O72: 26 | P72: 26 | Q72: 0
B73: 303 | C73: Short Rural | D73: 33 | E73: Cawdor ZS | F73: ABS 87183 | G73: 9.919 | H73: 7.334884559 | I73: 7.033795842 | J73: 25.49232379 | K73: 25.49232379 | L73: 9.919 | M73: 6.617096948 | N73: 6.487442867 | O73: 25.49232379 | P73: 25.49232379 | Q73: 0.02711867519
B74: 303/1 | C74: Short Rural | D74: 33 | E74: ABS 87183 | F74: TEE | G74: 0.051 | H74: 7.226775064 | I74: 6.961192743 | J74: 25.49232379 | K74: 25.49232379 | L74: 0.051 | M74: 6.540659407 | N74: 6.429396961 | O74: 25.49232379 | P74: 25.49232379 | Q74: 0.02622501853
B75: 303/1_1 | C75: Short Rural | D75: 33 | E75: tee | F75: The Oaks ZS | G75: 0 | H75: 0 | I75: 0 | J75: 0 | K75: 0 | L75: 0.06 | M75: 0 | N75: 0 | O75: 22.40580925 | P75: 33.49439852 | Q75: 0
B76: 303/1_2 | C76: Short Rural | D76: 33 | E76: TEE | F76: The Oaks ZS | G76: 0.06 | H76: 8.913710822 | I76: 8.337545177 | J76: 22.40580925 | K76: 33.49439852 | L76: 0.051 | M76: 6.274854871 | N76: 5.809098779 | O76: 25.49232379 | P76: 25.49232379 | Q76: 0.1051361348
B77: 303/1_3 | C77: Short Rural | D77: 33 | E77: TEE | F77: ABS 87184 | G77: 0.051 | H77: 1.832427743 | I77: 1.37672725 | J77: 25.49232379 | K77: 25.49232379 | L77: 0 | M77: 0 | N77: 0 | O77: 0 | P77: 0 | Q77: 0
B78: 303/2 | C78: Short Rural | D78: 33 | E78: ABS 87184 | F78: Oakdale ZS | G78: 7.678 | H78: 1.832349966 | I78: 1.377270317 | J78: 25.49232379 | K78: 25.49232379 | L78: 7.678 | M78: 1.218193184 | N78: 1.216800191 | O78: 25.49232379 | P78: 25.49232379 | Q78: 0.1260384622
B79: 304 | C79: Urban | D79: 33 | E79: Nepean TS | F79: Camden ZS | G79: 0 | H79: 0 | I79: 0 | J79: 0 | K79: 0 | L79: 0.37 | M79: 0 | N79: 0 | O79: 26 | P79: 26 | Q79: 0
B80: 305 | C80: Urban | D80: 33 | E80: Nepean TS | F80: Camden ZS | G80: 0 | H80: 0 | I80: 0 | J80: 0 | K80: 0 | L80: 0.433 | M80: 0 | N80: 0 | O80: 26 | P80: 26 | Q80: 0
B81: 306 | C81: Short Rural | D81: 33 | E81: Nepean TS | F81: Cawdor ZS | G81: 5.012 | H81: 16.60964937 | I81: 15.48108161 | J81: 22.80591298 | K81: 22.80591298 | L81: 4.967 | M81: 14.74243129 | N81: 13.63087523 | O81: 25.49232379 | P81: 25.49232379 | Q81: 0.03166401189
B82: 309 | C82: Short Rural | D82: 33 | E82: Nepean TS | F82: Oakdale ZS | G82: 25.825 | H82: 5.299487056 | I82: 4.893779559 | J82: 29.15041509 | K82: 29.15041509 | L82: 25.7 | M82: 4.853889927 | N82: 4.635468267 | O82: 29.15041509 | P82: 29.15041509 | Q82: 0.02295051681
B83: 311 | C83: Urban | D83: 33 | E83: Nepean TS | F83: Cawdor ZS | G83: 5.8899 | H83: 19.86509493 | I83: 18.40065334 | J83: 29.09325741 | K83: 29.09325741 | L83: 0 | M83: 0 | N83: 0 | O83: 0 | P83: 0 | Q83: 0
B84: 317 | C84: Short Rural | D84: 33 | E84: Oakdale ZS | F84: Wollondilly Washery HVC | G84: 6.57 | H84: 1.85493595 | I84: 1.801413544 | J84: 16 | K84: 16 | L84: 6.57 | M84: 1.791714509 | N84: 1.724268921 | O84: 16 | P84: 16 | Q84: 0.00882136088
B85: 403 | C85: Urban | D85: 33 | E85: Camellia TS | F85: Shell Refining HVC 6288 | G85: 0.769 | H85: 1.59845725 | I85: 1.410986466 | J85: 50 | K85: 50 | L85: 0.769 | M85: 5.980256994 | N85: 5.118014021 | O85: 50 | P85: 50 | Q85: -0.1831777359
B86: 404 | C86: Urban | D86: 33 | E86: Camellia TS | F86: Shell Refining HVC 6288 | G86: 0.769 | H86: 1.579360715 | I86: 1.397676767 | J86: 50 | K86: 50 | L86: 0.769 | M86: 5.908555167 | N86: 5.072870197 | O86: 50 | P86: 50 | Q86: -0.1831748342
B87: 405 | C87: Urban | D87: 33 | E87: Camellia TS | F87: Shell (Refining) HVC 6288 | G87: 0 | H87: 0 | I87: 0 | J87: 0 | K87: 0 | L87: 0.769 | M87: 4.735365722 | N87: 4.079767935 | O87: 26.00674288 | P87: 26.00674288 | Q87: 0
B88: 409 | C88: Urban | D88: 33 | E88: Camellia TS | F88: ING HVC | G88: 0.61348 | H88: 0.03295196044 | I88: 3.0351e-08 | J88: 16.86151461 | K88: 16.86151461 | L88: 0.613477722 | M88: 0.0328745166 | N88: 3.028e-08 | O88: 16.86151461 | P88: 16.86151461 | Q88: 0.0005889352073
B89: 410 | C89: Urban | D89: 33 | E89: Camellia TS | F89: ING HVC | G89: 0.61503 | H89: 1.903314242 | I89: 1.65600003 | J89: 16.86151461 | K89: 16.86151461 | L89: 0.615026062 | M89: 1.41216814 | N89: 1.251600158 | O89: 16.86151461 | P89: 16.86151461 | Q89: 0.08694894176
B90: 411 | C90: Urban | D90: 33 | E90: Camellia TS | F90: Rosehill ZS | G90: 0.205 | H90: 12.30041518 | I90: 11.40856604 | J90: 47 | K90: 47 | L90: 0.205 | M90: 15.13055459 | N90: 13.22676421 | O90: 47 | P90: 47 | Q90: -0.04676199055
B91: 412 | C91: Urban | D91: 33 | E91: Camellia TS | F91: Rosehill ZS | G91: 0.229 | H91: 0.01665292521 | I91: 0.007682689203 | J91: 46.86929485 | K91: 46.86929485 | L91: 0.229 | M91: 0.0166137885 | N91: 0.007664633813 | O91: 46.86929485 | P91: 46.86929485 | Q91: 0.0005889192132
B92: 413 | C92: Urban | D92: 33 | E92: Camellia TS | F92: Rosehill ZS | G92: 0.229 | H92: 12.27235518 | I92: 11.38307596 | J92: 46.86929485 | K92: 46.86929485 | L92: 0.229 | M92: 15.09561316 | N92: 13.19714385 | O92: 46.86929485 | P92: 46.86929485 | Q92: -0.04675626533
B93: 415 | C93: Urban | D93: 33 | E93: Camellia TS | F93: Granville ZS | G93: 0 | H93: 0 | I93: 0 | J93: 0 | K93: 0 | L93: 2.62 | M93: 1.115679706 | N93: 4.7693443e-05 | O93: 16.86151461 | P93: 16.86151461 | Q93: 0
B94: 416 | C94: Urban | D94: 33 | E94: Camellia TS | F94: Granville ZS | G94: 0 | H94: 0 | I94: 0 | J94: 0 | K94: 0 | L94: 2.71 | M94: 0.61899661 | N94: 3.1646281e-05 | O94: 16.86151461 | P94: 16.86151461 | Q94: 0
B95: 417 | C95: Urban | D95: 33 | E95: Camellia TS | F95: Lennox ZS | G95: 3.28 | H95: 12.14413897 | I95: 11.45595039 | J95: 50 | K95: 50 | L95: 3.28 | M95: 15.97806635 | N95: 14.42291929 | O95: 50 | P95: 50 | Q95: -0.0599873492
B96: 418 | C96: Urban | D96: 33 | E96: Camellia TS | F96: Lennox ZS | G96: 3.3 | H96: 11.44401042 | I96: 10.96843475 | J96: 42.86825749 | K96: 42.86825749 | L96: 3.3 | M96: 15.06756548 | N96: 13.91686402 | O96: 42.86825749 | P96: 42.86825749 | Q96: -0.06012177392
B97: 420_1 | C97: Rural Short | D97: 33 | E97: Glenorie ZS | F97: TEE | G97: 13.2 | H97: 7.444843529 | I97: 6.988020287 | J97: 14.00363078 | K97: 14.00363078 | L97: 0 | M97: 0 | N97: 0 | O97: 0 | P97: 0 | Q97: 0
B98: 420_2 | C98: Rural Short | D98: 33 | E98: Cattai ZS | F98: TEE | G98: 0.04 | H98: 7.44478931 | I98: 6.988020309 | J98: 27.43568479 | K98: 27.43568479 | L98: 0 | M98: 0 | N98: 0 | O98: 0 | P98: 0 | Q98: 0
B99: 420_3 | C99: Rural Short | D99: 33 | E99: LBS A8237 | F99: TEE | G99: 0.05 | H99: 0.000163700646 | I99: 1.125e-08 | J99: 20.69107895 | K99: 20.69107895 | L99: 0 | M99: 0 | N99: 0 | O99: 0 | P99: 0 | Q99: 0
B100: 421 | C100: Urban | D100: 33 | E100: Camellia TS | F100: Parramatta ZS | G100: 0 | H100: 0 | I100: 0 | J100: 0 | K100: 0 | L100: 3.415 | M100: 0 | N100: 0 | O100: 24.86358934 | P100: 24.86358934 | Q100: 0
B101: 422 | C101: Urban | D101: 33 | E101: Camellia TS | F101: Parramatta ZS | G101: 0 | H101: 0 | I101: 0 | J101: 0 | K101: 0 | L101: 3.415 | M101: 0 | N101: 0 | O101: 24.86358934 | P101: 24.86358934 | Q101: 0
B102: 423 | C102: Urban | D102: 33 | E102: Camellia TS | F102: Parramatta ZS | G102: 0 | H102: 0 | I102: 0 | J102: 0 | K102: 0 | L102: 3.52 | M102: 0 | N102: 0 | O102: 22.86307066 | P102: 22.86307066 | Q102: 0
B103: 424 | C103: Short Rural | D103: 33 | E103: Glossodia ZS | F103: North Richmond ZS | G103: 13.82444 | H103: 1.927354704 | I103: 1.534439505 | J103: 26 | K103: 26 | L103: 1.29 | M103: 1.672324937 | N103: 1.44178339 | O103: 42 | P103: 42 | Q103: 0.03812503201
B104: 424_1 | C104: Short Rural | D104: 33 | E104: tee1 | F104: Kurrajong ZS | G104: 0 | H104: 0 | I104: 0 | J104: 0 | K104: 0 | L104: 5.92 | M104: 0.01966857922 | N104: 1.23536e-07 | O104: 21 | P104: 21 | Q104: 0
B105: 424_2 | C105: Short Rural | D105: 33 | E105: tee1 | F105: Glossodia ZS | G105: 0 | H105: 0 | I105: 0 | J105: 0 | K105: 0 | L105: 12.43443652 | M105: 1.651826877 | N105: 1.442096774 | O105: 26 | P105: 26 | Q105: 0
B106: 425 | C106: Urban | D106: 33 | E106: Hawkesbury TS | F106: East Richmond ZS | G106: 6.666 | H106: 19.36905235 | I106: 18.38973593 | J106: 27.43568479 | K106: 27.43568479 | L106: 0 | M106: 0 | N106: 0 | O106: 0 | P106: 0 | Q106: 0
B107: 426 | C107: Urban | D107: 33 | E107: Blacktown TS | F107: Greystanes ZS | G107: 5.27 | H107: 8.05699614 | I107: 7.977298339 | J107: 42 | K107: 42 | L107: 5.27 | M107: 9.542495105 | N107: 9.380013433 | O107: 42 | P107: 42 | Q107: -0.03891799127
B108: 427 | C108: Urban | D108: 33 | E108: Blacktown TS | F108: South Prospect ZS | G108: 10.45 | H108: 4.418229451 | I108: 4.066627705 | J108: 50 | K108: 50 | L108: 10.45 | M108: 3.345978435 | N108: 3.112589742 | O108: 50 | P108: 50 | Q108: 0.08011490783
B109: 428 | C109: Urban | D109: 33 | E109: Blacktown TS | F109: Prospect ZS | G109: 0.11 | H109: 0.02138853312 | I109: 0.00814612643 | J109: 17 | K109: 17 | L109: 0.11 | M109: 0.02163452993 | N109: 0.007981335974 | O109: 17 | P109: 17 | Q109: -0.002842641102
B110: 429 | C110: Urban | D110: 33 | E110: Blacktown TS | F110: Leabons Lane ZS | G110: 2.82 | H110: 20.24671582 | I110: 18.65562532 | J110: 42 | K110: 42 | L110: 2.82 | M110: 28.9255183 | N110: 27.21004883 | O110: 42 | P110: 42 | Q110: -0.07500991332
B111: 430 | C111: Urban | D111: 33 | E111: Blacktown TS | F111: TEE | G111: 4.441 | H111: 9.740994192 | I111: 9.660947243 | J111: 42 | K111: 42 | L111: 4.441 | M111: 11.53610987 | N111: 11.36495579 | O111: 42 | P111: 42 | Q111: -0.03890210163
B112: 430_1 | C112: Urban | D112: 33 | E112: Greystanes ZS | F112: TEE | G112: 0.74 | H112: 9.70863769 | I112: 9.630236877 | J112: 42 | K112: 42 | L112: 0.74 | M112: 11.48686375 | N112: 11.32223965 | O112: 42 | P112: 42 | Q112: -0.03870129605
B113: 430_2 | C113: Urban | D113: 33 | E113: Woodpark ZS | F113: TEE | G113: 1.58 | H113: 0.008259157566 | I113: 1.3892e-08 | J113: 42 | K113: 42 | L113: 1.58 | M113: 0.008321728685 | N113: 1.3997e-08 | O113: 42 | P113: 42 | Q113: -0.001879751232
B114: 431 | C114: Urban | D114: 33 | E114: East Prospect ZS | F114: South Prospect ZS | G114: 2.228 | H114: 0.7261625158 | I114: 0.6699094905 | J114: 30 | K114: 30 | L114: 2.216 | M114: 3.185814201 | N114: 2.973835506 | O114: 30 | P114: 30 | Q114: -0.1930159396
B115: 432 | C115: Urban | D115: 33 | E115: Blacktown TS | F115: Holroyd ZS | G115: 5.39 | H115: 39.76223608 | I115: 36.9323917 | J115: 42 | K115: 42 | L115: 5.39 | M115: 31.16875314 | N115: 28.79106822 | O115: 42 | P115: 42 | Q115: 0.06892706694
B116: 433 | C116: Urban | D116: 33 | E116: Blacktown TS | F116: Prospect ZS | G116: 0.08 | H116: 14.32229498 | I116: 13.81238284 | J116: 17 | K116: 17 | L116: 0.08 | M116: 12.8458139 | N116: 12.68562723 | O116: 17 | P116: 17 | Q116: 0.02873467362
B117: 434 | C117: Urban | D117: 33 | E117: Blacktown TS | F117: Quarries ZS | G117: 2.01 | H117: 22.483007 | I117: 20.99037955 | J117: 42 | K117: 42 | L117: 2.01 | M117: 21.43742789 | N117: 20.12058481 | O117: 42 | P117: 42 | Q117: 0.01219338341
B118: 435 | C118: Urban | D118: 33 | E118: Blacktown TS | F118: Bossley Park ZS | G118: 8.905 | H118: 30.84713807 | I118: 30.08903189 | J118: 42 | K118: 42 | L118: 8.88 | M118: 0.2085085607 | N118: 8.49784e-06 | O118: 42 | P118: 42 | Q118: 36.73545753
B119: 436 | C119: Urban | D119: 33 | E119: Hawkesbury TS | F119: South Windsor ZS | G119: 0.12 | H119: 17.67896323 | I119: 16.48785216 | J119: 30.86514539 | K119: 30.86514539 | L119: 0.12 | M119: 17.46318122 | N119: 16.76174506 | O119: 30.86514539 | P119: 30.86514539 | Q119: 0.003089099407
B120: 437 | C120: Short Rural | D120: 33 | E120: Cattai ZS | F120: Wisemans ZS | G120: 21.36 | H120: 6.873334986 | I120: 6.305363896 | J120: 13.43205401 | K120: 13.43205401 | L120: 21.35 | M120: 5.415570847 | N120: 4.987197418 | O120: 19.03350632 | P120: 19.03350632 | Q120: 0.06729503597
B121: 438 | C121: Urban | D121: 33 | E121: Hawkesbury TS | F121: East Richmond ZS | G121: 6.375 | H121: 15.47975227 | I121: 14.52038976 | J121: 27.43568479 | K121: 27.43568479 | L121: 7.1 | M121: 7.341440286 | N121: 6.755158424 | O121: 23 | P121: 23 | Q121: 0.2771360819
B122: 439 | C122: Short Rural | D122: 33 | E122: Hawkesbury TS | F122: Glossodia ZS | G122: 13.29 | H122: 16.58246388 | I122: 14.77734402 | J122: 26 | K122: 26 | L122: 13.29 | M122: 19.04557337 | N122: 16.43914824 | O122: 26 | P122: 26 | Q122: -0.03233178453
B123: 440 | C123: Urban | D123: 33 | E123: Blacktown TS | F123: TEE | G123: 2.526 | H123: 13.33007797 | I123: 12.54942309 | J123: 42 | K123: 42 | L123: 2.523 | M123: 12.46728778 | N123: 11.78427001 | O123: 42 | P123: 42 | Q123: 0.01730108026
B124: 440_1 | C124: Urban | D124: 33 | E124: Quarries ZS | F124: TEE | G124: 0.735 | H124: 3.867842836 | I124: 3.494430208 | J124: 42 | K124: 42 | L124: 0.75 | M124: 2.729262738 | N124: 2.269621885 | O124: 54.98568494 | P124: 54.98568494 | Q124: 0.1042937423
B125: 440_2 | C125: Urban | D125: 33 | E125: East Prospect ZS | F125: TEE | G125: 1.4 | H125: 14.52328371 | I125: 13.68263274 | J125: 42 | K125: 42 | L125: 1.4 | M125: 12.43925122 | N125: 11.62935842 | O125: 42 | P125: 42 | Q125: 0.04188420286
B126: 441 | C126: Urban | D126: 33 | E126: Quakers Hill ZS | F126: Riverstone ZS | G126: 9.485 | H126: 0.2279382559 | I126: 6.8588614e-05 | J126: 16.00414946 | K126: 16.00414946 | L126: 9.485 | M126: 0.221805189 | N126: 6.674311e-05 | O126: 16.00414946 | P126: 16.00414946 | Q126: 0.006912672949
B127: 442 | C127: Urban | D127: 33 | E127: East Richmond ZS | F127: Kurrajong ZS | G127: 14.362 | H127: 8.168707524 | I127: 7.231742187 | J127: 13.43205401 | K127: 13.43205401 | L127: 0 | M127: 0 | N127: 0 | O127: 0 | P127: 0 | Q127: 0
B128: 443 | C128: Short Rural | D128: 33 | E128: Cattai ZS | F128: Windsor ZS | G128: 15.414 | H128: 13.53345777 | I128: 12.16146458 | J128: 27.43568479 | K128: 27.43568479 | L128: 15.31 | M128: 9.572834071 | N128: 8.288172417 | O128: 17 | P128: 17 | Q128: 0.1034339379
B129: 444 | C129: Urban | D129: 33 | E129: Hawkesbury TS | F129: Riverstone ZS | G129: 7.79 | H129: 11.23337206 | I129: 10.93771456 | J129: 42 | K129: 42 | L129: 7.79 | M129: 10.36309182 | N129: 10.23857761 | O129: 42 | P129: 42 | Q129: 0.02099470539
B130: 445 | C130: Urban | D130: 33 | E130: Blacktown TS | F130: Marayong ZS | G130: 7.61 | H130: 43.48851448 | I130: 40.62928611 | J130: 45.49751061 | K130: 45.49751061 | L130: 7.61 | M130: 40.44110266 | N130: 38.67012317 | O130: 45.49751061 | P130: 45.49751061 | Q130: 0.01883858014
B131: 446 | C131: Urban | D131: 33 | E131: Hawkesbury TS | F131: Windsor ZS | G131: 3.057 | H131: 20.97599908 | I131: 19.12628442 | J131: 42 | K131: 42 | L131: 6.247 | M131: 15.03918716 | N131: 13.57552481 | O131: 42 | P131: 42 | Q131: 0.09868904248
B132: 447 | C132: Rural Short | D132: 33 | E132: Hawkesbury TS | F132: Windsor ZS | G132: 3.24 | H132: 19.63825165 | I132: 17.8543823 | J132: 42 | K132: 42 | L132: 0 | M132: 0 | N132: 0 | O132: 0 | P132: 0 | Q132: 0
B133: 448 | C133: Urban | D133: 33 | E133: Hawkesbury TS | F133: South Windsor ZS | G133: 0.111 | H133: 0.008874368759 | I133: 0.007935558078 | J133: 30.86514539 | K133: 30.86514539 | L133: 0.111 | M133: 18.5069291 | N133: 17.7394258 | O133: 30.86514539 | P133: 30.86514539 | Q133: -0.249880121
B134: 449 | C134: Urban | D134: 33 | E134: Hawkesbury TS | F134: South Windsor ZS | G134: 0.12 | H134: 18.73391041 | I134: 17.44111433 | J134: 30.86514539 | K134: 30.86514539 | L134: 0.12 | M134: 0 | N134: 0 | O134: 30.86514539 | P134: 30.86514539 | Q134: 0
B135: 450 | C135: Urban | D135: 33 | E135: Blacktown TS | F135: TEE | G135: 5.8 | H135: 11.3812402 | I135: 10.33900663 | J135: 42 | K135: 42 | L135: 5.8 | M135: 18.49588934 | N135: 17.36009025 | O135: 42 | P135: 42 | Q135: -0.09616527494
B136: 450_1 | C136: Urban | D136: 33 | E136: Newton ZS | F136: TEE | G136: 0.672 | H136: 11.31238571 | I136: 10.27762146 | J136: 45.49751061 | K136: 45.49751061 | L136: 0.672 | M136: 5.500917348 | N136: 5.450824707 | O136: 45.49751061 | P136: 45.49751061 | Q136: 0.2641136013
B137: 450_2 | C137: Urban | D137: 33 | E137: TEE | F137: TEE | G137: 1.29 | H137: 0.02289149147 | I137: 1.10404e-07 | J137: 42 | K137: 42 | L137: 1.29 | M137: 21.35329081 | N137: 20.96527735 | O137: 42 | P137: 42 | Q137: -0.2497319911
B138: 450_3 | C138: Urban | D138: 33 | E138: TEE | F138: OPEN BOND | G138: 1.35 | H138: 0 | I138: 0 | J138: 24 | K138: 24 | L138: 1.35 | M138: 21.28060074 | N138: 20.91224732 | O138: 24 | P138: 24 | Q138: -0.25
B139: 450_4 | C139: Urban | D139: 33 | E139: Quakers Hill ZS | F139: TEE | G139: 5.04 | H139: 0.01822653976 | I139: 4.9948e-08 | J139: 42 | K139: 42 | L139: 5.04 | M139: 0.01820060367 | N139: 4.9877e-08 | O139: 42 | P139: 42 | Q139: 0.0003562532386
B140: 451 | C140: Urban | D140: 33 | E140: Jordan Springs ZS | F140: ABS 97008 | G140: 3.1 | H140: 14.21041985 | I140: 12.36848008 | J140: 42 | K140: 42 | L140: 2.453 | M140: 19.22616315 | N140: 18.49583953 | O140: 42 | P140: 42 | Q140: -0.06522028432
B141: 451/1 | C141: Urban | D141: 33 | E141: ABS 97008 | F141: Jordan Springs Mobile ZS | G141: 0 | H141: 0 | I141: 0 | J141: 0 | K141: 0 | L141: 3.1 | M141: 9.901242294 | N141: 8.657892855 | O141: 42 | P141: 42 | Q141: 0
B142: 451_1 | C142: Urban | D142: 33 | E142: Penrith TS | F142: TEE | G142: 2.453 | H142: 21.492459 | I142: 20.53788627 | J142: 42 | K142: 42 | L142: 0.157 | M142: 18.80050757 | N142: 18.23874586 | O142: 42 | P142: 42 | Q142: 0.03579625995
B143: 451_2 | C143: Urban | D143: 33 | E143: Cranebrook ZS | F143: TEE | G143: 0.157 | H143: 10.46132879 | I143: 10.44945694 | J143: 42 | K143: 42 | L143: 0.18 | M143: 9.88226773 | N143: 8.659440434 | O143: 42 | P143: 42 | Q143: 0.01464899238
B144: 451_3 | C144: Urban | D144: 33 | E144: ABS 97008 | F144: TEE | G144: 0.138 | H144: 14.2150158 | I144: 12.37096648 | J144: 42 | K144: 42 | L144: 0 | M144: 0 | N144: 0 | O144: 0 | P144: 0 | Q144: 0
B145: 452 | C145: Urban | D145: 33 | E145: Hawkesbury TS | F145: North Richmond ZS | G145: 18.175 | H145: 10.11760222 | I145: 9.467393293 | J145: 21.26265571 | K145: 21.26265571 | L145: 8.772 | M145: 10.18603089 | N145: 9.260430227 | O145: 21.26265571 | P145: 21.26265571 | Q145: -0.001679473529
B146: 452/1 | C146: Urban | D146: 33 | E146: Richmond ZS | F146: A089 | G146: 0 | H146: 0 | I146: 0 | J146: 0 | K146: 0 | L146: 2.42 | M146: 7.22270733 | N146: 6.670218251 | O146: 21.26265571 | P146: 21.26265571 | Q146: 0
B147: 452_1 | C147: Urban | D147: 33 | E147: tee1 | F147: A089 | G147: 0 | H147: 0 | I147: 0 | J147: 0 | K147: 0 | L147: 1.115 | M147: 7.188516688 | N147: 6.646739507 | O147: 21.26265571 | P147: 21.26265571 | Q147: 0
B148: 452_2 | C148: Short Rural | D148: 33 | E148: tee1 | F148: North Richmond ZS | G148: 0 | H148: 0 | I148: 0 | J148: 0 | K148: 0 | L148: 8.19 | M148: 17.14359672 | N148: 15.76139898 | O148: 21.26265571 | P148: 21.26265571 | Q148: 0
B149: 453 | C149: Short Rural | D149: 33 | E149: Hawkesbury TS | F149: TEE | G149: 14.342 | H149: 11.37967083 | I149: 10.5413738 | J149: 21 | K149: 21 | L149: 13.2 | M149: 14.68490922 | N149: 13.3861037 | O149: 20.97686733 | P149: 20.97686733 | Q149: -0.05626930238
B150: 453_1 | C150: Short Rural | D150: 33 | E150: North Richmond ZS | F150: TEE | G150: 0.024 | H150: 7.922421053 | I150: 7.125329838 | J150: 42 | K150: 42 | L150: 5.648353027 | M150: 11.5522657 | N150: 10.61938592 | O150: 21 | P150: 21 | Q150: -0.07855265678
B151: 453_2 | C151: Short Rural | D151: 33 | E151: Kurrajong ZS | F151: TEE | G151: 5.64835 | H151: 3.82511155 | I151: 3.789581741 | J151: 21 | K151: 21 | L151: 0.024 | M151: 2.221267592 | N151: 2.168342128 | O151: 42 | P151: 42 | Q151: 0.1805099894
B152: 454 | C152: Urban | D152: 33 | E152: Penrith TS | F152: Emu Plains ZS | G152: 6.985 | H152: 11.13089862 | I152: 11.03477871 | J152: 38.06701265 | K152: 38.06701265 | L152: 6.939 | M152: 11.88574904 | N152: 11.82640357 | O152: 42 | P152: 42 | Q152: -0.01587721595
B153: 455 | C153: Urban | D153: 33 | E153: Blacktown TS | F153: OPEN BOND | G153: 4.66 | H153: 0 | I153: 0 | J153: 42 | K153: 42 | L153: 9.62 | M153: 0.01688905887 | N153: 5.257e-08 | O153: 24 | P153: 24 | Q153: -0.25
B154: 456 | C154: Urban | D154: 33 | E154: Penrith TS | F154: Cambridge Park ZS | G154: 5.049 | H154: 18.37167279 | I154: 17.88672758 | J154: 33.15145246 | K154: 33.15145246 | L154: 5.2 | M154: 0.04894905722 | N154: 4.65544e-07 | O154: 34 | P154: 34 | Q154: 93.58057525
B155: 457 | C155: Urban | D155: 33 | E155: Penrith TS | F155: TEE | G155: 3.945 | H155: 27.27866836 | I155: 24.75599016 | J155: 42 | K155: 42 | L155: 3.23 | M155: 27.87917035 | N155: 24.93755062 | O155: 42 | P155: 42 | Q155: -0.005384862438
B156: 457/1 | C156: Urban | D156: 33 | E156: Claremont Meadows ZS | F156: ABS 5915 | G156: 4.468 | H156: 0.05442864705 | I156: 7.3243e-07 | J156: 38.06701265 | K156: 50.01296707 | L156: 4.468 | M156: 0.05528061207 | N156: 7.43895e-07 | O156: 38.06701265 | P156: 50.01296707 | Q156: -0.003852910565
B157: 457_1 | C157: Urban | D157: 33 | E157: Kingswood ZS | F157: TEE | G157: 0.412 | H157: 27.01498967 | I157: 24.57203941 | J157: 42 | K157: 42 | L157: 0.412 | M157: 27.51586083 | N157: 24.73713084 | O157: 42 | P157: 42 | Q157: -0.004550749512
B158: 457_2 | C158: Urban | D158: 33 | E158: ABS 5915 | F158: TEE | G158: 0.05 | H158: 0.05468818851 | I158: 7.57149e-07 | J158: 38.06701265 | K158: 38.06701265 | L158: 0.05 | M158: 0.05554421611 | N158: 7.80614e-07 | O158: 38.06701265 | P158: 38.06701265 | Q158: -0.003852910627
B159: 458 | C159: Urban | D159: 33 | E159: Hawkesbury TS | F159: TEE | G159: 3.5 | H159: 16.92210563 | I159: 15.73592471 | J159: 46.35487576 | K159: 46.35487576 | L159: 3.5 | M159: 11.36183467 | N159: 11.05544672 | O159: 46.35487576 | P159: 46.35487576 | Q159: 0.1223453588
B160: 458/1 | C160: Urban | D160: 33 | E160: Cattai ZS | F160: ABS 39588 | G160: 13.922 | H160: 15.15348858 | I160: 13.49193089 | J160: 27.43568479 | K160: 27.43568479 | L160: 13.8 | M160: 8.411148681 | N160: 7.774842824 | O160: 17 | P160: 17 | Q160: 0.2003989038
B161: 458_1 | C161: Urban | D161: 33 | E161: Riverstone ZS | F161: TEE | G161: 5.52 | H161: 2.312803676 | I161: 2.152443681 | J161: 18.97634865 | K161: 22.63443995 | L161: 5.52 | M161: 3.301791099 | N161: 3.238001305 | O161: 18.97634865 | P161: 22.63443995 | Q161: -0.07488264658
B162: 458_2 | C162: Urban | D162: 33 | E162: ABS 39588 | F162: TEE | G162: 0.4 | H162: 15.15581398 | I162: 13.49270196 | J162: 33.15145246 | K162: 33.15145246 | L162: 0.4 | M162: 8.41280792 | N162: 7.776091314 | O162: 17 | P162: 17 | Q162: 0.2003791756
B163: 459 | C163: Urban | D163: 33 | E163: Penrith TS | F163: Cranebrook ZS | G163: 2.7938 | H163: 20.3775928 | I163: 19.3818217 | J163: 42 | K163: 42 | L163: 2.9778 | M163: 18.85160868 | N163: 18.19263287 | O163: 42 | P163: 42 | Q163: 0.02023678915
B164: 460 | C164: Urban | D164: 33 | E164: East Prospect ZS | F164: ABC Tissues HVC | G164: 2.49 | H164: 3.954789102 | I164: 3.867146127 | J164: 26 | K164: 26 | L164: 2.45 | M164: 4.460236533 | N164: 4.337006461 | O164: 26 | P164: 26 | Q164: -0.02833075262
B165: 461 | C165: Urban | D165: 33 | E165: Penrith TS | F165: Kingswood ZS | G165: 4 | H165: 21.19646648 | I165: 18.79566566 | J165: 42 | K165: 42 | L165: 4 | M165: 23.71310588 | N165: 20.90899829 | O165: 42 | P165: 42 | Q165: -0.02653215701
B166: 462 | C166: Urban | D166: 33 | E166: Penrith TS | F166: Emu Plains ZS | G166: 3.73 | H166: 19.1427053 | I166: 18.89190109 | J166: 29.09325741 | K166: 42.01089234 | L166: 3.73 | M166: 19.32135493 | N166: 19.1600117 | O166: 29.09325741 | P166: 42.01089234 | Q166: -0.002311556793
B167: 463 | C167: Urban | D167: 33 | E167: Blacktown TS | F167: Prospect ZS | G167: 0.07 | H167: 14.09992795 | I167: 13.47690108 | J167: 16.97582996 | K167: 16.97582996 | L167: 0.07 | M167: 13.30585705 | N167: 13.15616014 | O167: 16.97582996 | P167: 16.97582996 | Q167: 0.01491957438
B168: 464 | C168: Urban | D168: 33 | E168: Kingswood ZS | F168: TEE | G168: 3.9 | H168: 0.01157446542 | I168: 4.9094e-08 | J168: 16.97582996 | K168: 16.97582996 | L168: 3.9 | M168: 0.01176136619 | N168: 4.9886e-08 | O168: 18.97634865 | P168: 18.97634865 | Q168: -0.003972769085
B169: 464_1 | C169: Urban | D169: 33 | E169: Glenmore Park ZS | F169: TEE | G169: 2.83 | H169: 8.811061711 | I169: 8.051335866 | J169: 36.237967 | K169: 57.44346503 | L169: 2.83 | M169: 8.704428953 | N169: 7.833989909 | O169: 36.237967 | P169: 54.5855812 | Q169: 0.003062600599
B170: 464_2 | C170: Urban | D170: 33 | E170: Luddenham ZS | F170: TEE | G170: 5.2 | H170: 8.778913855 | I170: 8.036711444 | J170: 36.237967 | K170: 57.44346503 | L170: 5.2 | M170: 8.67310102 | N170: 7.819993016 | O170: 36.237967 | P170: 54.5855812 | Q170: 0.003050028916
B171: 465 | C171: Urban | D171: 33 | E171: Luddenham ZS | F171: ABS 67504 | G171: 3 | H171: 0.1068051323 | I171: 9.215463e-06 | J171: 21 | K171: 21 | L171: 3 | M171: 0.1014663922 | N171: 0.00482058125 | O171: 21 | P171: 21 | Q171: 0.01315396156
B172: 465_1 | C172: Urban | D172: 33 | E172: Kemps Creek ZS | F172: ABS 67503 | G172: 9.77 | H172: 0.03340764889 | I172: 5.36285e-07 | J172: 21 | K172: 21 | L172: 9.77 | M172: 0.03406855483 | N172: 5.46893e-07 | O172: 21 | P172: 21 | Q172: -0.004849823674
B173: 465_2 | C173: Urban | D173: 33 | E173: North Warragamba ZS | F173: ABS 67504 | G173: 9.51 | H173: 0.06315118826 | I173: 2.730415e-06 | J173: 25 | K173: 25 | L173: 9.51 | M173: 0.05703624853 | N173: 0.004814793967 | O173: 25 | P173: 25 | Q173: 0.02680286611
B174: 466 | C174: Urban | D174: 33 | E174: Northmead ZS | F174: Westmead ZS | G174: 1.54 | H174: 13.44914796 | I174: 12.79858409 | J174: 44.58298779 | K174: 44.58298779 | L174: 1.47 | M174: 11.88574501 | N174: 11.84547852 | O174: 45.49751061 | P174: 45.49751061 | Q174: 0.03288399135
B175: 467 | C175: Urban | D175: 33 | E175: Blacktown TS | F175: Leabons Lane ZS | G175: 3.03 | H175: 22.19115716 | I175: 20.39843352 | J175: 42 | K175: 42 | L175: 3.03 | M175: 31.71644602 | N175: 29.78854248 | O175: 42 | P175: 42 | Q175: -0.0750816221
B176: 469 | C176: Urban | D176: 33 | E176: Jasper Rd ZS | F176: Kellyville ZS | G176: 8.99 | H176: 0.1846174827 | I176: 1.236594e-05 | J176: 21 | K176: 21 | L176: 8.99 | M176: 0.1883002251 | N176: 1.2612618e-05 | O176: 21 | P176: 21 | Q176: -0.004889455639
B177: 470 | C177: Urban | D177: 33 | E177: Marayong ZS | F177: Seven Hills ZS | G177: 4.6 | H177: 0.02404572602 | I177: 9.4374e-08 | J177: 34 | K177: 34 | L177: 4.6 | M177: 0.02465430417 | N177: 9.6762e-08 | O177: 34 | P177: 34 | Q177: -0.006171114714
B178: 471 | C178: Urban | D178: 33 | E178: Baulkham Hills TS | F178: Jasper Rd ZS | G178: 4.75 | H178: 16.1484349 | I178: 15.11290914 | J178: 36.237967 | K178: 42.01089234 | L178: 4.75 | M178: 16.02682513 | N178: 14.90839181 | O178: 36.237967 | P178: 42.01089234 | Q178: 0.001896972186
B179: 472 | C179: Urban | D179: 33 | E179: Baulkham Hills TS | F179: North Rocks ZS | G179: 5.42957 | H179: 12.81176321 | I179: 12.67014828 | J179: 42 | K179: 42 | L179: 5.429573242 | M179: 12.20328975 | N179: 12.04215767 | O179: 42 | P179: 42 | Q179: 0.01246535714
B180: 473 | C180: Urban | D180: 33 | E180: Baulkham Hills TS | F180: TEE | G180: 7.894 | H180: 0.5320463839 | I180: 0.000179069451 | J180: 32 | K180: 32 | L180: 7.894 | M180: 0.4916619104 | N180: 0.000146277352 | O180: 32 | P180: 32 | Q180: 0.02053467673
B181: 473_1 | C181: Urban | D181: 33 | E181: Kellyville ZS | F181: TEE | G181: 8.726 | H181: 0.3764087667 | I181: 3.7519669e-05 | J181: 21 | K181: 21 | L181: 8.32 | M181: 0.3326218438 | N181: 3.2306847e-05 | O181: 21 | P181: 21 | Q181: 0.03291043847
B182: 473_2 | C182: Urban | D182: 33 | E182: Marayong ZS | F182: TEE | G182: 0.02 | H182: 0.000106108957 | I182: 1.1677e-08 | J182: 31.20809145 | K182: 31.20809145 | L182: 0.02 | M182: 0.000108362884 | N182: 1.1942e-08 | O182: 31.20809145 | P182: 31.20809145 | Q182: -0.005199951581
B183: 474 | C183: Urban | D183: 33 | E183: Baulkham Hills TS | F183: Holroyd ZS | G183: 5.7612 | H183: 0.03022301877 | I183: 1.33281e-07 | J183: 36.237967 | K183: 47.89813303 | L183: 5.94 | M183: 0.03087076222 | N183: 1.36148e-07 | O183: 36.237967 | P183: 54.5855812 | Q183: -0.005245606282
B184: 475 | C184: Urban | D184: 33 | E184: Baulkham Hills TS | F184: Seven Hills ZS | G184: 2.725 | H184: 14.74716622 | I184: 13.80715791 | J184: 36.12365164 | K184: 44.75446082 | L184: 2.725 | M184: 13.14373106 | N184: 12.67880222 | O184: 36.12365164 | P184: 44.75446082 | Q184: 0.03049809732
B185: 476 | C185: Urban | D185: 33 | E185: Kellyville ZS | F185: Kenthurst ZS | G185: 9.2 | H185: 18.6692109 | I185: 18.00049692 | J185: 19.03350632 | K185: 19.03350632 | L185: 9.2 | M185: 21.92051748 | N185: 21.60631531 | O185: 19.03350632 | P185: 19.03350632 | Q185: -0.03708063216
B186: 477 | C186: Urban | D186: 33 | E186: Baulkham Hills TS | F186: Westmead ZS | G186: 5.25578 | H186: 13.41493795 | I186: 12.87734349 | J186: 45.49751061 | K186: 45.49751061 | L186: 5.22545 | M186: 11.96867718 | N186: 11.87894202 | O186: 45.49751061 | P186: 45.49751061 | Q186: 0.03020928605
B187: 478 | C187: Urban | D187: 33 | E187: Baulkham Hills TS | F187: Northmead ZS | G187: 2.338 | H187: 20.21085383 | I187: 19.00826516 | J187: 42 | K187: 42 | L187: 2.46 | M187: 16.48928344 | N187: 15.88006619 | O187: 42 | P187: 42 | Q187: 0.056424077
B188: 479 | C188: Urban | D188: 33 | E188: Baulkham Hills TS | F188: Seven Hills ZS | G188: 2.74 | H188: 17.67758963 | I188: 17.16688494 | J188: 37.9526973 | K188: 45.55466829 | L188: 2.552 | M188: 15.75682102 | N188: 15.58262911 | O188: 37.9526973 | P188: 45.55466829 | Q188: 0.03047519234
B189: 480 | C189: Urban | D189: 33 | E189: Baulkham Hills TS | F189: Northmead ZS | G189: 2.285 | H189: 21.20439198 | I189: 20.83130139 | J189: 42 | K189: 42 | L189: 2.19 | M189: 22.1153593 | N189: 21.63867121 | O189: 42 | P189: 42 | Q189: -0.01029790319
B190: 480_1 | C190: Urban | D190: 33 | E190: North Rocks ZS | F190: Northmead ZS | G190: 3.22 | H190: 6.221697607 | I190: 6.192976403 | J190: 42 | K190: 42 | L190: 3.253 | M190: 5.618084231 | N190: 5.614888334 | O190: 42 | P190: 42 | Q190: 0.02686028507
B191: 480_2 | C191: Urban | D191: 33 | E191: tee1 | F191: Northmead ZS | G191: 0 | H191: 0 | I191: 0 | J191: 0 | K191: 0 | L191: 0.035 | M191: 16.47114768 | N191: 15.93160617 | O191: 42 | P191: 42 | Q191: 0
B192: 481 | C192: Urban | D192: 33 | E192: Leabons Lane ZS | F192: Newton ZS | G192: 2.232 | H192: 23.06249114 | I192: 21.15978759 | J192: 50.01296707 | K192: 50.01296707 | L192: 2.232 | M192: 38.43022977 | N192: 36.47270889 | O192: 50.01296707 | P192: 50.01296707 | Q192: -0.09997168062
B193: 482 | D193: 33 | E193: Blacktown TS | F193: Fujitsu Data Centre HVC | G193: 3.167 | H193: 0.3029536349 | I193: 2.855279e-06 | J193: 27.43568479 | K193: 27.43568479 | L193: 0 | M193: 0 | N193: 0 | O193: 0 | P193: 0 | Q193: 0
B194: 483 | D194: 33 | E194: Blacktown TS | F194: Fujitsu Data Centre HVC | G194: 3.087 | H194: 0.2958919455 | I194: 2.656235e-06 | J194: 27.43568479 | K194: 27.43568479 | L194: 0 | M194: 0 | N194: 0 | O194: 0 | P194: 0 | Q194: 0
B195: 484 | C195: Urban | D195: 33 | E195: Baulkham Hills TS | F195: Jasper Rd ZS | G195: 4.216 | H195: 17.9814456 | I195: 16.75000339 | J195: 38.06701265 | K195: 42 | L195: 4.1 | M195: 17.84554988 | N195: 16.51933739 | O195: 42 | P195: 42 | Q195: 0.001903775996
B196: 485 | C196: Urban | D196: 33 | E196: Mount Druitt TS | F196: Claremont Meadows ZS | G196: 5.635 | H196: 33.69200426 | I196: 32.58147884 | J196: 36.237967 | K196: 50.01296707 | L196: 5.635 | M196: 24.79488375 | N196: 24.07937763 | O196: 36.237967 | P196: 50.01296707 | Q196: 0.08970722146
B197: 487 | C197: Urban | D197: 33 | E197: Mount Druitt TS | F197: TEE | G197: 2.597 | H197: 21.6046404 | I197: 20.60344124 | J197: 42 | K197: 42 | L197: 2.597 | M197: 23.47588017 | N197: 22.12466486 | O197: 42 | P197: 42 | Q197: -0.01992725887
B198: 487_1 | C198: Urban | D198: 33 | E198: Plumpton ZS | F198: TEE | G198: 2.36 | H198: 15.64156999 | I198: 14.71225384 | J198: 42 | K198: 42 | L198: 2.36 | M198: 15.68750851 | N198: 14.64541728 | O198: 42 | P198: 42 | Q198: -0.0007320875231
B199: 487_2 | C199: Urban | D199: 33 | E199: Whalan ZS | F199: TEE | G199: 1.21 | H199: 5.861644092 | I199: 5.783065072 | J199: 42 | K199: 42 | L199: 1.21 | M199: 7.606675408 | N199: 7.352470651 | O199: 42 | P199: 42 | Q199: -0.0573519712
B200: 488 | C200: Urban | D200: 33 | E200: Mount Druitt TS | F200: Plumpton ZS | G200: 5.25 | H200: 16.31124903 | I200: 15.11788134 | J200: 42 | K200: 42 | L200: 5.17 | M200: 17.46295576 | N200: 16.00120855 | O200: 42 | P200: 42 | Q200: -0.01648785492
B201: 489 | C201: Urban | D201: 33 | E201: Mount Druitt TS | F201: East Wallgrove SS | G201: 10.344 | H201: 2.630094221 | I201: 0.3615913485 | J201: 34 | K201: 34 | L201: 10.25 | M201: 8.918842779 | N201: 8.916635866 | O201: 34 | P201: 34 | Q201: -0.1762770326
B202: 48C | C202: Urban | D202: 33 | E202: East Wallgrove SS | F202: Horsley Park ZS | G202: 2.57 | H202: 9.560068179 | I202: 9.268954567 | J202: 42 | K202: 42 | L202: 2.57 | M202: 0.05421745718 | N202: 1.65991e-07 | O202: 42 | P202: 42 | Q202: 43.83205713
... 2692 more rows

Sheet 2.5 Connections
B1: =SheetHeader -> REGULATORY REPORTING STATEMENT
B2: =dms_TradingName -> Endeavour Energy
B3: =dms_Reg_Year_Span -> 2019-20 to 2023-24
B4: 2.5 CONNECTIONS
B6: There are THREE tables on this worksheet - each has been 'grouped' (and sub-grouped) for easy navigation. See the Instructions sheet on how to group or ungroup tables.
B8: 2.5.1 - DESCRIPTOR METRICS
B9: VOLUMES AND EXPENDITURE - ALL
B10: CONNECTION SUBCATEGORY | C10: DESCRIPTOR METRIC | D10: Unit of Measure | E10: =CONCATENATE("VOLUMES and EXPENDITURE (0's, real ", dms_DollarReal, ")") -> VOLUMES and EXPENDITURE (0's, real June 2019)
E11: =CRCP_y4 -> 2017-18 | F11: =CRCP_y5 -> 2018-19 | G11: =FRCP_y1 -> 2019-20 | H11: =FRCP_y2 -> 2020-21 | I11: =FRCP_y3 -> 2021-22 | J11: =FRCP_y4 -> 2022-23 | K11: =FRCP_y5 -> 2023-24
B12: RESIDENTIAL | C12: Underground connections | D12: 0's | E12: 4014.60498 | F12: 4135.76644 | G12: 3988.208066 | H12: 3314.782065 | I12: 3242.354731 | J12: 3424.836995 | K12: 3748.552883
C13: Overhead connections | D13: 0's | E13: 5544.274008 | F13: 5711.966205 | G13: 5507.22611 | H13: 4577.828334 | I13: 4477.270593 | J13: 4728.95642 | K13: 5176.832028
C14: Distribution substations installed | D14: MVA added | E14: 56.23 | F14: 57.68 | G14: 57.39 | H14: 57.1 | I14: 57.39 | J14: 57.29 | K14: 57.26
C15: Distribution substations installed | D15: 0's | E15: 91 | F15: 94 | G15: 92 | H15: 92 | I15: 93 | J15: 92 | K15: 92
C16: Distribution substations installed | D16: total spend $0's | E16: 6273637 | F16: 10090135 | G16: 10114428 | H16: 10461670 | I16: 10242069 | J16: 9866393 | K16: 10555387
C17: Augmentation HV | D17: net circuit KM added | E17: 12.03 | F17: 12.15 | G17: 12.27 | H17: 12.39 | I17: 12.52 | J17: 12.64 | K17: 12.77
C18: Augmentation HV | D18: total spend $0's | E18: 830122 | F18: 838423 | G18: 846807 | H18: 855275 | I18: 863828 | J18: 872466 | K18: 881191
C19: Augmentation LV | D19: net circuit KM added | E19: 3.19 | F19: 3.22 | G19: 3.25 | H19: 3.29 | I19: 3.32 | J19: 3.35 | K19: 3.39
C20: Augmentation LV | D20: total spend $0's | E20: 245091 | F20: 247542 | G20: 25018 | H20: 252518 | I20: 255043 | J20: 257594 | K20: 260169
C21: Mean days to connect residential customer with LV single phase connection | D21: 0's | E21: 0 | F21: 0 | G21: 0 | H21: 0 | I21: 0 | J21: 0 | K21: 0
C22: Volume of GSL breaches for residential customers | D22: 0's | E22: 0 | F22: 0 | G22: 0 | H22: 0 | I22: 0 | J22: 0 | K22: 0
C23: Volume of customer complaints relating to connection services | D23: 0's | E23: 0 | F23: 0 | G23: 0 | H23: 0 | I23: 0 | J23: 0 | K23: 0
C24: GSL payments | D24: $0's | E24: 0 | F24: 0 | G24: 0 | H24: 0 | I24: 0 | J24: 0 | K24: 0
B25: COMMERCIAL/INDUSTRIAL | C25: Underground connections | D25: 0's | E25: 620 | F25: 750 | G25: 750 | H25: 750 | I25: 750 | J25: 750 | K25: 750
C26: Overhead connections | D26: 0's | E26: 620 | F26: 750 | G26: 750 | H26: 750 | I26: 750 | J26: 750 | K26: 750
C27: Distribution substations installed | D27: MVA added | E27: 113.68 | F27: 113.68 | G27: 112.4 | H27: 114.28 | I27: 113.45 | J27: 113.38 | K27: 113.7
C28: Distribution substations installed | D28: 0's | E28: 131 | F28: 128 | G28: 132 | H28: 130 | I28: 130 | J28: 131 | K28: 130
C29: Distribution substations installed | D29: total spend $0's | E29: 6593090 | F29: 9510302 | G29: 9547215 | H29: 9829619 | I29: 9681645 | J29: 9415309 | K29: 9957866
C30: Augmentation HV | D30: net circuit KM added | E30: 20.98 | F30: 26.98 | G30: 27.13 | H30: 27.78 | I30: 27.56 | J30: 27.1 | K30: 28.28
C31: Augmentation HV | D31: total spend $0's | E31: 2318330 | F31: 3445813 | G31: 3457734 | H31: 3564710 | I31: 3504977 | J31: 3399378 | K31: 3607038
C32: Augmentation LV | D32: net circuit KM added | E32: 2.53 | F32: 2.56 | G32: 2.59 | H32: 2.61 | I32: 2.64 | J32: 2.66 | K32: 2.69
C33: Augmentation LV | D33: total spend $0's | E33: 243440 | F33: 245874 | G33: 248333 | H33: 250816 | I33: 253325 | J33: 255858 | K33: 258416
B34: SUBDIVISION | C34: Underground connections | D34: 0's | E34: 12243 | F34: 12067 | G34: 12015 | H34: 10984 | I34: 10955 | J34: 10642 | K34: 10875
C35: Overhead connections | D35: 0's | E35: 0 | F35: 0
C36: Distribution substations installed | D36: MVA added | E36: 131.12 | F36: 138.26 | G36: 137 | H36: 135.46 | I36: 136.9 | J36: 136.45 | K36: 136.27
C37: Distribution substations installed | D37: 0's | E37: 282 | F37: 294 | G37: 292 | H37: 289 | I37: 292 | J37: 291 | K37: 291
C38: Distribution substations installed | D38: total spend $0's | E38: 8690112 | F38: 20962190 | G38: 21021464 | H38: 21714662 | I38: 21295510 | J38: 20570168 | K38: 21934433
C39: Augmentation HV | D39: net circuit KM added | E39: 52.57 | F39: 86.73 | G39: 86.91 | H39: 89.98 | I39: 87.98 | J39: 84.57 | K39: 90.71
C40: Augmentation HV | D40: total spend $0's | E40: 9404443 | F40: 15905985 | G40: 15934278 | H40: 16513699 | I40: 16125411 | J40: 15470575 | K40: 16632949
C41: Augmentation LV | D41: net circuit KM added | E41: 8.83 | F41: 8.92 | G41: 9.01 | H41: 9.1 | I41: 9.19 | J41: 9.28 | K41: 9.37
C42: Augmentation LV | D42: total spend $0's | E42: 1293202 | F42: 1306134 | G42: 1319195 | H42: 1332387 | I42: 1345711 | J42: 1359168 | K42: 1372760
C43: Cost per lot | D43: $0's | E43: 1583.578943 | F43: 3163.529378 | G43: 3185.596088 | H43: 3601.67043 | I43: 3538.715838 | J43: 3514.368634 | K43: 3672.656736
B44: EMBEDDED GENERATION | C44: Underground connections | D44: 0's | E44: 1765 | F44: 1742 | G44: 1902 | H44: 1902 | I44: 1902 | J44: 1902 | K44: 1902
C45: Overhead connections | D45: 0's | E45: 2874 | F45: 2838 | G45: 3098 | H45: 3098 | I45: 3098 | J45: 3098 | K45: 3098
C46: Distribution substations installed | D46: MVA added | E46: 0 | F46: 0 | G46: 0 | H46: 0 | I46: 0 | J46: 0 | K46: 0
C47: Distribution substations installed | D47: 0's | E47: 0 | F47: 0 | G47: 0 | H47: 0 | I47: 0 | J47: 0 | K47: 0
C48: Distribution substations installed | D48: total spend $0's | E48: 0 | F48: 0 | G48: 0 | H48: 0 | I48: 0 | J48: 0 | K48: 0
C49: Augmentation HV | D49: net circuit KM added | E49: 0 | F49: 0 | G49: 0 | H49: 0 | I49: 0 | J49: 0 | K49: 0
C50: Augmentation HV | D50: total spend $0's | E50: 0 | F50: 0 | G50: 0 | H50: 0 | I50: 0 | J50: 0 | K50: 0
C51: Augmentation LV | D51: net circuit KM added | E51: 0 | F51: 0 | G51: 0 | H51: 0 | I51: 0 | J51: 0 | K51: 0
C52: Augmentation LV | D52: total spend $0's | E52: 0 | F52: 0 | G52: 0 | H52: 0 | I52: 0 | J52: 0 | K52: 0
B54: VOLUMES AND EXPENDITURE - STANDARD CONTROL SERVICES
B55: CONNECTION SUBCATEGORY | C55: DESCRIPTOR METRIC | D55: Unit of Measure | E55: =CONCATENATE("VOLUMES and EXPENDITURE (0's, real ", dms_DollarReal, ")") -> VOLUMES and EXPENDITURE (0's, real June 2019)
E56: =CRCP_y4 -> 2017-18 | F56: =CRCP_y5 -> 2018-19 | G56: =FRCP_y1 -> 2019-20 | H56: =FRCP_y2 -> 2020-21 | I56: =FRCP_y3 -> 2021-22 | J56: =FRCP_y4 -> 2022-23 | K56: =FRCP_y5 -> 2023-24
B57: RESIDENTIAL | C57: Underground connections | D57: 0's | E57: 4014.60498 | F57: 4135.76644 | G57: 3988.208066 | H57: 3314.782065 | I57: 3242.354731 | J57: 3424.836995 | K57: 3748.552883
C58: Overhead connections | D58: 0's | E58: 5544.274008 | F58: 5711.966205 | G58: 5507.22611 | H58: 4577.828334 | I58: 4477.270593 | J58: 4728.95642 | K58: 5176.832028
C59: Distribution substations installed | D59: MVA added | E59: 56.23 | F59: 57.68 | G59: 57.39 | H59: 57.1 | I59: 57.39 | J59: 57.29 | K59: 57.26
C60: Distribution substations installed | D60: 0's | E60: 91 | F60: 94 | G60: 92 | H60: 92 | I60: 93 | J60: 92 | K60: 92
C61: Distribution substations installed | D61: total spend $0's | E61: 6957163 | F61: 8460598 | G61: 11632484 | H61: 11097330 | I61: 11066457 | J61: 11103019 | K61: 11322642
C62: Augmentation HV | D62: net circuit KM added | E62: 12.03 | F62: 12.15 | G62: 12.27 | H62: 12.39 | I62: 12.52 | J62: 12.64 | K62: 12.77
C63: Augmentation HV | D63: total spend $0's | E63: 1097389 | F63: 1097389 | G63: 1102947 | H63: 1108957 | I63: 1114540 | J63: 1120278 | K63: 1125796
C64: Augmentation LV | D64: net circuit KM added | E64: 3.19 | F64: 3.22 | G64: 3.25 | H64: 3.29 | I64: 3.32 | J64: 3.35 | K64: 3.39
C65: Augmentation LV | D65: total spend $0's | E65: 324001 | F65: 324001 | G65: 325642 | H65: 327417 | I65: 329065 | J65: 330759 | K65: 332389
C66: Mean days to connect residential customer with LV single phase connection | D66: 0's | E66: 0 | F66: 0 | G66: 0 | H66: 0 | I66: 0 | J66: 0 | K66: 0
C67: Volume of GSL breaches for residential customers | D67: 0's | E67: 0 | F67: 0 | G67: 0 | H67: 0 | I67: 0 | J67: 0 | K67: 0
C68: Volume of customer complaints relating to connection services | D68: 0's | E68: 0 | F68: 0 | G68: 0 | H68: 0 | I68: 0 | J68: 0 | K68: 0
C69: GSL payments | D69: $0's | E69: 0 | F69: 0 | G69: 0 | H69: 0 | I69: 0 | J69: 0 | K69: 0
B70: COMMERCIAL/INDUSTRIAL | C70: Underground connections | D70: 0's | E70: 620 | F70: 750 | G70: 750 | H70: 750 | I70: 750 | J70: 750 | K70: 750
C71: Overhead connections | D71: 0's | E71: 620 | F71: 750 | G71: 750 | H71: 750 | I71: 750 | J71: 750 | K71: 750
C72: Distribution substations installed | D72: MVA added | E72: 113.68 | F72: 113.68 | G72: 112.4 | H72: 114.28 | I72: 113.45 | J72: 113.38 | K72: 113.7
C73: Distribution substations installed | D73: 0's | E73: 131 | F73: 128 | G73: 132 | H73: 130 | I73: 130 | J73: 131 | K73: 130
C74: Distribution substations installed | D74: total spend $0's | E74: 7795102 | F74: 11173482 | G74: 11516892 | H74: 11158897 | I74: 11181410 | J74: 11255878 | K74: 11469082
C75: Augmentation HV | D75: net circuit KM added | E75: 20.98 | F75: 26.98 | G75: 27.13 | H75: 27.78 | I75: 27.56 | J75: 27.1 | K75: 28.28
C76: Augmentation HV | D76: total spend $0's | E76: 2686902 | F76: 3994263 | G76: 4123292 | H76: 3980589 | I76: 3985177 | J76: 4009807 | K76: 4088085
C77: Augmentation LV | D77: net circuit KM added | E77: 2.53 | F77: 2.56 | G77: 2.59 | H77: 2.61 | I77: 2.64 | J77: 2.66 | K77: 2.69
C78: Augmentation LV | D78: total spend $0's | E78: 343817 | F78: 344939 | G78: 349053 | H78: 353246 | I78: 357523 | J78: 361883 | K78: 366329
B79: SUBDIVISION | C79: Underground connections | D79: 0's | E79: 12243 | F79: 12067 | G79: 12015 | H79: 10984 | I79: 10955 | J79: 10642 | K79: 10875
C80: Overhead connections | D80: 0's | E80: 0 | F80: 0
C81: Distribution substations installed | D81: MVA added | E81: 131.12 | F81: 138.26 | G81: 137 | H81: 135.46 | I81: 136.9 | J81: 136.45 | K81: 136.27
C82: Distribution substations installed | D82: 0's | E82: 282 | F82: 294 | G82: 292 | H82: 289 | I82: 292 | J82: 291 | K82: 291
C83: Distribution substations installed | D83: total spend $0's | E83: 10052345 | F83: 14239344 | G83: 14628584 | H83: 14149799 | I83: 14140172 | J83: 14193593 | K83: 14417286
C84: Augmentation HV | D84: net circuit KM added | E84: 52.57 | F84: 86.73 | G84: 86.91 | H84: 89.98 | I84: 87.98 | J84: 84.57 | K84: 90.71
C85: Augmentation HV | D85: total spend $0's | E85: 9800811 | F85: 17432346 | G85: 18102473 | H85: 17181316 | I85: 17119896 | J85: 17173821 | K85: 17539631
C86: Augmentation LV | D86: net circuit KM added | E86: 8.83 | F86: 8.92 | G86: 9.01 | H86: 9.1 | I86: 9.19 | J86: 9.28 | K86: 9.37
C87: Augmentation LV | D87: total spend $0's | E87: 1709562 | F87: 1718110 | G87: 1726700 | H87: 1735334 | I87: 1744010 | J87: 1752730 | K87: 1761494
C88: Cost per lot | D88: $0's | E88: 1583.578943 | F88: 3163.529378 | G88: 3185.596088 | H88: 3601.67043 | I88: 3538.715838 | J88: 3514.368634 | K88: 3672.656736
B89: EMBEDDED GENERATION | C89: Underground connections | D89: 0's | E89: 1765 | F89: 1742 | G89: 1902 | H89: 1902 | I89: 1902 | J89: 1902 | K89: 1902
C90: Overhead connections | D90: 0's | E90: 2874 | F90: 2838 | G90: 3098 | H90: 3098 | I90: 3098 | J90: 3098 | K90: 3098
C91: Distribution substations installed | D91: MVA added | E91: 0 | F91: 0 | G91: 0 | H91: 0 | I91: 0 | J91: 0 | K91: 0
C92: Distribution substations installed | D92: 0's | E92: 0 | F92: 0 | G92: 0 | H92: 0 | I92: 0 | J92: 0 | K92: 0
C93: Distribution substations installed | D93: total spend $0's | E93: 0 | F93: 0 | G93: 0 | H93: 0 | I93: 0 | J93: 0 | K93: 0
C94: Augmentation HV | D94: net circuit KM added | E94: 0 | F94: 0 | G94: 0 | H94: 0 | I94: 0 | J94: 0 | K94: 0
C95: Augmentation HV | D95: total spend $0's | E95: 0 | F95: 0 | G95: 0 | H95: 0 | I95: 0 | J95: 0 | K95: 0
C96: Augmentation LV | D96: net circuit KM added | E96: 0 | F96: 0 | G96: 0 | H96: 0 | I96: 0 | J96: 0 | K96: 0
C97: Augmentation LV | D97: total spend $0's | E97: 0 | F97: 0 | G97: 0 | H97: 0 | I97: 0 | J97: 0 | K97: 0
B101: 2.5.2 - COST METRICS BY CONNECTION CLASSIFICATION
B102: EXPENDITURE - ALL
B103: CONNECTION SUBCATEGORY | C103: CONNECTION CLASSICIATION | E103: =CONCATENATE("EXPENDITURE ($'0s, real ", dms_DollarReal,")") -> EXPENDITURE ($'0s, real June 2019)
E104: =CRCP_y4 -> 2017-18 | F104: =CRCP_y5 -> 2018-19 | G104: =FRCP_y1 -> 2019-20 | H104: =FRCP_y2 -> 2020-21 | I104: =FRCP_y3 -> 2021-22 | J104: =FRCP_y4 -> 2022-23 | K104: =FRCP_y5 -> 2023-24
B105: RESIDENTIAL | C105: Simple connection LV | E105: 16233026.69 | F105: 16426393.5 | G105: 19273076.63 | H105: 18385804.43 | I105: 18334562.53 | J105: 18395114.01 | K105: 18759158.56
C106: Complex connection LV | E106: 0 | F106: 0 | G106: 0 | H106: 0 | I106: 0 | J106: 0 | K106: 0
C107: Complex connection HV | E107: 0 | F107: 0 | G107: 0 | H107: 0 | I107: 0 | J107: 0 | K107: 0
B108: COMMERCIAL/INDUSTRIAL | C108: Simple connection LV | E108: 0 | F108: 0 | G108: 0 | H108: 0 | I108: 0 | J108: 0 | K108: 0
C109: Complex connection HV (customer connected at LV, minor HV works) | E109: 46641655.61 | F109: 43880050 | G109: 45806853.82 | H109: 43582817.11 | I109: 43481712.43 | J109: 43664645.09 | K109: 44619487.26
C110: Complex connection HV (customer connected at LV, upstream asset works) | E110: 0 | F110: 0 | G110: 0 | H110: 0 | I110: 0 | J110: 0 | K110: 0
C111: Complex connection HV (customer connected at HV) | E111: 0 | F111: 0 | G111: 0 | H111: 0 | I111: 0 | J111: 0 | K111: 0
C112: Complex connection sub-transmission | E112: 0 | F112: 0 | G112: 0 | H112: 0 | I112: 0 | J112: 0 | K112: 0
B113: SUBDIVISION | C113: Complex connection LV | E113: 0 | F113: 0 | G113: 0 | H113: 0 | I113: 0 | J113: 0 | K113: 0
C114: Complex connection HV (no upstream asset works) | E114: 0 | F114: 0 | G114: 0 | H114: 0 | I114: 0 | J114: 0 | K114: 0
C115: Complex connection HV (with upstream asset works) | E115: 117928898.9 | F115: 105912434.4 | G115: 110244199.6 | H115: 104462081.5 | I115: 104062984 | J115: 104381047.9 | K115: 106654055.2
B116: EMBEDDED GENERATION | C116: Simple connection LV | E116: 0 | F116: 0 | G116: 0 | H116: 0 | I116: 0 | J116: 0 | K116: 0
C117: Complex connection HV (small capacity) | E117: 0 | F117: 0 | G117: 0 | H117: 0 | I117: 0 | J117: 0 | K117: 0
C118: Complex connection HV (large capacity) | E118: 0 | F118: 0 | G118: 0 | H118: 0 | I118: 0 | J118: 0 | K118: 0
B120: EXPENDITURE - STANDARD CONTROL SERVICES
E121: =CONCATENATE("EXPENDITURE ($'0s, real ", dms_DollarReal,")") -> EXPENDITURE ($'0s, real June 2019)
E122: =CRCP_y4 -> 2017-18 | F122: =CRCP_y5 -> 2018-19 | G122: =FRCP_y1 -> 2019-20 | H122: =FRCP_y2 -> 2020-21 | I122: =FRCP_y3 -> 2021-22 | J122: =FRCP_y4 -> 2022-23 | K122: =FRCP_y5 -> 2023-24
B123: RESIDENTIAL | C123: Simple connection LV | E123: 8378553.02 | F123: 9881987.89 | G123: 13061073.13 | H123: 12533703.38 | I123: 12510062.03 | J123: 12554056.29 | K123: 12780827.06
C124: Complex connection LV | E124: 0 | F124: 0 | G124: 0 | H124: 0 | I124: 0 | J124: 0 | K124: 0
C125: Complex connection HV | E125: 0 | F125: 0 | G125: 0 | H125: 0 | I125: 0 | J125: 0 | K125: 0
B126: COMMERCIAL/INDUSTRIAL | C126: Simple connection LV | E126: 0 | F126: 0 | G126: 0 | H126: 0 | I126: 0 | J126: 0 | K126: 0
C127: Complex connection HV (customer connected at LV, minor HV works) | E127: 8940182 | F127: 12466903 | G127: 15989237 | H127: 15492732 | I127: 15524110 | J127: 15627568 | K127: 15923496
C128: Complex connection HV (customer connected at LV, upstream asset works) | E128: 0 | F128: 0 | G128: 0 | H128: 0 | I128: 0 | J128: 0 | K128: 0
C129: Complex connection HV (customer connected at HV) | E129: 0 | F129: 0 | G129: 0 | H129: 0 | I129: 0 | J129: 0 | K129: 0
C130: Complex connection sub-transmission | E130: 0 | F130: 0 | G130: 0 | H130: 0 | I130: 0 | J130: 0 | K130: 0
B131: SUBDIVISION | C131: Complex connection LV | E131: 0 | F131: 0 | G131: 0 | H131: 0 | I131: 0 | J131: 0 | K131: 0
C132: Complex connection HV (no upstream asset works) | E132: 0 | F132: 0 | G132: 0 | H132: 0 | I132: 0 | J132: 0 | K132: 0
C133: Complex connection HV (with upstream asset works) | E133: 22104320.22 | F133: 26070685.98 | G133: 34457756.87 | H133: 33066448.62 | I133: 33004077.97 | J133: 33120143.71 | K133: 33718410.94
B134: EMBEDDED GENERATION | C134: Simple connection LV | E134: 0 | F134: 0 | G134: 0 | H134: 0 | I134: 0 | J134: 0 | K134: 0
C135: Complex connection HV (small capacity) | E135: 0 | F135: 0 | G135: 0 | H135: 0 | I135: 0 | J135: 0 | K135: 0
C136: Complex connection HV (large capacity) | E136: 0 | F136: 0 | G136: 0 | H136: 0 | I136: 0 | J136: 0 | K136: 0
B138: EXPENDITURE - STANDARD CONTROL SERVICES - CAPITAL CONTRIBUTIONS
E139: =CONCATENATE("EXPENDITURE ($'0s, real ", dms_DollarReal,")") -> EXPENDITURE ($'0s, real June 2019)
E140: =CRCP_y4 -> 2017-18 | F140: =CRCP_y5 -> 2018-19 | G140: =FRCP_y1 -> 2019-20 | H140: =FRCP_y2 -> 2020-21 | I140: =FRCP_y3 -> 2021-22 | J140: =FRCP_y4 -> 2022-23 | K140: =FRCP_y5 -> 2023-24
B141: RESIDENTIAL | C141: Simple connection LV | E141: 7854473.666 | F141: 6544405.606 | G141: 6212003.499 | H141: 5852101.053 | I141: 5824500.498 | J141: 5841057.721 | K141: 5978331.496
C142: Complex connection LV | E142: 0 | F142: 0 | G142: 0 | H142: 0 | I142: 0 | J142: 0 | K142: 0
C143: Complex connection HV | E143: 0 | F143: 0 | G143: 0 | H143: 0 | I143: 0 | J143: 0 | K143: 0
B144: COMMERCIAL/INDUSTRIAL | C144: Simple connection LV | E144: 0 | F144: 0 | G144: 0 | H144: 0 | I144: 0 | J144: 0 | K144: 0
C145: Complex connection HV (customer connected at LV, minor HV works) | E145: 26705210.46 | F145: 22250979.13 | G145: 21120811.91 | H145: 19897143.62 | I145: 19803301.72 | J145: 19859596.27 | K145: 20326327.14
C146: Complex connection HV (customer connected at LV, upstream asset works) | E146: 0 | F146: 0 | G146: 0 | H146: 0 | I146: 0 | J146: 0 | K146: 0
C147: Complex connection HV (customer connected at HV) | E147: 0 | F147: 0 | G147: 0 | H147: 0 | I147: 0 | J147: 0 | K147: 0
C148: Complex connection sub-transmission | E148: 10996263.14 | F148: 9162167.875 | G148: 8696804.905 | H148: 8192941.489 | I148: 8154300.708 | J148: 8177480.817 | K148: 8369664.116
B149: SUBDIVISION | C149: Complex connection LV | E149: 0 | F149: 0 | G149: 0 | H149: 0 | I149: 0 | J149: 0 | K149: 0
C150: Complex connection HV (no upstream asset works) | E150: 0 | F150: 0 | G150: 0 | H150: 0 | I150: 0 | J150: 0 | K150: 0
C151: Complex connection HV (with upstream asset works) | E151: 95824578.73 | F151: 79841748.39 | G151: 75786442.68 | H151: 71395632.84 | I151: 71058906.07 | J151: 71260904.19 | K151: 72935644.25
B152: EMBEDDED GENERATION | C152: Simple connection LV | E152: 0 | F152: 0 | G152: 0 | H152: 0 | I152: 0 | J152: 0 | K152: 0
C153: Complex connection HV (small capacity) | E153: 0 | F153: 0 | G153: 0 | H153: 0 | I153: 0 | J153: 0 | K153: 0
C154: Complex connection HV (large capacity) | E154: 0 | F154: 0 | G154: 0 | H154: 0 | I154: 0 | J154: 0 | K154: 0
B158: 2.5.3 - VOLUMES BY CONNECTION CLASSIFICATION
B159: NEW CONNECTIONS - ALL
E160: VOLUMES (0's)
E161: =CRCP_y4 -> 2017-18 | F161: =CRCP_y5 -> 2018-19 | G161: =FRCP_y1 -> 2019-20 | H161: =FRCP_y2 -> 2020-21 | I161: =FRCP_y3 -> 2021-22 | J161: =FRCP_y4 -> 2022-23 | K161: =FRCP_y5 -> 2023-24
B162: RESIDENTIAL | C162: Simple connection LV | E162: 9558.878987 | F162: 9847.732646 | G162: 9495.434175 | H162: 7892.610398 | I162: 7719.625324 | J162: 8153.793414 | K162: 8925.384911
C163: Complex connection LV | E163: 0 | F163: 0 | G163: 0 | H163: 0 | I163: 0 | J163: 0 | K163: 0
C164: Complex connection HV | E164: 0 | F164: 0 | G164: 0 | H164: 0 | I164: 0 | J164: 0 | K164: 0
B165: COMMERCIAL/INDUSTRIAL | C165: Simple connection LV | E165: 0 | F165: 0 | G165: 0 | H165: 0 | I165: 0 | J165: 0 | K165: 0
C166: Complex connection HV (customer connected at LV, minor HV works) | E166: 1240 | F166: 1500 | G166: 1500 | H166: 1500 | I166: 1500 | J166: 1500 | K166: 1500
C167: Complex connection HV (customer connected at LV, upstream asset works) | E167: 0 | F167: 0 | G167: 0 | H167: 0 | I167: 0 | J167: 0 | K167: 0
C168: Complex connection HV (customer connected at HV) | E168: 0 | F168: 0 | G168: 0 | H168: 0 | I168: 0 | J168: 0 | K168: 0
C169: Complex connection sub-transmission | E169: 0 | F169: 0 | G169: 0 | H169: 0 | I169: 0 | J169: 0 | K169: 0
B170: SUBDIVISION | C170: Complex connection LV | E170: 0 | F170: 0 | G170: 0 | H170: 0 | I170: 0 | J170: 0 | K170: 0
C171: Complex connection HV (no upstream asset works) | E171: 0 | F171: 0 | G171: 0 | H171: 0 | I171: 0 | J171: 0 | K171: 0
C172: Complex connection HV (with upstream asset works) | E172: 12243 | F172: 12067 | G172: 12015 | H172: 10984 | I172: 10955 | J172: 10642 | K172: 10875
B173: EMBEDDED GENERATION | C173: Simple connection LV | E173: 4639 | F173: 4580 | G173: 5000 | H173: 5000 | I173: 5000 | J173: 5000 | K173: 5000
C174: Complex connection HV (small capacity) | E174: 0 | F174: 0 | G174: 0 | H174: 0 | I174: 0 | J174: 0 | K174: 0
C175: Complex connection HV (large capacity) | E175: 0 | F175: 0 | G175: 0 | H175: 0 | I175: 0 | J175: 0 | K175: 0
B177: NEW CONNECTIONS - STANDARD CONTROL SERVICES
E178: VOLUMES (0's)
E179: =CRCP_y4 -> 2017-18 | F179: =CRCP_y5 -> 2018-19 | G179: =FRCP_y1 -> 2019-20 | H179: =FRCP_y2 -> 2020-21 | I179: =FRCP_y3 -> 2021-22 | J179: =FRCP_y4 -> 2022-23 | K179: =FRCP_y5 -> 2023-24
B180: RESIDENTIAL | C180: Simple connection LV | E180: 9558.878987 | F180: 9847.732646 | G180: 9495.434175 | H180: 7892.610398 | I180: 7719.625324 | J180: 8153.793414 | K180: 8925.384911
C181: Complex connection LV | E181: 0 | F181: 0 | G181: 0 | H181: 0 | I181: 0 | J181: 0 | K181: 0
C182: Complex connection HV | E182: 0 | F182: 0 | G182: 0 | H182: 0 | I182: 0 | J182: 0 | K182: 0
B183: COMMERCIAL/INDUSTRIAL | C183: Simple connection LV | E183: 0 | F183: 0 | G183: 0 | H183: 0 | I183: 0 | J183: 0 | K183: 0
C184: Complex connection HV (customer connected at LV, minor HV works) | E184: 1240 | F184: 1500 | G184: 1500 | H184: 1500 | I184: 1500 | J184: 1500 | K184: 1500
C185: Complex connection HV (customer connected at LV, upstream asset works) | E185: 0 | F185: 0 | G185: 0 | H185: 0 | I185: 0 | J185: 0 | K185: 0
C186: Complex connection HV (customer connected at HV) | E186: 0 | F186: 0 | G186: 0 | H186: 0 | I186: 0 | J186: 0 | K186: 0
C187: Complex connection sub-transmission | E187: 0 | F187: 0 | G187: 0 | H187: 0 | I187: 0 | J187: 0 | K187: 0
B188: SUBDIVISION | C188: Complex connection LV | E188: 0 | F188: 0 | G188: 0 | H188: 0 | I188: 0 | J188: 0 | K188: 0
C189: Complex connection HV (no upstream asset works) | E189: 0 | F189: 0 | G189: 0 | H189: 0 | I189: 0 | J189: 0 | K189: 0
C190: Complex connection HV (with upstream asset works) | E190: 12243 | F190: 12067 | G190: 12015 | H190: 10984 | I190: 10955 | J190: 10642 | K190: 10875
B191: EMBEDDED GENERATION | C191: Simple connection LV | E191: 4639 | F191: 4580 | G191: 5000 | H191: 5000 | I191: 5000 | J191: 5000 | K191: 5000
C192: Complex connection HV (small capacity) | E192: 0 | F192: 0 | G192: 0 | H192: 0 | I192: 0 | J192: 0 | K192: 0
C193: Complex connection HV (large capacity) | E193: 0 | F193: 0 | G193: 0 | H193: 0 | I193: 0 | J193: 0 | K193: 0
B195: EXISTING CONNECTIONS
E196: VOLUMES (0's)
E197: =CRCP_y4 -> 2017-18 | F197: =CRCP_y5 -> 2018-19 | G197: =FRCP_y1 -> 2019-20 | H197: =FRCP_y2 -> 2020-21 | I197: =FRCP_y3 -> 2021-22 | J197: =FRCP_y4 -> 2022-23 | K197: =FRCP_y5 -> 2023-24
B198: RESIDENTIAL | C198: Simple connection LV | E198: 392545.28 | F198: 402393.0126 | G198: 411888.4468 | H198: 419781.0572 | I198: 427500.6825 | J198: 435654.476 | K198: 444579.8609
C199: Complex connection LV | E199: 0 | F199: 0 | G199: 0 | H199: 0 | I199: 0 | J199: 0 | K199: 0
C200: Complex connection HV | E200: 0 | F200: 0 | G200: 0 | H200: 0 | I200: 0 | J200: 0 | K200: 0
B201: COMMERCIAL/INDUSTRIAL | C201: Simple connection LV | E201: 0 | F201: 0 | G201: 0 | H201: 0 | I201: 0 | J201: 0 | K201: 0
C202: Complex connection HV (customer connected at LV, minor HV works) | E202: 84400 | F202: 85900 | G202: 87400 | H202: 88900 | I202: 90400 | J202: 91900 | K202: 93400
C203: Complex connection HV (customer connected at LV, upstream asset works) | E203: 0 | F203: 0 | G203: 0 | H203: 0 | I203: 0 | J203: 0 | K203: 0
C204: Complex connection HV (customer connected at HV) | E204: 0 | F204: 0 | G204: 0 | H204: 0 | I204: 0 | J204: 0 | K204: 0
C205: Complex connection sub-transmission | E205: 0 | F205: 0 | G205: 0 | H205: 0 | I205: 0 | J205: 0 | K205: 0
B206: SUBDIVISION | C206: Complex connection LV | E206: 0 | F206: 0 | G206: 0 | H206: 0 | I206: 0 | J206: 0 | K206: 0
C207: Complex connection HV (no upstream asset works) | E207: 0 | F207: 0 | G207: 0 | H207: 0 | I207: 0 | J207: 0 | K207: 0
C208: Complex connection HV (with upstream asset works) | E208: 520350.72 | F208: 532417.72 | G208: 544432.72 | H208: 555416.72 | I208: 566371.72 | J208: 577013.72 | K208: 587888.72
B209: EMBEDDED GENERATION | C209: Simple connection LV | E209: 0 | F209: 0 | G209: 0 | H209: 0 | I209: 0 | J209: 0 | K209: 0
C210: Complex connection HV (small capacity) | E210: 0 | F210: 0 | G210: 0 | H210: 0 | I210: 0 | J210: 0 | K210: 0
C211: Complex connection HV (large capacity) | E211: 0 | F211: 0 | G211: 0 | H211: 0 | I211: 0 | J211: 0 | K211: 0

Sheet 2.6 Non-network
B1: =SheetHeader -> REGULATORY REPORTING STATEMENT
B2: =dms_TradingName -> Endeavour Energy
B3: =dms_Reg_Year_Span -> 2019-20 to 2023-24
B4: 2.6 NON NETWORK EXPENDITURE
B6: There are THREE tables on this worksheet - each has been 'grouped' (and sub-grouped) for easy navigation. See the Instructions sheet on how to group or ungroup tables.
B8: 2.6.1 - NON-NETWORK EXPENDITURE
E9: =CONCATENATE("EXPENDITURE ($'0s, real ", dms_DollarReal,")") -> EXPENDITURE ($'0s, real June 2019)
B10: SERVICE SUBCATEGORY | C10: ASSET CATEGORY | E10: =CRCP_y4 -> 2017-18 | F10: =CRCP_y5 -> 2018-19 | G10: =FRCP_y1 -> 2019-20 | H10: =FRCP_y2 -> 2020-21 | I10: =FRCP_y3 -> 2021-22 | J10: =FRCP_y4 -> 2022-23 | K10: =FRCP_y5 -> 2023-24
B11: OPEX
B12: IT & COMMUNICATIONS | C12: Total IT and communications | E12: 33927062.41 | F12: 34586898.19 | G12: 35522642.81 | H12: 36525151.27 | I12: 37798312.63 | J12: 39082714.89 | K12: 40314246.63
B13: MOTOR VEHICLES | C13: Car | E13: 1446048.479 | F13: 1474172.179 | G13: 1514055.741 | H13: 1556784.929 | I13: 1611049.959 | J13: 1665794.101 | K13: 1718284.781
C14: Light commercial vehicle | E14: 8692837.964 | F14: 8861901.983 | G14: 9101659.74 | H14: 9358523.817 | I14: 9684734.948 | J14: 10013826.24 | K14: 10329370.97
C15: Elevated work platform (LCV) | E15: 0 | F15: 0 | G15: 0 | H15: 0 | I15: 0 | J15: 0 | K15: 0
C16: Elevated work platform (HCV) | E16: 417690.3601 | F16: 425813.8764 | G16: 437334.2227 | H16: 449676.5267 | I16: 465350.9526 | J16: 481163.7699 | K16: 496325.6761
C17: Heavy commercial vehicle | E17: 6788074.858 | F17: 6920093.793 | G17: 7107316.149 | H17: 7307896.51 | I17: 7562628.692 | J17: 7819609.934 | K17: 8066012.925
B18: BUILDINGS AND PROPERTY | C18: Total buildings and property expenditure | E18: 14309415.7 | F18: 14587714.61 | G18: 14982383.58 | H18: 15405211.53 | I18: 15942192.74 | J18: 16483915.02 | K18: 17003338.12
B19: OTHER | C19: Other expenditure
B20: OTHER - DNSP nominated | C20: Office furniture and equipment | E20: 0 | F20: 0 | G20: 0 | H20: 0 | I20: 0 | J20: 0 | K20: 0
C21: Plant and equipment | E21: 0 | F21: 0 | G21: 0 | H21: 0 | I21: 0 | J21: 0 | K21: 0
C22: Crane borer plant HCV | E22: 0 | F22: 0 | G22: 0 | H22: 0 | I22: 0 | J22: 0 | K22: 0
C23: Other fleet assets | E23: 0 | F23: 0 | G23: 0 | H23: 0 | I23: 0 | J23: 0 | K23: 0
C24: EWP Hired | E24: 0 | F24: 0 | G24: 0 | H24: 0 | I24: 0 | J24: 0 | K24: 0
C25: Car Hired | E25: 0 | F25: 0 | G25: 0 | H25: 0 | I25: 0 | J25: 0 | K25: 0
C26: LCV Hired | E26: 0 | F26: 0 | G26: 0 | H26: 0 | I26: 0 | J26: 0 | K26: 0
C27: Other Hire | E27: 0 | F27: 0 | G27: 0 | H27: 0 | I27: 0 | J27: 0 | K27: 0
B31: CAPEX
B32: IT & COMMUNICATIONS | C32: Total IT and communications | E32: 48040837 | F32: 41064346 | G32: 30637169.11 | H32: 16816253.77 | I32: 16519250.27 | J32: 14143911.44 | K32: 13073815.41
B33: MOTOR VEHICLES | C33: Car | E33: 0 | F33: 0 | G33: 0 | H33: 0 | I33: 0 | J33: 0 | K33: 0
C34: Light commercial vehicle | E34: 0 | F34: 0 | G34: 0 | H34: 0 | I34: 0 | J34: 0 | K34: 0
C35: Elevated work platform (LCV) | E35: 0 | F35: 0 | G35: 0 | H35: 0 | I35: 0 | J35: 0 | K35: 0
C36: Elevated work platform (HCV) | E36: 1000440.299 | F36: 431415.6613 | G36: 3574146.284 | H36: 3252873.079 | I36: 2372724.16 | J36: 3391893.8 | K36: 0
C37: Heavy commercial vehicle | E37: 3001320.898 | F37: 4314156.613 | G37: 3299211.955 | H37: 867432.8211 | I37: 2033763.566 | J37: 1695946.9 | K37: 1612007.435
B38: BUILDINGS AND PROPERTY | C38: Total buildings and property expenditure | E38: 3300980.921 | F38: 3725779.084 | G38: 7400000 | H38: 9500000 | I38: 7900000 | J38: 7600000 | K38: 5700000
B39: OTHER | C39: Other expenditure | E39: 3218178.527 | F39: 3584421.612 | G39: 4776208.786 | H39: 4672381.65 | I39: 2888212.89 | J39: 3190649.893 | K39: 3172546.782
B40: OTHER - DNSP nominated
B54: 2.6.2 - ANNUAL DESCRIPTOR METRICS
B55: IT & COMMUNICATIONS
E56: VOLUMES (0's)
E57: =CRCP_y4 -> 2017-18 | F57: =CRCP_y5 -> 2018-19 | G57: =FRCP_y1 -> 2019-20 | H57: =FRCP_y2 -> 2020-21 | I57: =FRCP_y3 -> 2021-22 | J57: =FRCP_y4 -> 2022-23 | K57: =FRCP_y5 -> 2023-24
B58: Employee numbers | E58: 1897 | F58: 1897 | G58: 1897 | H58: 1897 | I58: 1897 | J58: 1897 | K58: 1897
B59: User numbers | E59: 3422 | F59: 3422 | G59: 3422 | H59: 3422 | I59: 3422 | J59: 3422 | K59: 3422
B60: Number of devices | E60: 4743 | F60: 4743 | G60: 4743 | H60: 4743 | I60: 4743 | J60: 4743 | K60: 4743
B62: MOTOR VEHICLES
E63: VOLUMES (0's or %)
B64: ASSET CATEGORY | C64: DESCRIPTOR METRIC | D64: Units | E64: =CRCP_y4 -> 2017-18 | F64: =CRCP_y5 -> 2018-19 | G64: =FRCP_y1 -> 2019-20 | H64: =FRCP_y2 -> 2020-21 | I64: =FRCP_y3 -> 2021-22 | J64: =FRCP_y4 -> 2022-23 | K64: =FRCP_y5 -> 2023-24
B65: CAR | C65: Average kilometres travelled | D65: 0's | E65: 21237.46708 | F65: 21650.50729 | G65: 22236.25931 | H65: 22863.80378 | I65: 23660.76999 | J65: 24464.77272 | K65: 25235.67986
C66: Number purchased | D66: 0's | E66: 0 | F66: 0 | G66: 0 | H66: 0 | I66: 0 | J66: 0 | K66: 0
C67: Number leased | D67: 0's | E67: 80 | F67: 80 | G67: 80 | H67: 80 | I67: 80 | J67: 80 | K67: 80
C68: Number in fleet | D68: 0's | E68: 80 | F68: 80 | G68: 80 | H68: 80 | I68: 80 | J68: 80 | K68: 80
C69: Proportion of total fleet expenditure allocated as regulatory expenditure | D69: % | E69: 0.8567599051 | F69: 0.8567599051 | G69: 0.8567599051 | H69: 0.8567599051 | I69: 0.8567599051 | J69: 0.8567599051 | K69: 0.8567599051
B70: LIGHT COMMERCIAL VEHICLE | C70: Average kilometres travelled | D70: 0's | E70: 19804.78661 | F70: 20189.9631 | G70: 20736.20027 | H70: 21321.41056 | I70: 22064.6134 | J70: 22814.37806 | K70: 23533.27978
C71: Number purchased | D71: 0's | E71: 0 | F71: 0 | G71: 0 | H71: 0 | I71: 0 | J71: 0 | K71: 0
C72: Number leased | D72: 0's | E72: 365 | F72: 365 | G72: 365 | H72: 365 | I72: 365 | J72: 365 | K72: 365
C73: Number in fleet | D73: 0's | E73: 365 | F73: 365 | G73: 365 | H73: 365 | I73: 365 | J73: 365 | K73: 365
C74: Proportion of total fleet expenditure allocated as regulatory expenditure | D74: % | E74: 0.8567476152 | F74: 0.8567476152 | G74: 0.8567476152 | H74: 0.8567476152 | I74: 0.8567476152 | J74: 0.8567476152 | K74: 0.8567476152
B75: ELEVATED WORK PLATFORM (LCV) | C75: Average kilometres travelled | D75: 0's | E75: 0 | F75: 0 | G75: 0 | H75: 0 | I75: 0 | J75: 0 | K75: 0
C76: Number purchased | D76: 0's | E76: 0 | F76: 0 | G76: 0 | H76: 0 | I76: 0 | J76: 0 | K76: 0
C77: Number leased | D77: 0's | E77: 0 | F77: 0 | G77: 0 | H77: 0 | I77: 0 | J77: 0 | K77: 0
C78: Number in fleet | D78: 0's | E78: 0 | F78: 0 | G78: 0 | H78: 0 | I78: 0 | J78: 0 | K78: 0
C79: Proportion of total fleet expenditure allocated as regulatory expenditure | D79: % | E79: 0 | F79: 0 | G79: 0 | H79: 0 | I79: 0 | J79: 0 | K79: 0
B80: ELEVATED WORK PLATFORM (HCV) | C80: Average kilometres travelled | D80: 0's | E80: 13068.74427 | F80: 13322.91379 | G80: 13683.36372 | H80: 14069.53115 | I80: 14559.9544 | J80: 15054.70766 | K80: 15529.09513
C81: Number purchased | D81: 0's | E81: 2 | F81: 1 | G81: 13 | H81: 15 | I81: 14 | J81: 24 | K81: 0
C82: Number leased | D82: 0's | E82: 0 | F82: 0 | G82: 0 | H82: 0 | I82: 0 | J82: 0 | K82: 0
C83: Number in fleet | D83: 0's | E83: 105 | F83: 105 | G83: 105 | H83: 105 | I83: 105 | J83: 105 | K83: 105
C84: Proportion of total fleet expenditure allocated as regulatory expenditure | D84: % | E84: 0.7630194337 | F84: 0.7630194337 | G84: 0.7630194337 | H84: 0.7630194337 | I84: 0.7630194337 | J84: 0.7630194337 | K84: 0.7630194337
B85: HEAVY COMMERCIAL VEHICLE | C85: Average kilometres travelled | D85: 0's | E85: 12472.37927 | F85: 12714.95029 | G85: 13058.95183 | H85: 13427.49732 | I85: 13895.54112 | J85: 14367.71734 | K85: 14820.45713
C86: Number purchased | D86: 0's | E86: 6 | F86: 10 | G86: 12 | H86: 4 | I86: 12 | J86: 12 | K86: 7
C87: Number leased | D87: 0's | E87: 0 | F87: 0 | G87: 0 | H87: 0 | I87: 0 | J87: 0 | K87: 0
C88: Number in fleet | D88: 0's | E88: 226 | F88: 226 | G88: 226 | H88: 226 | I88: 226 | J88: 226 | K88: 226
C89: Proportion of total fleet expenditure allocated as regulatory expenditure | D89: % | E89: 0.8415741364 | F89: 0.8415741364 | G89: 0.8415741364 | H89: 0.8415741364 | I89: 0.8415741364 | J89: 0.8415741364 | K89: 0.8415741364
B93: 2.6.4 - INFORMATION & COMMUNICATIONS TECHNOLOGY - CAPEX BY PURPOSE
E94: =CONCATENATE("EXPENDITURE ($'0s, real ", dms_DollarReal,")") -> EXPENDITURE ($'0s, real June 2019)
E95: =CRCP_y4 -> 2017-18 | F95: =CRCP_y5 -> 2018-19 | G95: =FRCP_y1 -> 2019-20 | H95: =FRCP_y2 -> 2020-21 | I95: =FRCP_y3 -> 2021-22 | J95: =FRCP_y4 -> 2022-23 | K95: =FRCP_y5 -> 2023-24
B96: ICT CAPABILITY GROWTH
B97: ICT Capability growth | E97: 4489979 | F97: 5671966 | G97: 6409199.528 | H97: 3601977.687 | I97: 3633707.423 | J97: 2807317.486 | K97: 2346534.075
B103: ICT ASSET EXTENSIONS
B104: ICT Asset Extensions | E104: 1832343 | F104: 226352 | G104: 1853465.743 | H104: 3731276.25 | I104: 4296073.362 | J104: 4429879.485 | K104: 2867203.549
B110: ICT ASSET REMEDITATION
B111: ICT Asset Remediation | E111: 832223 | F111: 84780 | G111: 246633.6147 | H111: 1249804.017 | I111: 558121.0003 | J111: 274300.6254 | K111: 0
B117: ICT ASSET REPLACEMENT
B118: ICT Asset Replacement | E118: 40886292 | F118: 35081248 | G118: 22127870.23 | H118: 8233195.819 | I118: 8031348.486 | J118: 6632413.847 | K118: 7860077.785

Sheet 2.10 Overheads
B1: =SheetHeader -> REGULATORY REPORTING STATEMENT
B2: =dms_TradingName -> Endeavour Energy
B3: =dms_Reg_Year_Span -> 2019-20 to 2023-24
B4: 2.10 OVERHEADS
B6: There are TWO tables on this worksheet. Each table has been 'grouped' (and sub-grouped) for easy navigation. See the Instructions sheet on how to group or ungroup data.
B8: 2.10.1 - NETWORK OVERHEADS EXPENDITURE
D9: =CONCATENATE("EXPENDITURE ($0's, real ", dms_DollarReal,")") -> EXPENDITURE ($0's, real June 2019)
D10: =CRCP_y4 -> 2017-18 | E10: =CRCP_y5 -> 2018-19 | F10: =FRCP_y1 -> 2019-20 | G10: =FRCP_y2 -> 2020-21 | H10: =FRCP_y3 -> 2021-22 | I10: =FRCP_y4 -> 2022-23 | J10: =FRCP_y5 -> 2023-24
B11: OPEX
B12: Standard Control Services | C12: Total | D12: 108146209.9 | E12: 105170291.2 | F12: 108802329.4 | G12: 109897591.4 | H12: 111758079.8 | I12: 112317065.1 | J12: 113915395.1
B13: Alternative Control Services | C13: Total | D13: 8273653.568 | E13: 8045882.057 | F13: 8208039.268 | G13: 8430473.986 | H13: 8717865.006 | I13: 9009384.914 | J13: 9255270.165
B14: CAPEX
B15: Standard Control Services | C15: Total | D15: -53583718.97 | E15: -49547589.86 | F15: -51674764.62 | G15: -51157883.73 | H15: -50970987.7 | I15: -49464412.86 | J15: -49082130.08
B16: Alternative Control Services | C16: Total | D16: -1003969.23 | E16: -634939.5997 | F16: -596594.9307 | G16: -604234.2774 | H16: -618840.1335 | I16: -635153.2037 | J16: -617149.6707
B17: OTHER DISTRIBUTION SERVICES
B18: Negotiated Services | C18: Total | D18: 0 | E18: 0 | F18: 0 | G18: 0 | H18: 0 | I18: 0 | J18: 0
B19: Unregulated Distribution Services | C19: Total | D19: 5783341.589 | E19: 5895718.402 | F19: 6055226.134 | G19: 6226104.944 | H19: 6443117.088 | I19: 6662055.775 | J19: 6871990.473
B23: 2.10.2 - CORPORATE OVERHEADS EXPENDITURE
D24: =CONCATENATE("EXPENDITURE ($0's, real ", dms_DollarReal,")") -> EXPENDITURE ($0's, real June 2019)
D25: =CRCP_y4 -> 2017-18 | E25: =CRCP_y5 -> 2018-19 | F25: =FRCP_y1 -> 2019-20 | G25: =FRCP_y2 -> 2020-21 | H25: =FRCP_y3 -> 2021-22 | I25: =FRCP_y4 -> 2022-23 | J25: =FRCP_y5 -> 2023-24
B26: OPEX
B27: Standard Control Services | C27: Total | D27: 120194730.1 | E27: 122530248.5 | F27: 125845285 | G27: 129396645.8 | H27: 133906792 | I27: 138456977.4 | J27: 142820033.6
B28: Alternative Control Services | C28: Total | D28: 21093207.45 | E28: 21120941.53 | F28: 21637758.02 | G28: 22239331.79 | H28: 23008139.78 | I28: 23785324.47 | J28: 24497456.07
B29: CAPEX
B30: Standard Control Services | C30: Total | D30: -26470837.09 | E30: -26985195.14 | F30: -27715275.34 | G30: -28497401.91 | H30: -29490684.61 | I30: -30492785.25 | J30: -31453673.88
B31: Alternative Control Services | C31: Total | D31: -987413.0388 | E31: -624468.9789 | F31: -586756.6416 | G31: -594270.0099 | H31: -608635.0047 | I31: -624679.0603 | J31: -606972.4188
B32: OTHER DISTRIBUTION SERVICES
B33: Negotiated Services | C33: Total | D33: 0 | E33: 0 | F33: 0 | G33: 0 | H33: 0 | I33: 0 | J33: 0
B34: Unregulated Distribution Services | C34: Total | D34: 8041509.329 | E34: 8197764.873 | F34: 8419554.11 | G34: 8657154.383 | H34: 8958901.245 | I34: 9263326.891 | J34: 9555232.842

Sheet 2.11 Labour
B1: =SheetHeader -> REGULATORY REPORTING STATEMENT
B2: =dms_TradingName -> Endeavour Energy
B3: =dms_Reg_Year_Span -> 2019-20 to 2023-24
B4: 2.11 LABOUR
B6: Table numbering on this worksheet starts at 2.11.3.
B8: 2.11.3 - LABOUR / NON-LABOUR EXPENDITURE SPLIT - STANDARD CONTROL SERVICES
C9: EXPENDITURE
C10: ($0's, nominal) | H10: =CONCATENATE("($0's, real ", dms_DollarReal,")") -> ($0's, real June 2019)
C11: =PRCP_y4 -> 2012-13 | D11: =PRCP_y5 -> 2013-14 | E11: =CRCP_y1 -> 2014-15 | F11: =CRCP_y2 -> 2015-16 | G11: =CRCP_y3 -> 2016-17 | H11: =CRCP_y4 -> 2017-18 | I11: =CRCP_y5 -> 2018-19 | J11: =FRCP_y1 -> 2019-20 | K11: =FRCP_y2 -> 2020-21 | L11: =FRCP_y3 -> 2021-22 | M11: =FRCP_y4 -> 2022-23 | N11: =FRCP_y5 -> 2023-24
B12: OPEX
B13: In-house labour expenditure | C13: 186392591.9 | D13: 213920923.6 | E13: 202057076.6 | F13: 203102006.5 | G13: 163583864.5 | H13: 130503299.9 | I13: 133041413.8 | J13: 136640834.2 | K13: 140497067.3 | L13: 145394389.6 | M13: 150334950.9 | N13: 155072141.4
B14: Labour expenditure outsourced to related parties | C14: 0 | D14: 0 | E14: 0 | F14: 0 | G14: 0 | H14: 0 | I14: 0 | J14: 0 | K14: 0 | L14: 0 | M14: 0 | N14: 0
B15: Labour expenditure outsourced to unrelated parties | C15: 50804212.95 | D15: 67623195.03 | E15: 67858932.71 | F15: 79410909.11 | G15: 67879354.02 | H15: 79985978.44 | I15: 81541598.25 | J15: 83747696.98 | K15: 86111197.21 | L15: 89112785.02 | M15: 92140874.21 | N15: 95044316.61
B16: Controllable non-labour expenditure | C16: 27056852.44 | D16: 17928982.47 | E16: 14032596.87 | F16: 22553380.1 | G16: 66341706.42 | H16: 47364889.65 | I16: 48286073.12 | J16: 49592447.37 | K16: 50992029.26 | L16: 52769464.24 | M16: 54562592.4 | N16: 56281909.1
B17: Uncontrollable non-labour expenditure | C17: 7332616.429 | D17: 7950014.331 | E17: 6347731.622 | F17: 6754778.05 | G17: 7278177.673 | H17: 8462285.647 | I17: 8626865.733 | J17: 8860264.61 | K17: 9110316.113 | L17: 9427875.439 | M17: 9748238.536 | N17: 10055414.36
B18: Total | C18: =SUM(C13:C17) -> 271586273.7 | D18: =SUM(D13:D17) -> 307423115.4 | E18: 290296337.8 | F18: 311821073.8 | G18: 305083102.6 | H18: 266316453.7 | I18: =SUM(I13:I17) -> 271495950.9 | J18: 278841243.1 | K18: 286710609.9 | L18: 296704514.3 | M18: 306786656.1 | N18: 316453781.5
B19: CAPEX
B20: In-house labour expenditure | C20: 88307994.59 | D20: 90593443.03 | E20: 77194784.5 | F20: 54143970.91 | G20: 45610759.43 | H20: 61356729.1 | I20: 50001092.52 | J20: 56326737.64 | K20: 54267455.42 | L20: 53072314.16 | M20: 51521180.13 | N20: 52293421.59
B21: Labour expenditure outsourced to related parties | C21: 0 | D21: 0 | E21: 0 | F21: 0 | G21: 0 | H21: 0 | I21: 0 | J21: 0 | K21: 0 | L21: 0 | M21: 0 | N21: 0
B22: Labour expenditure outsourced to unrelated parties | C22: 242280558.5 | D22: 212870702.5 | E22: 137397195.5 | F22: 80777665.16 | G22: 66829123.51 | H22: 105751145.5 | I22: 86179183.4 | J22: 97081723.79 | K22: 93532456.15 | L22: 91472575.19 | M22: 88799124.33 | N22: 90130118.01
B23: Controllable non-labour expenditure | C23: 236067347.1 | D23: 216690723.8 | E23: 146610463.5 | F23: 111821531.5 | G23: 86521913.55 | H23: 186547096.1 | I23: 152021770.9 | J23: 171254066.1 | K23: 164993088.3 | L23: 161359417.9 | M23: 156643398.1 | N23: 158991297.1
B24: Uncontrollable non-labour expenditure | C24: 67220742.7 | D24: 84140980.27 | E24: 111924420.9 | F24: 123765221.3 | G24: 164136466.7 | H24: 141380525.9 | I24: 233013734.4 | J24: 241606290.3 | K24: 230382968.8 | L24: 227132269 | M24: 223856115.8 | N24: 228106472.3
B25: Total | C25: =SUM(C20:C24) -> 633876642.9 | D25: =SUM(D20:D24) -> 604295849.7 | E25: 473126864.4 | F25: 370508388.9 | G25: 363098263.2 | H25: 495035496.7 | I25: =SUM(I20:I24) -> 521215781.2 | J25: =SUM(J20:J24) -> 566268817.8 | K25: =SUM(K20:K24) -> 543175968.7 | L25: =SUM(L20:L24) -> 533036576.3 | M25: =SUM(M20:M24) -> 520819818.3 | N25: =SUM(N20:N24) -> 529521309

Sheet 2.14 Forecast price changes
B1: =SheetHeader -> REGULATORY REPORTING STATEMENT
B2: =dms_TradingName -> Endeavour Energy
B3: =dms_Reg_Year_Span -> 2019-20 to 2023-24
B4: 2.14 FORECAST PRICE CHANGES
B6: There is ONE table on this worksheet. It has been grouped for easy navigation. See the Instructions sheet on how to group or ungroup data.
B8: Instructions
B9: =CONCATENATE(dms_TradingName, " must provide all forecast price changes used to forecast opex and capex, including forecast changes in CPI. Forecast price changes must be expressed in real terms, except for CPI. "&"If the same escalators are not used for capex and opex, report capex and opex escalators separately. Add additional rows as required. If price changes for a given year were not used to forecast either opex or capex enter '0' for that year.") -> Endeavour Energy must provide all forecast price changes used to forecast opex and capex, including forecast changes in CPI. Forecast price changes must be expressed in real terms, except for CPI. If the same escalators are not used for capex and opex, report capex and opex escalators separately. Add additional rows as required. If price changes for a given year were not used to forecast either opex or capex enter '0' for that year.
B11: 2.14.2 - FORECAST CAPEX AND OPEX PRICE CHANGES
C12: Price changes (% YoY real) Current regulatory period | E12: Price changes (%YoY real) Forthcoming regulatory period
C13: Forecast
C14: =CRCP_y4 -> 2017-18 | D14: =CRCP_y5 -> 2018-19 | E14: =FRCP_y1 -> 2019-20 | F14: =FRCP_y2 -> 2020-21 | G14: =FRCP_y3 -> 2021-22 | H14: =FRCP_y4 -> 2022-23 | I14: =FRCP_y5 -> 2023-24
B15: OPEX
B16: Labour Cost Escalation | C16: 0.006903825651 | D16: 0.006822201733 | E16: 0.01003801943 | F16: 0.01320723952 | G16: 0.0155990796 | H16: 0.01554392812 | I16: 0.01298155414
B19: CAPEX
B20: Labour Cost Escalation | C20: 0.002650178234 | D20: 0.002618845181 | E20: 0.003686803433 | F20: 0.004850807108 | G20: 0.00572929158 | H20: 0.005709035328 | I20: 0.004767916488

Sheet 2.16 Opex Summary
B1: =SheetHeader -> REGULATORY REPORTING STATEMENT
B2: =dms_TradingName -> Endeavour Energy
B3: =dms_Reg_Year_Span -> 2019-20 to 2023-24
B4: 2.16 OPEX SUMMARY
B6: There are FOUR tables on this worksheet. Each table has been 'grouped' (and 'sub-grouped') for easy navigation. See the Instructions sheet on how to group or ungroup data.
B8: Instructions | J8: IMPORTANT!
B9: =CONCATENATE("Complete the tables below in accordance with the regulatory information notice. ",dms_TradingName,"'s total forecast opex must reconcile to Table 2.16.1 (and if ",dms_TradingName," owns any dual function assets Table 2.16.3). If ",dms_TradingName," did not forecast its total opex using a Base Year approach, total forecast opex must reconcile to Table 2.16.2 (and if ",dms_TradingName," owns any dual function assets Table 2.16.4).") -> Complete the tables below in accordance with the regulatory information notice. Endeavour Energy's total forecast opex must reconcile to Table 2.16.1 (and if Endeavour Energy owns any dual function assets Table 2.16.3). If Endeavour Energy did not forecast its total opex using a Base Year approach, total forecast opex must reconcile to Table 2.16.2 (and if Endeavour Energy owns any dual function assets Table 2.16.4). | J9: =CONCATENATE("Has ",dms_TradingName," used a base-step-trend model to derive its opex forecast? ") -> Has Endeavour Energy used a base-step-trend model to derive its opex forecast? | L9: Yes
B10: =CONCATENATE("If ",dms_TradingName," does not own any dual function assets,Table 2.16.3 and 2.16.4 may be left blank.") -> If Endeavour Energy does not own any dual function assets,Table 2.16.3 and 2.16.4 may be left blank. | J10: Yes / No
B11: The total step changes in Table 2.16.1 and Table 2.16.3 must "&"reconcile (in each year) to the total step changes for each year in Table 2.17.1 and Table 2.17.3 of worksheet '2.17 Step Changes', respectively.") | J11: Please nominate the base year. | L11: 2017-18
B14: 2.16.1 - STANDARD CONTROL SERVICES - OPEX BY DRIVER
C15: EXPENDITURE
C16: =CONCATENATE("Forecast ($0's, real ", dms_DollarReal,")") -> Forecast ($0's, real June 2019)
C17: =CRCP_y1 -> 2014-15 | D17: =CRCP_y2 -> 2015-16 | E17: =CRCP_y3 -> 2016-17 | F17: =CRCP_y4 -> 2017-18 | G17: =CRCP_y5 -> 2018-19 | H17: =FRCP_y1 -> 2019-20 | I17: =FRCP_y2 -> 2020-21 | J17: =FRCP_y3 -> 2021-22 | K17: =FRCP_y4 -> 2022-23 | L17: =FRCP_y5 -> 2023-24
B18: Base year total opex, excluding category specific | E18: 0 | F18: 266316453.7 | G18: 266316453.7 | H18: 266316453.7 | I18: 266316453.7 | J18: 266316453.7 | K18: 266316453.7 | L18: 266316453.7
B19: Increment from base year to final year | G19: 5179497.205
B20: Price growth | H20: 4676231.517 | I20: 9610750.416 | J20: 13715499.59 | K20: 18667628.54 | L20: 20811917.67
B21: Output growth | H21: 7848557.952 | I21: 10783405.8 | J21: 16672561.03 | K21: 21802573.86 | L21: 29325410.11
B22: Productivity growth | H22: 0 | I22: 0 | J22: 0 | K22: 0 | L22: 0
B23: Step changes | H23: 0 | I23: 0 | J23: 0 | K23: 0 | L23: 0
B24: Category specific | F24: 0 | G24: 0 | H24: 0 | I24: 0 | J24: 0 | K24: 0 | L24: 0
B25: Total opex | C25: =SUM(C18:C24) -> 0 | D25: =SUM(D18:D24) -> 0 | E25: =SUM(E18:E24) -> 0 | F25: 266316453.7 | G25: 271495950.9 | H25: 278841243.1 | I25: 286710609.9 | J25: 296704514.3 | K25: 306786656.1 | L25: 316453781.5
B28: 2.16.2 - STANDARD CONTROL SERVICES - OPEX BY CATEGORY
C29: EXPENDITURE
C30: =CONCATENATE("Forecast ($0's, real ", dms_DollarReal,")") -> Forecast ($0's, real June 2019)
C31: =CRCP_y1 -> 2014-15 | D31: =CRCP_y2 -> 2015-16 | E31: =CRCP_y3 -> 2016-17 | F31: =CRCP_y4 -> 2017-18 | G31: =CRCP_y5 -> 2018-19 | H31: =FRCP_y1 -> 2019-20 | I31: =FRCP_y2 -> 2020-21 | J31: =FRCP_y3 -> 2021-22 | K31: =FRCP_y4 -> 2022-23 | L31: =FRCP_y5 -> 2023-24
B32: Vegetation management
B33: Maintenance
B34: Emergency response
B35: Non-network
B36: Metering
B37: Network overheads
B38: Corporate overheads
B39: Total opex | C39: =SUM(C32:C38) -> 0 | D39: =SUM(D32:D38) -> 0 | E39: 0 | F39: 0 | G39: 0 | H39: =SUM(H32:H38) -> 0 | I39: 0 | J39: 0 | K39: 0 | L39: 0
B42: 2.16.3 - DUAL FUNCTION ASSETS - OPEX BY DRIVER
C43: EXPENDITURE
C44: =CONCATENATE("Forecast ($0's, real ", dms_DollarReal,")") -> Forecast ($0's, real June 2019)
C45: =CRCP_y1 -> 2014-15 | D45: =CRCP_y2 -> 2015-16 | E45: =CRCP_y3 -> 2016-17 | F45: =CRCP_y4 -> 2017-18 | G45: =CRCP_y5 -> 2018-19 | H45: =FRCP_y1 -> 2019-20 | I45: =FRCP_y2 -> 2020-21 | J45: =FRCP_y3 -> 2021-22 | K45: =FRCP_y4 -> 2022-23 | L45: =FRCP_y5 -> 2023-24
B46: Base year total opex, excluding category specific | E46: 0 | F46: 0 | G46: 0 | H46: 0 | I46: 0 | J46: 0 | K46: 0 | L46: 0
B47: Increment from base year to final year | G47: 0
B48: Price growth | H48: 0 | I48: 0 | J48: 0 | K48: 0 | L48: 0
B49: Output growth | H49: 0 | I49: 0 | J49: 0 | K49: 0 | L49: 0
B50: Productivity growth | H50: 0 | I50: 0 | J50: 0 | K50: 0 | L50: 0
B51: Step changes | H51: 0 | I51: 0 | J51: 0 | K51: 0 | L51: 0
B52: Category specific | E52: 0 | F52: 0 | G52: 0 | H52: 0 | I52: 0 | J52: 0 | K52: 0 | L52: 0
B53: Total opex | C53: =SUM(C46:C52) -> 0 | D53: =SUM(D46:D52) -> 0 | E53: 0 | F53: 0 | G53: 0 | H53: =SUM(H46:H52) -> 0 | I53: 0 | J53: 0 | K53: 0 | L53: 0
B56: 2.16.4 - DUAL FUNCTION ASSETS - OPEX BY CATEGORY
C57: EXPENDITURE
C58: =CONCATENATE("Forecast ($0's, real ", dms_DollarReal,")") -> Forecast ($0's, real June 2019)
C59: =CRCP_y1 -> 2014-15 | D59: =CRCP_y2 -> 2015-16 | E59: =CRCP_y3 -> 2016-17 | F59: =CRCP_y4 -> 2017-18 | G59: =CRCP_y5 -> 2018-19 | H59: =FRCP_y1 -> 2019-20 | I59: =FRCP_y2 -> 2020-21 | J59: =FRCP_y3 -> 2021-22 | K59: =FRCP_y4 -> 2022-23 | L59: =FRCP_y5 -> 2023-24
B60: Vegetation management
B61: Maintenance
B62: Emergency response
B63: Non-network
B64: Metering
B65: Network overheads
B66: Corporate overheads
B67: Total opex | C67: =SUM(C60:C66) -> 0 | D67: =SUM(D60:D66) -> 0 | E67: 0 | F67: 0 | G67: 0 | H67: =SUM(H60:H66) -> 0 | I67: 0 | J67: 0 | K67: 0 | L67: 0

Sheet 2.17 Step Changes
B1: =SheetHeader -> REGULATORY REPORTING STATEMENT
B2: =dms_TradingName -> Endeavour Energy
B3: =dms_Reg_Year_Span -> 2019-20 to 2023-24
B4: 2.17 STEP CHANGES
B6: There are FIVE tables on this worksheet. Each table has been 'grouped' (and 'sub-grouped') for easy navigation. See the Instructions sheet on how to group or ungroup data.
B8: Instructions
B9: =CONCATENATE("Complete the Tables below in accordance with the regulatory information notice. If ",dms_TradingName," does not own any dual function assets,Table 2.17.3 and 2.17.4 may be left blank."&" The total step changes in Table 2.17.1 and Table 2.17.3 must reconcile (in each year) to the total step changes for each year in Table 2.16.1 and Table 2.16.3 of worksheet '2.16 Opex Summary', respectively.") -> Complete the Tables below in accordance with the regulatory information notice. If Endeavour Energy does not own any dual function assets,Table 2.17.3 and 2.17.4 may be left blank. The total step changes in Table 2.17.1 and Table 2.17.3 must reconcile (in each year) to the total step changes for each year in Table 2.16.1 and Table 2.16.3 of worksheet '2.16 Opex Summary', respectively.
B10: The total category specific forecast in Table 2.17.5 must reconcile (in each year) to the total category specific forecasts for each year in Table 2.16.1 and Table 2.16.3 of worksheet '2.16 Opex Summary'.
B12: 2.17.1 - STEP CHANGES FOR STANDARD CONTROL SERVICES - FORECAST OPEX
E13: EXPENDITURE
E14: =CONCATENATE("Forecast ($0's, real ", dms_DollarReal, ")") -> Forecast ($0's, real June 2019)
B15: Step change | C15: Description | E15: =CRCP_y4 -> 2017-18 | F15: =CRCP_y5 -> 2018-19 | G15: =FRCP_y1 -> 2019-20 | H15: =FRCP_y2 -> 2020-21 | I15: =FRCP_y3 -> 2021-22 | J15: =FRCP_y4 -> 2022-23 | K15: =FRCP_y5 -> 2023-24
B16: Nil | C16: Nil | E16: 0 | F16: 0 | G16: 0 | H16: 0 | I16: 0 | J16: 0 | K16: 0
B26: Total | E26: =SUM(E16:E25) -> 0 | F26: 0 | G26: 0 | H26: 0 | I26: 0 | J26: 0 | K26: 0
B27: Check | G27: =IF(G$26-'2.16 Opex Summary'!H$23=0,"OK","Error") -> OK | H27: =IF(H$26-'2.16 Opex Summary'!I$23=0,"OK","Error") -> OK | I27: =IF(I$26-'2.16 Opex Summary'!J$23=0,"OK","Error") -> OK | J27: =IF(J$26-'2.16 Opex Summary'!K$23=0,"OK","Error") -> OK | K27: =IF(K$26-'2.16 Opex Summary'!L$23=0,"OK","Error") -> OK
B29: 2.17.2 - STEP CHANGES FOR STANDARD CONTROL SERVICES - FORECAST CAPEX
E30: EXPENDITURE
E31: =CONCATENATE("Forecast ($0's, real ", dms_DollarReal, ")") -> Forecast ($0's, real June 2019)
B32: Step change | C32: Description | E32: =CRCP_y4 -> 2017-18 | F32: =CRCP_y5 -> 2018-19 | G32: =FRCP_y1 -> 2019-20 | H32: =FRCP_y2 -> 2020-21 | I32: =FRCP_y3 -> 2021-22 | J32: =FRCP_y4 -> 2022-23 | K32: =FRCP_y5 -> 2023-24
B33: Nil | C33: Nil | E33: 0 | F33: 0 | G33: 0 | H33: 0 | I33: 0 | J33: 0 | K33: 0
B43: Total | E43: =SUM(E33:E42) -> 0 | F43: 0 | G43: 0 | H43: 0 | I43: 0 | J43: 0 | K43: 0
B45: 2.17.3 - STEP CHANGES FOR DUAL FUNCTION ASSETS - FORECAST OPEX
E46: EXPENDITURE
E47: =CONCATENATE("Forecast ($0's, real ", dms_DollarReal, ")") -> Forecast ($0's, real June 2019)
B48: Step change | C48: Description | E48: =CRCP_y4 -> 2017-18 | F48: =CRCP_y5 -> 2018-19 | G48: =FRCP_y1 -> 2019-20 | H48: =FRCP_y2 -> 2020-21 | I48: =FRCP_y3 -> 2021-22 | J48: =FRCP_y4 -> 2022-23 | K48: =FRCP_y5 -> 2023-24
B49: Nil | C49: Nil | E49: 0 | F49: 0 | G49: 0 | H49: 0 | I49: 0 | J49: 0 | K49: 0
B59: Total | E59: =SUM(E49:E58) -> 0 | F59: 0 | G59: 0 | H59: 0 | I59: 0 | J59: 0 | K59: 0
B60: Check | G60: =IF(G$26-'2.16 Opex Summary'!H$51=0,"OK","Error") -> OK | H60: =IF(H$26-'2.16 Opex Summary'!I$51=0,"OK","Error") -> OK | I60: =IF(I$26-'2.16 Opex Summary'!J$51=0,"OK","Error") -> OK | J60: =IF(J$26-'2.16 Opex Summary'!K$51=0,"OK","Error") -> OK | K60: =IF(K$26-'2.16 Opex Summary'!L$51=0,"OK","Error") -> OK
B62: 2.17.4 - STEP CHANGES FOR DUAL FUNCTION ASSETS - FORECAST CAPEX
E63: EXPENDITURE
E64: =CONCATENATE("Forecast ($0's, real ", dms_DollarReal, ")") -> Forecast ($0's, real June 2019)
B65: Step change | C65: Description | E65: =CRCP_y4 -> 2017-18 | F65: =CRCP_y5 -> 2018-19 | G65: =FRCP_y1 -> 2019-20 | H65: =FRCP_y2 -> 2020-21 | I65: =FRCP_y3 -> 2021-22 | J65: =FRCP_y4 -> 2022-23 | K65: =FRCP_y5 -> 2023-24
B66: Nil | C66: Nil | E66: 0 | F66: 0 | G66: 0 | H66: 0 | I66: 0 | J66: 0 | K66: 0
B76: Total | E76: =SUM(E66:E75) -> 0 | F76: 0 | G76: 0 | H76: 0 | I76: 0 | J76: 0 | K76: 0
B79: 2.17.5 - FORECAST CATEGORY SPECIFIC OPEX
D80: EXPENDITURE
D81: =CONCATENATE("Forecast ($0's, real ", dms_DollarReal, ")") -> Forecast ($0's, real June 2019)
B82: Category | C82: Description | D82: =CRCP_y3 -> 2016-17 | E82: =CRCP_y4 -> 2017-18 | F82: =CRCP_y5 -> 2018-19 | G82: =FRCP_y1 -> 2019-20 | H82: =FRCP_y2 -> 2020-21 | I82: =FRCP_y3 -> 2021-22 | J82: =FRCP_y4 -> 2022-23 | K82: =FRCP_y5 -> 2023-24
B83: Nil | C83: Nil | D83: 0 | E83: 0 | F83: 0 | G83: 0 | H83: 0 | I83: 0 | J83: 0 | K83: 0
B93: Total | D93: =SUM(D90:D92) -> 0 | E93: 0 | F93: 0 | G93: 0 | H93: 0 | I93: 0 | J93: 0 | K93: 0

Sheet 3.1 Revenue
B1: =SheetHeader -> REGULATORY REPORTING STATEMENT
B2: =dms_TradingName -> Endeavour Energy
B3: =dms_Reg_Year_Span -> 2019-20 to 2023-24
B4: 3.1 REVENUE
B6: There are THREE tables on this worksheet. Each table has been 'grouped' (and 'sub-grouped') for easy navigation. See the Instructions sheet on how to group or ungroup data.
B8: 3.1.1 - REVENUE GROUPING BY CHARGEABLE QUANTITY
C9: Standard control services | K9: Alternative control services
C10: REVENUE | K10: REVENUE
C11: =CONCATENATE("Forecast ($0's, real ", dms_DollarReal,")") -> Forecast ($0's, real June 2019) | K11: =CONCATENATE("Forecast ($0's, real ", dms_DollarReal,")") -> Forecast ($0's, real June 2019)
C12: =CRCP_y4 -> 2017-18 | D12: =CRCP_y5 -> 2018-19 | E12: =FRCP_y1 -> 2019-20 | F12: =FRCP_y2 -> 2020-21 | G12: =FRCP_y3 -> 2021-22 | H12: =FRCP_y4 -> 2022-23 | I12: =FRCP_y5 -> 2023-24 | K12: =CRCP_y4 -> 2017-18 | L12: =CRCP_y5 -> 2018-19 | M12: =FRCP_y1 -> 2019-20 | N12: =FRCP_y2 -> 2020-21 | O12: =FRCP_y3 -> 2021-22 | P12: =FRCP_y4 -> 2022-23 | Q12: =FRCP_y5 -> 2023-24
A13: DREV0101 | B13: Revenue from Fixed Customer Charges | C13: 182794940.6 | D13: 195507560.3 | E13: 197532958.4 | F13: 199995764.4 | G13: 203000738.7 | H13: 206142705.1 | I13: 209720196.3 | K13: 0 | L13: 0 | M13: 0 | N13: 0 | O13: 0 | P13: 0 | Q13: 0
A14: DREV0102 | B14: Revenue from Energy Delivery charges where time of use is not a determinant | C14: 465974780.5 | D14: 464526055.2 | E14: 473983138.6 | F14: 477135825.2 | G14: 478540812.4 | H14: 480851368.4 | I14: 487416855.9 | K14: 0 | L14: 0 | M14: 0 | N14: 0 | O14: 0 | P14: 0 | Q14: 0
A15: DREV0103 | B15: Revenue from On–Peak Energy Delivery charges | C15: 28900934.89 | D15: 26188221.53 | E15: 27021994.66 | F15: 26102377.12 | G15: 25080737.37 | H15: 24144135.56 | I15: 23656833 | K15: 0 | L15: 0 | M15: 0 | N15: 0 | O15: 0 | P15: 0 | Q15: 0
A16: DREV0104 | B16: Revenue from Shoulder period Energy Delivery Charges | C16: 14709235.17 | D16: 10893936.42 | E16: 11699799.71 | F16: 10518998.71 | G16: 9203713.214 | H16: 8003261.092 | I16: 7208875.813 | K16: 0 | L16: 0 | M16: 0 | N16: 0 | O16: 0 | P16: 0 | Q16: 0
A17: DREV0105 | B17: Revenue from Off–Peak Energy Delivery charges | C17: 6521643.618 | D17: 3604971.344 | E17: 4186168.701 | F17: 3288243.033 | G17: 2281649.257 | H17: 1364311.599 | I17: 724675.3348 | K17: 0 | L17: 0 | M17: 0 | N17: 0 | O17: 0 | P17: 0 | Q17: 0
A18: DREV0106 | B18: Revenue from controlled load customer charges | C18: 5039704.783 | D18: 4238126.945 | E18: 4203497.354 | F18: 3842504.485 | G18: 3487189.391 | H18: 3168699.461 | I18: 2925752.17 | K18: 0 | L18: 0 | M18: 0 | N18: 0 | O18: 0 | P18: 0 | Q18: 0
A19: DREV0107 | B19: Revenue from unmetered supplies | C19: 9218016.955 | D19: 9325219.719 | E19: 9328446.639 | F19: 9322393.583 | G19: 9337191.839 | H19: 9349924.402 | I19: 9376911.889 | K19: 0 | L19: 0 | M19: 0 | N19: 0 | O19: 0 | P19: 0 | Q19: 0
A20: DREV0108 | B20: Revenue from Contracted Maximum Demand charges | C20: 0 | D20: 0 | E20: 0 | F20: 0 | G20: 0 | H20: 0 | I20: 0 | K20: 0 | L20: 0 | M20: 0 | N20: 0 | O20: 0 | P20: 0 | Q20: 0
A21: DREV0109 | B21: Revenue from Measured Maximum Demand charges | C21: 135824961.5 | D21: 137510653.2 | E21: 138962391.4 | F21: 139799589.3 | G21: 140201568.9 | H21: 141545692.7 | I21: 143533010.3 | K21: 0 | L21: 0 | M21: 0 | N21: 0 | O21: 0 | P21: 0 | Q21: 0
A22: DREV0110 | B22: Revenue from metering charges | C22: 0 | D22: 0 | E22: 0 | F22: 0 | G22: 0 | H22: 0 | I22: 0 | K22: 18509835.17 | L22: 18169521.74 | M22: 21714439.2 | N22: 20739602.14 | O22: 20009667.49 | P22: 19484689.51 | Q22: 19001153.32
A23: DREV0111 | B23: Revenue from connection charges | C23: 0 | D23: 0 | E23: 0 | F23: 0 | G23: 0 | H23: 0 | I23: 0 | K23: 0 | L23: 0 | M23: 0 | N23: 0 | O23: 0 | P23: 0 | Q23: 0
A24: DREV0112 | B24: Revenue from public lighting charges | C24: 0 | D24: 0 | E24: 0 | F24: 0 | G24: 0 | H24: 0 | I24: 0 | K24: 21989482.9 | L24: 21734956.28 | M24: 19457199.39 | N24: 19492199.88 | O24: 19534432 | P24: 19576944.43 | Q24: 19612605.17
A25: DREV0113 | B25: Revenue from other Sources | C25: 0 | D25: 0 | E25: 0 | F25: 0 | G25: 0 | H25: 0 | I25: 0 | K25: 29289230.89 | L25: 29774967.78 | M25: 32487950.69 | N25: 32233043.7 | O25: 32072112.29 | P25: 31963709.14 | Q25: 31858705.95
A26: DREV01 | B26: Total revenue by chargeable quantity | C26: =SUM(C13:C25) -> 848984218 | D26: =SUM(D13:D25) -> 851794744.7 | E26: 866918395.5 | F26: 870005695.9 | G26: 871133601.1 | H26: 874570098.3 | I26: 884563110.6 | K26: =SUM(K13:K25) -> 69788548.96 | L26: =SUM(L13:L25) -> 69679445.8 | M26: 73659589.28 | N26: 72464845.72 | O26: 71616211.78 | P26: 71025343.08 | Q26: 70472464.44
B29: 3.1.2 - REVENUE GROUPING BY CUSTOMER TYPE OR CLASS
C30: Standard control services | K30: Alternative control services
C31: REVENUE | K31: REVENUE
C32: =CONCATENATE("Forecast ($0's, real ", dms_DollarReal,")") -> Forecast ($0's, real June 2019) | K32: =CONCATENATE("Forecast ($0's, real ", dms_DollarReal,")") -> Forecast ($0's, real June 2019)
C33: =CRCP_y4 -> 2017-18 | D33: =CRCP_y5 -> 2018-19 | E33: =FRCP_y1 -> 2019-20 | F33: =FRCP_y2 -> 2020-21 | G33: =FRCP_y3 -> 2021-22 | H33: =FRCP_y4 -> 2022-23 | I33: =FRCP_y5 -> 2023-24 | K33: =CRCP_y4 -> 2017-18 | L33: =CRCP_y5 -> 2018-19 | M33: =FRCP_y1 -> 2019-20 | N33: =FRCP_y2 -> 2020-21 | O33: =FRCP_y3 -> 2021-22 | P33: =FRCP_y4 -> 2022-23 | Q33: =FRCP_y5 -> 2023-24
A34: DREV0201 | B34: Revenue from residential Customers | C34: 476808731.2 | D34: 484761972.8 | E34: 494328954.9 | F34: 499814662.2 | G34: 503703595.9 | H34: 508483468.2 | I34: 516535844.7 | K34: 0 | L34: 0 | M34: 0 | N34: 0 | O34: 0 | P34: 0 | Q34: 0
A35: DREV0202 | B35: Revenue from Non residential customers not on demand tariffs | C35: 141204194.7 | D35: 139818320 | E35: 141167315 | F35: 141010747.3 | G35: 141066752.5 | H35: 140996483.8 | I35: 142035767.7 | K35: 0 | L35: 0 | M35: 0 | N35: 0 | O35: 0 | P35: 0 | Q35: 0
A36: DREV0203 | B36: Revenue from Non-residential low voltage demand tariff customers | C36: 158647674.4 | D36: 159974265.4 | E36: 162907908.7 | F36: 162111124 | G36: 160858425 | H36: 160747024.4 | I36: 162009282.9 | K36: 0 | L36: 0 | M36: 0 | N36: 0 | O36: 0 | P36: 0 | Q36: 0
A37: DREV0204 | B37: Revenue from Non-residential high voltage demand tariff customers | C37: 63105600.66 | D37: 57914966.77 | E37: 59185770.22 | F37: 57746768.8 | G37: 56167635.86 | H37: 54993197.48 | I37: 54605303.43 | K37: 0 | L37: 0 | M37: 0 | N37: 0 | O37: 0 | P37: 0 | Q37: 0
A38: DREV0205 | B38: Revenue from unmetered supplies | C38: 9218016.955 | D38: 9325219.719 | E38: 9328446.639 | F38: 9322393.583 | G38: 9337191.839 | H38: 9349924.402 | I38: 9376911.889 | K38: 0 | L38: 0 | M38: 0 | N38: 0 | O38: 0 | P38: 0 | Q38: 0
A39: DREV0206 | B39: Revenue from Other Customers | C39: 0 | D39: 0 | E39: 0 | F39: 0 | G39: 0 | H39: 0 | I39: 0 | K39: 0 | L39: 0 | M39: 0 | N39: 0 | O39: 0 | P39: 0 | Q39: 0
A40: DREV02 | B40: Total revenue by customer class | C40: =SUM(C34:C39) -> 848984218 | D40: =SUM(D34:D39) -> 851794744.7 | E40: 866918395.5 | F40: 870005695.9 | G40: 871133601.1 | H40: 874570098.3 | I40: 884563110.6 | K40: =SUM(K34:K39) -> 0 | L40: =SUM(L34:L39) -> 0 | M40: 0 | N40: 0 | O40: 0 | P40: 0 | Q40: 0
B43: 3.1.3 - REVENUE (penalties) ALLOWED (deducted) THROUGH INCENTIVE SCHEMES
C44: Standard control services | K44: Alternative control services
C45: REVENUE | K45: REVENUE
C46: =CONCATENATE("Forecast ($0's, real ", dms_DollarReal,")") -> Forecast ($0's, real June 2019) | K46: =CONCATENATE("Forecast ($0's, real ", dms_DollarReal,")") -> Forecast ($0's, real June 2019)
C47: =CRCP_y4 -> 2017-18 | D47: =CRCP_y5 -> 2018-19 | E47: =FRCP_y1 -> 2019-20 | F47: =FRCP_y2 -> 2020-21 | G47: =FRCP_y3 -> 2021-22 | H47: =FRCP_y4 -> 2022-23 | I47: =FRCP_y5 -> 2023-24 | K47: =CRCP_y4 -> 2017-18 | L47: =CRCP_y5 -> 2018-19 | M47: =FRCP_y1 -> 2019-20 | N47: =FRCP_y2 -> 2020-21 | O47: =FRCP_y3 -> 2021-22 | P47: =FRCP_y4 -> 2022-23 | Q47: =FRCP_y5 -> 2023-24
A48: DREV0301 | B48: EBSS | C48: -24786677.67 | D48: 0 | E48: 23212433.36 | F48: 69085550.78 | G48: 78743573.88 | H48: 64104351.65 | I48: 0 | K48: 0 | L48: 0 | M48: 0 | N48: 0 | O48: 0 | P48: 0 | Q48: 0
A49: DREV0302 | B49: STPIS | C49: 0 | D49: 0 | E49: 0 | F49: 0 | G49: 0 | H49: 0 | I49: 0 | K49: 0 | L49: 0 | M49: 0 | N49: 0 | O49: 0 | P49: 0 | Q49: 0
A50: DREV0303 | B50: F-Factor | C50: 0 | D50: 0 | E50: 0 | F50: 0 | G50: 0 | H50: 0 | I50: 0 | K50: 0 | L50: 0 | M50: 0 | N50: 0 | O50: 0 | P50: 0 | Q50: 0
A51: DREV0304 | B51: S-Factor True up | C51: 0 | D51: 0 | E51: 12933025.17 | F51: 0 | G51: 0 | H51: 0 | I51: 0 | K51: 0 | L51: 0 | M51: 0 | N51: 0 | O51: 0 | P51: 0 | Q51: 0
A52: DREV0305 | B52: Other | C52: 0 | D52: 0 | E52: 0 | F52: 0 | G52: 0 | H52: 0 | I52: 0 | K52: 0 | L52: 0 | M52: 0 | N52: 0 | O52: 0 | P52: 0 | Q52: 0
A53: DREV03 | B53: Total revenue of incentive schemes | C53: =SUM(C48:C52) -> -24786677.67 | D53: =SUM(D48:D52) -> 0 | E53: 36145458.53 | F53: 69085550.78 | G53: 78743573.88 | H53: 64104351.65 | I53: 0 | K53: =SUM(K48:K52) -> 0 | L53: =SUM(L48:L52) -> 0 | M53: 0 | N53: 0 | O53: 0 | P53: 0 | Q53: 0

Sheet 3.2 Operating expenditure
B1: =SheetHeader -> REGULATORY REPORTING STATEMENT
B2: =dms_TradingName -> Endeavour Energy
B3: =dms_Reg_Year_Span -> 2019-20 to 2023-24
B4: 3.2 OPERATING EXPENDITURE
B6: There are THREE tables on this worksheet. Both ROWS and COLUMNS have been grouped for ease of navigation. see the Instructions sheet on how to group or ungroup tables.
B8: Instructions
B9: =CONCATENATE("Forecasts for opex in table 3.2.1 are to be for the opex categories that ",dms_TradingName," has reported in its response to its annual reporting RIN.") -> Forecasts for opex in table 3.2.1 are to be for the opex categories that Endeavour Energy has reported in its response to its annual reporting RIN.
B11: 3.2.1 - OPEX CATEGORIES
B12: CURRENT OPEX CATEGORIES AND COST ALLOCATIONS
C13: Standard control services | K13: Alternative control services
C14: EXPENDITURE | K14: EXPENDITURE
C15: =CONCATENATE("Forecast ($0's, real ",dms_DollarReal,")") -> Forecast ($0's, real June 2019) | K15: =CONCATENATE("Forecast ($0's, real ",dms_DollarReal,")") -> Forecast ($0's, real June 2019)
C16: =CRCP_y4 -> 2017-18 | D16: =CRCP_y5 -> 2018-19 | E16: =FRCP_y1 -> 2019-20 | F16: =FRCP_y2 -> 2020-21 | G16: =FRCP_y3 -> 2021-22 | H16: =FRCP_y4 -> 2022-23 | I16: =FRCP_y5 -> 2023-24 | K16: =CRCP_y4 -> 2017-18 | L16: =CRCP_y5 -> 2018-19 | M16: =FRCP_y1 -> 2019-20 | N16: =FRCP_y2 -> 2020-21 | O16: =FRCP_y3 -> 2021-22 | P16: =FRCP_y4 -> 2022-23 | Q16: =FRCP_y5 -> 2023-24
A17: DOPEX0101 | B17: Vegetation management | C17: 38915588 | D17: 39672443.9 | E17: 40745777.39 | F17: 41895691.45 | G17: 43356054.34 | H17: 44829310.95 | I17: 46241923.14 | K17: 0 | L17: 0 | M17: 0 | N17: 0 | O17: 0 | P17: 0 | Q17: 0
A18: DOPEX0102 | B18: Maintenance | C18: 56264298.66 | D18: 57358563.67 | E18: 58910393.13 | F18: 60572943.06 | G18: 62684341.04 | H18: 64814380.8 | I18: 66856740.64 | K18: 0 | L18: 0 | M18: 0 | N18: 0 | O18: 0 | P18: 0 | Q18: 0
A19: DOPEX0103 | B19: Emergency response | C19: 22850183.09 | D19: 23294588.45 | E19: 23924820.9 | F19: 24600019.41 | G19: 25457505.09 | H19: 26322561.61 | I19: 27152009.37 | K19: 0 | L19: 0 | M19: 0 | N19: 0 | O19: 0 | P19: 0 | Q19: 0
A20: DOPEX0104 | B20: Non-network | C20: 0 | D20: 0 | E20: 0 | F20: 0 | G20: 0 | H20: 0 | I20: 0 | K20: 0 | L20: 0 | M20: 0 | N20: 0 | O20: 0 | P20: 0 | Q20: 0
A21: DOPEX0105 | B21: network overheads | C21: 54562490.94 | D21: 55622701.32 | E21: 57127564.74 | F21: 58739707.71 | G21: 60787092.07 | H21: 62852652.27 | I21: 64833265 | K21: 0 | L21: 0 | M21: 0 | N21: 0 | O21: 0 | P21: 0 | Q21: 0
A22: DOPEX0106 | B22: corporate overheads | C22: 93723892.99 | D22: 95545053.33 | E22: 98130009.7 | F22: 100899243.9 | G22: 104416107.4 | H22: 107964192.1 | I22: 111366359.7 | K22: 0 | L22: 0 | M22: 0 | N22: 0 | O22: 0 | P22: 0 | Q22: 0
A23: DOPEX0107
A24: DOPEX0108 | B24: Metering | C24: 0 | D24: 0 | E24: 0 | F24: 0 | G24: 0 | H24: 0 | I24: 0 | K24: 20208248 | L24: 19629673.04 | M24: 19253482.71 | N24: 19151865.26 | O24: 19063617.67 | P24: 18937793.05 | Q24: 18811308.54
A25: DOPEX0109 | B25: Public Lighting | C25: 0 | D25: 0 | E25: 0 | F25: 0 | G25: 0 | H25: 0 | I25: 0 | K25: 14106496 | L25: 14733882.41 | M25: 15389171.83 | N25: 16073605.25 | O25: 16788478.84 | P25: 17535146.44 | Q25: 18315022.07
A26: DOPEX0110 | B26: Ancillary network services | C26: 0 | D26: 0 | E26: 0 | F26: 0 | G26: 0 | H26: 0 | I26: 0 | K26: 26610949.06 | L26: 26488080.31 | M26: 28857880.3 | N26: 29220439 | O26: 29780861.07 | P26: 30367665.05 | Q26: 30852143.96
A27: DOPEX0111
A28: DOPEX0112
A29: DOPEX0113
A30: DOPEX0114
A31: DOPEX0115
A32: DOPEX0116
A33: DOPEX0117
A34: DOPEX0118
A35: DOPEX0119
A36: DOPEX0120
A37: DOPEX0121
A38: DOPEX0122
A39: DOPEX0123
A40: DOPEX0124
A41: DOPEX0125
A42: DOPEX0126
A43: DOPEX0127
A44: DOPEX0128
A45: DOPEX0129
A46: DOPEX0130
A47: DOPEX0131
A48: DOPEX0132
A49: DOPEX0133
A50: DOPEX0134
A51: DOPEX0135
A52: DOPEX0136
A53: DOPEX0137
A54: DOPEX0138
A55: DOPEX0139
A56: DOPEX0140
A57: DOPEX0141
A58: DOPEX0142
A59: DOPEX0143
A60: DOPEX0144
A61: DOPEX0145
A62: DOPEX0146
A63: DOPEX0147
A64: DOPEX0148
A65: DOPEX0149
A66: DOPEX01 | B66: Total opex | C66: =SUM(C17:C65) -> 266316453.7 | D66: =SUM(D17:D65) -> 271493350.7 | E66: 278838565.9 | F66: 286707605.5 | G66: 296701099.9 | H66: 306783097.8 | I66: 316450297.8 | K66: =SUM(K17:K65) -> 60925693.06 | L66: =SUM(L17:L65) -> 60851635.76 | M66: 63500534.84 | N66: 64445909.51 | O66: 65632957.59 | P66: 66840604.53 | Q66: 67978474.57
B69: 3.2.2 - OPEX CONSISTENCY
B70: OPEX CONSISTENCY - CURRENT COST ALLOCATION APPROACH
C71: Standard control services | K71: Alternative control services
C72: EXPENDITURE | K72: EXPENDITURE
C73: =CONCATENATE("Forecast ($0's, real ",dms_DollarReal,")") -> Forecast ($0's, real June 2019) | K73: =CONCATENATE("Forecast ($0's, real ",dms_DollarReal,")") -> Forecast ($0's, real June 2019)
C74: =CRCP_y4 -> 2017-18 | D74: =CRCP_y5 -> 2018-19 | E74: =FRCP_y1 -> 2019-20 | F74: =FRCP_y2 -> 2020-21 | G74: =FRCP_y3 -> 2021-22 | H74: =FRCP_y4 -> 2022-23 | I74: =FRCP_y5 -> 2023-24 | K74: =CRCP_y4 -> 2017-18 | L74: =CRCP_y5 -> 2018-19 | M74: =FRCP_y1 -> 2019-20 | N74: =FRCP_y2 -> 2020-21 | O74: =FRCP_y3 -> 2021-22 | P74: =FRCP_y4 -> 2022-23 | Q74: =FRCP_y5 -> 2023-24
A75: DOPEX0201 | B75: Opex for network services | C75: 266316453.7 | D75: 271493350.7 | E75: 278838565.9 | F75: 286707605.5 | G75: 296701099.9 | H75: 306783097.8 | I75: 316450297.8 | K75: 0 | L75: 0 | M75: 0 | N75: 0 | O75: 0 | P75: 0 | Q75: 0
A76: DOPEX0202 | B76: Opex for metering | C76: 0 | D76: 0 | E76: 0 | F76: 0 | G76: 0 | H76: 0 | I76: 0 | K76: 20208248 | L76: 19629673.04 | M76: 19253482.71 | N76: 19151865.26 | O76: 19063617.67 | P76: 18937793.05 | Q76: 18811308.54
A77: DOPEX0203 | B77: Opex for connection services | C77: 0 | D77: 0 | E77: 0 | F77: 0 | G77: 0 | H77: 0 | I77: 0 | K77: 26610949.06 | L77: 26488080.31 | M77: 28857880.3 | N77: 29220439 | O77: 29780861.07 | P77: 30367665.05 | Q77: 30852143.96
A78: DOPEX0204 | B78: Opex for public lighting | C78: 0 | D78: 0 | E78: 0 | F78: 0 | G78: 0 | H78: 0 | I78: 0 | K78: 14106496 | L78: 14733882.41 | M78: 15389171.83 | N78: 16073605.25 | O78: 16788478.84 | P78: 17535146.44 | Q78: 18315022.07
A79: DOPEX0205 | B79: Opex for amounts payable for easement levy or similar direct charges on DNSP | C79: 0 | D79: 0 | E79: 0 | F79: 0 | G79: 0 | H79: 0 | I79: 0 | K79: 0 | L79: 0 | M79: 0 | N79: 0 | O79: 0 | P79: 0 | Q79: 0
A80: DOPEX0207 | B80: Opex for transmission connection point planning | C80: 0 | D80: 0 | E80: 0 | F80: 0 | G80: 0 | H80: 0 | I80: 0 | K80: 0 | L80: 0 | M80: 0 | N80: 0 | O80: 0 | P80: 0 | Q80: 0
B83: 3.2.4 - OPEX FOR HIGH VOLTAGE CUSTOMERS
C84: End user costs (not standard control services)
C85: EXPENDITURE
C86: =CONCATENATE("Forecast ($0's, real ",dms_DollarReal,")") -> Forecast ($0's, real June 2019)
C87: =CRCP_y4 -> 2017-18 | D87: =CRCP_y5 -> 2018-19 | E87: =FRCP_y1 -> 2019-20 | F87: =FRCP_y2 -> 2020-21 | G87: =FRCP_y3 -> 2021-22 | H87: =FRCP_y4 -> 2022-23 | I87: =FRCP_y5 -> 2023-24
A88: DOPEX0401 | B88: Opex for high voltage customers | C88: 207099 | D88: 207099 | E88: 207099 | F88: 207099 | G88: 207099 | H88: 207099 | I88: 207099

Sheet 3.3 Assets (RAB)
B1: =SheetHeader -> REGULATORY REPORTING STATEMENT
B2: =dms_TradingName -> Australian Distribution Co.
B3: =dms_Reg_Year_Span -> 2019-20 to 2023-24
B4: 3.3 ASSETS
B6: There are FOUR tables on this worksheet. Both ROWS and COLUMNS in each have been grouped (and sub-grouped) for ease of navigation. see the Instructions sheet on how to group or ungroup tables.
B8: 3.3.1 - REGULATORY ASSET BASE VALUES
C9: Network services | K9: Standard control services | S9: Alternative control services
C10: =CONCATENATE("Forecast ($0's, real ", dms_DollarReal,")") -> Forecast ($0's, real June 2019) | K10: =CONCATENATE("Forecast ($0's, real ", dms_DollarReal,")") -> Forecast ($0's, real June 2019) | S10: =CONCATENATE("Forecast ($0's, real ", dms_DollarReal,")") -> Forecast ($0's, real June 2019)
C11: =CRCP_y4 -> 2017-18 | D11: =CRCP_y5 -> 2018-19 | E11: =FRCP_y1 -> 2019-20 | F11: =FRCP_y2 -> 2020-21 | G11: =FRCP_y3 -> 2021-22 | H11: =FRCP_y4 -> 2022-23 | I11: =FRCP_y5 -> 2023-24 | K11: =CRCP_y4 -> 2017-18 | L11: =CRCP_y5 -> 2018-19 | M11: =FRCP_y1 -> 2019-20 | N11: =FRCP_y2 -> 2020-21 | O11: =FRCP_y3 -> 2021-22 | P11: =FRCP_y4 -> 2022-23 | Q11: =FRCP_y5 -> 2023-24 | S11: =CRCP_y4 -> 2017-18 | T11: =CRCP_y5 -> 2018-19 | U11: =FRCP_y1 -> 2019-20 | V11: =FRCP_y2 -> 2020-21 | W11: =FRCP_y3 -> 2021-22 | X11: =FRCP_y4 -> 2022-23 | Y11: =FRCP_y5 -> 2023-24
B12: For total asset base:
A13: DRAB0101 | B13: Opening value | C13: 6047237677 | D13: 6267534683 | E13: 6541169656 | F13: 6914432445 | G13: 7258251713 | H13: 7595820154 | I13: 7923183776 | K13: 6015299665 | L13: 6238422544 | M13: 6512061508 | N13: 6886828036 | O13: 7232225550 | P13: 7571447529 | Q13: 7900542967 | S13: 31938012.4 | T13: 29112139.41 | U13: 29108148.24 | V13: 27604408.74 | W13: 26026162.2 | X13: 24372625.01 | Y13: 22640808.93
A14: DRAB0102 | B14: Inflation addition | C14: 117839340.3 | D14: 123085119.8 | E14: 163529241.4 | F14: 172860811.1 | G14: 181456292.8 | H14: 189895503.8 | I14: 198079594.4 | K14: 117216981.1 | L14: 122513400.4 | M14: 162801537.7 | N14: 172170700.9 | O14: 180805638.8 | P14: 189286188.2 | Q14: 197513574.2 | S14: 622359.2512 | T14: 571719.3998 | U14: 727703.7059 | V14: 690110.2186 | W14: 650654.055 | X14: 609315.6254 | Y14: 566020.2231
A15: DRAB0103 | B15: Straight line depreciation | C15: -246167085.4 | D15: -256893623.7 | E15: -266646186.1 | F15: -289280091.6 | G15: -308156154.1 | H15: -324784025.8 | I15: -328854769.6 | K15: -242815196.3 | L15: -252878914.1 | M15: -264642883.4 | N15: -287239875.3 | O15: -306080103.3 | P15: -322671034.5 | Q15: -326703704.1 | S15: -3351889.101 | T15: -4014709.635 | U15: -2003302.744 | V15: -2040216.308 | W15: -2076050.789 | X15: -2112991.261 | Y15: -2151065.53
A16: DRAB0105 | B16: Actual additions (recognised in RAB) | C16: 355046457.8 | D16: 411337351.4 | E16: 482133079.4 | F16: 465830726.4 | G16: 469815335.9 | H16: 467789721 | I16: 486010420.8 | K16: 354912358.9 | L16: 411204477.7 | M16: 482133079.4 | N16: 465830726.4 | O16: 469815335.9 | P16: 467789721 | Q16: 486010420.8 | S16: 134098.8793 | T16: 132873.6872 | U16: 0 | V16: 0 | W16: 0 | X16: 0 | Y16: 0
A17: DRAB0106 | B17: Disposals | C17: -6421706.675 | D17: -2198535.92 | E17: -5753345.966 | F17: -5592177.816 | G17: -5547033.441 | H17: -5537577.427 | I17: -5550904.532 | K17: -6191264.653 | L17: -1968593.748 | M17: -5525205.513 | N17: -5364037.362 | O17: -5318892.987 | P17: -5309436.973 | Q17: -5322764.078 | S17: -230442.0215 | T17: -229942.1726 | U17: -228140.4535 | V17: -228140.4535 | W17: -228140.4535 | X17: -228140.4535 | Y17: -228140.4535
A18: DRAB0107 | B18: Closing value | C18: =SUM(C13:C17) -> 6267534683 | D18: 6541169656 | E18: =SUM(E13+E14+E15+E16+E17) -> 6914432445 | F18: 7258251713 | G18: 7595820154 | H18: 7923183776 | I18: 8272868117 | K18: =SUM(K13+K14+K15+K16+K17) -> 6238422544 | L18: 6512061508 | M18: 6886828036 | N18: 7232225550 | O18: 7571447529 | P18: 7900542967 | Q18: 8252040493 | S18: =SUM(S13+S14+S15+S16+S17) -> 29112139.41 | T18: 29108148 | U18: 27604408.74 | V18: 26026162.2 | W18: 24372625.01 | X18: 22640808.93 | Y18: 20827623.17
B21: 3.3.2 - ASSET VALUE ROLL FORWARD
C22: Network services | K22: Standard control services | S22: Alternative control services
C23: =CONCATENATE("Forecast ($0's, real ", dms_DollarReal,")") -> Forecast ($0's, real June 2019) | K23: =CONCATENATE("Forecast ($0's, real ", dms_DollarReal,")") -> Forecast ($0's, real June 2019) | S23: =CONCATENATE("Forecast ($0's, real ", dms_DollarReal,")") -> Forecast ($0's, real June 2019)
C24: =CRCP_y4 -> 2017-18 | D24: =CRCP_y5 -> 2018-19 | E24: =FRCP_y1 -> 2019-20 | F24: =FRCP_y2 -> 2020-21 | G24: =FRCP_y3 -> 2021-22 | H24: =FRCP_y4 -> 2022-23 | I24: =FRCP_y5 -> 2023-24 | K24: =CRCP_y4 -> 2017-18 | L24: =CRCP_y5 -> 2018-19 | M24: =FRCP_y1 -> 2019-20 | N24: =FRCP_y2 -> 2020-21 | O24: =FRCP_y3 -> 2021-22 | P24: =FRCP_y4 -> 2022-23 | Q24: =FRCP_y5 -> 2023-24 | S24: =CRCP_y4 -> 2017-18 | T24: =CRCP_y5 -> 2018-19 | U24: =FRCP_y1 -> 2019-20 | V24: =FRCP_y2 -> 2020-21 | W24: =FRCP_y3 -> 2021-22 | X24: =FRCP_y4 -> 2022-23 | Y24: =FRCP_y5 -> 2023-24
B25: For overhead network assets less than 33kV:
A26: DRAB0201 | B26: Opening value | C26: 879216313.7 | D26: 925653777.5 | E26: 970752246.1 | F26: 1020349300 | G26: 1064785841 | H26: 1108204001 | I26: 1156933118 | K26: 879216313.7 | L26: 925653777.5 | M26: 970752246.1 | N26: 1020349300 | O26: 1064785841 | P26: 1108204001 | Q26: 1156933118 | S26: 0 | T26: 0 | U26: 0 | V26: 0 | W26: 0 | X26: 0 | Y26: 0
A27: DRAB0202 | B27: Inflation addition | C27: 17132825.92 | D27: 18178472.38 | E27: 24268806.15 | F27: 25508732.51 | G27: 26619646.03 | H27: 27705100.02 | I27: 28923327.95 | K27: 17132825.92 | L27: 18178472.38 | M27: 24268806.15 | N27: 25508732.51 | O27: 26619646.03 | P27: 27705100.02 | Q27: 28923327.95 | S27: 0 | T27: 0 | U27: 0 | V27: 0 | W27: 0 | X27: 0 | Y27: 0
A28: DRAB0203 | B28: Straight line depreciation | C28: -35585336.12 | D28: -37620406.54 | E28: -39551220.63 | F28: -42662855.88 | G28: -45172608.96 | H28: -47340033.11 | I28: -47952907.27 | K28: -35585336.12 | L28: -37620406.54 | M28: -39551220.63 | N28: -42662855.88 | O28: -45172608.96 | P28: -47340033.11 | Q28: -47952907.27 | S28: 0 | T28: 0 | U28: 0 | V28: 0 | W28: 0 | X28: 0 | Y28: 0
A29: DRAB0205 | B29: Actual additions (recognised in RAB) | C29: 64889973.99 | D29: 65320247.89 | E29: 64879468.54 | F29: 61590664.36 | G29: 61971122.64 | H29: 68364050.28 | I29: 67355474.48 | K29: 64889973.99 | L29: 65320247.89 | M29: 64879468.54 | N29: 61590664.36 | O29: 61971122.64 | P29: 68364050.28 | Q29: 67355474.48 | S29: 0 | T29: 0 | U29: 0 | V29: 0 | W29: 0 | X29: 0 | Y29: 0
A30: DRAB0206 | B30: Disposals | C30: 0 | D30: 0 | E30: 0 | F30: 0 | G30: 0 | H30: 0 | I30: 0 | K30: 0 | L30: 0 | M30: 0 | N30: 0 | O30: 0 | P30: 0 | Q30: 0 | S30: 0 | T30: 0 | U30: 0 | V30: 0 | W30: 0 | X30: 0 | Y30: 0
A31: DRAB0207 | B31: Closing value | C31: =SUM(C26+C27+C28+C29+C30) -> 925653777.5 | D31: 970752246 | E31: 1020349300 | F31: 1064785841 | G31: 1108204001 | H31: 1156933118 | I31: 1205259013 | K31: =SUM(K26+K27+K28+K29+K30) -> 925653777.5 | L31: 970752246 | M31: 1020349300 | N31: 1064785841 | O31: 1108204001 | P31: 1156933118 | Q31: 1205259013 | S31: =SUM(S26+S27+S28+S29+S30) -> 0 | T31: 0 | U31: 0 | V31: 0 | W31: 0 | X31: 0 | Y31: 0
B32: For underground network assets less than 33kV:
A33: DRAB0301 | B33: Opening value | C33: 1440617429 | D33: 1474390856 | E33: 1518508256 | F33: 1636544361 | G33: 1748828482 | H33: 1848051242 | I33: 1923598110 | K33: 1440617429 | L33: 1474390856 | M33: 1518508256 | N33: 1636544361 | O33: 1748828482 | P33: 1848051242 | Q33: 1923598110 | S33: 0 | T33: 0 | U33: 0 | V33: 0 | W33: 0 | X33: 0 | Y33: 0
A34: DRAB0302 | B34: Inflation addition | C34: 28072554.22 | D34: 28954857.75 | E34: 37962706.41 | F34: 40913609.02 | G34: 43720712.06 | H34: 46201281.05 | I34: 48089952.76 | K34: 28072554.22 | L34: 28954857.75 | M34: 37962706.41 | N34: 40913609.02 | O34: 43720712.06 | P34: 46201281.05 | Q34: 48089952.76 | S34: 0 | T34: 0 | U34: 0 | V34: 0 | W34: 0 | X34: 0 | Y34: 0
A35: DRAB0303 | B35: Straight line depreciation | C35: -58307443.39 | D35: -59922170.4 | E35: -61868365.8 | F35: -68427210.35 | G35: -74192520.33 | H35: -78944677.08 | I35: -79729865.42 | K35: -58307443.39 | L35: -59922170.4 | M35: -61868365.8 | N35: -68427210.35 | O35: -74192520.33 | P35: -78944677.08 | Q35: -79729865.42 | S35: 0 | T35: 0 | U35: 0 | V35: 0 | W35: 0 | X35: 0 | Y35: 0
A36: DRAB0305 | B36: Actual additions (recognised in RAB) | C36: 64008315.79 | D36: 76304593.07 | E36: 141941763.7 | F36: 139797722.9 | G36: 129694568.2 | H36: 108290264.3 | I36: 115274671.2 | K36: 64008315.79 | L36: 76304593.07 | M36: 141941763.7 | N36: 139797722.9 | O36: 129694568.2 | P36: 108290264.3 | Q36: 115274671.2 | S36: 0 | T36: 0 | U36: 0 | V36: 0 | W36: 0 | X36: 0 | Y36: 0
A37: DRAB0306 | B37: Disposals | C37: 0 | D37: 0 | E37: 0 | F37: 0 | G37: 0 | H37: 0 | I37: 0 | K37: 0 | L37: 0 | M37: 0 | N37: 0 | O37: 0 | P37: 0 | Q37: 0 | S37: 0 | T37: 0 | U37: 0 | V37: 0 | W37: 0 | X37: 0 | Y37: 0
A38: DRAB0307 | B38: Closing value | C38: =SUM(C33+C34+C35+C36+C37) -> 1474390856 | D38: 1518508256 | E38: 1636544361 | F38: 1748828482 | G38: 1848051242 | H38: 1923598110 | I38: 2007232869 | K38: =SUM(K33+K34+K35+K36+K37) -> 1474390856 | L38: 1518508256 | M38: 1636544361 | N38: 1748828482 | O38: 1848051242 | P38: 1923598110 | Q38: 2007232869 | S38: =SUM(S33+S34+S35+S36+S37) -> 0 | T38: 0 | U38: 0 | V38: 0 | W38: 0 | X38: 0 | Y38: 0
B39: For distribution substations and transformers:
A40: DRAB0401 | B40: Opening value | C40: 538388546.8 | D40: 532907939 | E40: 535304172 | F40: 539240851 | G40: 541528991.5 | H40: 545323699.3 | I40: 550862209 | K40: 538388546.8 | L40: 532907939 | M40: 535304172 | N40: 539240851 | O40: 541528991.5 | P40: 545323699.3 | Q40: 550862209 | S40: 0 | T40: 0 | U40: 0 | V40: 0 | W40: 0 | X40: 0 | Y40: 0
A41: DRAB0402 | B41: Inflation addition | C41: 10491294.47 | D41: 10465524.46 | E41: 13382604.3 | F41: 13481021.27 | G41: 13538224.79 | H41: 13633092.48 | I41: 13771555.22 | K41: 10491294.47 | L41: 10465524.46 | M41: 13382604.3 | N41: 13481021.27 | O41: 13538224.79 | P41: 13633092.48 | Q41: 13771555.22 | S41: 0 | T41: 0 | U41: 0 | V41: 0 | W41: 0 | X41: 0 | Y41: 0
A42: DRAB0403 | B42: Straight line depreciation | C42: -21790698.26 | D42: -21658436.23 | E42: -21809821.71 | F42: -22546744.24 | G42: -22973894.3 | H42: -23295026.87 | I42: -22832300.34 | K42: -21790698.26 | L42: -21658436.23 | M42: -21809821.71 | N42: -22546744.24 | O42: -22973894.3 | P42: -23295026.87 | Q42: -22832300.34 | S42: 0 | T42: 0 | U42: 0 | V42: 0 | W42: 0 | X42: 0 | Y42: 0
A43: DRAB0405 | B43: Actual additions (recognised in RAB) | C43: 6009959.859 | D43: 14293830.18 | E43: 15498788.41 | F43: 14502673.82 | G43: 16376074.9 | H43: 18336767.97 | I43: 18684932.24 | K43: 6009959.859 | L43: 14293830.18 | M43: 15498788.41 | N43: 14502673.82 | O43: 16376074.9 | P43: 18336767.97 | Q43: 18684932.24 | S43: 0 | T43: 0 | U43: 0 | V43: 0 | W43: 0 | X43: 0 | Y43: 0
A44: DRAB0406 | B44: Disposals | C44: -191163.8943 | D44: -274653.5827 | E44: -3134892.06 | F44: -3148810.372 | G44: -3145697.55 | H44: -3136323.884 | I44: -3140320.314 | K44: -191163.8943 | L44: -274653.5827 | M44: -3134892.06 | N44: -3148810.372 | O44: -3145697.55 | P44: -3136323.884 | Q44: -3140320.314 | S44: 0 | T44: 0 | U44: 0 | V44: 0 | W44: 0 | X44: 0 | Y44: 0
A45: DRAB0407 | B45: Closing value | C45: =SUM(C40+C41+C42+C43+C44) -> 532907939 | D45: 535304172 | E45: 539240851 | F45: 541528991.5 | G45: 545323699.3 | H45: 550862209 | I45: 557346075.8 | K45: =SUM(K40+K41+K42+K43+K44) -> 532907939 | L45: 535304172 | M45: 539240851 | N45: 541528991.5 | O45: 545323699.3 | P45: 550862209 | Q45: 557346075.8 | S45: =SUM(S40+S41+S42+S43+S44) -> 0 | T45: 0 | U45: 0 | V45: 0 | W45: 0 | X45: 0 | Y45: 0
B46: For overhead network assets 33kV and above:
A47: DRAB0501 | B47: Opening value | C47: 314629242.2 | D47: 340865524.2 | E47: 373629709 | F47: 406544047.3 | G47: 442551052.7 | H47: 502263467.9 | I47: 587453093.6 | K47: 314629242.2 | L47: 340865524.2 | M47: 373629709 | N47: 406544047.3 | O47: 442551052.7 | P47: 502263467.9 | Q47: 587453093.6 | S47: 0 | T47: 0 | U47: 0 | V47: 0 | W47: 0 | X47: 0 | Y47: 0
A48: DRAB0502 | B48: Inflation addition | C48: 6131014.578 | D48: 6694095.209 | E48: 9340742.724 | F48: 10163601.18 | G48: 11063776.32 | H48: 12556586.7 | I48: 14686327.34 | K48: 6131014.578 | L48: 6694095.209 | M48: 9340742.724 | N48: 10163601.18 | O48: 11063776.32 | P48: 12556586.7 | Q48: 14686327.34 | S48: 0 | T48: 0 | U48: 0 | V48: 0 | W48: 0 | X48: 0 | Y48: 0
A49: DRAB0503 | B49: Straight line depreciation | C49: -12734280.7 | D49: -13853451.37 | E49: -15222742.06 | F49: -16998424.06 | G49: -18774841.74 | H49: -21455588.66 | I49: -24348930.19 | K49: -12734280.7 | L49: -13853451.37 | M49: -15222742.06 | N49: -16998424.06 | O49: -18774841.74 | P49: -21455588.66 | Q49: -24348930.19 | S49: 0 | T49: 0 | U49: 0 | V49: 0 | W49: 0 | X49: 0 | Y49: 0
A50: DRAB0505 | B50: Actual additions (recognised in RAB) | C50: 32839548.15 | D50: 40223692.99 | E50: 38796337.63 | F50: 42841828.37 | G50: 67423480.54 | H50: 94088627.7 | I50: 100925741.7 | K50: 32839548.15 | L50: 40223692.99 | M50: 38796337.63 | N50: 42841828.37 | O50: 67423480.54 | P50: 94088627.7 | Q50: 100925741.7 | S50: 0 | T50: 0 | U50: 0 | V50: 0 | W50: 0 | X50: 0 | Y50: 0
A51: DRAB0506 | B51: Disposals | C51: 0 | D51: 0 | E51: 0 | F51: 0 | G51: 0 | H51: 0 | I51: 0 | K51: 0 | L51: 0 | M51: 0 | N51: 0 | O51: 0 | P51: 0 | Q51: 0 | S51: 0 | T51: 0 | U51: 0 | V51: 0 | W51: 0 | X51: 0 | Y51: 0
A52: DRAB0507 | B52: Closing value | C52: =SUM(C47+C48+C49+C50+C51) -> 340865524.2 | D52: 373629709 | E52: 406544047.3 | F52: 442551052.7 | G52: 502263467.9 | H52: 587453093.6 | I52: 678716232.5 | K52: =SUM(K47+K48+K49+K50+K51) -> 340865524.2 | L52: 373629709 | M52: 406544047.3 | N52: 442551052.7 | O52: 502263467.9 | P52: 587453093.6 | Q52: 678716232.5 | S52: =SUM(S47+S48+S49+S50+S51) -> 0 | T52: 0 | U52: 0 | V52: 0 | W52: 0 | X52: 0 | Y52: 0
B53: For underground network assets 33kV and above:
A54: DRAB0601 | B54: Opening value | C54: 123069049.5 | D54: 127489081.6 | E54: 131219220.1 | F54: 140086123.2 | G54: 141079964.4 | H54: 141664479.3 | I54: 142487827.7 | K54: 123069049.5 | L54: 127489081.6 | M54: 131219220.1 | N54: 140086123.2 | O54: 141079964.4 | P54: 141664479.3 | Q54: 142487827.7 | S54: 0 | T54: 0 | U54: 0 | V54: 0 | W54: 0 | X54: 0 | Y54: 0
A55: DRAB0602 | B55: Inflation addition | C55: 2398181.845 | D55: 2503697.176 | E55: 3280480.503 | F55: 3502153.08 | G55: 3526999.11 | H55: 3541611.981 | I55: 3562195.692 | K55: 2398181.845 | L55: 2503697.176 | M55: 3280480.503 | N55: 3502153.08 | O55: 3526999.11 | P55: 3541611.981 | Q55: 3562195.692 | S55: 0 | T55: 0 | U55: 0 | V55: 0 | W55: 0 | X55: 0 | Y55: 0
A56: DRAB0603 | B56: Straight line depreciation | C56: -4981087.616 | D56: -5181409.286 | E56: -5346246.013 | F56: -5857282.484 | G56: -5985194.221 | H56: -6051594.411 | I56: -5905877.773 | K56: -4981087.616 | L56: -5181409.286 | M56: -5346246.013 | N56: -5857282.484 | O56: -5985194.221 | P56: -6051594.411 | Q56: -5905877.773 | S56: 0 | T56: 0 | U56: 0 | V56: 0 | W56: 0 | X56: 0 | Y56: 0
A57: DRAB0605 | B57: Actual additions (recognised in RAB) | C57: 7002937.861 | D57: 6513264.445 | E57: 10932668.56 | F57: 3348970.613 | G57: 3042709.971 | H57: 3333330.853 | I57: 3349899.756 | K57: 7002937.861 | L57: 6513264.445 | M57: 10932668.56 | N57: 3348970.613 | O57: 3042709.971 | P57: 3333330.853 | Q57: 3349899.756 | S57: 0 | T57: 0 | U57: 0 | V57: 0 | W57: 0 | X57: 0 | Y57: 0
A58: DRAB0606 | B58: Disposals | C58: 0 | D58: 0 | E58: 0 | F58: 0 | G58: 0 | H58: 0 | I58: 0 | K58: 0 | L58: 0 | M58: 0 | N58: 0 | O58: 0 | P58: 0 | Q58: 0 | S58: 0 | T58: 0 | U58: 0 | V58: 0 | W58: 0 | X58: 0 | Y58: 0
A59: DRAB0607 | B59: Closing value | C59: =SUM(C54+C55+C56+C57+C58) -> 127489081.6 | D59: 131219220 | E59: 140086123.2 | F59: 141079964.4 | G59: 141664479.3 | H59: 142487827.7 | I59: 143494045.4 | K59: =SUM(K54+K55+K56+K57+K58) -> 127489081.6 | L59: 131219220 | M59: 140086123.2 | N59: 141079964.4 | O59: 141664479.3 | P59: 142487827.7 | Q59: 143494045.4 | S59: =SUM(S54+S55+S56+S57+S58) -> 0 | T59: 0 | U59: 0 | V59: 0 | W59: 0 | X59: 0 | Y59: 0
B60: Zone substations and transformers
A61: DRAB0701 | B61: Opening value | C61: 2335235238 | D61: 2396496475 | E61: 2488503943 | F61: 2589387294 | G61: 2683761604 | H61: 2764805234 | I61: 2822226133 | K61: 2335235238 | L61: 2396496475 | M61: 2488503943 | N61: 2589387294 | O61: 2683761604 | P61: 2764805234 | Q61: 2822226133 | S61: 0 | T61: 0 | U61: 0 | V61: 0 | W61: 0 | X61: 0 | Y61: 0
A62: DRAB0702 | B62: Inflation addition | C62: 45505500.97 | D62: 47063649.53 | E62: 62212598.58 | F62: 64734682.36 | G62: 67094040.1 | H62: 69120130.86 | I62: 70555653.32 | K62: 45505500.97 | L62: 47063649.53 | M62: 62212598.58 | N62: 64734682.36 | O62: 67094040.1 | P62: 69120130.86 | Q62: 70555653.32 | S62: 0 | T62: 0 | U62: 0 | V62: 0 | W62: 0 | X62: 0 | Y62: 0
A63: DRAB0703 | B63: Straight line depreciation | C63: -94516138.47 | D63: -97398372.73 | E63: -101388762 | F63: -108267489.3 | G63: -113856241.1 | H63: -118106387.7 | I63: -116976466.4 | K63: -94516138.47 | L63: -97398372.73 | M63: -101388762 | N63: -108267489.3 | O63: -113856241.1 | P63: -118106387.7 | Q63: -116976466.4 | S63: 0 | T63: 0 | U63: 0 | V63: 0 | W63: 0 | X63: 0 | Y63: 0
A64: DRAB0705 | B64: Actual additions (recognised in RAB) | C64: 110496184 | D64: 144663584.8 | E64: 141941763.7 | F64: 139797722.9 | G64: 129694568.2 | H64: 108290264.3 | I64: 115274671.2 | K64: 110496184 | L64: 144663584.8 | M64: 141941763.7 | N64: 139797722.9 | O64: 129694568.2 | P64: 108290264.3 | Q64: 115274671.2 | S64: 0 | T64: 0 | U64: 0 | V64: 0 | W64: 0 | X64: 0 | Y64: 0
A65: DRAB0706 | B65: Disposals | C65: -224309.7965 | D65: -322275.7596 | E65: -1882249.206 | F65: -1890606.027 | G65: -1888737.029 | H65: -1883108.9 | I65: -1885508.433 | K65: -224309.7965 | L65: -322275.7596 | M65: -1882249.206 | N65: -1890606.027 | O65: -1888737.029 | P65: -1883108.9 | Q65: -1885508.433 | S65: 0 | T65: 0 | U65: 0 | V65: 0 | W65: 0 | X65: 0 | Y65: 0
A66: DRAB0707 | B66: Closing value | C66: =SUM(C61+C62+C63+C64+C65) -> 2396496475 | D66: 2488503943 | E66: 2589387294 | F66: 2683761604 | G66: 2764805234 | H66: 2822226133 | I66: 2889194483 | K66: =SUM(K61+K62+K63+K64+K65) -> 2396496475 | L66: 2488503943 | M66: 2589387294 | N66: 2683761604 | O66: 2764805234 | P66: 2822226133 | Q66: 2889194483 | S66: =SUM(S61+S62+S63+S64+S65) -> 0 | T66: 0 | U66: 0 | V66: 0 | W66: 0 | X66: 0 | Y66: 0
B67: For easements:
A68: DRAB0801 | B68: Opening value | C68: 16000370.43 | D68: 16312161.23 | E68: 16619157.13 | F68: 17034636.05 | G68: 17460501.96 | H68: 17897014.5 | I68: 18344439.87 | K68: 16000370.43 | L68: 16312161.23 | M68: 16619157.13 | N68: 17034636.05 | O68: 17460501.96 | P68: 17897014.5 | Q68: 18344439.87 | S68: 0 | T68: 0 | U68: 0 | V68: 0 | W68: 0 | X68: 0 | Y68: 0
A69: DRAB0802 | B69: Inflation addition | C69: 311790.8039 | D69: 320346.7426 | E69: 415478.9281 | F69: 425865.9013 | G69: 436512.5489 | H69: 447425.3626 | I69: 458610.9967 | K69: 311790.8039 | L69: 320346.7426 | M69: 415478.9281 | N69: 425865.9013 | O69: 436512.5489 | P69: 447425.3626 | Q69: 458610.9967 | S69: 0 | T69: 0 | U69: 0 | V69: 0 | W69: 0 | X69: 0 | Y69: 0
A70: DRAB0803 | B70: Actual additions (recognised in RAB) | C70: 0 | D70: 0 | E70: 0 | F70: 0 | G70: 0 | H70: 0 | I70: 0 | K70: 0 | L70: 0 | M70: 0 | N70: 0 | O70: 0 | P70: 0 | Q70: 0 | S70: 0 | T70: 0 | U70: 0 | V70: 0 | W70: 0 | X70: 0 | Y70: 0
A71: DRAB0804 | B71: Disposals | C71: 0 | D71: 0 | E71: 0 | F71: 0 | G71: 0 | H71: 0 | I71: 0 | K71: 0 | L71: 0 | M71: 0 | N71: 0 | O71: 0 | P71: 0 | Q71: 0 | S71: 0 | T71: 0 | U71: 0 | V71: 0 | W71: 0 | X71: 0 | Y71: 0
A72: DRAB0805 | B72: Closing value | C72: =SUM(C68+C69+C70+C71) -> 16312161.23 | D72: 16619157 | E72: =SUM(E68+E69+E70+E71) -> 17034636.05 | F72: 17460501.96 | G72: 17897014.5 | H72: 18344439.87 | I72: 18803050.86 | K72: =SUM(K68+K69+K70+K71) -> 16312161.23 | L72: 16619157 | M72: =SUM(M68+M69+M70+M71) -> 17034636.05 | N72: 17460501.96 | O72: 17897014.5 | P72: 18344439.87 | Q72: 18803050.86 | S72: =SUM(S68+S69+S70+S71) -> 0 | T72: =SUM(T68+T69+T70+T71) -> 0 | U72: =SUM(U68+U69+U70+U71) -> 0 | V72: 0 | W72: 0 | X72: 0 | Y72: 0
B73: For meters:
A74: DRAB0901 | B74: Opening value | C74: 55146298.85 | D74: 53387302.28 | E74: 54222791.79 | F74: 54352753.61 | G74: 53811381.36 | H74: 53019235.97 | I74: 51943902.81 | K74: 24808069.13 | L74: 25636906.12 | M74: 26382669.08 | N74: 27727801.56 | O74: 28460886.07 | P74: 29092383.63 | Q74: 29745573 | S74: 30338229.72 | T74: 27750396.16 | U74: 27840122.71 | V74: 26624952.05 | W74: 25350495.29 | X74: 23926852.34 | Y74: 22198329.81
A75: DRAB0902 | B75: Inflation addition | C75: 1074606.924 | D75: 1048447.728 | E75: 1355569.795 | F75: 1358818.84 | G75: 1345284.534 | H75: 1325480.899 | I75: 1298597.57 | K75: 483421.7965 | L75: 503470.9533 | M75: 659566.7269 | N75: 693195.0389 | O75: 711522.1517 | P75: 727309.5908 | Q75: 743639.325 | S75: 591185.1275 | T75: 544976.7746 | U75: 696003.0678 | V75: 665623.8012 | W75: 633762.3823 | X75: 598171.3085 | Y75: 554958.2452
A76: DRAB0903 | B76: Straight line depreciation | C76: -4086755.502 | D76: -4782143.865 | E76: -2757938.609 | F76: -2871295.24 | G76: -3036693.104 | H76: -3341315.914 | I76: -3369170.047 | K76: -1004079.957 | L76: -1041934.743 | M76: -1074905.332 | N76: -1159355.136 | O76: -1207428.224 | P76: -1242762.527 | Q76: -1232903.339 | S76: -3082675.545 | T76: -3740209.123 | U76: -1683033.277 | V76: -1711940.104 | W76: -1829264.88 | X76: -2098553.387 | Y76: -2136266.709
A77: DRAB0905 | B77: Actual additions (recognised in RAB) | C77: 1483594.03 | D77: 1438294.714 | E77: 1760471.084 | F77: 1199244.61 | G77: 1127403.635 | H77: 1168642.304 | I77: 1094362.911 | K77: 1349495.15 | L77: 1305421.026 | M77: 1760471.084 | N77: 1199244.61 | O77: 1127403.635 | P77: 1168642.304 | Q77: 1094362.911 | S77: 134098.8793 | T77: 132873.6872 | U77: 0 | V77: 0 | W77: 0 | X77: 0 | Y77: 0
A78: DRAB0906 | B78: Disposals | C78: -230442.0215 | D78: -229942.1726 | E78: -228140.4535 | F78: -228140.4535 | G78: -228140.4535 | H78: -228140.4535 | I78: -228140.4535 | K78: 0 | L78: 0 | M78: 0 | N78: 0 | O78: 0 | P78: 0 | Q78: 0 | S78: -230442.0215 | T78: -229942.1726 | U78: -228140.4535 | V78: -228140.4535 | W78: -228140.4535 | X78: -228140.4535 | Y78: -228140.4535
A79: DRAB0907 | B79: Closing value | C79: =SUM(C74+C75+C76+C77+C78) -> 53387302.28 | D79: 54222792 | E79: 54352753.61 | F79: 53811381.36 | G79: 53019235.97 | H79: 51943902.81 | I79: 50739552.79 | K79: =SUM(K74+K75+K76+K77+K78) -> 25636906.12 | L79: 26382669 | M79: 27727801.56 | N79: 28460886.07 | O79: 29092383.63 | P79: 29745573 | Q79: 30350671.9 | S79: =SUM(S74+S75+S76+S77+S78) -> 27750396.16 | T79: 27840123 | U79: 26624952.05 | V79: 25350495.29 | W79: 23926852.34 | X79: 22198329.81 | Y79: 20388880.89
B80: For “other” asset items with long lives:
A81: DRAB1001 | B81: Opening value | C81: 208901634.7 | D81: 201953976.2 | E81: 200826059.5 | F81: 206265136.2 | G81: 212864263.7 | H81: 217448999.1 | I81: 222336512.2 | K81: 208496526.3 | L81: 201552243.4 | M81: 200372875.4 | N81: 205814029.5 | O81: 212415621.5 | P81: 217003226.5 | Q81: 221894033.2 | S81: 405108.35 | T81: 401732.7655 | U81: 453184.1233 | V81: 451106.725 | W81: 448642.2166 | X81: 445772.5412 | Y81: 442478.9805
A82: DRAB1002 | B82: Inflation addition | C82: 4070756.293 | D82: 3966077.671 | E82: 5020651.488 | F82: 5156628.405 | G82: 5321606.593 | H82: 5436224.977 | I82: 5558412.804 | K82: 4062862.159 | L82: 3958188.233 | M82: 5009321.885 | N82: 5145350.737 | O82: 5310390.537 | P82: 5425080.663 | Q82: 5547350.829 | S82: 7894.133368 | T82: 7889.437886 | U82: 11329.60308 | V82: 11277.66812 | W82: 11216.05542 | X82: 11144.31353 | Y82: 11061.97451
A83: DRAB1003 | B83: Straight line depreciation | C83: -8449942.719 | D83: -8202974.205 | E83: -8177170.55 | F83: -8619240.584 | G83: -9025632.875 | H83: -9284337.568 | I83: -9211928.569 | K83: -8438673.001 | L83: -8191483.166 | M83: -8163763.549 | N83: -8605498.407 | O83: -9011547.144 | P83: -9269899.693 | Q83: -9197129.748 | S83: -11269.71786 | T83: -11491.03846 | U83: -13407.00143 | V83: -13742.17646 | W83: -14085.73087 | X83: -14437.87414 | Y83: -14798.821
A84: DRAB1005 | B84: Actual additions (recognised in RAB) | C84: 2754166.021 | D84: 3214894.639 | E84: 8595595.762 | F84: 10061739.67 | G84: 8288761.645 | H84: 8735625.684 | I84: 6584285.728 | K84: 2754166.021 | L84: 3214894.639 | M84: 8595595.762 | N84: 10061739.67 | O84: 8288761.645 | P84: 8735625.684 | Q84: 6584285.728 | S84: 0 | T84: 0 | U84: 0 | V84: 0 | W84: 0 | X84: 0 | Y84: 0
A85: DRAB1006 | B85: Disposals | C85: -5322638.078 | D85: 0 | E85: 0 | F85: 0 | G85: 0 | H85: 0 | I85: 0 | K85: -5322638.078 | L85: 0 | M85: 0 | N85: 0 | O85: 0 | P85: 0 | Q85: 0 | S85: 0 | T85: 0 | U85: 0 | V85: 0 | W85: 0 | X85: 0 | Y85: 0
A86: DRAB1007 | B86: Closing value | C86: =SUM(C81+C82+C83+C84+C85) -> 201953976.2 | D86: 200826060 | E86: 206265136.2 | F86: 212864263.7 | G86: 217448999.1 | H86: 222336512.2 | I86: 225267282.1 | K86: =SUM(K81+K82+K83+K84+K85) -> 201552243.4 | L86: 200372875 | M86: 205814029.5 | N86: 212415621.5 | O86: 217003226.5 | P86: 221894033.2 | Q86: 224828540 | S86: =SUM(S81+S82+S83+S84+S85) -> 401732.7655 | T86: 453184 | U86: 451106.725 | V86: 448642.2166 | W86: 445772.5412 | X86: 442478.9805 | Y86: 438742.1341
B87: For “other” asset items with short lives:
A88: DRAB1101 | B88: Opening value | C88: 136033553.3 | D88: 198077590.2 | E88: 251584100.5 | F88: 304627942.1 | G88: 351579629.3 | H88: 397142780.4 | I88: 446998428.9 | K88: 134838879.1 | L88: 197117579.8 | M88: 250769259.2 | N88: 304099592.2 | O88: 351352604.8 | P88: 397142780.4 | Q88: 446998428.9 | S88: 1194674.226 | T88: 960010.3767 | U88: 814841.2782 | V88: 528349.8451 | W88: 227024.5645 | X88: 0 | Y88: 0
A89: DRAB1102 | B89: Inflation addition | C89: 2650814.312 | D89: 3889951.177 | E89: 6289602.512 | F89: 7615698.552 | G89: 8789490.733 | H89: 9928569.509 | I89: 11174960.72 | K89: 2627534.324 | L89: 3871097.992 | M89: 6269231.48 | N89: 7602489.806 | O89: 8783815.119 | P89: 9928569.509 | Q89: 11174960.72 | S89: 23279.98836 | T89: 18853.18522 | U89: 20371.03196 | V89: 13208.74613 | W89: 5675.614112 | X89: 0 | Y89: 0
A90: DRAB1103 | B90: Straight line depreciation | C90: -5715402.665 | D90: -8274259.108 | E90: -10523918.71 | F90: -13029549.44 | G90: -15138527.44 | H90: -16965064.51 | I90: -18527323.55 | K90: -5457458.828 | L90: -8011249.634 | M90: -10217056.24 | N90: -12715015.41 | O90: -14905827.26 | P90: -16965064.51 | Q90: -18527323.55 | S90: -257943.8379 | T90: -263009.4737 | U90: -306862.4651 | V90: -314534.0267 | W90: -232700.1786 | X90: 0 | Y90: 0
A91: DRAB1105 | B91: Actual additions (recognised in RAB) | C91: 65561778.11 | D91: 59364948.7 | E91: 57786222.07 | F91: 52690159.1 | G91: 52196646.14 | H91: 57182147.72 | I91: 57466381.57 | K91: 65561778.11 | L91: 59364948.7 | M91: 57786222.07 | N91: 52690159.1 | O91: 52196646.14 | P91: 57182147.72 | Q91: 57466381.57 | S91: 0 | T91: 0 | U91: 0 | V91: 0 | W91: 0 | X91: 0 | Y91: 0
A92: DRAB1106 | B92: Disposals | C92: -453152.8844 | D92: -1371664.406 | E92: -508064.2465 | F92: -324620.9631 | G92: -284458.4087 | H92: -290004.1897 | I92: -296935.3313 | K92: -453152.8844 | L92: -1371664.406 | M92: -508064.2465 | N92: -324620.9631 | O92: -284458.4087 | P92: -290004.1897 | Q92: -296935.3313 | S92: 0 | T92: 0 | U92: 0 | V92: 0 | W92: 0 | X92: 0 | Y92: 0
A93: DRAB1107 | B93: Closing value | C93: =SUM(C88+C89+C90+C91+C92) -> 198077590.2 | D93: 251584100 | E93: 304627942.1 | F93: 351579629.3 | G93: 397142780.4 | H93: 446998428.9 | I93: 496815512.3 | K93: =SUM(K88+K89+K90+K91+K92) -> 197117579.8 | L93: 250769259 | M93: 304099592.2 | N93: 351352604.8 | O93: 397142780.4 | P93: 446998428.9 | Q93: 496815512.3 | S93: =SUM(S88+S89+S90+S91+S92) -> 960010.3767 | T93: 814841 | U93: 528349.8451 | V93: 227024.5645 | W93: 0 | X93: 0 | Y93: 0
B97: 3.3.3 - TOTAL DISAGGREGATED RAB ASSET VALUES
C98: Network services | K98: Standard control services | S98: Alternative control services
C99: =CONCATENATE("Forecast ($0's, real ", dms_DollarReal,")") -> Forecast ($0's, real June 2019) | K99: =CONCATENATE("Forecast ($0's, real ", dms_DollarReal,")") -> Forecast ($0's, real June 2019) | S99: =CONCATENATE("Forecast ($0's, real ", dms_DollarReal,")") -> Forecast ($0's, real June 2019)
C100: =CRCP_y4 -> 2017-18 | D100: =CRCP_y5 -> 2018-19 | E100: =FRCP_y1 -> 2019-20 | F100: =FRCP_y2 -> 2020-21 | G100: =FRCP_y3 -> 2021-22 | H100: =FRCP_y4 -> 2022-23 | I100: =FRCP_y5 -> 2023-24 | K100: =CRCP_y4 -> 2017-18 | L100: =CRCP_y5 -> 2018-19 | M100: =FRCP_y1 -> 2019-20 | N100: =FRCP_y2 -> 2020-21 | O100: =FRCP_y3 -> 2021-22 | P100: =FRCP_y4 -> 2022-23 | Q100: =FRCP_y5 -> 2023-24 | S100: =CRCP_y4 -> 2017-18 | T100: =CRCP_y5 -> 2018-19 | U100: =FRCP_y1 -> 2019-20 | V100: =FRCP_y2 -> 2020-21 | W100: =FRCP_y3 -> 2021-22 | X100: =FRCP_y4 -> 2022-23 | Y100: =FRCP_y5 -> 2023-24
A101: DRAB1201 | B101: Overhead network assets less than 33kV (wires and poles) | C101: 902435045.6 | D101: 948203011.8 | E101: 995550773.2 | F101: 1042567571 | G101: 1086494921 | H101: 1132568559 | I101: 1181096066 | K101: 902435045.6 | L101: 948203011.8 | M101: 995550773.2 | N101: 1042567571 | O101: 1086494921 | P101: 1132568559 | Q101: 1181096066 | S101: 0 | T101: 0 | U101: 0 | V101: 0 | W101: 0 | X101: 0 | Y101: 0
A102: DRAB1202 | B102: Underground network assets less than 33kV (cables) | C102: 1457504143 | D102: 1496449556 | E102: 1577526308 | F102: 1692686421 | G102: 1798439862 | H102: 1885824676 | I102: 1965415490 | K102: 1457504143 | L102: 1496449556 | M102: 1577526308 | N102: 1692686421 | O102: 1798439862 | P102: 1885824676 | Q102: 1965415490 | S102: 0 | T102: 0 | U102: 0 | V102: 0 | W102: 0 | X102: 0 | Y102: 0
A103: DRAB1203 | B103: Distribution substations including transformers | C103: 535648242.9 | D103: 534106055.5 | E103: 537272511.5 | F103: 540384921.2 | G103: 543426345.4 | H103: 548092954.1 | I103: 554104142.4 | K103: 535648242.9 | L103: 534106055.5 | M103: 537272511.5 | N103: 540384921.2 | O103: 543426345.4 | P103: 548092954.1 | Q103: 554104142.4 | S103: 0 | T103: 0 | U103: 0 | V103: 0 | W103: 0 | X103: 0 | Y103: 0
A104: DRAB1204 | B104: Overhead network assets 33kV and above (wires and towers / poles etc) | C104: 327747383.2 | D104: 357247616.6 | E104: 390086878.1 | F104: 424547550 | G104: 472407260.3 | H104: 544858280.7 | I104: 633084663 | K104: 327747383.2 | L104: 357247616.6 | M104: 390086878.1 | N104: 424547550 | O104: 472407260.3 | P104: 544858280.7 | Q104: 633084663 | S104: 0 | T104: 0 | U104: 0 | V104: 0 | W104: 0 | X104: 0 | Y104: 0
A105: DRAB1205 | B105: Underground network assets 33kV and above(cables, ducts etc) | C105: 125279065.5 | D105: 129354150.9 | E105: 135652671.7 | F105: 140583043.8 | G105: 141372221.8 | H105: 142076153.5 | I105: 142990936.5 | K105: 125279065.5 | L105: 129354150.9 | M105: 135652671.7 | N105: 140583043.8 | O105: 141372221.8 | P105: 142076153.5 | Q105: 142990936.5 | S105: 0 | T105: 0 | U105: 0 | V105: 0 | W105: 0 | X105: 0 | Y105: 0
A106: DRAB1206 | B106: Zone substations and transformers | C106: 2365865856 | D106: 2442500209 | E106: 2538945619 | F106: 2636574449 | G106: 2724283419 | H106: 2793515684 | I106: 2855710308 | K106: 2365865856 | L106: 2442500209 | M106: 2538945619 | N106: 2636574449 | O106: 2724283419 | P106: 2793515684 | Q106: 2855710308 | S106: 0 | T106: 0 | U106: 0 | V106: 0 | W106: 0 | X106: 0 | Y106: 0
A107: DRAB1207 | B107: Easements | C107: 16156265.83 | D107: 16465659.18 | E107: 16826896.59 | F107: 17247569 | G107: 17678758.23 | H107: 18120727.19 | I107: 18573745.36 | K107: 16156265.83 | L107: 16465659.18 | M107: 16826896.59 | N107: 17247569 | O107: 17678758.23 | P107: 18120727.19 | Q107: 18573745.36 | S107: 0 | T107: 0 | U107: 0 | V107: 0 | W107: 0 | X107: 0 | Y107: 0
A108: DRAB1208 | B108: Meters | C108: 54266800.57 | D108: 53805047.04 | E108: 54287772.7 | F108: 54082067.48 | G108: 53415308.67 | H108: 52481569.39 | I108: 51341727.8 | K108: 25222487.63 | L108: 26009787.6 | M108: 27055235.32 | N108: 28094343.81 | O108: 28776634.85 | P108: 29418978.32 | Q108: 30048122.45 | S108: 29044312.94 | T108: 27795259.44 | U108: 27232537.38 | V108: 25987723.67 | W108: 24638673.82 | X108: 23062591.08 | Y108: 21293605.35
A109: DRAB1209 | B109: “Other” assets with long lives | C109: 205427805.4 | D109: 201390017.9 | E109: 203545597.9 | F109: 209564700 | G109: 215156631.4 | H109: 219892755.6 | I109: 223801897.1 | K109: 205024384.9 | L109: 200962559.4 | M109: 203093452.4 | N109: 209114825.5 | O109: 214709424 | P109: 219448629.8 | Q109: 223361286.6 | S109: 403420.5578 | T109: 427458.4444 | U109: 452145.4241 | V109: 449874.4708 | W109: 447207.3789 | X109: 444125.7609 | Y109: 440610.5573
A110: DRAB1210 | B110: “Other” assets with short lives | C110: 167055571.7 | D110: 224830845.3 | E110: 278106021.3 | F110: 328103785.7 | G110: 374361204.8 | H110: 422070604.6 | I110: 471906970.6 | K110: 165978229.4 | L110: 223943419.5 | M110: 277434425.7 | N110: 327726098.5 | O110: 374247692.6 | P110: 422070604.6 | Q110: 471906970.6 | S110: 1077342.301 | T110: 887425.8275 | U110: 671595.5617 | V110: 377687.2048 | W110: 113512.2822 | X110: 0 | Y110: 0
A111: DRAB13 | B111: Value of Capital Contributions or Contributed Assets (included in the above) | C111: 0 | D111: 0 | E111: 0 | F111: 0 | G111: 0 | H111: 0 | I111: 0 | K111: 0 | L111: 0 | M111: 0 | N111: 0 | O111: 0 | P111: 0 | Q111: 0 | S111: 0 | T111: 0 | U111: 0 | V111: 0 | W111: 0 | X111: 0 | Y111: 0
B114: 3.3.4 - ASSET LIVES
C115: Network services | K115: Standard control services | S115: Alternative control services
C116: Forecast ( years ) | K116: Forecast ( years ) | S116: Forecast ( years )
C117: =CRCP_y4 -> 2017-18 | D117: =CRCP_y5 -> 2018-19 | E117: =FRCP_y1 -> 2019-20 | F117: =FRCP_y2 -> 2020-21 | G117: =FRCP_y3 -> 2021-22 | H117: =FRCP_y4 -> 2022-23 | I117: =FRCP_y5 -> 2023-24 | K117: =CRCP_y4 -> 2017-18 | L117: =CRCP_y5 -> 2018-19 | M117: =FRCP_y1 -> 2019-20 | N117: =FRCP_y2 -> 2020-21 | O117: =FRCP_y3 -> 2021-22 | P117: =FRCP_y4 -> 2022-23 | Q117: =FRCP_y5 -> 2023-24 | S117: =CRCP_y4 -> 2017-18 | T117: =CRCP_y5 -> 2018-19 | U117: =FRCP_y1 -> 2019-20 | V117: =FRCP_y2 -> 2020-21 | W117: =FRCP_y3 -> 2021-22 | X117: =FRCP_y4 -> 2022-23 | Y117: =FRCP_y5 -> 2023-24
B118: Estimated service life of new assets
A119: DRAB1401 | B119: Overhead network assets less than 33kV (wires and poles) | C119: 53.16394548 | D119: 53.16394548 | E119: 53.16394548 | F119: 53.16394548 | G119: 53.16394548 | H119: 53.16394548 | I119: 53.16394548 | K119: 53.16394548 | L119: 53.16394548 | M119: 53.16394548 | N119: 53.16394548 | O119: 53.16394548 | P119: 53.16394548 | Q119: 53.16394548 | S119: 0 | T119: 0 | U119: 0 | V119: 0 | W119: 0 | X119: 0 | Y119: 0
A120: DRAB1402 | B120: Underground network assets less than 33kV (cables) | C120: 60 | D120: 60 | E120: 60 | F120: 60 | G120: 60 | H120: 60 | I120: 60 | K120: 60 | L120: 60 | M120: 60 | N120: 60 | O120: 60 | P120: 60 | Q120: 60 | S120: 0 | T120: 0 | U120: 0 | V120: 0 | W120: 0 | X120: 0 | Y120: 0
A121: DRAB1403 | B121: Distribution substations including transformers | C121: 41.646007 | D121: 41.646007 | E121: 41.646007 | F121: 41.646007 | G121: 41.646007 | H121: 41.646007 | I121: 41.646007 | K121: 41.646007 | L121: 41.646007 | M121: 41.646007 | N121: 41.646007 | O121: 41.646007 | P121: 41.646007 | Q121: 41.646007 | S121: 0 | T121: 0 | U121: 0 | V121: 0 | W121: 0 | X121: 0 | Y121: 0
A122: DRAB1404 | B122: Overhead network assets 33kV and above (wires and towers / poles etc) | C122: 56.29136588 | D122: 56.29136588 | E122: 56.29136588 | F122: 56.29136588 | G122: 56.29136588 | H122: 56.29136588 | I122: 56.29136588 | K122: 56.29136588 | L122: 56.29136588 | M122: 56.29136588 | N122: 56.29136588 | O122: 56.29136588 | P122: 56.29136588 | Q122: 56.29136588 | S122: 0 | T122: 0 | U122: 0 | V122: 0 | W122: 0 | X122: 0 | Y122: 0
A123: DRAB1405 | B123: Underground network assets 33kV and above(cables, ducts etc) | C123: 45 | D123: 45 | E123: 45 | F123: 45 | G123: 45 | H123: 45 | I123: 45 | K123: 45 | L123: 45 | M123: 45 | N123: 45 | O123: 45 | P123: 45 | Q123: 45 | S123: 0 | T123: 0 | U123: 0 | V123: 0 | W123: 0 | X123: 0 | Y123: 0
A124: DRAB1406 | B124: Zone substations and transformers | C124: 45.28299744 | D124: 45.28299744 | E124: 45.28299744 | F124: 45.28299744 | G124: 45.28299744 | H124: 45.28299744 | I124: 45.28299744 | K124: 45.28299744 | L124: 45.28299744 | M124: 45.28299744 | N124: 45.28299744 | O124: 45.28299744 | P124: 45.28299744 | Q124: 45.28299744 | S124: 0 | T124: 0 | U124: 0 | V124: 0 | W124: 0 | X124: 0 | Y124: 0
A125: DRAB1407 | B125: Meters | C125: 25 | D125: 25 | E125: 25 | F125: 25 | G125: 25 | H125: 25 | I125: 25 | K125: 25 | L125: 25 | M125: 25 | N125: 25 | O125: 25 | P125: 25 | Q125: 25 | S125: 25 | T125: 25 | U125: 25 | V125: 25 | W125: 25 | X125: 25 | Y125: 25
A126: DRAB1408 | B126: “Other” assets with long lives | C126: 46.27420799 | D126: 46.27420799 | E126: 46.27420799 | F126: 46.27420799 | G126: 46.27420799 | H126: 46.27420799 | I126: 46.27420799 | K126: 46.27420799 | L126: 46.27420799 | M126: 46.27420799 | N126: 46.27420799 | O126: 46.27420799 | P126: 46.27420799 | Q126: 46.27420799 | S126: 46.27420799 | T126: 46.27420799 | U126: 46.27420799 | V126: 46.27420799 | W126: 46.27420799 | X126: 46.27420799 | Y126: 46.27420799
A127: DRAB1409 | B127: “Other” assets with short lives | C127: 7.006162255 | D127: 7.006162255 | E127: 7.006162255 | F127: 7.006162255 | G127: 7.006162255 | H127: 7.006162255 | I127: 7.006162255 | K127: 7.006162255 | L127: 7.006162255 | M127: 7.006162255 | N127: 7.006162255 | O127: 7.006162255 | P127: 7.006162255 | Q127: 7.006162255 | S127: 7.006162255 | T127: 7.006162255 | U127: 7.006162255 | V127: 7.006162255 | W127: 7.006162255 | X127: 7.006162255 | Y127: 7.006162255
B128: Estimated residual service life
A129: DRAB1501 | B129: Overhead network assets less than 33kV (wires and poles) | C129: 40.5320634 | D129: 40.5320634 | E129: 40.5320634 | F129: 40.5320634 | G129: 40.5320634 | H129: 40.5320634 | I129: 40.5320634 | K129: 40.5320634 | L129: 40.5320634 | M129: 40.5320634 | N129: 40.5320634 | O129: 40.5320634 | P129: 40.5320634 | Q129: 40.5320634 | S129: 0 | T129: 0 | U129: 0 | V129: 0 | W129: 0 | X129: 0 | Y129: 0
A130: DRAB1502 | B130: Underground network assets less than 33kV (cables) | C130: 48.84148646 | D130: 48.84148646 | E130: 48.84148646 | F130: 48.84148646 | G130: 48.84148646 | H130: 48.84148646 | I130: 48.84148646 | K130: 48.84148646 | L130: 48.84148646 | M130: 48.84148646 | N130: 48.84148646 | O130: 48.84148646 | P130: 48.84148646 | Q130: 48.84148646 | S130: 0 | T130: 0 | U130: 0 | V130: 0 | W130: 0 | X130: 0 | Y130: 0
A131: DRAB1503 | B131: Distribution substations including transformers | C131: 33.02818348 | D131: 33.02818348 | E131: 33.02818348 | F131: 33.02818348 | G131: 33.02818348 | H131: 33.02818348 | I131: 33.02818348 | K131: 33.02818348 | L131: 33.02818348 | M131: 33.02818348 | N131: 33.02818348 | O131: 33.02818348 | P131: 33.02818348 | Q131: 33.02818348 | S131: 0 | T131: 0 | U131: 0 | V131: 0 | W131: 0 | X131: 0 | Y131: 0
A132: DRAB1504 | B132: Overhead network assets 33kV and above (wires and towers / poles etc) | C132: 46.66905928 | D132: 46.66905928 | E132: 46.66905928 | F132: 46.66905928 | G132: 46.66905928 | H132: 46.66905928 | I132: 46.66905928 | K132: 46.66905928 | L132: 46.66905928 | M132: 46.66905928 | N132: 46.66905928 | O132: 46.66905928 | P132: 46.66905928 | Q132: 46.66905928 | S132: 0 | T132: 0 | U132: 0 | V132: 0 | W132: 0 | X132: 0 | Y132: 0
A133: DRAB1505 | B133: Underground network assets 33kV and above (cables, ducts etc) | C133: 33.52779499 | D133: 33.52779499 | E133: 33.52779499 | F133: 33.52779499 | G133: 33.52779499 | H133: 33.52779499 | I133: 33.52779499 | K133: 33.52779499 | L133: 33.52779499 | M133: 33.52779499 | N133: 33.52779499 | O133: 33.52779499 | P133: 33.52779499 | Q133: 33.52779499 | S133: 0 | T133: 0 | U133: 0 | V133: 0 | W133: 0 | X133: 0 | Y133: 0
A134: DRAB1506 | B134: Zone substations and transformers | C134: 38.77601094 | D134: 38.77601094 | E134: 38.77601094 | F134: 38.77601094 | G134: 38.77601094 | H134: 38.77601094 | I134: 38.77601094 | K134: 38.77601094 | L134: 38.77601094 | M134: 38.77601094 | N134: 38.77601094 | O134: 38.77601094 | P134: 38.77601094 | Q134: 38.77601094 | S134: 0 | T134: 0 | U134: 0 | V134: 0 | W134: 0 | X134: 0 | Y134: 0
A135: DRAB1507 | B135: Meters | C135: 15.97255524 | D135: 15.97255524 | E135: 15.97255524 | F135: 15.97255524 | G135: 15.97255524 | H135: 15.97255524 | I135: 15.97255524 | K135: 15.97255524 | L135: 15.97255524 | M135: 15.97255524 | N135: 15.97255524 | O135: 15.97255524 | P135: 15.97255524 | Q135: 15.97255524 | S135: 16.97255524 | T135: 15.97255524 | U135: 14.97255524 | V135: 13.97255524 | W135: 12.97255524 | X135: 11.97255524 | Y135: 10.97255524
A136: DRAB1508 | B136: “Other” assets with long lives | C136: 35.64710054 | D136: 35.64710054 | E136: 35.64710054 | F136: 35.64710054 | G136: 35.64710054 | H136: 35.64710054 | I136: 35.64710054 | K136: 35.64710054 | L136: 35.64710054 | M136: 35.64710054 | N136: 35.64710054 | O136: 35.64710054 | P136: 35.64710054 | Q136: 35.64710054 | S136: 36.64710054 | T136: 35.64710054 | U136: 34.64710054 | V136: 33.64710054 | W136: 32.64710054 | X136: 31.64710054 | Y136: 30.64710054
A137: DRAB1509 | B137: “Other” assets with short lives | C137: 3.721780619 | D137: 3.721780619 | E137: 3.721780619 | F137: 3.721780619 | G137: 3.721780619 | H137: 3.721780619 | I137: 3.721780619 | K137: 3.721780619 | L137: 3.721780619 | M137: 3.721780619 | N137: 3.721780619 | O137: 3.721780619 | P137: 3.721780619 | Q137: 3.721780619 | S137: 4.721780619 | T137: 3.721780619 | U137: 2.721780619 | V137: 1.721780619 | W137: 0.7217806188 | X137: 0 | Y137: 0

Sheet 3.4 Operational data
B1: =SheetHeader -> REGULATORY REPORTING STATEMENT
B2: =dms_TradingName -> Endeavour Energy
B3: =dms_Reg_Year_Span -> 2019-20 to 2023-24
B4: 3.4 OPERATIONAL DATA
B6: There are TWO tables on this worksheet. Each table has been grouped for ease of navigation. See the Instructions sheet on how to group or ungroup tables.
B9: 3.4.1 - ENERGY DELIVERY
D10: Standard control services
D11: Forecast
C12: Units | D12: =CRCP_y4 -> 2017-18 | E12: =CRCP_y5 -> 2018-19 | F12: =FRCP_y1 -> 2019-20 | G12: =FRCP_y2 -> 2020-21 | H12: =FRCP_y3 -> 2021-22 | I12: =FRCP_y4 -> 2022-23 | J12: =FRCP_y5 -> 2023-24
A13: DOPED01 | B13: Total energy delivered | C13: GWh | D13: 16313.07294 | E13: 16312.97883 | F13: 16621.35044 | G13: 16729.80917 | H13: 16831.1429 | I13: 16953.68923 | J13: 17227.73426
B14: 3.4.1.1 - Energy grouping - delivery by chargeable quantity
A15: DOPED0201 | B15: Energy Delivery where time of use is not a determinant | C15: GWh | D15: 6285.978132 | E15: 6220.042489 | F15: 6402.725231 | G15: 6489.753359 | H15: 6561.623617 | I15: 6649.826368 | J15: 6807.244515
A16: DOPED0202 | B16: Energy Delivery at On-peak times | C16: GWh | D16: 2101.610165 | E16: 2121.231094 | F16: 2161.545309 | G16: 2171.999677 | H16: 2183.518657 | I16: 2195.991091 | J16: 2226.962929
A17: DOPED0203 | B17: Energy Delivery at Shoulder times | C17: GWh | D17: 2377.0623 | E17: 2399.163785 | F17: 2444.472262 | G17: 2456.296923 | H17: 2469.348843 | I17: 2483.480882 | J17: 2518.56104
A18: DOPED0204 | B18: Energy Delivery at Off-peak times | C18: GWh | D18: 4633.752676 | E18: 4679.942943 | F18: 4739.039952 | G18: 4761.306902 | H18: 4786.141151 | I18: 4813.110366 | J18: 4880.047727
A19: DOPED0205 | B19: Controlled load energy deliveries | C19: GWh | D19: 768.5538894 | E19: 746.4827413 | F19: 726.0720625 | G19: 702.3060972 | H19: 681.2369143 | I19: 660.7998069 | J19: 642.7319108
A20: DOPED0206 | B20: Energy Delivery to unmetered supplies | C20: GWh | D20: 146.1157813 | E20: 146.1157813 | F20: 147.49562 | G20: 148.1462111 | H20: 149.2737142 | I20: 150.4807203 | J20: 152.1861346
B21: 3.4.1.2 - Energy - received from TNSP and other DNSPs by time of receipt
A22: DOPED0301 | B22: Energy into DNSP network at On-peak times | C22: GWh | D22: 3251.687862 | E22: 3297.838311 | F22: 3360.178838 | G22: 3382.104898 | H22: 3402.590565 | I22: 3427.364582 | J22: 3482.765633
A23: DOPED0302 | B23: Energy into DNSP network at Shoulder times | C23: GWh | D23: 3628.619786 | E23: 3648.994281 | F23: 3717.972867 | G23: 3742.233629 | H23: 3764.900623 | I23: 3792.312593 | J23: 3853.612784
A24: DOPED0303 | B24: Energy into DNSP network at Off-peak times | C24: GWh | D24: 7531.510664 | E24: 7774.039319 | F24: 7920.995493 | G24: 7972.682096 | H24: 8020.973238 | I24: 8079.373366 | J24: 8209.97102
A25: DOPED0304 | B25: Energy received from TNSP and other DNSPs not included in the above categories | C25: GWh | D25: 0 | E25: 0 | F25: 0 | G25: 0 | H25: 0 | I25: 0 | J25: 0
B26: 3.4.1.3 - Energy - received into DNSP system from embedded generation by time of receipt
A27: DOPED0401 | B27: Energy into DNSP network at On-peak times from non-residential embedded generation | C27: GWh | D27: 646.7132348 | E27: 646.6060045 | F27: 658.8290897 | G27: 663.1281247 | H27: 667.1447423 | I27: 672.002175 | J27: 682.8646397
A28: DOPED0402 | B28: Energy into DNSP network at Shoulder times from non-residential embedded generation | C28: GWh | D28: 657.1296975 | E28: 607.9920502 | F28: 619.4851984 | G28: 623.5275041 | H28: 627.3042576 | I28: 631.8716147 | J28: 642.0853958
A29: DOPED0403 | B29: Energy into DNSP network at Off-peak times from non-residential embedded generation | C29: GWh | D29: 1130.183878 | E29: 875.4496922 | F29: 891.9987129 | G29: 897.8192418 | H29: 903.2574012 | I29: 909.8339533 | J29: 924.5408092
A30: DOPED0404 | B30: Energy received from embedded generation not included in above categories from non-residential embedded generation | C30: GWh | D30: 0 | E30: 0 | F30: 0 | G30: 0 | H30: 0 | I30: 0 | J30: 0
A31: DOPED0405 | B31: Energy into DNSP network at On-peak times from residential embedded generation | C31: GWh | D31: 0 | E31: 0 | F31: 0 | G31: 0 | H31: 0 | I31: 0 | J31: 0
A32: DOPED0406 | B32: Energy into DNSP network at Shoulder times from residential embedded generation | C32: GWh | D32: 0 | E32: 0 | F32: 0 | G32: 0 | H32: 0 | I32: 0 | J32: 0
A33: DOPED0407 | B33: Energy into DNSP network at Off-peak times from residential embedded generation | C33: GWh | D33: 0 | E33: 0 | F33: 0 | G33: 0 | H33: 0 | I33: 0 | J33: 0
A34: DOPED0408 | B34: Energy received from embedded generation not included in above categories from residential embedded generation | C34: GWh | D34: 235.7575578 | E34: 230.454657 | F34: 234.8110454 | G34: 236.3432499 | H34: 237.774799 | I34: 239.5060201 | J34: 243.3774744
B35: 3.4.1.4 - Energy grouping - customer type or class
A36: DOPED0501 | B36: Residential customers energy deliveries | C36: GWh | D36: 5462.398711 | E36: 5398.916941 | F36: 5531.444471 | G36: 5586.431293 | H36: 5624.003931 | I36: 5680.974794 | J36: 5793.99985
A37: DOPED0502 | B37: Non residential customers not on demand tariffs energy deliveries | C37: GWh | D37: 1982.166618 | E37: 1949.476034 | F37: 1984.415877 | G37: 1994.727142 | H37: 2010.622302 | I37: 2024.356766 | J37: 2056.298924
A38: DOPED0503 | B38: Non-residential low voltage demand tariff customers energy deliveries | C38: GWh | D38: 3847.183651 | E38: 3900.62976 | F38: 3974.175489 | G38: 3995.552643 | H38: 4020.902159 | I38: 4048.35684 | J38: 4114.482397
A39: DOPED0504 | B39: Non-residential high voltage demand tariff customers energy deliveries | C39: GWh | D39: 5021.323963 | E39: 5063.956098 | F39: 5131.314599 | G39: 5153.098091 | H39: 5175.614505 | I39: 5200.000834 | J39: 5262.953085
A40: DOPED0505 | B40: Other Customer Class Energy Deliveries | C40: GWh | D40: 0 | E40: 0 | F40: 0 | G40: 0 | H40: 0 | I40: 0 | J40: 0
B44: 3.4.3 - SYSTEM DEMAND
D45: Standard control services
D46: Forecast
C47: Units | D47: =CRCP_y4 -> 2017-18 | E47: =CRCP_y5 -> 2018-19 | F47: =FRCP_y1 -> 2019-20 | G47: =FRCP_y2 -> 2020-21 | H47: =FRCP_y3 -> 2021-22 | I47: =FRCP_y4 -> 2022-23 | J47: =FRCP_y5 -> 2023-24
B48: 3.4.3.1 - Annual system maximum demand characteristics at the zone substation level – MW measure
A49: DOPSD0102 | B49: Non–coincident Summated Weather Adjusted System Annual Maximum Demand 10% POE | C49: MW | D49: 4744.87 | E49: 4948.42 | F49: 5108.01 | G49: 5211.13 | H49: 5309.4 | I49: 5394.09 | J49: 5475.18
A50: DOPSD0103 | B50: Non–coincident Summated Weather Adjusted System Annual Maximum Demand 50% POE | C50: MW | D50: 4463.04 | E50: 4666.74 | F50: 4826.34 | G50: 4929.45 | H50: 5027.73 | I50: 5112.41 | J50: 5193.5
A51: DOPSD0105 | B51: Coincident Weather Adjusted System Annual Maximum Demand 10% POE | C51: MW | D51: 0 | E51: 0 | F51: 0 | G51: 0 | H51: 0 | I51: 0 | J51: 0
A52: DOPSD0106 | B52: Coincident Weather Adjusted System Annual Maximum Demand 50% POE | C52: MW | D52: 0 | E52: 0 | F52: 0 | G52: 0 | H52: 0 | I52: 0 | J52: 0
B53: 3.4.3.2 - Annual system maximum demand characteristics at the transmission connection point – MW measure
A54: DOPSD0108 | B54: Non–coincident Summated Weather Adjusted System Annual Maximum Demand 10% POE | C54: MW | D54: 4149.48 | E54: 4339.08 | F54: 4494.61 | G54: 4591.55 | H54: 4687.59 | I54: 4769.09 | J54: 4847.37
A55: DOPSD0109 | B55: Non–coincident Summated Weather Adjusted System Annual Maximum Demand 50% POE | C55: MW | D55: 3897.98 | E55: 4087.41 | F55: 4242.88 | G55: 4339.65 | H55: 4435.62 | I55: 4517.09 | J55: 4595.38
A56: DOPSD0111 | B56: Coincident Weather Adjusted System Annual Maximum Demand 10% POE | C56: MW | D56: 3862.46 | E56: 4038.94 | F56: 4183.71 | G56: 4273.95 | H56: 4363.34 | I56: 4439.21 | J56: 4512.07
A57: DOPSD0112 | B57: Coincident Weather Adjusted System Annual Maximum Demand 50% POE | C57: MW | D57: 3628.35 | E57: 3804.68 | F57: 3949.39 | G57: 4039.47 | H57: 4128.8 | I57: 4204.64 | J57: 4277.51
B58: 3.4.3.3 - Annual system maximum demand characteristics at the zone substation level – MVA measure
A59: DOPSD0202 | B59: Non–coincident Summated Weather Adjusted System Annual Maximum Demand 10% POE | C59: MVA | D59: 4943.5 | E59: 5156.24 | F59: 5326.42 | G59: 5435.46 | H59: 5539.49 | I59: 5629.03 | J59: 5714.87
A60: DOPSD0203 | B60: Non–coincident Summated Weather Adjusted System Annual Maximum Demand 50% POE | C60: MVA | D60: 4653.37 | E60: 4866.28 | F60: 5036.46 | G60: 5145.5 | H60: 5249.53 | I60: 5339.06 | J60: 5424.91
A61: DOPSD0205 | B61: Coincident Weather Adjusted System Annual Maximum Demand 10% POE | C61: MVA | D61: 0 | E61: 0 | F61: 0 | G61: 0 | H61: 0 | I61: 0 | J61: 0
A62: DOPSD0206 | B62: Coincident Weather Adjusted System Annual Maximum Demand 50% POE | C62: MVA | D62: 0 | E62: 0 | F62: 0 | G62: 0 | H62: 0 | I62: 0 | J62: 0
B63: 3.4.3.4 - Annual system maximum demand characteristics at the transmission connection point – MVA measure
A64: DOPSD0208 | B64: Non–coincident Summated Weather Adjusted System Annual Maximum Demand 10% POE | C64: MVA | D64: 4218.17 | E64: 4412.1 | F64: 4569.6 | G64: 4668.53 | H64: 4766.81 | I64: 4850.27 | J64: 4930.53
A65: DOPSD0209 | B65: Non–coincident Summated Weather Adjusted System Annual Maximum Demand 50% POE | C65: MVA | D65: 3962.58 | E65: 4156.35 | F65: 4313.78 | G65: 4412.55 | H65: 4510.77 | I65: 4594.19 | J65: 4674.46
A66: DOPSD0211 | B66: Coincident Weather Adjusted System Annual Maximum Demand 10% POE | C66: MVA | D66: 3896.42 | E66: 4074.45 | F66: 4220.5 | G66: 4311.53 | H66: 4401.7 | I66: 4478.24 | J66: 4551.75
A67: DOPSD0212 | B67: Coincident Weather Adjusted System Annual Maximum Demand 50% POE | C67: MVA | D67: 3660.25 | E67: 3838.13 | F67: 3984.12 | G67: 4074.99 | H67: 4165.1 | I67: 4241.61 | J67: 4315.12
B68: 3.4.3.5 - Power factor conversion between MVA and MW
A69: DOPSD0301 | B69: Average overall network power factor conversion between MVA and MW | C69: Factor | D69: 0.991 | E69: 0.991 | F69: 0.991 | G69: 0.991 | H69: 0.991 | I69: 0.991 | J69: 0.991
